Workbook

Sheet Einzelposten
E2: K | G2: Kassa | H2: 20 | I2: =SUMIF($E$16:$E$215,$E2,I$16:I$215) -> 100 | J2: 48.9 | AD2: =H2+I2-J2 -> 71.1 | AF2: http://www.rvo.at/
E3: B | G3: Bank I | H3: 100 | I3: 2700 | J3: 1600 | AD3: =H3+I3-J3 -> 1200
E4: C | G4: Bank II | H4: 5 | I4: 1000 | J4: 0 | AD4: =H4+I4-J4 -> 1005
G5: non-cash-transactions | I5: =SUMIF($E$16:$E$215,"",I$16:I$215) -> 0 | J5: =SUMIF($E$16:$E$215,"",J$16:J$215) -> 83.33 | AD5: =H5+I5-J5 -> -83.33 | AE5: =IF(ROUND(SUM(AD2:AD5),2)=ROUND(SUM(H2:H5,I16:I215)-SUM(J16:J215),2),"",FALSE) -> 
G7: MWSt-Hauptsteuersatz (USt) | K7: 0.2 | M7: =K7 -> 0.2
G8: 1. ermäßigte MWSt-Satz (USt) | K8: 0.1 | M8: =K8 -> 0.1
G9: 2. ermäßigte MWSt-Satz (USt) | K9: 0.13 | M9: =K9 -> 0.13
G10: weiterer ermäßigter MWSt-Satz | K10: 0.05 | M10: =K10 -> 0.05
G11: VSt-Abzugsberechtigung in Prozent | K11: 1 | M11: 0
D12: www.rvo.at | G12: =CONCATENATE("Einzelposten Monat(e) ",SUBTOTAL(5,C16:C215)," bis ",SUBTOTAL(4,C16:C215)) -> Einzelposten Monat(e) 1 bis 10 | I12: =ROUND(SUBTOTAL(9,I16:I215),2) -> 3800 | J12: =ROUND(SUBTOTAL(9,J16:J215),2) -> 1732.23 | K12: =AND(ROUND(I12-SUM(N12:Q12,V12:Z12)-J12+SUM(AA12:AC12),2)=ROUND(AD12,2)) -> TRUE | N12: =ROUND(SUBTOTAL(9,N16:N215),2) -> 466.67 | O12: 0 | P12: 0 | Q12: 0 | R12: 0 | S12: 0 | T12: 0 | U12: 0 | V12: 100 | W12: 3 | X12: 0 | Y12: 0 | Z12: 14 | AA12: 6.13 | AB12: 103 | AC12: 14 | AD12: 1607.23 | AE12: =Übersicht!E2 -> TRUE | AF12: =Übersicht!F2 ->  | AJ12: =SUBTOTAL(9,AJ16:AJ215) -> 0 | AK12: 0 | AL12: 0 | AM12: 0 | AN12: 0 | AO12: 0 | AP12: 0 | AQ12: 0 | AR12: 0 | AS12: 0 | AT12: 0 | AU12: 0 | AV12: 0 | AW12: 0 | AX12: 0 | AY12: 0 | AZ12: 2333.33 | BA12: 0 | BB12: 0 | BC12: 0 | BD12: 0 | BE12: 0 | BF12: -500 | BG12: 0 | BH12: 0 | BI12: -83.33 | BJ12: 0 | BK12: 0 | BL12: 0 | BM12: 0 | BN12: 0 | BO12: -5.9 | BP12: =SUBTOTAL(9,BP16:BP215) -> 0 | BQ12: 0 | BR12: 0 | BS12: 0 | BT12: 0 | BU12: -66.87 | BV12: -70 | BW12: 0 | BX12: 0 | BY12: 0 | BZ12: 0 | CA12: 0 | CB12: 0 | CC12: 0 | CD12: 0 | CE12: 0 | CF12: 0 | CG12: 2800 | CH12: 648.9 | CI12: 0 | CJ12: 0 | CK12: 0 | CL12: -83.33
A13: ENr | C13: Monat | D13: Zahlungs- Datum | E13: B-Art | F13: B-Nr | G13: Text | H13: WEB Re-Datum | I13: Bewegung | K13: U / V % | L13: GF Art | M13: VSt Abzug | N13: USt-Betrag | R13: USt Bmg | S13: n. Ausl. umsatz | T13: Ausfuhr E.; frei | U13: i.g. Liefgen | V13: USt ig Erwerb .. Reverse ( r ) | AA13: Vst- Betrag | AB13: VSt ig. Erw. | AC13: VSt RC | AD13: Nettobetrag | AE13: Konto | AF13: Kontobezeichnung | AG13: cf | AH13: monat konto | AI13: mcf | AJ13: =Übersicht!C45 -> Anlagenzugang Gebäude | AK13: VSt Anl. Gebäude | AL13: =Übersicht!C46 -> Anlagenzugang KfZ (PKW / LKW) | AM13: VSt Anl. KFZ | AN13: =Übersicht!C47 -> Anlagenzugang Andere | AO13: VSt Anl. Andere | AP13: =Übersicht!C48 -> Rechnungen auf Ziel | AQ13: VSt-WEK auf Ziel | AR13: =Übersicht!C49 -> Vorsteuer direkt | AS13: =Übersicht!C50 -> Einfuhrumsatzsteuer | AT13: U30 KZ 027 Kfz | AU13: U30 KZ 028 Geb. | AV13: =Übersicht!C3 -> Erlöse nicht steuerbar | AW13: =Übersicht!C4 -> Erlöse 5% steuerbar | AX13: =Übersicht!C5 -> Erlöse 10% steuerbar | AY13: =Übersicht!C6 -> Erlöse 13% steuerbar | AZ13: =Übersicht!C7 -> Erlöse 20% steuerbar | BA13: =Übersicht!C8 -> sonstige Erlöse | BB13: =Übersicht!C9 -> Privatanteil, Nutzungsentnahmen | BC13: =Übersicht!C10 -> Wareneinkauf 5% VSt-Abzug | BD13: =Übersicht!C11 -> Wareneinkauf 10% VSt-Abzug | BE13: =Übersicht!C12 -> Wareneinkauf 13% VSt-Abzug | BF13: =Übersicht!C13 -> Wareneinkauf 20% VSt-Abzug | BG13: =Übersicht!C14 -> Fremdleistungen | BH13: =Übersicht!C15 -> Personalaufwand | BI13: =Übersicht!C16 -> AFA, Absetzung f. Abnutzung | BJ13: =Übersicht!C17 -> GWG, geringwertige Wirtschaftsgüter | BK13: =Übersicht!C18 -> Abgaben und Beiträge | BL13: =Übersicht!C19 -> Instandhaltungen (nur Gebäude-Erhaltung) | BM13: =Übersicht!C20 -> Energieaufwand, Betriebskosten, Kleinmat. | BN13: =Übersicht!C21 -> Porto-, Fracht-, Transportaufwand d. Dritte | BO13: =Übersicht!C22 -> KFZ-Aufwand (ohne AfA, Leasing u. Kilometergeld | BP13: =Übersicht!C23 -> Reise-, Fahrtspesen, Taggelder (inkl. Kilometergelder) | BQ13: =Übersicht!C24 -> Telekommunikation | BR13: =Übersicht!C25 -> Geschäftsmieten, Leasing, Raumkosten | BS13: =Übersicht!C26 -> KFZ-Mieten/-Leasing (PkW und LKW) | BT13: =Übersicht!C27 -> Lizenz- u. Wartungsgebühren, Provisionen | BU13: =Übersicht!C28 -> Büromaterial, Fachliteratur | BV13: =Übersicht!C29 -> Werbung, Repräsentationen | BW13: =Übersicht!C30 -> Versicherung, Beratung, Fortbildung | BX13: =Übersicht!C31 -> Pflichtversicherung Unternehmer (SVA) | BY13: =Übersicht!C32 -> Spesen des Geldverkehrs | BZ13: =Übersicht!C33 -> sonstige Aufwendungen | CA13: =Übersicht!C34 -> Zinsen und ähnliche Aufwendungen | CB13: =Übersicht!C51 -> Durchläufer, Finanzamt USt | CC13: =Übersicht!C52 -> Durchläufer, Finanzamt ESt | CD13: =Übersicht!C53 -> Durchläufer, Finanzierung (betrieblich) | CE13: =Übersicht!C54 -> Durchläufer, Privat (Einlagen/Entnahmen) | CF13: =Übersicht!C55 -> Durchläufer, sonstiges | CG13: cash flow ein/operativ | CH13: cash flow aus/operativ | CI13: cash flow saldo/invest | CJ13: vst cash flow saldo/invest | CK13: cash flow saldo/finanz | CL13: cash flow saldo/finanz | CM13: "R" o.P. | CN13: Salden Kassa/Bank | CO13: Anmerkung | CP13: PDF-Beleg- Namen | CQ13: PDF-Beleg anzeigen
A15: ENr | B15: Tag | C15: M | D15: Z-Dat | E15: BA | F15: BNr | G15: Text | H15: Re-Dat | I15: Einnahme | J15: Ausgabe | K15: U/V% | L15: GF | M15: ges% | N15: =K7 -> 0.2 | O15: =K8 -> 0.1 | P15: =K9 -> 0.13 | Q15: =K10 -> 0.05 | R15: 0 | S15: n | T15: a | U15: i | V15: =K7 -> 0.2 | W15: =K8 -> 0.1 | X15: =K9 -> 0.13 | Y15: =K10 -> 0.05 | Z15: Ur | AA15: VSt | AB15: Vi | AC15: Vr | AD15: Nettobetrag | AE15: Konto | AF15: Kontobezeichnung | AG15: cf | AH15: mk | AI15: mcf | AJ15: 030 | AK15: VSt-Geb. | AL15: 064 | AM15: VSt-KfZ | AN15: 000 | AO15: VSt-Anl.A. | AP15: 100 | AQ15: VSt-WEK-Ziel | AR15: 251 | AS15: 259 | AT15: KZ 027 | AU15: KZ 028 | AV15: 400 | AW15: 405 | AX15: 410 | AY15: 413 | AZ15: 420 | BA15: 430 | BB15: 490 | BC15: 505 | BD15: 510 | BE15: 513 | BF15: 520 | BG15: 580 | BH15: 600 | BI15: 700 | BJ15: 705 | BK15: 710 | BL15: 720 | BM15: 725 | BN15: 730 | BO15: 732 | BP15: 735 | BQ15: 739 | BR15: 740 | BS15: 741 | BT15: 748 | BU15: 760 | BV15: 765 | BW15: 770 | BX15: 771 | BY15: 780 | BZ15: 790 | CA15: 830 | CB15: 991 | CC15: 992 | CD15: 995 | CE15: 998 | CF15: 999 | CG15: o | CH15: o | CI15: i | CJ15: i MwSt | CK15: f | CM15: o.P. | CN15: Saldo | CO15: Bereich | CP15: Belege | CQ15: =HYPERLINK(CONCATENATE(YEAR(D16),CP15)) -> 2024Belege
A16: 1 | B16: =DAY(D16) -> 1 | C16: =IF(ISBLANK(D16)=TRUE,"",MONTH(D16)) -> 1 | D16: 2024-01-01 | E16: k | F16: 001 | G16: Beispiel Firma Huber, bez. Re 999 | I16: 100 | K16: 0.2 | M16: =IF(ISBLANK(J16),"",$K$11) ->  | N16: =IF(ISBLANK($I16),"",IF(ISBLANK($L16),IF($K16=N$15,ROUND($I16/(1+$N$15)*$N$15,2),""),"")) -> 16.67 | O16: =IF(ISBLANK($I16),"",IF(ISBLANK($L16),IF($K16=O$15,ROUND($I16/(1+$O$15)*$O$15,2),""),"")) ->  | P16: =IF(ISBLANK($I16),"",IF(ISBLANK($L16),IF($K16=P$15,ROUND($I16/(1+$P$15)*$P$15,2),""),"")) ->  | Q16: =IF(ISBLANK($I16),"",IF(ISBLANK($L16),IF($K16=Q$15,ROUND($I16/(1+$Q$15)*$Q$15,2),""),"")) ->  | R16: =IF(ISBLANK($I16),"",IF(ISBLANK($L16),IF(NOT(ISBLANK(K16)),IF($K16=R$15,ROUND($I16,2),""),""),"")) ->  | S16: =IF(ISBLANK($I16),"",IF($L16="n",$I16,"")) ->  | T16: =IF(ISBLANK($I16),"",IF($L16="a",$I16,"")) ->  | U16: =IF(ISBLANK($I16),"",IF($L16="i",$I16,"")) ->  | V16: =IF(ISBLANK($J16),"",IF($L16="I",IF($K16=V$15,ROUND($J16*$K16,2),""),"")) ->  | Z16: =IF(ISBLANK($J16),"",IF($L16="r",ROUND($J16*$K16,2),"")) ->  | AA16: =IF(ISBLANK($J16),"",IF(ISBLANK($L16),ROUND($J16/(1+$K16)*$K16*$M16,2),"")) ->  | AB16: =IF(ISBLANK($J16),"",IF($L16="i",ROUND($J16*$K16*$M16,2),"")) ->  | AC16: =IF(ISBLANK($J16),"",IF($L16="r",ROUND($J16*$K16*$M16,2),"")) ->  | AD16: =ROUND(I16-J16-SUM(N16:Q16,V16:Z16)+SUM(AA16:AC16),2) -> 83.33 | AE16: 420 | AF16: =IF(ISBLANK(AE16),"",VLOOKUP(AE16,Übersicht!$B$3:$C$55,2,FALSE)) -> Erlöse 20% steuerbar | AG16: =IF(OR(AE16="100",AE16="700",AE16="999",AE16="998",AE16="992",ISBLANK(AE16)),"",IF(AE16="995","f",IF(LEFT(AE16,1)="0","i","o"))) -> o | AH16: =CONCATENATE(TEXT(C16,"00"),AE16) -> 01420 | AI16: =CONCATENATE(TEXT(C16,"00"),AG16) -> 01o | AJ16: =IF($AE16=AJ$15,$AD16,"") ->  | AK16: =IF(AJ16="","",ROUND(SUM($AA16)*-1,2)) ->  | AL16: =IF($AE16=AL$15,$AD16,"") ->  | AM16: =IF(AL16="","",ROUND(SUM($AA16)*-1,2)) ->  | AN16: =IF($AE16=AN$15,$AD16,"") ->  | AO16: =IF(AN16="","",ROUND(SUM($AA16)*-1,2)) ->  | AP16: =IF($AE16=AP$15,$AD16,"") ->  | AQ16: =IF(AP16="","",ROUND(SUM($AA16)*-1,2)) ->  | AR16: =IF($AE16=AR$15,$AD16,"") ->  | AT16: =IF(ROUND(SUM(AL16,BO16,BS16),2)=0,"",ROUND(SUM(AA16,AB16,AC16)*-1,2)) ->  | AU16: =IF(AJ16="","",ROUND(SUM($AA16,AB16)*-1,2)) ->  | AV16: =IF($AE16=AV$15,$AD16,"") ->  | AZ16: 83.33 | BI16: =IF($AE16=BI$15,$AD16,"") ->  | BS16: =IF($AE16=BS$15,$AD16,"") ->  | CG16: =IF($AG16=CG$15,$I16,"") -> 100 | CH16: =IF($AG16=CH$15,$J16,"") -> 0 | CI16: =IF($AG16=CI$15,$AD16,"") ->  | CJ16: =IF(CI16="","",ROUND(SUM(V16:Z16)-SUM(AA16:AC16),2)) ->  | CK16: =IF($AG16=CK$15,$I16-$J16,"") ->  | CM16: =IF($E16="R",IF($AE16="100","o.P.","100...?"),"") ->  | CN16: =IF(ISBLANK(D16),"",_xlfn.IFNA(SUM(SUMIFS(I$16:I16,E$16:E16,E16),ROUND(SUMIFS(J$16:J16,E$16:E16,E16)*-1,2),VLOOKUP(E16,$E$2:$H$5,4,FALSE)),"non-cash")) -> 120 | CP16: k001 | CQ16: =IF(ISBLANK(CP16),"",HYPERLINK(CONCATENATE($CQ$15,"\",CP16,".pdf"),"anzeigen")) -> anzeigen
A17: 2 | B17: =DAY(D17) -> 3 | C17: 1 | D17: 2024-01-03 | E17: k | F17: 002 | G17: Beispiel, kauf büromaterial | J17: 23 | K17: 0.2 | M17: 1 | O17: =IF(ISBLANK($I17),"",IF(ISBLANK($L17),IF($K17=O$15,ROUND($I17/(1+$O$15)*$O$15,2),""),"")) ->  | P17: =IF(ISBLANK($I17),"",IF(ISBLANK($L17),IF($K17=P$15,ROUND($I17/(1+$P$15)*$P$15,2),""),"")) ->  | AA17: 3.83 | AD17: -19.17 | AE17: 760 | AF17: =IF(ISBLANK(AE17),"",VLOOKUP(AE17,Übersicht!$B$3:$C$55,2,FALSE)) -> Büromaterial, Fachliteratur | AG17: o | AH17: 01760 | AI17: 01o | BU17: -19.17 | CG17: 0 | CH17: 23 | CN17: =IF(ISBLANK(D17),"",_xlfn.IFNA(SUM(SUMIFS(I$16:I17,E$16:E17,E17),ROUND(SUMIFS(J$16:J17,E$16:E17,E17)*-1,2),VLOOKUP(E17,$E$2:$H$5,4,FALSE)),"non-cash")) -> 97 | CP17: k002 | CQ17: =IF(ISBLANK(CP17),"",HYPERLINK(CONCATENATE($CQ$15,"\",CP17,".pdf"),"anzeigen")) -> anzeigen
A18: 3 | B18: 0 | O18: =IF(ISBLANK($I18),"",IF(ISBLANK($L18),IF($K18=O$15,ROUND($I18/(1+$O$15)*$O$15,2),""),"")) ->  | AD18: 0 | AF18: =IF(ISBLANK(AE18),"",VLOOKUP(AE18,Übersicht!$B$3:$C$55,2,FALSE)) ->  | CL18: 0 | CN18: =IF(ISBLANK(D18),"",_xlfn.IFNA(SUM(SUMIFS(I$16:I18,E$16:E18,E18),ROUND(SUMIFS(J$16:J18,E$16:E18,E18)*-1,2),VLOOKUP(E18,$E$2:$H$5,4,FALSE)),"non-cash")) -> 
A19: 4 | B19: 0 | G19: Obige Beispielzeilen lassen sich überschreiben oder die Zellinhalte einzeln entfernen. | AD19: 0 | AF19: =IF(ISBLANK(AE19),"",VLOOKUP(AE19,Übersicht!$B$3:$C$55,2,FALSE)) ->  | CL19: 0 | CN19: =IF(ISBLANK(D19),"",_xlfn.IFNA(SUM(SUMIFS(I$16:I19,E$16:E19,E19),ROUND(SUMIFS(J$16:J19,E$16:E19,E19)*-1,2),VLOOKUP(E19,$E$2:$H$5,4,FALSE)),"non-cash")) -> 
A20: 5 | B20: 0 | G20: Nicht veränderbare Zellen sind mit Password geschützt, so kann nicht viel schief laufen. | AD20: 0 | AF20: =IF(ISBLANK(AE20),"",VLOOKUP(AE20,Übersicht!$B$3:$C$55,2,FALSE)) ->  | CL20: 0 | CN20: =IF(ISBLANK(D20),"",_xlfn.IFNA(SUM(SUMIFS(I$16:I20,E$16:E20,E20),ROUND(SUMIFS(J$16:J20,E$16:E20,E20)*-1,2),VLOOKUP(E20,$E$2:$H$5,4,FALSE)),"non-cash")) -> 
A21: 6 | B21: 0 | AD21: 0 | AF21: =IF(ISBLANK(AE21),"",VLOOKUP(AE21,Übersicht!$B$3:$C$55,2,FALSE)) ->  | CL21: 0 | CN21: =IF(ISBLANK(D21),"",_xlfn.IFNA(SUM(SUMIFS(I$16:I21,E$16:E21,E21),ROUND(SUMIFS(J$16:J21,E$16:E21,E21)*-1,2),VLOOKUP(E21,$E$2:$H$5,4,FALSE)),"non-cash")) -> 
A22: 7 | B22: 0 | G22: Die Kontonummern samt Bezeichnungen finden Sie im Registerblatt "Übersicht". | AD22: 0 | AF22: =IF(ISBLANK(AE22),"",VLOOKUP(AE22,Übersicht!$B$3:$C$55,2,FALSE)) ->  | CL22: 0 | CN22: =IF(ISBLANK(D22),"",_xlfn.IFNA(SUM(SUMIFS(I$16:I22,E$16:E22,E22),ROUND(SUMIFS(J$16:J22,E$16:E22,E22)*-1,2),VLOOKUP(E22,$E$2:$H$5,4,FALSE)),"non-cash")) -> 
A23: 8 | B23: 0 | AD23: 0 | AF23: =IF(ISBLANK(AE23),"",VLOOKUP(AE23,Übersicht!$B$3:$C$55,2,FALSE)) ->  | CL23: 0 | CN23: =IF(ISBLANK(D23),"",_xlfn.IFNA(SUM(SUMIFS(I$16:I23,E$16:E23,E23),ROUND(SUMIFS(J$16:J23,E$16:E23,E23)*-1,2),VLOOKUP(E23,$E$2:$H$5,4,FALSE)),"non-cash")) -> 
A24: 9 | B24: 0 | G24: Kommentare zu Zellen oder Spalten finden Sie in obigen Zellen mit den "roten" Ecken. | AD24: 0 | AF24: =IF(ISBLANK(AE24),"",VLOOKUP(AE24,Übersicht!$B$3:$C$55,2,FALSE)) ->  | CL24: 0 | CN24: =IF(ISBLANK(D24),"",_xlfn.IFNA(SUM(SUMIFS(I$16:I24,E$16:E24,E24),ROUND(SUMIFS(J$16:J24,E$16:E24,E24)*-1,2),VLOOKUP(E24,$E$2:$H$5,4,FALSE)),"non-cash")) -> 
A25: 10 | B25: 0 | G25: Zum Einblenden bewegen Sie den Mauszeiger auf die jeweilige Zelle. | AD25: 0 | AF25: =IF(ISBLANK(AE25),"",VLOOKUP(AE25,Übersicht!$B$3:$C$55,2,FALSE)) ->  | CL25: 0 | CN25: =IF(ISBLANK(D25),"",_xlfn.IFNA(SUM(SUMIFS(I$16:I25,E$16:E25,E25),ROUND(SUMIFS(J$16:J25,E$16:E25,E25)*-1,2),VLOOKUP(E25,$E$2:$H$5,4,FALSE)),"non-cash")) -> 
A26: 11 | B26: 0 | AD26: 0 | AF26: =IF(ISBLANK(AE26),"",VLOOKUP(AE26,Übersicht!$B$3:$C$55,2,FALSE)) ->  | AV26: =IF($AE26=AV$15,$AD26,"") ->  | BI26: =IF($AE26=BI$15,$AD26,"") ->  | BS26: =IF($AE26=BS$15,$AD26,"") ->  | CL26: 0 | CN26: =IF(ISBLANK(D26),"",_xlfn.IFNA(SUM(SUMIFS(I$16:I26,E$16:E26,E26),ROUND(SUMIFS(J$16:J26,E$16:E26,E26)*-1,2),VLOOKUP(E26,$E$2:$H$5,4,FALSE)),"non-cash")) -> 
A27: 12 | B27: 0 | G27: Eine USt-Voranmeldung wird im Registerblatt "Übersicht" dargestellt. | AD27: 0 | AF27: =IF(ISBLANK(AE27),"",VLOOKUP(AE27,Übersicht!$B$3:$C$55,2,FALSE)) ->  | CL27: 0 | CN27: =IF(ISBLANK(D27),"",_xlfn.IFNA(SUM(SUMIFS(I$16:I27,E$16:E27,E27),ROUND(SUMIFS(J$16:J27,E$16:E27,E27)*-1,2),VLOOKUP(E27,$E$2:$H$5,4,FALSE)),"non-cash")) -> 
A28: 13 | B28: 0 | G28: Filtern Sie die Einzelposten nach den Monat (Filter Zeile 15), den Sie auswerten wollen. | AD28: 0 | AF28: =IF(ISBLANK(AE28),"",VLOOKUP(AE28,Übersicht!$B$3:$C$55,2,FALSE)) ->  | CL28: 0 | CN28: =IF(ISBLANK(D28),"",_xlfn.IFNA(SUM(SUMIFS(I$16:I28,E$16:E28,E28),ROUND(SUMIFS(J$16:J28,E$16:E28,E28)*-1,2),VLOOKUP(E28,$E$2:$H$5,4,FALSE)),"non-cash")) -> 
A29: 14 | B29: 0 | G29: Im Register "Übersicht" werden dann nur die gefilterten Daten angezeigt. | AD29: 0 | AF29: =IF(ISBLANK(AE29),"",VLOOKUP(AE29,Übersicht!$B$3:$C$55,2,FALSE)) ->  | CL29: 0 | CN29: =IF(ISBLANK(D29),"",_xlfn.IFNA(SUM(SUMIFS(I$16:I29,E$16:E29,E29),ROUND(SUMIFS(J$16:J29,E$16:E29,E29)*-1,2),VLOOKUP(E29,$E$2:$H$5,4,FALSE)),"non-cash")) -> 
A30: 15 | B30: 0 | AD30: 0 | AF30: =IF(ISBLANK(AE30),"",VLOOKUP(AE30,Übersicht!$B$3:$C$55,2,FALSE)) ->  | CL30: 0 | CN30: =IF(ISBLANK(D30),"",_xlfn.IFNA(SUM(SUMIFS(I$16:I30,E$16:E30,E30),ROUND(SUMIFS(J$16:J30,E$16:E30,E30)*-1,2),VLOOKUP(E30,$E$2:$H$5,4,FALSE)),"non-cash")) -> 
A31: 16 | B31: 0 | G31: Diese Datei für 200 Zeilen steht kostenlos zur Verfügung! | AD31: 0 | AF31: =IF(ISBLANK(AE31),"",VLOOKUP(AE31,Übersicht!$B$3:$C$55,2,FALSE)) ->  | CL31: 0 | CN31: =IF(ISBLANK(D31),"",_xlfn.IFNA(SUM(SUMIFS(I$16:I31,E$16:E31,E31),ROUND(SUMIFS(J$16:J31,E$16:E31,E31)*-1,2),VLOOKUP(E31,$E$2:$H$5,4,FALSE)),"non-cash")) -> 
A32: 17 | B32: 0 | AD32: 0 | AF32: =IF(ISBLANK(AE32),"",VLOOKUP(AE32,Übersicht!$B$3:$C$55,2,FALSE)) ->  | CL32: 0 | CN32: =IF(ISBLANK(D32),"",_xlfn.IFNA(SUM(SUMIFS(I$16:I32,E$16:E32,E32),ROUND(SUMIFS(J$16:J32,E$16:E32,E32)*-1,2),VLOOKUP(E32,$E$2:$H$5,4,FALSE)),"non-cash")) -> 
A33: 18 | B33: 0 | G33: Und nun, viel Erfolg! | AD33: 0 | AF33: =IF(ISBLANK(AE33),"",VLOOKUP(AE33,Übersicht!$B$3:$C$55,2,FALSE)) ->  | CL33: 0 | CN33: =IF(ISBLANK(D33),"",_xlfn.IFNA(SUM(SUMIFS(I$16:I33,E$16:E33,E33),ROUND(SUMIFS(J$16:J33,E$16:E33,E33)*-1,2),VLOOKUP(E33,$E$2:$H$5,4,FALSE)),"non-cash")) -> 
A34: 19 | B34: 0 | G34: rvo.at | AD34: 0 | AF34: =IF(ISBLANK(AE34),"",VLOOKUP(AE34,Übersicht!$B$3:$C$55,2,FALSE)) ->  | CL34: 0 | CN34: =IF(ISBLANK(D34),"",_xlfn.IFNA(SUM(SUMIFS(I$16:I34,E$16:E34,E34),ROUND(SUMIFS(J$16:J34,E$16:E34,E34)*-1,2),VLOOKUP(E34,$E$2:$H$5,4,FALSE)),"non-cash")) -> 
A35: 20 | B35: 0 | AD35: 0 | AF35: =IF(ISBLANK(AE35),"",VLOOKUP(AE35,Übersicht!$B$3:$C$55,2,FALSE)) ->  | CL35: 0 | CN35: =IF(ISBLANK(D35),"",_xlfn.IFNA(SUM(SUMIFS(I$16:I35,E$16:E35,E35),ROUND(SUMIFS(J$16:J35,E$16:E35,E35)*-1,2),VLOOKUP(E35,$E$2:$H$5,4,FALSE)),"non-cash")) -> 
A36: 21 | B36: 25 | C36: 2 | D36: 2024-02-25 | E36: b | G36: beispiel wareneinkauf ig erwerb | J36: 500 | K36: 0.2 | L36: i | M36: 1 | V36: =IF(ISBLANK($J36),"",IF($L36="I",IF($K36=V$15,ROUND($J36*$K36,2),""),"")) -> 100 | AB36: 100 | AD36: -500 | AE36: 520 | AF36: =IF(ISBLANK(AE36),"",VLOOKUP(AE36,Übersicht!$B$3:$C$55,2,FALSE)) -> Wareneinkauf 20% VSt-Abzug | AG36: o | AH36: 02520 | AI36: 02o | AR36: =IF($AE36=AR$15,$AD36,"") ->  | AV36: =IF($AE36=AV$15,$AD36,"") ->  | BF36: -500 | BI36: =IF($AE36=BI$15,$AD36,"") ->  | BS36: =IF($AE36=BS$15,$AD36,"") ->  | CG36: 0 | CH36: 500 | CK36: =IF($AG36=CK$15,$I36-$J36,"") ->  | CN36: =IF(ISBLANK(D36),"",_xlfn.IFNA(SUM(SUMIFS(I$16:I36,E$16:E36,E36),ROUND(SUMIFS(J$16:J36,E$16:E36,E36)*-1,2),VLOOKUP(E36,$E$2:$H$5,4,FALSE)),"non-cash")) -> -400
A37: 22 | B37: 27 | C37: 2 | D37: 2024-02-27 | E37: b | G37: beispiel werbung im Ausland (reverse charge) | J37: 70 | K37: 0.2 | L37: r | M37: 1 | Z37: 14 | AC37: 14 | AD37: -70 | AE37: 765 | AF37: =IF(ISBLANK(AE37),"",VLOOKUP(AE37,Übersicht!$B$3:$C$55,2,FALSE)) -> Werbung, Repräsentationen | AG37: o | AH37: 02765 | AI37: 02o | BV37: -70 | CG37: 0 | CH37: 70 | CN37: =IF(ISBLANK(D37),"",_xlfn.IFNA(SUM(SUMIFS(I$16:I37,E$16:E37,E37),ROUND(SUMIFS(J$16:J37,E$16:E37,E37)*-1,2),VLOOKUP(E37,$E$2:$H$5,4,FALSE)),"non-cash")) -> -470
A38: 23 | B38: 15 | C38: 3 | D38: 2024-03-15 | E38: b | G38: beispiel umsatzerlöse | I38: 2700 | K38: 0.2 | N38: 450 | AD38: 2250 | AE38: 420 | AF38: =IF(ISBLANK(AE38),"",VLOOKUP(AE38,Übersicht!$B$3:$C$55,2,FALSE)) -> Erlöse 20% steuerbar | AG38: o | AH38: 03420 | AI38: 03o | AZ38: 2250 | CG38: 2700 | CH38: 0 | CN38: =IF(ISBLANK(D38),"",_xlfn.IFNA(SUM(SUMIFS(I$16:I38,E$16:E38,E38),ROUND(SUMIFS(J$16:J38,E$16:E38,E38)*-1,2),VLOOKUP(E38,$E$2:$H$5,4,FALSE)),"non-cash")) -> 2230
A39: 24 | B39: 17 | C39: 3 | D39: 2024-03-17 | E39: b | G39: beispiel zeitrschriftenkauf ig erwerb | J39: 30 | K39: 0.1 | L39: i | M39: 1 | W39: 3 | AB39: 3 | AD39: -30 | AE39: 760 | AF39: =IF(ISBLANK(AE39),"",VLOOKUP(AE39,Übersicht!$B$3:$C$55,2,FALSE)) -> Büromaterial, Fachliteratur | AG39: o | AH39: 03760 | AI39: 03o | BU39: -30 | CG39: 0 | CH39: 30 | CN39: =IF(ISBLANK(D39),"",_xlfn.IFNA(SUM(SUMIFS(I$16:I39,E$16:E39,E39),ROUND(SUMIFS(J$16:J39,E$16:E39,E39)*-1,2),VLOOKUP(E39,$E$2:$H$5,4,FALSE)),"non-cash")) -> 2200
A40: 25 | B40: 31 | C40: 3 | D40: 2024-03-31 | E40: k | F40: 003 | G40: einkauf blumenstock fürs büro | J40: 20 | K40: 0.13 | M40: 1 | AA40: 2.3 | AD40: -17.7 | AE40: 760 | AF40: =IF(ISBLANK(AE40),"",VLOOKUP(AE40,Übersicht!$B$3:$C$55,2,FALSE)) -> Büromaterial, Fachliteratur | AG40: o | AH40: 03760 | AI40: 03o | BU40: -17.7 | CG40: 0 | CH40: 20 | CN40: =IF(ISBLANK(D40),"",_xlfn.IFNA(SUM(SUMIFS(I$16:I40,E$16:E40,E40),ROUND(SUMIFS(J$16:J40,E$16:E40,E40)*-1,2),VLOOKUP(E40,$E$2:$H$5,4,FALSE)),"non-cash")) -> 77
A41: 26 | B41: 31 | C41: 3 | D41: 2024-03-31 | G41: afa 01-03 d. J. (manuelle Eingabe lt Register Anlagen) | J41: 83.33 | M41: 1 | AA41: 0 | AD41: -83.33 | AE41: 700 | AF41: =IF(ISBLANK(AE41),"",VLOOKUP(AE41,Übersicht!$B$3:$C$55,2,FALSE)) -> AFA, Absetzung f. Abnutzung | AH41: 03700 | AI41: 03 | BI41: -83.33 | CL41: -83.33 | CN41: =IF(ISBLANK(D41),"",_xlfn.IFNA(SUM(SUMIFS(I$16:I41,E$16:E41,E41),ROUND(SUMIFS(J$16:J41,E$16:E41,E41)*-1,2),VLOOKUP(E41,$E$2:$H$5,4,FALSE)),"non-cash")) -> non-cash
A42: 27 | B42: 2 | C42: 4 | D42: 2024-04-02 | E42: b | G42: beispiel übertrag | J42: 1000 | M42: 1 | AA42: 0 | AD42: -1000 | AE42: 999 | AF42: =IF(ISBLANK(AE42),"",VLOOKUP(AE42,Übersicht!$B$3:$C$55,2,FALSE)) -> Durchläufer, sonstiges | AH42: 04999 | AI42: 04 | CF42: -1000 | CL42: -1000 | CN42: =IF(ISBLANK(D42),"",_xlfn.IFNA(SUM(SUMIFS(I$16:I42,E$16:E42,E42),ROUND(SUMIFS(J$16:J42,E$16:E42,E42)*-1,2),VLOOKUP(E42,$E$2:$H$5,4,FALSE)),"non-cash")) -> 1200
A43: 28 | B43: 2 | C43: 4 | D43: 2024-04-02 | E43: c | G43: beispiel übertrag | I43: 1000 | AD43: 1000 | AE43: 999 | AF43: =IF(ISBLANK(AE43),"",VLOOKUP(AE43,Übersicht!$B$3:$C$55,2,FALSE)) -> Durchläufer, sonstiges | AH43: 04999 | AI43: 04 | CF43: 1000 | CL43: 1000 | CN43: =IF(ISBLANK(D43),"",_xlfn.IFNA(SUM(SUMIFS(I$16:I43,E$16:E43,E43),ROUND(SUMIFS(J$16:J43,E$16:E43,E43)*-1,2),VLOOKUP(E43,$E$2:$H$5,4,FALSE)),"non-cash")) -> 1005
A44: 29 | B44: 10 | C44: 10 | D44: 2024-10-10 | E44: k | F44: 004 | G44: tankstelle, carwash | J44: 5.9 | M44: 1 | AA44: 0 | AD44: -5.9 | AE44: 732 | AF44: =IF(ISBLANK(AE44),"",VLOOKUP(AE44,Übersicht!$B$3:$C$55,2,FALSE)) -> KFZ-Aufwand (ohne AfA, Leasing u. Kilometergeld | AG44: o | AH44: 10732 | AI44: 10o | AT44: 0 | BO44: -5.9 | CG44: 0 | CH44: 5.9 | CN44: =IF(ISBLANK(D44),"",_xlfn.IFNA(SUM(SUMIFS(I$16:I44,E$16:E44,E44),ROUND(SUMIFS(J$16:J44,E$16:E44,E44)*-1,2),VLOOKUP(E44,$E$2:$H$5,4,FALSE)),"non-cash")) -> 71.1 | CP44: k004 | CQ44: =IF(ISBLANK(CP44),"",HYPERLINK(CONCATENATE($CQ$15,"\",CP44,".pdf"),"anzeigen")) -> anzeigen
A45: 30 | B45: 0 | AD45: 0 | AF45: =IF(ISBLANK(AE45),"",VLOOKUP(AE45,Übersicht!$B$3:$C$55,2,FALSE)) ->  | CL45: 0 | CN45: =IF(ISBLANK(D45),"",_xlfn.IFNA(SUM(SUMIFS(I$16:I45,E$16:E45,E45),ROUND(SUMIFS(J$16:J45,E$16:E45,E45)*-1,2),VLOOKUP(E45,$E$2:$H$5,4,FALSE)),"non-cash")) -> 
A46: 31 | B46: 0 | AD46: 0 | AF46: =IF(ISBLANK(AE46),"",VLOOKUP(AE46,Übersicht!$B$3:$C$55,2,FALSE)) ->  | AV46: =IF($AE46=AV$15,$AD46,"") ->  | BI46: =IF($AE46=BI$15,$AD46,"") ->  | BS46: =IF($AE46=BS$15,$AD46,"") ->  | CL46: 0 | CN46: =IF(ISBLANK(D46),"",_xlfn.IFNA(SUM(SUMIFS(I$16:I46,E$16:E46,E46),ROUND(SUMIFS(J$16:J46,E$16:E46,E46)*-1,2),VLOOKUP(E46,$E$2:$H$5,4,FALSE)),"non-cash")) -> 
A47: 32 | B47: 0 | AD47: 0 | AF47: =IF(ISBLANK(AE47),"",VLOOKUP(AE47,Übersicht!$B$3:$C$55,2,FALSE)) ->  | CL47: 0 | CN47: =IF(ISBLANK(D47),"",_xlfn.IFNA(SUM(SUMIFS(I$16:I47,E$16:E47,E47),ROUND(SUMIFS(J$16:J47,E$16:E47,E47)*-1,2),VLOOKUP(E47,$E$2:$H$5,4,FALSE)),"non-cash")) -> 
A48: 33 | B48: 0 | C48: =IF(ISBLANK(D48)=TRUE,"",MONTH(D48)) ->  | N48: =IF(ISBLANK($I48),"",IF(ISBLANK($L48),IF($K48=N$15,ROUND($I48/(1+$N$15)*$N$15,2),""),"")) ->  | Q48: =IF(ISBLANK($I48),"",IF(ISBLANK($L48),IF($K48=Q$15,ROUND($I48/(1+$Q$15)*$Q$15,2),""),"")) ->  | R48: =IF(ISBLANK($I48),"",IF(ISBLANK($L48),IF(NOT(ISBLANK(K48)),IF($K48=R$15,ROUND($I48,2),""),""),"")) ->  | S48: =IF(ISBLANK($I48),"",IF($L48="n",$I48,"")) ->  | T48: =IF(ISBLANK($I48),"",IF($L48="a",$I48,"")) ->  | U48: =IF(ISBLANK($I48),"",IF($L48="i",$I48,"")) ->  | Z48: =IF(ISBLANK($J48),"",IF($L48="r",ROUND($J48*$K48,2),"")) ->  | AA48: =IF(ISBLANK($J48),"",IF(ISBLANK($L48),ROUND($J48/(1+$K48)*$K48*$M48,2),"")) ->  | AB48: =IF(ISBLANK($J48),"",IF($L48="i",ROUND($J48*$K48*$M48,2),"")) ->  | AC48: =IF(ISBLANK($J48),"",IF($L48="r",ROUND($J48*$K48*$M48,2),"")) ->  | AD48: =ROUND(I48-J48-SUM(N48:Q48,V48:Z48)+SUM(AA48:AC48),2) -> 0 | AF48: =IF(ISBLANK(AE48),"",VLOOKUP(AE48,Übersicht!$B$3:$C$55,2,FALSE)) ->  | AJ48: =IF($AE48=AJ$15,$AD48,"") ->  | AK48: =IF(AJ48="","",ROUND(SUM($AA48)*-1,2)) ->  | AL48: =IF($AE48=AL$15,$AD48,"") ->  | AM48: =IF(AL48="","",ROUND(SUM($AA48)*-1,2)) ->  | AN48: =IF($AE48=AN$15,$AD48,"") ->  | AO48: =IF(AN48="","",ROUND(SUM($AA48)*-1,2)) ->  | AP48: =IF($AE48=AP$15,$AD48,"") ->  | AQ48: =IF(AP48="","",ROUND(SUM($AA48)*-1,2)) ->  | CL48: 0 | CM48: =IF($E48="R",IF($AE48="100","o.P.","100...?"),"") ->  | CN48: =IF(ISBLANK(D48),"",_xlfn.IFNA(SUM(SUMIFS(I$16:I48,E$16:E48,E48),ROUND(SUMIFS(J$16:J48,E$16:E48,E48)*-1,2),VLOOKUP(E48,$E$2:$H$5,4,FALSE)),"non-cash")) -> 
A49: 34 | B49: 0 | AD49: 0 | AF49: =IF(ISBLANK(AE49),"",VLOOKUP(AE49,Übersicht!$B$3:$C$55,2,FALSE)) ->  | CL49: 0 | CN49: =IF(ISBLANK(D49),"",_xlfn.IFNA(SUM(SUMIFS(I$16:I49,E$16:E49,E49),ROUND(SUMIFS(J$16:J49,E$16:E49,E49)*-1,2),VLOOKUP(E49,$E$2:$H$5,4,FALSE)),"non-cash")) -> 
A50: 35 | B50: 0 | AD50: 0 | AF50: =IF(ISBLANK(AE50),"",VLOOKUP(AE50,Übersicht!$B$3:$C$55,2,FALSE)) ->  | CL50: 0 | CN50: =IF(ISBLANK(D50),"",_xlfn.IFNA(SUM(SUMIFS(I$16:I50,E$16:E50,E50),ROUND(SUMIFS(J$16:J50,E$16:E50,E50)*-1,2),VLOOKUP(E50,$E$2:$H$5,4,FALSE)),"non-cash")) -> 
A51: 36 | B51: 0 | AD51: 0 | AF51: =IF(ISBLANK(AE51),"",VLOOKUP(AE51,Übersicht!$B$3:$C$55,2,FALSE)) ->  | CL51: 0 | CN51: =IF(ISBLANK(D51),"",_xlfn.IFNA(SUM(SUMIFS(I$16:I51,E$16:E51,E51),ROUND(SUMIFS(J$16:J51,E$16:E51,E51)*-1,2),VLOOKUP(E51,$E$2:$H$5,4,FALSE)),"non-cash")) -> 
A52: 37 | B52: 0 | AD52: 0 | AF52: =IF(ISBLANK(AE52),"",VLOOKUP(AE52,Übersicht!$B$3:$C$55,2,FALSE)) ->  | CL52: 0 | CN52: =IF(ISBLANK(D52),"",_xlfn.IFNA(SUM(SUMIFS(I$16:I52,E$16:E52,E52),ROUND(SUMIFS(J$16:J52,E$16:E52,E52)*-1,2),VLOOKUP(E52,$E$2:$H$5,4,FALSE)),"non-cash")) -> 
A53: 38 | B53: 0 | AD53: 0 | AF53: =IF(ISBLANK(AE53),"",VLOOKUP(AE53,Übersicht!$B$3:$C$55,2,FALSE)) ->  | CL53: 0 | CN53: =IF(ISBLANK(D53),"",_xlfn.IFNA(SUM(SUMIFS(I$16:I53,E$16:E53,E53),ROUND(SUMIFS(J$16:J53,E$16:E53,E53)*-1,2),VLOOKUP(E53,$E$2:$H$5,4,FALSE)),"non-cash")) -> 
A54: 39 | B54: 0 | AD54: 0 | AF54: =IF(ISBLANK(AE54),"",VLOOKUP(AE54,Übersicht!$B$3:$C$55,2,FALSE)) ->  | CL54: 0 | CN54: =IF(ISBLANK(D54),"",_xlfn.IFNA(SUM(SUMIFS(I$16:I54,E$16:E54,E54),ROUND(SUMIFS(J$16:J54,E$16:E54,E54)*-1,2),VLOOKUP(E54,$E$2:$H$5,4,FALSE)),"non-cash")) -> 
A55: 40 | B55: 0 | AD55: 0 | AF55: =IF(ISBLANK(AE55),"",VLOOKUP(AE55,Übersicht!$B$3:$C$55,2,FALSE)) ->  | CL55: 0 | CN55: =IF(ISBLANK(D55),"",_xlfn.IFNA(SUM(SUMIFS(I$16:I55,E$16:E55,E55),ROUND(SUMIFS(J$16:J55,E$16:E55,E55)*-1,2),VLOOKUP(E55,$E$2:$H$5,4,FALSE)),"non-cash")) -> 
A56: 41 | B56: 0 | V56: =IF(ISBLANK($J56),"",IF($L56="I",IF($K56=V$15,ROUND($J56*$K56,2),""),"")) ->  | AD56: 0 | AF56: =IF(ISBLANK(AE56),"",VLOOKUP(AE56,Übersicht!$B$3:$C$55,2,FALSE)) ->  | AR56: =IF($AE56=AR$15,$AD56,"") ->  | AV56: =IF($AE56=AV$15,$AD56,"") ->  | BI56: =IF($AE56=BI$15,$AD56,"") ->  | BS56: =IF($AE56=BS$15,$AD56,"") ->  | CK56: =IF($AG56=CK$15,$I56-$J56,"") ->  | CL56: 0 | CN56: =IF(ISBLANK(D56),"",_xlfn.IFNA(SUM(SUMIFS(I$16:I56,E$16:E56,E56),ROUND(SUMIFS(J$16:J56,E$16:E56,E56)*-1,2),VLOOKUP(E56,$E$2:$H$5,4,FALSE)),"non-cash")) -> 
A57: 42 | B57: 0 | AD57: 0 | AF57: =IF(ISBLANK(AE57),"",VLOOKUP(AE57,Übersicht!$B$3:$C$55,2,FALSE)) ->  | CL57: 0 | CN57: =IF(ISBLANK(D57),"",_xlfn.IFNA(SUM(SUMIFS(I$16:I57,E$16:E57,E57),ROUND(SUMIFS(J$16:J57,E$16:E57,E57)*-1,2),VLOOKUP(E57,$E$2:$H$5,4,FALSE)),"non-cash")) -> 
A58: 43 | B58: 0 | AD58: 0 | AF58: =IF(ISBLANK(AE58),"",VLOOKUP(AE58,Übersicht!$B$3:$C$55,2,FALSE)) ->  | CL58: 0 | CN58: =IF(ISBLANK(D58),"",_xlfn.IFNA(SUM(SUMIFS(I$16:I58,E$16:E58,E58),ROUND(SUMIFS(J$16:J58,E$16:E58,E58)*-1,2),VLOOKUP(E58,$E$2:$H$5,4,FALSE)),"non-cash")) -> 
A59: 44 | B59: 0 | AD59: 0 | AF59: =IF(ISBLANK(AE59),"",VLOOKUP(AE59,Übersicht!$B$3:$C$55,2,FALSE)) ->  | CL59: 0 | CN59: =IF(ISBLANK(D59),"",_xlfn.IFNA(SUM(SUMIFS(I$16:I59,E$16:E59,E59),ROUND(SUMIFS(J$16:J59,E$16:E59,E59)*-1,2),VLOOKUP(E59,$E$2:$H$5,4,FALSE)),"non-cash")) -> 
A60: 45 | B60: 0 | AD60: 0 | AF60: =IF(ISBLANK(AE60),"",VLOOKUP(AE60,Übersicht!$B$3:$C$55,2,FALSE)) ->  | CL60: 0 | CN60: =IF(ISBLANK(D60),"",_xlfn.IFNA(SUM(SUMIFS(I$16:I60,E$16:E60,E60),ROUND(SUMIFS(J$16:J60,E$16:E60,E60)*-1,2),VLOOKUP(E60,$E$2:$H$5,4,FALSE)),"non-cash")) -> 
A61: 46 | B61: 0 | AD61: 0 | AF61: =IF(ISBLANK(AE61),"",VLOOKUP(AE61,Übersicht!$B$3:$C$55,2,FALSE)) ->  | CL61: 0 | CN61: =IF(ISBLANK(D61),"",_xlfn.IFNA(SUM(SUMIFS(I$16:I61,E$16:E61,E61),ROUND(SUMIFS(J$16:J61,E$16:E61,E61)*-1,2),VLOOKUP(E61,$E$2:$H$5,4,FALSE)),"non-cash")) -> 
A62: 47 | B62: 0 | AD62: 0 | AF62: =IF(ISBLANK(AE62),"",VLOOKUP(AE62,Übersicht!$B$3:$C$55,2,FALSE)) ->  | CL62: 0 | CN62: =IF(ISBLANK(D62),"",_xlfn.IFNA(SUM(SUMIFS(I$16:I62,E$16:E62,E62),ROUND(SUMIFS(J$16:J62,E$16:E62,E62)*-1,2),VLOOKUP(E62,$E$2:$H$5,4,FALSE)),"non-cash")) -> 
A63: 48 | B63: 0 | AD63: 0 | AF63: =IF(ISBLANK(AE63),"",VLOOKUP(AE63,Übersicht!$B$3:$C$55,2,FALSE)) ->  | CL63: 0 | CN63: =IF(ISBLANK(D63),"",_xlfn.IFNA(SUM(SUMIFS(I$16:I63,E$16:E63,E63),ROUND(SUMIFS(J$16:J63,E$16:E63,E63)*-1,2),VLOOKUP(E63,$E$2:$H$5,4,FALSE)),"non-cash")) -> 
A64: 49 | B64: 0 | AD64: 0 | AF64: =IF(ISBLANK(AE64),"",VLOOKUP(AE64,Übersicht!$B$3:$C$55,2,FALSE)) ->  | CL64: 0 | CN64: =IF(ISBLANK(D64),"",_xlfn.IFNA(SUM(SUMIFS(I$16:I64,E$16:E64,E64),ROUND(SUMIFS(J$16:J64,E$16:E64,E64)*-1,2),VLOOKUP(E64,$E$2:$H$5,4,FALSE)),"non-cash")) -> 
A65: 50 | B65: 0 | AD65: 0 | AF65: =IF(ISBLANK(AE65),"",VLOOKUP(AE65,Übersicht!$B$3:$C$55,2,FALSE)) ->  | CL65: 0 | CN65: =IF(ISBLANK(D65),"",_xlfn.IFNA(SUM(SUMIFS(I$16:I65,E$16:E65,E65),ROUND(SUMIFS(J$16:J65,E$16:E65,E65)*-1,2),VLOOKUP(E65,$E$2:$H$5,4,FALSE)),"non-cash")) -> 
A66: 51 | B66: 0 | AD66: 0 | AF66: =IF(ISBLANK(AE66),"",VLOOKUP(AE66,Übersicht!$B$3:$C$55,2,FALSE)) ->  | AV66: =IF($AE66=AV$15,$AD66,"") ->  | BI66: =IF($AE66=BI$15,$AD66,"") ->  | BS66: =IF($AE66=BS$15,$AD66,"") ->  | CL66: 0 | CN66: =IF(ISBLANK(D66),"",_xlfn.IFNA(SUM(SUMIFS(I$16:I66,E$16:E66,E66),ROUND(SUMIFS(J$16:J66,E$16:E66,E66)*-1,2),VLOOKUP(E66,$E$2:$H$5,4,FALSE)),"non-cash")) -> 
A67: 52 | B67: 0 | AD67: 0 | AF67: =IF(ISBLANK(AE67),"",VLOOKUP(AE67,Übersicht!$B$3:$C$55,2,FALSE)) ->  | CL67: 0 | CN67: =IF(ISBLANK(D67),"",_xlfn.IFNA(SUM(SUMIFS(I$16:I67,E$16:E67,E67),ROUND(SUMIFS(J$16:J67,E$16:E67,E67)*-1,2),VLOOKUP(E67,$E$2:$H$5,4,FALSE)),"non-cash")) -> 
A68: 53 | B68: 0 | AD68: 0 | AF68: =IF(ISBLANK(AE68),"",VLOOKUP(AE68,Übersicht!$B$3:$C$55,2,FALSE)) ->  | CL68: 0 | CN68: =IF(ISBLANK(D68),"",_xlfn.IFNA(SUM(SUMIFS(I$16:I68,E$16:E68,E68),ROUND(SUMIFS(J$16:J68,E$16:E68,E68)*-1,2),VLOOKUP(E68,$E$2:$H$5,4,FALSE)),"non-cash")) -> 
A69: 54 | B69: 0 | AD69: 0 | AF69: =IF(ISBLANK(AE69),"",VLOOKUP(AE69,Übersicht!$B$3:$C$55,2,FALSE)) ->  | CL69: 0 | CN69: =IF(ISBLANK(D69),"",_xlfn.IFNA(SUM(SUMIFS(I$16:I69,E$16:E69,E69),ROUND(SUMIFS(J$16:J69,E$16:E69,E69)*-1,2),VLOOKUP(E69,$E$2:$H$5,4,FALSE)),"non-cash")) -> 
A70: 55 | B70: 0 | AD70: 0 | AF70: =IF(ISBLANK(AE70),"",VLOOKUP(AE70,Übersicht!$B$3:$C$55,2,FALSE)) ->  | CL70: 0 | CN70: =IF(ISBLANK(D70),"",_xlfn.IFNA(SUM(SUMIFS(I$16:I70,E$16:E70,E70),ROUND(SUMIFS(J$16:J70,E$16:E70,E70)*-1,2),VLOOKUP(E70,$E$2:$H$5,4,FALSE)),"non-cash")) -> 
A71: 56 | B71: 0 | AD71: 0 | AF71: =IF(ISBLANK(AE71),"",VLOOKUP(AE71,Übersicht!$B$3:$C$55,2,FALSE)) ->  | CL71: 0 | CN71: =IF(ISBLANK(D71),"",_xlfn.IFNA(SUM(SUMIFS(I$16:I71,E$16:E71,E71),ROUND(SUMIFS(J$16:J71,E$16:E71,E71)*-1,2),VLOOKUP(E71,$E$2:$H$5,4,FALSE)),"non-cash")) -> 
A72: 57 | B72: 0 | AD72: 0 | AF72: =IF(ISBLANK(AE72),"",VLOOKUP(AE72,Übersicht!$B$3:$C$55,2,FALSE)) ->  | CL72: 0 | CN72: =IF(ISBLANK(D72),"",_xlfn.IFNA(SUM(SUMIFS(I$16:I72,E$16:E72,E72),ROUND(SUMIFS(J$16:J72,E$16:E72,E72)*-1,2),VLOOKUP(E72,$E$2:$H$5,4,FALSE)),"non-cash")) -> 
A73: 58 | B73: 0 | AD73: 0 | AF73: =IF(ISBLANK(AE73),"",VLOOKUP(AE73,Übersicht!$B$3:$C$55,2,FALSE)) ->  | CL73: 0 | CN73: =IF(ISBLANK(D73),"",_xlfn.IFNA(SUM(SUMIFS(I$16:I73,E$16:E73,E73),ROUND(SUMIFS(J$16:J73,E$16:E73,E73)*-1,2),VLOOKUP(E73,$E$2:$H$5,4,FALSE)),"non-cash")) -> 
A74: 59 | B74: 0 | AD74: 0 | AF74: =IF(ISBLANK(AE74),"",VLOOKUP(AE74,Übersicht!$B$3:$C$55,2,FALSE)) ->  | CL74: 0 | CN74: =IF(ISBLANK(D74),"",_xlfn.IFNA(SUM(SUMIFS(I$16:I74,E$16:E74,E74),ROUND(SUMIFS(J$16:J74,E$16:E74,E74)*-1,2),VLOOKUP(E74,$E$2:$H$5,4,FALSE)),"non-cash")) -> 
A75: 60 | B75: 0 | AD75: 0 | AF75: =IF(ISBLANK(AE75),"",VLOOKUP(AE75,Übersicht!$B$3:$C$55,2,FALSE)) ->  | CL75: 0 | CN75: =IF(ISBLANK(D75),"",_xlfn.IFNA(SUM(SUMIFS(I$16:I75,E$16:E75,E75),ROUND(SUMIFS(J$16:J75,E$16:E75,E75)*-1,2),VLOOKUP(E75,$E$2:$H$5,4,FALSE)),"non-cash")) -> 
A76: 61 | B76: 0 | V76: =IF(ISBLANK($J76),"",IF($L76="I",IF($K76=V$15,ROUND($J76*$K76,2),""),"")) ->  | AD76: 0 | AF76: =IF(ISBLANK(AE76),"",VLOOKUP(AE76,Übersicht!$B$3:$C$55,2,FALSE)) ->  | AR76: =IF($AE76=AR$15,$AD76,"") ->  | AV76: =IF($AE76=AV$15,$AD76,"") ->  | BI76: =IF($AE76=BI$15,$AD76,"") ->  | BS76: =IF($AE76=BS$15,$AD76,"") ->  | CK76: =IF($AG76=CK$15,$I76-$J76,"") ->  | CL76: 0 | CN76: =IF(ISBLANK(D76),"",_xlfn.IFNA(SUM(SUMIFS(I$16:I76,E$16:E76,E76),ROUND(SUMIFS(J$16:J76,E$16:E76,E76)*-1,2),VLOOKUP(E76,$E$2:$H$5,4,FALSE)),"non-cash")) -> 
A77: 62 | B77: 0 | AD77: 0 | AF77: =IF(ISBLANK(AE77),"",VLOOKUP(AE77,Übersicht!$B$3:$C$55,2,FALSE)) ->  | CL77: 0 | CN77: =IF(ISBLANK(D77),"",_xlfn.IFNA(SUM(SUMIFS(I$16:I77,E$16:E77,E77),ROUND(SUMIFS(J$16:J77,E$16:E77,E77)*-1,2),VLOOKUP(E77,$E$2:$H$5,4,FALSE)),"non-cash")) -> 
A78: 63 | B78: 0 | AD78: 0 | AF78: =IF(ISBLANK(AE78),"",VLOOKUP(AE78,Übersicht!$B$3:$C$55,2,FALSE)) ->  | CL78: 0 | CN78: =IF(ISBLANK(D78),"",_xlfn.IFNA(SUM(SUMIFS(I$16:I78,E$16:E78,E78),ROUND(SUMIFS(J$16:J78,E$16:E78,E78)*-1,2),VLOOKUP(E78,$E$2:$H$5,4,FALSE)),"non-cash")) -> 
A79: 64 | B79: 0 | AD79: 0 | AF79: =IF(ISBLANK(AE79),"",VLOOKUP(AE79,Übersicht!$B$3:$C$55,2,FALSE)) ->  | CL79: 0 | CN79: =IF(ISBLANK(D79),"",_xlfn.IFNA(SUM(SUMIFS(I$16:I79,E$16:E79,E79),ROUND(SUMIFS(J$16:J79,E$16:E79,E79)*-1,2),VLOOKUP(E79,$E$2:$H$5,4,FALSE)),"non-cash")) -> 
A80: 65 | B80: 0 | C80: =IF(ISBLANK(D80)=TRUE,"",MONTH(D80)) ->  | M80: =IF(ISBLANK(J80),"",$K$11) ->  | N80: =IF(ISBLANK($I80),"",IF(ISBLANK($L80),IF($K80=N$15,ROUND($I80/(1+$N$15)*$N$15,2),""),"")) ->  | Q80: =IF(ISBLANK($I80),"",IF(ISBLANK($L80),IF($K80=Q$15,ROUND($I80/(1+$Q$15)*$Q$15,2),""),"")) ->  | R80: =IF(ISBLANK($I80),"",IF(ISBLANK($L80),IF(NOT(ISBLANK(K80)),IF($K80=R$15,ROUND($I80,2),""),""),"")) ->  | S80: =IF(ISBLANK($I80),"",IF($L80="n",$I80,"")) ->  | T80: =IF(ISBLANK($I80),"",IF($L80="a",$I80,"")) ->  | U80: =IF(ISBLANK($I80),"",IF($L80="i",$I80,"")) ->  | Z80: =IF(ISBLANK($J80),"",IF($L80="r",ROUND($J80*$K80,2),"")) ->  | AA80: =IF(ISBLANK($J80),"",IF(ISBLANK($L80),ROUND($J80/(1+$K80)*$K80*$M80,2),"")) ->  | AB80: =IF(ISBLANK($J80),"",IF($L80="i",ROUND($J80*$K80*$M80,2),"")) ->  | AC80: =IF(ISBLANK($J80),"",IF($L80="r",ROUND($J80*$K80*$M80,2),"")) ->  | AD80: =ROUND(I80-J80-SUM(N80:Q80,V80:Z80)+SUM(AA80:AC80),2) -> 0 | AF80: =IF(ISBLANK(AE80),"",VLOOKUP(AE80,Übersicht!$B$3:$C$55,2,FALSE)) ->  | AG80: =IF(OR(AE80="100",AE80="700",AE80="999",AE80="998",AE80="992",ISBLANK(AE80)),"",IF(AE80="995","f",IF(LEFT(AE80,1)="0","i","o"))) ->  | AH80: =CONCATENATE(TEXT(C80,"00"),AE80) ->  | AI80: =CONCATENATE(TEXT(C80,"00"),AG80) ->  | AJ80: =IF($AE80=AJ$15,$AD80,"") ->  | AK80: =IF(AJ80="","",ROUND(SUM($AA80)*-1,2)) ->  | AL80: =IF($AE80=AL$15,$AD80,"") ->  | AM80: =IF(AL80="","",ROUND(SUM($AA80)*-1,2)) ->  | AN80: =IF($AE80=AN$15,$AD80,"") ->  | AO80: =IF(AN80="","",ROUND(SUM($AA80)*-1,2)) ->  | AP80: =IF($AE80=AP$15,$AD80,"") ->  | AQ80: =IF(AP80="","",ROUND(SUM($AA80)*-1,2)) ->  | AT80: =IF(ROUND(SUM(AL80,BO80,BS80),2)=0,"",ROUND(SUM(AA80,AB80,AC80)*-1,2)) ->  | AU80: =IF(AJ80="","",ROUND(SUM($AA80,AB80)*-1,2)) ->  | CG80: =IF($AG80=CG$15,$I80,"") ->  | CH80: =IF($AG80=CH$15,$J80,"") ->  | CI80: =IF($AG80=CI$15,$AD80,"") ->  | CJ80: =IF(CI80="","",ROUND(SUM(V80:Z80)-SUM(AA80:AC80),2)) ->  | CL80: 0 | CM80: =IF($E80="R",IF($AE80="100","o.P.","100...?"),"") ->  | CN80: =IF(ISBLANK(D80),"",_xlfn.IFNA(SUM(SUMIFS(I$16:I80,E$16:E80,E80),ROUND(SUMIFS(J$16:J80,E$16:E80,E80)*-1,2),VLOOKUP(E80,$E$2:$H$5,4,FALSE)),"non-cash")) -> 
A81: 66 | B81: =DAY(D81) -> 0 | P81: =IF(ISBLANK($I81),"",IF(ISBLANK($L81),IF($K81=P$15,ROUND($I81/(1+$P$15)*$P$15,2),""),"")) ->  | AD81: 0 | AF81: =IF(ISBLANK(AE81),"",VLOOKUP(AE81,Übersicht!$B$3:$C$55,2,FALSE)) ->  | CL81: 0 | CN81: =IF(ISBLANK(D81),"",_xlfn.IFNA(SUM(SUMIFS(I$16:I81,E$16:E81,E81),ROUND(SUMIFS(J$16:J81,E$16:E81,E81)*-1,2),VLOOKUP(E81,$E$2:$H$5,4,FALSE)),"non-cash")) -> 
A82: 67 | B82: 0 | O82: =IF(ISBLANK($I82),"",IF(ISBLANK($L82),IF($K82=O$15,ROUND($I82/(1+$O$15)*$O$15,2),""),"")) ->  | AD82: 0 | AF82: =IF(ISBLANK(AE82),"",VLOOKUP(AE82,Übersicht!$B$3:$C$55,2,FALSE)) ->  | CL82: 0 | CN82: =IF(ISBLANK(D82),"",_xlfn.IFNA(SUM(SUMIFS(I$16:I82,E$16:E82,E82),ROUND(SUMIFS(J$16:J82,E$16:E82,E82)*-1,2),VLOOKUP(E82,$E$2:$H$5,4,FALSE)),"non-cash")) -> 
A83: 68 | B83: 0 | AD83: 0 | AF83: =IF(ISBLANK(AE83),"",VLOOKUP(AE83,Übersicht!$B$3:$C$55,2,FALSE)) ->  | CL83: 0 | CN83: =IF(ISBLANK(D83),"",_xlfn.IFNA(SUM(SUMIFS(I$16:I83,E$16:E83,E83),ROUND(SUMIFS(J$16:J83,E$16:E83,E83)*-1,2),VLOOKUP(E83,$E$2:$H$5,4,FALSE)),"non-cash")) -> 
A84: 69 | B84: 0 | AD84: 0 | AF84: =IF(ISBLANK(AE84),"",VLOOKUP(AE84,Übersicht!$B$3:$C$55,2,FALSE)) ->  | CL84: 0 | CN84: =IF(ISBLANK(D84),"",_xlfn.IFNA(SUM(SUMIFS(I$16:I84,E$16:E84,E84),ROUND(SUMIFS(J$16:J84,E$16:E84,E84)*-1,2),VLOOKUP(E84,$E$2:$H$5,4,FALSE)),"non-cash")) -> 
A85: 70 | B85: 0 | AD85: 0 | AF85: =IF(ISBLANK(AE85),"",VLOOKUP(AE85,Übersicht!$B$3:$C$55,2,FALSE)) ->  | CL85: 0 | CN85: =IF(ISBLANK(D85),"",_xlfn.IFNA(SUM(SUMIFS(I$16:I85,E$16:E85,E85),ROUND(SUMIFS(J$16:J85,E$16:E85,E85)*-1,2),VLOOKUP(E85,$E$2:$H$5,4,FALSE)),"non-cash")) -> 
A86: 71 | B86: 0 | AD86: 0 | AF86: =IF(ISBLANK(AE86),"",VLOOKUP(AE86,Übersicht!$B$3:$C$55,2,FALSE)) ->  | AV86: =IF($AE86=AV$15,$AD86,"") ->  | BI86: =IF($AE86=BI$15,$AD86,"") ->  | BS86: =IF($AE86=BS$15,$AD86,"") ->  | CL86: 0 | CN86: =IF(ISBLANK(D86),"",_xlfn.IFNA(SUM(SUMIFS(I$16:I86,E$16:E86,E86),ROUND(SUMIFS(J$16:J86,E$16:E86,E86)*-1,2),VLOOKUP(E86,$E$2:$H$5,4,FALSE)),"non-cash")) -> 
A87: 72 | B87: 0 | AD87: 0 | AF87: =IF(ISBLANK(AE87),"",VLOOKUP(AE87,Übersicht!$B$3:$C$55,2,FALSE)) ->  | CL87: 0 | CN87: =IF(ISBLANK(D87),"",_xlfn.IFNA(SUM(SUMIFS(I$16:I87,E$16:E87,E87),ROUND(SUMIFS(J$16:J87,E$16:E87,E87)*-1,2),VLOOKUP(E87,$E$2:$H$5,4,FALSE)),"non-cash")) -> 
A88: 73 | B88: 0 | AD88: 0 | AF88: =IF(ISBLANK(AE88),"",VLOOKUP(AE88,Übersicht!$B$3:$C$55,2,FALSE)) ->  | CL88: 0 | CN88: =IF(ISBLANK(D88),"",_xlfn.IFNA(SUM(SUMIFS(I$16:I88,E$16:E88,E88),ROUND(SUMIFS(J$16:J88,E$16:E88,E88)*-1,2),VLOOKUP(E88,$E$2:$H$5,4,FALSE)),"non-cash")) -> 
A89: 74 | B89: 0 | AD89: 0 | AF89: =IF(ISBLANK(AE89),"",VLOOKUP(AE89,Übersicht!$B$3:$C$55,2,FALSE)) ->  | CL89: 0 | CN89: =IF(ISBLANK(D89),"",_xlfn.IFNA(SUM(SUMIFS(I$16:I89,E$16:E89,E89),ROUND(SUMIFS(J$16:J89,E$16:E89,E89)*-1,2),VLOOKUP(E89,$E$2:$H$5,4,FALSE)),"non-cash")) -> 
A90: 75 | B90: 0 | AD90: 0 | AF90: =IF(ISBLANK(AE90),"",VLOOKUP(AE90,Übersicht!$B$3:$C$55,2,FALSE)) ->  | CL90: 0 | CN90: =IF(ISBLANK(D90),"",_xlfn.IFNA(SUM(SUMIFS(I$16:I90,E$16:E90,E90),ROUND(SUMIFS(J$16:J90,E$16:E90,E90)*-1,2),VLOOKUP(E90,$E$2:$H$5,4,FALSE)),"non-cash")) -> 
A91: 76 | B91: 0 | AD91: 0 | AF91: =IF(ISBLANK(AE91),"",VLOOKUP(AE91,Übersicht!$B$3:$C$55,2,FALSE)) ->  | CL91: 0 | CN91: =IF(ISBLANK(D91),"",_xlfn.IFNA(SUM(SUMIFS(I$16:I91,E$16:E91,E91),ROUND(SUMIFS(J$16:J91,E$16:E91,E91)*-1,2),VLOOKUP(E91,$E$2:$H$5,4,FALSE)),"non-cash")) -> 
A92: 77 | B92: 0 | AD92: 0 | AF92: =IF(ISBLANK(AE92),"",VLOOKUP(AE92,Übersicht!$B$3:$C$55,2,FALSE)) ->  | CL92: 0 | CN92: =IF(ISBLANK(D92),"",_xlfn.IFNA(SUM(SUMIFS(I$16:I92,E$16:E92,E92),ROUND(SUMIFS(J$16:J92,E$16:E92,E92)*-1,2),VLOOKUP(E92,$E$2:$H$5,4,FALSE)),"non-cash")) -> 
A93: 78 | B93: 0 | AD93: 0 | AF93: =IF(ISBLANK(AE93),"",VLOOKUP(AE93,Übersicht!$B$3:$C$55,2,FALSE)) ->  | CL93: 0 | CN93: =IF(ISBLANK(D93),"",_xlfn.IFNA(SUM(SUMIFS(I$16:I93,E$16:E93,E93),ROUND(SUMIFS(J$16:J93,E$16:E93,E93)*-1,2),VLOOKUP(E93,$E$2:$H$5,4,FALSE)),"non-cash")) -> 
A94: 79 | B94: 0 | AD94: 0 | AF94: =IF(ISBLANK(AE94),"",VLOOKUP(AE94,Übersicht!$B$3:$C$55,2,FALSE)) ->  | CL94: 0 | CN94: =IF(ISBLANK(D94),"",_xlfn.IFNA(SUM(SUMIFS(I$16:I94,E$16:E94,E94),ROUND(SUMIFS(J$16:J94,E$16:E94,E94)*-1,2),VLOOKUP(E94,$E$2:$H$5,4,FALSE)),"non-cash")) -> 
A95: 80 | B95: 0 | AD95: 0 | AF95: =IF(ISBLANK(AE95),"",VLOOKUP(AE95,Übersicht!$B$3:$C$55,2,FALSE)) ->  | CL95: 0 | CN95: =IF(ISBLANK(D95),"",_xlfn.IFNA(SUM(SUMIFS(I$16:I95,E$16:E95,E95),ROUND(SUMIFS(J$16:J95,E$16:E95,E95)*-1,2),VLOOKUP(E95,$E$2:$H$5,4,FALSE)),"non-cash")) -> 
A96: 81 | B96: 0 | V96: =IF(ISBLANK($J96),"",IF($L96="I",IF($K96=V$15,ROUND($J96*$K96,2),""),"")) ->  | AD96: 0 | AF96: =IF(ISBLANK(AE96),"",VLOOKUP(AE96,Übersicht!$B$3:$C$55,2,FALSE)) ->  | AR96: =IF($AE96=AR$15,$AD96,"") ->  | AV96: =IF($AE96=AV$15,$AD96,"") ->  | BI96: =IF($AE96=BI$15,$AD96,"") ->  | BS96: =IF($AE96=BS$15,$AD96,"") ->  | CK96: =IF($AG96=CK$15,$I96-$J96,"") ->  | CL96: 0 | CN96: =IF(ISBLANK(D96),"",_xlfn.IFNA(SUM(SUMIFS(I$16:I96,E$16:E96,E96),ROUND(SUMIFS(J$16:J96,E$16:E96,E96)*-1,2),VLOOKUP(E96,$E$2:$H$5,4,FALSE)),"non-cash")) -> 
A97: 82 | B97: 0 | AD97: 0 | AF97: =IF(ISBLANK(AE97),"",VLOOKUP(AE97,Übersicht!$B$3:$C$55,2,FALSE)) ->  | CL97: 0 | CN97: =IF(ISBLANK(D97),"",_xlfn.IFNA(SUM(SUMIFS(I$16:I97,E$16:E97,E97),ROUND(SUMIFS(J$16:J97,E$16:E97,E97)*-1,2),VLOOKUP(E97,$E$2:$H$5,4,FALSE)),"non-cash")) -> 
A98: 83 | B98: 0 | AD98: 0 | AF98: =IF(ISBLANK(AE98),"",VLOOKUP(AE98,Übersicht!$B$3:$C$55,2,FALSE)) ->  | CL98: 0 | CN98: =IF(ISBLANK(D98),"",_xlfn.IFNA(SUM(SUMIFS(I$16:I98,E$16:E98,E98),ROUND(SUMIFS(J$16:J98,E$16:E98,E98)*-1,2),VLOOKUP(E98,$E$2:$H$5,4,FALSE)),"non-cash")) -> 
A99: 84 | B99: 0 | AD99: 0 | AF99: =IF(ISBLANK(AE99),"",VLOOKUP(AE99,Übersicht!$B$3:$C$55,2,FALSE)) ->  | CL99: 0 | CN99: =IF(ISBLANK(D99),"",_xlfn.IFNA(SUM(SUMIFS(I$16:I99,E$16:E99,E99),ROUND(SUMIFS(J$16:J99,E$16:E99,E99)*-1,2),VLOOKUP(E99,$E$2:$H$5,4,FALSE)),"non-cash")) -> 
A100: 85 | B100: 0 | AD100: 0 | AF100: =IF(ISBLANK(AE100),"",VLOOKUP(AE100,Übersicht!$B$3:$C$55,2,FALSE)) ->  | CL100: 0 | CN100: =IF(ISBLANK(D100),"",_xlfn.IFNA(SUM(SUMIFS(I$16:I100,E$16:E100,E100),ROUND(SUMIFS(J$16:J100,E$16:E100,E100)*-1,2),VLOOKUP(E100,$E$2:$H$5,4,FALSE)),"non-cash")) -> 
A101: 86 | B101: 0 | AD101: 0 | AF101: =IF(ISBLANK(AE101),"",VLOOKUP(AE101,Übersicht!$B$3:$C$55,2,FALSE)) ->  | CL101: 0 | CN101: =IF(ISBLANK(D101),"",_xlfn.IFNA(SUM(SUMIFS(I$16:I101,E$16:E101,E101),ROUND(SUMIFS(J$16:J101,E$16:E101,E101)*-1,2),VLOOKUP(E101,$E$2:$H$5,4,FALSE)),"non-cash")) -> 
A102: 87 | B102: 0 | AD102: 0 | AF102: =IF(ISBLANK(AE102),"",VLOOKUP(AE102,Übersicht!$B$3:$C$55,2,FALSE)) ->  | CL102: 0 | CN102: =IF(ISBLANK(D102),"",_xlfn.IFNA(SUM(SUMIFS(I$16:I102,E$16:E102,E102),ROUND(SUMIFS(J$16:J102,E$16:E102,E102)*-1,2),VLOOKUP(E102,$E$2:$H$5,4,FALSE)),"non-cash")) -> 
A103: 88 | B103: 0 | AD103: 0 | AF103: =IF(ISBLANK(AE103),"",VLOOKUP(AE103,Übersicht!$B$3:$C$55,2,FALSE)) ->  | CL103: 0 | CN103: =IF(ISBLANK(D103),"",_xlfn.IFNA(SUM(SUMIFS(I$16:I103,E$16:E103,E103),ROUND(SUMIFS(J$16:J103,E$16:E103,E103)*-1,2),VLOOKUP(E103,$E$2:$H$5,4,FALSE)),"non-cash")) -> 
A104: 89 | B104: 0 | AD104: 0 | AF104: =IF(ISBLANK(AE104),"",VLOOKUP(AE104,Übersicht!$B$3:$C$55,2,FALSE)) ->  | CL104: 0 | CN104: =IF(ISBLANK(D104),"",_xlfn.IFNA(SUM(SUMIFS(I$16:I104,E$16:E104,E104),ROUND(SUMIFS(J$16:J104,E$16:E104,E104)*-1,2),VLOOKUP(E104,$E$2:$H$5,4,FALSE)),"non-cash")) -> 
A105: 90 | B105: 0 | AD105: 0 | AF105: =IF(ISBLANK(AE105),"",VLOOKUP(AE105,Übersicht!$B$3:$C$55,2,FALSE)) ->  | CL105: 0 | CN105: =IF(ISBLANK(D105),"",_xlfn.IFNA(SUM(SUMIFS(I$16:I105,E$16:E105,E105),ROUND(SUMIFS(J$16:J105,E$16:E105,E105)*-1,2),VLOOKUP(E105,$E$2:$H$5,4,FALSE)),"non-cash")) -> 
A106: 91 | B106: 0 | AD106: 0 | AF106: =IF(ISBLANK(AE106),"",VLOOKUP(AE106,Übersicht!$B$3:$C$55,2,FALSE)) ->  | AV106: =IF($AE106=AV$15,$AD106,"") ->  | BI106: =IF($AE106=BI$15,$AD106,"") ->  | BS106: =IF($AE106=BS$15,$AD106,"") ->  | CL106: 0 | CN106: =IF(ISBLANK(D106),"",_xlfn.IFNA(SUM(SUMIFS(I$16:I106,E$16:E106,E106),ROUND(SUMIFS(J$16:J106,E$16:E106,E106)*-1,2),VLOOKUP(E106,$E$2:$H$5,4,FALSE)),"non-cash")) -> 
A107: 92 | B107: 0 | AD107: 0 | AF107: =IF(ISBLANK(AE107),"",VLOOKUP(AE107,Übersicht!$B$3:$C$55,2,FALSE)) ->  | CL107: 0 | CN107: =IF(ISBLANK(D107),"",_xlfn.IFNA(SUM(SUMIFS(I$16:I107,E$16:E107,E107),ROUND(SUMIFS(J$16:J107,E$16:E107,E107)*-1,2),VLOOKUP(E107,$E$2:$H$5,4,FALSE)),"non-cash")) -> 
A108: 93 | B108: 0 | AD108: 0 | AF108: =IF(ISBLANK(AE108),"",VLOOKUP(AE108,Übersicht!$B$3:$C$55,2,FALSE)) ->  | CL108: 0 | CN108: =IF(ISBLANK(D108),"",_xlfn.IFNA(SUM(SUMIFS(I$16:I108,E$16:E108,E108),ROUND(SUMIFS(J$16:J108,E$16:E108,E108)*-1,2),VLOOKUP(E108,$E$2:$H$5,4,FALSE)),"non-cash")) ->  | CQ108: =IF(ISBLANK(CP108),"",HYPERLINK(CONCATENATE($CQ$15,"\",CP108,".pdf"),"anzeigen")) -> 
A109: 94 | B109: 0 | AD109: 0 | AF109: =IF(ISBLANK(AE109),"",VLOOKUP(AE109,Übersicht!$B$3:$C$55,2,FALSE)) ->  | CL109: 0 | CN109: =IF(ISBLANK(D109),"",_xlfn.IFNA(SUM(SUMIFS(I$16:I109,E$16:E109,E109),ROUND(SUMIFS(J$16:J109,E$16:E109,E109)*-1,2),VLOOKUP(E109,$E$2:$H$5,4,FALSE)),"non-cash")) -> 
A110: 95 | B110: 0 | AD110: 0 | AF110: =IF(ISBLANK(AE110),"",VLOOKUP(AE110,Übersicht!$B$3:$C$55,2,FALSE)) ->  | CL110: 0 | CN110: =IF(ISBLANK(D110),"",_xlfn.IFNA(SUM(SUMIFS(I$16:I110,E$16:E110,E110),ROUND(SUMIFS(J$16:J110,E$16:E110,E110)*-1,2),VLOOKUP(E110,$E$2:$H$5,4,FALSE)),"non-cash")) -> 
A111: 96 | B111: 0 | AD111: 0 | AF111: =IF(ISBLANK(AE111),"",VLOOKUP(AE111,Übersicht!$B$3:$C$55,2,FALSE)) ->  | CL111: 0 | CN111: =IF(ISBLANK(D111),"",_xlfn.IFNA(SUM(SUMIFS(I$16:I111,E$16:E111,E111),ROUND(SUMIFS(J$16:J111,E$16:E111,E111)*-1,2),VLOOKUP(E111,$E$2:$H$5,4,FALSE)),"non-cash")) -> 
A112: 97 | B112: 0 | C112: =IF(ISBLANK(D112)=TRUE,"",MONTH(D112)) ->  | N112: =IF(ISBLANK($I112),"",IF(ISBLANK($L112),IF($K112=N$15,ROUND($I112/(1+$N$15)*$N$15,2),""),"")) ->  | Q112: =IF(ISBLANK($I112),"",IF(ISBLANK($L112),IF($K112=Q$15,ROUND($I112/(1+$Q$15)*$Q$15,2),""),"")) ->  | R112: =IF(ISBLANK($I112),"",IF(ISBLANK($L112),IF(NOT(ISBLANK(K112)),IF($K112=R$15,ROUND($I112,2),""),""),"")) ->  | S112: =IF(ISBLANK($I112),"",IF($L112="n",$I112,"")) ->  | T112: =IF(ISBLANK($I112),"",IF($L112="a",$I112,"")) ->  | U112: =IF(ISBLANK($I112),"",IF($L112="i",$I112,"")) ->  | Z112: =IF(ISBLANK($J112),"",IF($L112="r",ROUND($J112*$K112,2),"")) ->  | AA112: =IF(ISBLANK($J112),"",IF(ISBLANK($L112),ROUND($J112/(1+$K112)*$K112*$M112,2),"")) ->  | AB112: =IF(ISBLANK($J112),"",IF($L112="i",ROUND($J112*$K112*$M112,2),"")) ->  | AC112: =IF(ISBLANK($J112),"",IF($L112="r",ROUND($J112*$K112*$M112,2),"")) ->  | AD112: =ROUND(I112-J112-SUM(N112:Q112,V112:Z112)+SUM(AA112:AC112),2) -> 0 | AF112: =IF(ISBLANK(AE112),"",VLOOKUP(AE112,Übersicht!$B$3:$C$55,2,FALSE)) ->  | AJ112: =IF($AE112=AJ$15,$AD112,"") ->  | AK112: =IF(AJ112="","",ROUND(SUM($AA112)*-1,2)) ->  | AL112: =IF($AE112=AL$15,$AD112,"") ->  | AM112: =IF(AL112="","",ROUND(SUM($AA112)*-1,2)) ->  | AN112: =IF($AE112=AN$15,$AD112,"") ->  | AO112: =IF(AN112="","",ROUND(SUM($AA112)*-1,2)) ->  | AP112: =IF($AE112=AP$15,$AD112,"") ->  | AQ112: =IF(AP112="","",ROUND(SUM($AA112)*-1,2)) ->  | CL112: 0 | CM112: =IF($E112="R",IF($AE112="100","o.P.","100...?"),"") ->  | CN112: =IF(ISBLANK(D112),"",_xlfn.IFNA(SUM(SUMIFS(I$16:I112,E$16:E112,E112),ROUND(SUMIFS(J$16:J112,E$16:E112,E112)*-1,2),VLOOKUP(E112,$E$2:$H$5,4,FALSE)),"non-cash")) -> 
A113: 98 | B113: 0 | AD113: 0 | AF113: =IF(ISBLANK(AE113),"",VLOOKUP(AE113,Übersicht!$B$3:$C$55,2,FALSE)) ->  | CL113: 0 | CN113: =IF(ISBLANK(D113),"",_xlfn.IFNA(SUM(SUMIFS(I$16:I113,E$16:E113,E113),ROUND(SUMIFS(J$16:J113,E$16:E113,E113)*-1,2),VLOOKUP(E113,$E$2:$H$5,4,FALSE)),"non-cash")) -> 
A114: 99 | B114: 0 | AD114: 0 | AF114: =IF(ISBLANK(AE114),"",VLOOKUP(AE114,Übersicht!$B$3:$C$55,2,FALSE)) ->  | CL114: 0 | CN114: =IF(ISBLANK(D114),"",_xlfn.IFNA(SUM(SUMIFS(I$16:I114,E$16:E114,E114),ROUND(SUMIFS(J$16:J114,E$16:E114,E114)*-1,2),VLOOKUP(E114,$E$2:$H$5,4,FALSE)),"non-cash")) -> 
A115: 100 | B115: 0 | AD115: 0 | AF115: =IF(ISBLANK(AE115),"",VLOOKUP(AE115,Übersicht!$B$3:$C$55,2,FALSE)) ->  | CL115: 0 | CN115: =IF(ISBLANK(D115),"",_xlfn.IFNA(SUM(SUMIFS(I$16:I115,E$16:E115,E115),ROUND(SUMIFS(J$16:J115,E$16:E115,E115)*-1,2),VLOOKUP(E115,$E$2:$H$5,4,FALSE)),"non-cash")) -> 
A116: 101 | B116: 0 | V116: =IF(ISBLANK($J116),"",IF($L116="I",IF($K116=V$15,ROUND($J116*$K116,2),""),"")) ->  | AD116: 0 | AF116: =IF(ISBLANK(AE116),"",VLOOKUP(AE116,Übersicht!$B$3:$C$55,2,FALSE)) ->  | AR116: =IF($AE116=AR$15,$AD116,"") ->  | AV116: =IF($AE116=AV$15,$AD116,"") ->  | BI116: =IF($AE116=BI$15,$AD116,"") ->  | BS116: =IF($AE116=BS$15,$AD116,"") ->  | CK116: =IF($AG116=CK$15,$I116-$J116,"") ->  | CL116: 0 | CN116: =IF(ISBLANK(D116),"",_xlfn.IFNA(SUM(SUMIFS(I$16:I116,E$16:E116,E116),ROUND(SUMIFS(J$16:J116,E$16:E116,E116)*-1,2),VLOOKUP(E116,$E$2:$H$5,4,FALSE)),"non-cash")) -> 
A117: 102 | B117: 0 | AD117: 0 | AF117: =IF(ISBLANK(AE117),"",VLOOKUP(AE117,Übersicht!$B$3:$C$55,2,FALSE)) ->  | CL117: 0 | CN117: =IF(ISBLANK(D117),"",_xlfn.IFNA(SUM(SUMIFS(I$16:I117,E$16:E117,E117),ROUND(SUMIFS(J$16:J117,E$16:E117,E117)*-1,2),VLOOKUP(E117,$E$2:$H$5,4,FALSE)),"non-cash")) -> 
A118: 103 | B118: 0 | AD118: 0 | AF118: =IF(ISBLANK(AE118),"",VLOOKUP(AE118,Übersicht!$B$3:$C$55,2,FALSE)) ->  | CL118: 0 | CN118: =IF(ISBLANK(D118),"",_xlfn.IFNA(SUM(SUMIFS(I$16:I118,E$16:E118,E118),ROUND(SUMIFS(J$16:J118,E$16:E118,E118)*-1,2),VLOOKUP(E118,$E$2:$H$5,4,FALSE)),"non-cash")) -> 
A119: 104 | B119: 0 | AD119: 0 | AF119: =IF(ISBLANK(AE119),"",VLOOKUP(AE119,Übersicht!$B$3:$C$55,2,FALSE)) ->  | CL119: 0 | CN119: =IF(ISBLANK(D119),"",_xlfn.IFNA(SUM(SUMIFS(I$16:I119,E$16:E119,E119),ROUND(SUMIFS(J$16:J119,E$16:E119,E119)*-1,2),VLOOKUP(E119,$E$2:$H$5,4,FALSE)),"non-cash")) -> 
A120: 105 | B120: 0 | AD120: 0 | AF120: =IF(ISBLANK(AE120),"",VLOOKUP(AE120,Übersicht!$B$3:$C$55,2,FALSE)) ->  | CL120: 0 | CN120: =IF(ISBLANK(D120),"",_xlfn.IFNA(SUM(SUMIFS(I$16:I120,E$16:E120,E120),ROUND(SUMIFS(J$16:J120,E$16:E120,E120)*-1,2),VLOOKUP(E120,$E$2:$H$5,4,FALSE)),"non-cash")) -> 
A121: 106 | B121: 0 | AD121: 0 | AF121: =IF(ISBLANK(AE121),"",VLOOKUP(AE121,Übersicht!$B$3:$C$55,2,FALSE)) ->  | CL121: 0 | CN121: =IF(ISBLANK(D121),"",_xlfn.IFNA(SUM(SUMIFS(I$16:I121,E$16:E121,E121),ROUND(SUMIFS(J$16:J121,E$16:E121,E121)*-1,2),VLOOKUP(E121,$E$2:$H$5,4,FALSE)),"non-cash")) -> 
A122: 107 | B122: 0 | AD122: 0 | AF122: =IF(ISBLANK(AE122),"",VLOOKUP(AE122,Übersicht!$B$3:$C$55,2,FALSE)) ->  | CL122: 0 | CN122: =IF(ISBLANK(D122),"",_xlfn.IFNA(SUM(SUMIFS(I$16:I122,E$16:E122,E122),ROUND(SUMIFS(J$16:J122,E$16:E122,E122)*-1,2),VLOOKUP(E122,$E$2:$H$5,4,FALSE)),"non-cash")) -> 
A123: 108 | B123: 0 | AD123: 0 | AF123: =IF(ISBLANK(AE123),"",VLOOKUP(AE123,Übersicht!$B$3:$C$55,2,FALSE)) ->  | CL123: 0 | CN123: =IF(ISBLANK(D123),"",_xlfn.IFNA(SUM(SUMIFS(I$16:I123,E$16:E123,E123),ROUND(SUMIFS(J$16:J123,E$16:E123,E123)*-1,2),VLOOKUP(E123,$E$2:$H$5,4,FALSE)),"non-cash")) -> 
A124: 109 | B124: 0 | AD124: 0 | AF124: =IF(ISBLANK(AE124),"",VLOOKUP(AE124,Übersicht!$B$3:$C$55,2,FALSE)) ->  | CL124: 0 | CN124: =IF(ISBLANK(D124),"",_xlfn.IFNA(SUM(SUMIFS(I$16:I124,E$16:E124,E124),ROUND(SUMIFS(J$16:J124,E$16:E124,E124)*-1,2),VLOOKUP(E124,$E$2:$H$5,4,FALSE)),"non-cash")) -> 
A125: 110 | B125: 0 | AD125: 0 | AF125: =IF(ISBLANK(AE125),"",VLOOKUP(AE125,Übersicht!$B$3:$C$55,2,FALSE)) ->  | CL125: 0 | CN125: =IF(ISBLANK(D125),"",_xlfn.IFNA(SUM(SUMIFS(I$16:I125,E$16:E125,E125),ROUND(SUMIFS(J$16:J125,E$16:E125,E125)*-1,2),VLOOKUP(E125,$E$2:$H$5,4,FALSE)),"non-cash")) -> 
A126: 111 | B126: 0 | AD126: 0 | AF126: =IF(ISBLANK(AE126),"",VLOOKUP(AE126,Übersicht!$B$3:$C$55,2,FALSE)) ->  | AV126: =IF($AE126=AV$15,$AD126,"") ->  | BI126: =IF($AE126=BI$15,$AD126,"") ->  | BS126: =IF($AE126=BS$15,$AD126,"") ->  | CL126: 0 | CN126: =IF(ISBLANK(D126),"",_xlfn.IFNA(SUM(SUMIFS(I$16:I126,E$16:E126,E126),ROUND(SUMIFS(J$16:J126,E$16:E126,E126)*-1,2),VLOOKUP(E126,$E$2:$H$5,4,FALSE)),"non-cash")) -> 
A127: 112 | B127: 0 | AD127: 0 | AF127: =IF(ISBLANK(AE127),"",VLOOKUP(AE127,Übersicht!$B$3:$C$55,2,FALSE)) ->  | CL127: 0 | CN127: =IF(ISBLANK(D127),"",_xlfn.IFNA(SUM(SUMIFS(I$16:I127,E$16:E127,E127),ROUND(SUMIFS(J$16:J127,E$16:E127,E127)*-1,2),VLOOKUP(E127,$E$2:$H$5,4,FALSE)),"non-cash")) -> 
A128: 113 | B128: 0 | AD128: 0 | AF128: =IF(ISBLANK(AE128),"",VLOOKUP(AE128,Übersicht!$B$3:$C$55,2,FALSE)) ->  | CL128: 0 | CN128: =IF(ISBLANK(D128),"",_xlfn.IFNA(SUM(SUMIFS(I$16:I128,E$16:E128,E128),ROUND(SUMIFS(J$16:J128,E$16:E128,E128)*-1,2),VLOOKUP(E128,$E$2:$H$5,4,FALSE)),"non-cash")) -> 
A129: 114 | B129: 0 | AD129: 0 | AF129: =IF(ISBLANK(AE129),"",VLOOKUP(AE129,Übersicht!$B$3:$C$55,2,FALSE)) ->  | CL129: 0 | CN129: =IF(ISBLANK(D129),"",_xlfn.IFNA(SUM(SUMIFS(I$16:I129,E$16:E129,E129),ROUND(SUMIFS(J$16:J129,E$16:E129,E129)*-1,2),VLOOKUP(E129,$E$2:$H$5,4,FALSE)),"non-cash")) -> 
A130: 115 | B130: 0 | AD130: 0 | AF130: =IF(ISBLANK(AE130),"",VLOOKUP(AE130,Übersicht!$B$3:$C$55,2,FALSE)) ->  | CL130: 0 | CN130: =IF(ISBLANK(D130),"",_xlfn.IFNA(SUM(SUMIFS(I$16:I130,E$16:E130,E130),ROUND(SUMIFS(J$16:J130,E$16:E130,E130)*-1,2),VLOOKUP(E130,$E$2:$H$5,4,FALSE)),"non-cash")) -> 
A131: 116 | B131: 0 | AD131: 0 | AF131: =IF(ISBLANK(AE131),"",VLOOKUP(AE131,Übersicht!$B$3:$C$55,2,FALSE)) ->  | CL131: 0 | CN131: =IF(ISBLANK(D131),"",_xlfn.IFNA(SUM(SUMIFS(I$16:I131,E$16:E131,E131),ROUND(SUMIFS(J$16:J131,E$16:E131,E131)*-1,2),VLOOKUP(E131,$E$2:$H$5,4,FALSE)),"non-cash")) -> 
A132: 117 | B132: 0 | AD132: 0 | AF132: =IF(ISBLANK(AE132),"",VLOOKUP(AE132,Übersicht!$B$3:$C$55,2,FALSE)) ->  | CL132: 0 | CN132: =IF(ISBLANK(D132),"",_xlfn.IFNA(SUM(SUMIFS(I$16:I132,E$16:E132,E132),ROUND(SUMIFS(J$16:J132,E$16:E132,E132)*-1,2),VLOOKUP(E132,$E$2:$H$5,4,FALSE)),"non-cash")) -> 
A133: 118 | B133: 0 | AD133: 0 | AF133: =IF(ISBLANK(AE133),"",VLOOKUP(AE133,Übersicht!$B$3:$C$55,2,FALSE)) ->  | CL133: 0 | CN133: =IF(ISBLANK(D133),"",_xlfn.IFNA(SUM(SUMIFS(I$16:I133,E$16:E133,E133),ROUND(SUMIFS(J$16:J133,E$16:E133,E133)*-1,2),VLOOKUP(E133,$E$2:$H$5,4,FALSE)),"non-cash")) -> 
A134: 119 | B134: 0 | AD134: 0 | AF134: =IF(ISBLANK(AE134),"",VLOOKUP(AE134,Übersicht!$B$3:$C$55,2,FALSE)) ->  | CL134: 0 | CN134: =IF(ISBLANK(D134),"",_xlfn.IFNA(SUM(SUMIFS(I$16:I134,E$16:E134,E134),ROUND(SUMIFS(J$16:J134,E$16:E134,E134)*-1,2),VLOOKUP(E134,$E$2:$H$5,4,FALSE)),"non-cash")) -> 
A135: 120 | B135: 0 | AD135: 0 | AF135: =IF(ISBLANK(AE135),"",VLOOKUP(AE135,Übersicht!$B$3:$C$55,2,FALSE)) ->  | CL135: 0 | CN135: =IF(ISBLANK(D135),"",_xlfn.IFNA(SUM(SUMIFS(I$16:I135,E$16:E135,E135),ROUND(SUMIFS(J$16:J135,E$16:E135,E135)*-1,2),VLOOKUP(E135,$E$2:$H$5,4,FALSE)),"non-cash")) -> 
A136: 121 | B136: 0 | V136: =IF(ISBLANK($J136),"",IF($L136="I",IF($K136=V$15,ROUND($J136*$K136,2),""),"")) ->  | AD136: 0 | AF136: =IF(ISBLANK(AE136),"",VLOOKUP(AE136,Übersicht!$B$3:$C$55,2,FALSE)) ->  | AR136: =IF($AE136=AR$15,$AD136,"") ->  | AV136: =IF($AE136=AV$15,$AD136,"") ->  | BI136: =IF($AE136=BI$15,$AD136,"") ->  | BS136: =IF($AE136=BS$15,$AD136,"") ->  | CK136: =IF($AG136=CK$15,$I136-$J136,"") ->  | CL136: 0 | CN136: =IF(ISBLANK(D136),"",_xlfn.IFNA(SUM(SUMIFS(I$16:I136,E$16:E136,E136),ROUND(SUMIFS(J$16:J136,E$16:E136,E136)*-1,2),VLOOKUP(E136,$E$2:$H$5,4,FALSE)),"non-cash")) -> 
A137: 122 | B137: 0 | AD137: 0 | AF137: =IF(ISBLANK(AE137),"",VLOOKUP(AE137,Übersicht!$B$3:$C$55,2,FALSE)) ->  | CL137: 0 | CN137: =IF(ISBLANK(D137),"",_xlfn.IFNA(SUM(SUMIFS(I$16:I137,E$16:E137,E137),ROUND(SUMIFS(J$16:J137,E$16:E137,E137)*-1,2),VLOOKUP(E137,$E$2:$H$5,4,FALSE)),"non-cash")) -> 
A138: 123 | B138: 0 | AD138: 0 | AF138: =IF(ISBLANK(AE138),"",VLOOKUP(AE138,Übersicht!$B$3:$C$55,2,FALSE)) ->  | CL138: 0 | CN138: =IF(ISBLANK(D138),"",_xlfn.IFNA(SUM(SUMIFS(I$16:I138,E$16:E138,E138),ROUND(SUMIFS(J$16:J138,E$16:E138,E138)*-1,2),VLOOKUP(E138,$E$2:$H$5,4,FALSE)),"non-cash")) -> 
A139: 124 | B139: 0 | AD139: 0 | AF139: =IF(ISBLANK(AE139),"",VLOOKUP(AE139,Übersicht!$B$3:$C$55,2,FALSE)) ->  | CL139: 0 | CN139: =IF(ISBLANK(D139),"",_xlfn.IFNA(SUM(SUMIFS(I$16:I139,E$16:E139,E139),ROUND(SUMIFS(J$16:J139,E$16:E139,E139)*-1,2),VLOOKUP(E139,$E$2:$H$5,4,FALSE)),"non-cash")) -> 
A140: 125 | B140: 0 | AD140: 0 | AF140: =IF(ISBLANK(AE140),"",VLOOKUP(AE140,Übersicht!$B$3:$C$55,2,FALSE)) ->  | CL140: 0 | CN140: =IF(ISBLANK(D140),"",_xlfn.IFNA(SUM(SUMIFS(I$16:I140,E$16:E140,E140),ROUND(SUMIFS(J$16:J140,E$16:E140,E140)*-1,2),VLOOKUP(E140,$E$2:$H$5,4,FALSE)),"non-cash")) -> 
A141: 126 | B141: 0 | AD141: 0 | AF141: =IF(ISBLANK(AE141),"",VLOOKUP(AE141,Übersicht!$B$3:$C$55,2,FALSE)) ->  | CL141: 0 | CN141: =IF(ISBLANK(D141),"",_xlfn.IFNA(SUM(SUMIFS(I$16:I141,E$16:E141,E141),ROUND(SUMIFS(J$16:J141,E$16:E141,E141)*-1,2),VLOOKUP(E141,$E$2:$H$5,4,FALSE)),"non-cash")) -> 
A142: 127 | B142: 0 | AD142: 0 | AF142: =IF(ISBLANK(AE142),"",VLOOKUP(AE142,Übersicht!$B$3:$C$55,2,FALSE)) ->  | CL142: 0 | CN142: =IF(ISBLANK(D142),"",_xlfn.IFNA(SUM(SUMIFS(I$16:I142,E$16:E142,E142),ROUND(SUMIFS(J$16:J142,E$16:E142,E142)*-1,2),VLOOKUP(E142,$E$2:$H$5,4,FALSE)),"non-cash")) -> 
A143: 128 | B143: 0 | AD143: 0 | AF143: =IF(ISBLANK(AE143),"",VLOOKUP(AE143,Übersicht!$B$3:$C$55,2,FALSE)) ->  | CL143: 0 | CN143: =IF(ISBLANK(D143),"",_xlfn.IFNA(SUM(SUMIFS(I$16:I143,E$16:E143,E143),ROUND(SUMIFS(J$16:J143,E$16:E143,E143)*-1,2),VLOOKUP(E143,$E$2:$H$5,4,FALSE)),"non-cash")) -> 
A144: 129 | B144: 0 | C144: =IF(ISBLANK(D144)=TRUE,"",MONTH(D144)) ->  | M144: =IF(ISBLANK(J144),"",$K$11) ->  | N144: =IF(ISBLANK($I144),"",IF(ISBLANK($L144),IF($K144=N$15,ROUND($I144/(1+$N$15)*$N$15,2),""),"")) ->  | Q144: =IF(ISBLANK($I144),"",IF(ISBLANK($L144),IF($K144=Q$15,ROUND($I144/(1+$Q$15)*$Q$15,2),""),"")) ->  | R144: =IF(ISBLANK($I144),"",IF(ISBLANK($L144),IF(NOT(ISBLANK(K144)),IF($K144=R$15,ROUND($I144,2),""),""),"")) ->  | S144: =IF(ISBLANK($I144),"",IF($L144="n",$I144,"")) ->  | T144: =IF(ISBLANK($I144),"",IF($L144="a",$I144,"")) ->  | U144: =IF(ISBLANK($I144),"",IF($L144="i",$I144,"")) ->  | Z144: =IF(ISBLANK($J144),"",IF($L144="r",ROUND($J144*$K144,2),"")) ->  | AA144: =IF(ISBLANK($J144),"",IF(ISBLANK($L144),ROUND($J144/(1+$K144)*$K144*$M144,2),"")) ->  | AB144: =IF(ISBLANK($J144),"",IF($L144="i",ROUND($J144*$K144*$M144,2),"")) ->  | AC144: =IF(ISBLANK($J144),"",IF($L144="r",ROUND($J144*$K144*$M144,2),"")) ->  | AD144: =ROUND(I144-J144-SUM(N144:Q144,V144:Z144)+SUM(AA144:AC144),2) -> 0 | AF144: =IF(ISBLANK(AE144),"",VLOOKUP(AE144,Übersicht!$B$3:$C$55,2,FALSE)) ->  | AG144: =IF(OR(AE144="100",AE144="700",AE144="999",AE144="998",AE144="992",ISBLANK(AE144)),"",IF(AE144="995","f",IF(LEFT(AE144,1)="0","i","o"))) ->  | AH144: =CONCATENATE(TEXT(C144,"00"),AE144) ->  | AI144: =CONCATENATE(TEXT(C144,"00"),AG144) ->  | AJ144: =IF($AE144=AJ$15,$AD144,"") ->  | AK144: =IF(AJ144="","",ROUND(SUM($AA144)*-1,2)) ->  | AL144: =IF($AE144=AL$15,$AD144,"") ->  | AM144: =IF(AL144="","",ROUND(SUM($AA144)*-1,2)) ->  | AN144: =IF($AE144=AN$15,$AD144,"") ->  | AO144: =IF(AN144="","",ROUND(SUM($AA144)*-1,2)) ->  | AP144: =IF($AE144=AP$15,$AD144,"") ->  | AQ144: =IF(AP144="","",ROUND(SUM($AA144)*-1,2)) ->  | AT144: =IF(ROUND(SUM(AL144,BO144,BS144),2)=0,"",ROUND(SUM(AA144,AB144,AC144)*-1,2)) ->  | AU144: =IF(AJ144="","",ROUND(SUM($AA144,AB144)*-1,2)) ->  | CG144: =IF($AG144=CG$15,$I144,"") ->  | CH144: =IF($AG144=CH$15,$J144,"") ->  | CI144: =IF($AG144=CI$15,$AD144,"") ->  | CJ144: =IF(CI144="","",ROUND(SUM(V144:Z144)-SUM(AA144:AC144),2)) ->  | CL144: 0 | CM144: =IF($E144="R",IF($AE144="100","o.P.","100...?"),"") ->  | CN144: =IF(ISBLANK(D144),"",_xlfn.IFNA(SUM(SUMIFS(I$16:I144,E$16:E144,E144),ROUND(SUMIFS(J$16:J144,E$16:E144,E144)*-1,2),VLOOKUP(E144,$E$2:$H$5,4,FALSE)),"non-cash")) -> 
A145: 130 | B145: =DAY(D145) -> 0 | P145: =IF(ISBLANK($I145),"",IF(ISBLANK($L145),IF($K145=P$15,ROUND($I145/(1+$P$15)*$P$15,2),""),"")) ->  | AD145: 0 | AF145: =IF(ISBLANK(AE145),"",VLOOKUP(AE145,Übersicht!$B$3:$C$55,2,FALSE)) ->  | CL145: 0 | CN145: =IF(ISBLANK(D145),"",_xlfn.IFNA(SUM(SUMIFS(I$16:I145,E$16:E145,E145),ROUND(SUMIFS(J$16:J145,E$16:E145,E145)*-1,2),VLOOKUP(E145,$E$2:$H$5,4,FALSE)),"non-cash")) -> 
A146: 131 | B146: 0 | O146: =IF(ISBLANK($I146),"",IF(ISBLANK($L146),IF($K146=O$15,ROUND($I146/(1+$O$15)*$O$15,2),""),"")) ->  | AD146: 0 | AF146: =IF(ISBLANK(AE146),"",VLOOKUP(AE146,Übersicht!$B$3:$C$55,2,FALSE)) ->  | AV146: =IF($AE146=AV$15,$AD146,"") ->  | BI146: =IF($AE146=BI$15,$AD146,"") ->  | BS146: =IF($AE146=BS$15,$AD146,"") ->  | CL146: 0 | CN146: =IF(ISBLANK(D146),"",_xlfn.IFNA(SUM(SUMIFS(I$16:I146,E$16:E146,E146),ROUND(SUMIFS(J$16:J146,E$16:E146,E146)*-1,2),VLOOKUP(E146,$E$2:$H$5,4,FALSE)),"non-cash")) -> 
A147: 132 | B147: 0 | AD147: 0 | AF147: =IF(ISBLANK(AE147),"",VLOOKUP(AE147,Übersicht!$B$3:$C$55,2,FALSE)) ->  | CL147: 0 | CN147: =IF(ISBLANK(D147),"",_xlfn.IFNA(SUM(SUMIFS(I$16:I147,E$16:E147,E147),ROUND(SUMIFS(J$16:J147,E$16:E147,E147)*-1,2),VLOOKUP(E147,$E$2:$H$5,4,FALSE)),"non-cash")) -> 
A148: 133 | B148: 0 | AD148: 0 | AF148: =IF(ISBLANK(AE148),"",VLOOKUP(AE148,Übersicht!$B$3:$C$55,2,FALSE)) ->  | CL148: 0 | CN148: =IF(ISBLANK(D148),"",_xlfn.IFNA(SUM(SUMIFS(I$16:I148,E$16:E148,E148),ROUND(SUMIFS(J$16:J148,E$16:E148,E148)*-1,2),VLOOKUP(E148,$E$2:$H$5,4,FALSE)),"non-cash")) -> 
A149: 134 | B149: 0 | AD149: 0 | AF149: =IF(ISBLANK(AE149),"",VLOOKUP(AE149,Übersicht!$B$3:$C$55,2,FALSE)) ->  | CL149: 0 | CN149: =IF(ISBLANK(D149),"",_xlfn.IFNA(SUM(SUMIFS(I$16:I149,E$16:E149,E149),ROUND(SUMIFS(J$16:J149,E$16:E149,E149)*-1,2),VLOOKUP(E149,$E$2:$H$5,4,FALSE)),"non-cash")) -> 
A150: 135 | B150: 0 | AD150: 0 | AF150: =IF(ISBLANK(AE150),"",VLOOKUP(AE150,Übersicht!$B$3:$C$55,2,FALSE)) ->  | CL150: 0 | CN150: =IF(ISBLANK(D150),"",_xlfn.IFNA(SUM(SUMIFS(I$16:I150,E$16:E150,E150),ROUND(SUMIFS(J$16:J150,E$16:E150,E150)*-1,2),VLOOKUP(E150,$E$2:$H$5,4,FALSE)),"non-cash")) -> 
A151: 136 | B151: 0 | AD151: 0 | AF151: =IF(ISBLANK(AE151),"",VLOOKUP(AE151,Übersicht!$B$3:$C$55,2,FALSE)) ->  | CL151: 0 | CN151: =IF(ISBLANK(D151),"",_xlfn.IFNA(SUM(SUMIFS(I$16:I151,E$16:E151,E151),ROUND(SUMIFS(J$16:J151,E$16:E151,E151)*-1,2),VLOOKUP(E151,$E$2:$H$5,4,FALSE)),"non-cash")) -> 
A152: 137 | B152: 0 | AD152: 0 | AF152: =IF(ISBLANK(AE152),"",VLOOKUP(AE152,Übersicht!$B$3:$C$55,2,FALSE)) ->  | CL152: 0 | CN152: =IF(ISBLANK(D152),"",_xlfn.IFNA(SUM(SUMIFS(I$16:I152,E$16:E152,E152),ROUND(SUMIFS(J$16:J152,E$16:E152,E152)*-1,2),VLOOKUP(E152,$E$2:$H$5,4,FALSE)),"non-cash")) -> 
A153: 138 | B153: 0 | AD153: 0 | AF153: =IF(ISBLANK(AE153),"",VLOOKUP(AE153,Übersicht!$B$3:$C$55,2,FALSE)) ->  | CL153: 0 | CN153: =IF(ISBLANK(D153),"",_xlfn.IFNA(SUM(SUMIFS(I$16:I153,E$16:E153,E153),ROUND(SUMIFS(J$16:J153,E$16:E153,E153)*-1,2),VLOOKUP(E153,$E$2:$H$5,4,FALSE)),"non-cash")) -> 
A154: 139 | B154: 0 | AD154: 0 | AF154: =IF(ISBLANK(AE154),"",VLOOKUP(AE154,Übersicht!$B$3:$C$55,2,FALSE)) ->  | CL154: 0 | CN154: =IF(ISBLANK(D154),"",_xlfn.IFNA(SUM(SUMIFS(I$16:I154,E$16:E154,E154),ROUND(SUMIFS(J$16:J154,E$16:E154,E154)*-1,2),VLOOKUP(E154,$E$2:$H$5,4,FALSE)),"non-cash")) -> 
A155: 140 | B155: 0 | AD155: 0 | AF155: =IF(ISBLANK(AE155),"",VLOOKUP(AE155,Übersicht!$B$3:$C$55,2,FALSE)) ->  | CL155: 0 | CN155: =IF(ISBLANK(D155),"",_xlfn.IFNA(SUM(SUMIFS(I$16:I155,E$16:E155,E155),ROUND(SUMIFS(J$16:J155,E$16:E155,E155)*-1,2),VLOOKUP(E155,$E$2:$H$5,4,FALSE)),"non-cash")) -> 
A156: 141 | B156: 0 | V156: =IF(ISBLANK($J156),"",IF($L156="I",IF($K156=V$15,ROUND($J156*$K156,2),""),"")) ->  | AD156: 0 | AF156: =IF(ISBLANK(AE156),"",VLOOKUP(AE156,Übersicht!$B$3:$C$55,2,FALSE)) ->  | AR156: =IF($AE156=AR$15,$AD156,"") ->  | AV156: =IF($AE156=AV$15,$AD156,"") ->  | BI156: =IF($AE156=BI$15,$AD156,"") ->  | BS156: =IF($AE156=BS$15,$AD156,"") ->  | CK156: =IF($AG156=CK$15,$I156-$J156,"") ->  | CL156: 0 | CN156: =IF(ISBLANK(D156),"",_xlfn.IFNA(SUM(SUMIFS(I$16:I156,E$16:E156,E156),ROUND(SUMIFS(J$16:J156,E$16:E156,E156)*-1,2),VLOOKUP(E156,$E$2:$H$5,4,FALSE)),"non-cash")) -> 
A157: 142 | B157: 0 | AD157: 0 | AF157: =IF(ISBLANK(AE157),"",VLOOKUP(AE157,Übersicht!$B$3:$C$55,2,FALSE)) ->  | CL157: 0 | CN157: =IF(ISBLANK(D157),"",_xlfn.IFNA(SUM(SUMIFS(I$16:I157,E$16:E157,E157),ROUND(SUMIFS(J$16:J157,E$16:E157,E157)*-1,2),VLOOKUP(E157,$E$2:$H$5,4,FALSE)),"non-cash")) -> 
A158: 143 | B158: 0 | AD158: 0 | AF158: =IF(ISBLANK(AE158),"",VLOOKUP(AE158,Übersicht!$B$3:$C$55,2,FALSE)) ->  | CL158: 0 | CN158: =IF(ISBLANK(D158),"",_xlfn.IFNA(SUM(SUMIFS(I$16:I158,E$16:E158,E158),ROUND(SUMIFS(J$16:J158,E$16:E158,E158)*-1,2),VLOOKUP(E158,$E$2:$H$5,4,FALSE)),"non-cash")) -> 
A159: 144 | B159: 0 | AD159: 0 | AF159: =IF(ISBLANK(AE159),"",VLOOKUP(AE159,Übersicht!$B$3:$C$55,2,FALSE)) ->  | CL159: 0 | CN159: =IF(ISBLANK(D159),"",_xlfn.IFNA(SUM(SUMIFS(I$16:I159,E$16:E159,E159),ROUND(SUMIFS(J$16:J159,E$16:E159,E159)*-1,2),VLOOKUP(E159,$E$2:$H$5,4,FALSE)),"non-cash")) -> 
A160: 145 | B160: 0 | AD160: 0 | AF160: =IF(ISBLANK(AE160),"",VLOOKUP(AE160,Übersicht!$B$3:$C$55,2,FALSE)) ->  | CL160: 0 | CN160: =IF(ISBLANK(D160),"",_xlfn.IFNA(SUM(SUMIFS(I$16:I160,E$16:E160,E160),ROUND(SUMIFS(J$16:J160,E$16:E160,E160)*-1,2),VLOOKUP(E160,$E$2:$H$5,4,FALSE)),"non-cash")) -> 
A161: 146 | B161: 0 | AD161: 0 | AF161: =IF(ISBLANK(AE161),"",VLOOKUP(AE161,Übersicht!$B$3:$C$55,2,FALSE)) ->  | CL161: 0 | CN161: =IF(ISBLANK(D161),"",_xlfn.IFNA(SUM(SUMIFS(I$16:I161,E$16:E161,E161),ROUND(SUMIFS(J$16:J161,E$16:E161,E161)*-1,2),VLOOKUP(E161,$E$2:$H$5,4,FALSE)),"non-cash")) -> 
A162: 147 | B162: 0 | AD162: 0 | AF162: =IF(ISBLANK(AE162),"",VLOOKUP(AE162,Übersicht!$B$3:$C$55,2,FALSE)) ->  | CL162: 0 | CN162: =IF(ISBLANK(D162),"",_xlfn.IFNA(SUM(SUMIFS(I$16:I162,E$16:E162,E162),ROUND(SUMIFS(J$16:J162,E$16:E162,E162)*-1,2),VLOOKUP(E162,$E$2:$H$5,4,FALSE)),"non-cash")) -> 
A163: 148 | B163: 0 | AD163: 0 | AF163: =IF(ISBLANK(AE163),"",VLOOKUP(AE163,Übersicht!$B$3:$C$55,2,FALSE)) ->  | CL163: 0 | CN163: =IF(ISBLANK(D163),"",_xlfn.IFNA(SUM(SUMIFS(I$16:I163,E$16:E163,E163),ROUND(SUMIFS(J$16:J163,E$16:E163,E163)*-1,2),VLOOKUP(E163,$E$2:$H$5,4,FALSE)),"non-cash")) -> 
A164: 149 | B164: 0 | AD164: 0 | AF164: =IF(ISBLANK(AE164),"",VLOOKUP(AE164,Übersicht!$B$3:$C$55,2,FALSE)) ->  | CL164: 0 | CN164: =IF(ISBLANK(D164),"",_xlfn.IFNA(SUM(SUMIFS(I$16:I164,E$16:E164,E164),ROUND(SUMIFS(J$16:J164,E$16:E164,E164)*-1,2),VLOOKUP(E164,$E$2:$H$5,4,FALSE)),"non-cash")) -> 
A165: 150 | B165: 0 | AD165: 0 | AF165: =IF(ISBLANK(AE165),"",VLOOKUP(AE165,Übersicht!$B$3:$C$55,2,FALSE)) ->  | CL165: 0 | CN165: =IF(ISBLANK(D165),"",_xlfn.IFNA(SUM(SUMIFS(I$16:I165,E$16:E165,E165),ROUND(SUMIFS(J$16:J165,E$16:E165,E165)*-1,2),VLOOKUP(E165,$E$2:$H$5,4,FALSE)),"non-cash")) -> 
A166: 151 | B166: 0 | AD166: 0 | AF166: =IF(ISBLANK(AE166),"",VLOOKUP(AE166,Übersicht!$B$3:$C$55,2,FALSE)) ->  | AV166: =IF($AE166=AV$15,$AD166,"") ->  | BI166: =IF($AE166=BI$15,$AD166,"") ->  | BS166: =IF($AE166=BS$15,$AD166,"") ->  | CL166: 0 | CN166: =IF(ISBLANK(D166),"",_xlfn.IFNA(SUM(SUMIFS(I$16:I166,E$16:E166,E166),ROUND(SUMIFS(J$16:J166,E$16:E166,E166)*-1,2),VLOOKUP(E166,$E$2:$H$5,4,FALSE)),"non-cash")) -> 
A167: 152 | B167: 0 | AD167: 0 | AF167: =IF(ISBLANK(AE167),"",VLOOKUP(AE167,Übersicht!$B$3:$C$55,2,FALSE)) ->  | CL167: 0 | CN167: =IF(ISBLANK(D167),"",_xlfn.IFNA(SUM(SUMIFS(I$16:I167,E$16:E167,E167),ROUND(SUMIFS(J$16:J167,E$16:E167,E167)*-1,2),VLOOKUP(E167,$E$2:$H$5,4,FALSE)),"non-cash")) -> 
A168: 153 | B168: 0 | AD168: 0 | AF168: =IF(ISBLANK(AE168),"",VLOOKUP(AE168,Übersicht!$B$3:$C$55,2,FALSE)) ->  | CL168: 0 | CN168: =IF(ISBLANK(D168),"",_xlfn.IFNA(SUM(SUMIFS(I$16:I168,E$16:E168,E168),ROUND(SUMIFS(J$16:J168,E$16:E168,E168)*-1,2),VLOOKUP(E168,$E$2:$H$5,4,FALSE)),"non-cash")) -> 
A169: 154 | B169: 0 | AD169: 0 | AF169: =IF(ISBLANK(AE169),"",VLOOKUP(AE169,Übersicht!$B$3:$C$55,2,FALSE)) ->  | CL169: 0 | CN169: =IF(ISBLANK(D169),"",_xlfn.IFNA(SUM(SUMIFS(I$16:I169,E$16:E169,E169),ROUND(SUMIFS(J$16:J169,E$16:E169,E169)*-1,2),VLOOKUP(E169,$E$2:$H$5,4,FALSE)),"non-cash")) -> 
A170: 155 | B170: 0 | AD170: 0 | AF170: =IF(ISBLANK(AE170),"",VLOOKUP(AE170,Übersicht!$B$3:$C$55,2,FALSE)) ->  | CL170: 0 | CN170: =IF(ISBLANK(D170),"",_xlfn.IFNA(SUM(SUMIFS(I$16:I170,E$16:E170,E170),ROUND(SUMIFS(J$16:J170,E$16:E170,E170)*-1,2),VLOOKUP(E170,$E$2:$H$5,4,FALSE)),"non-cash")) -> 
A171: 156 | B171: 0 | AD171: 0 | AF171: =IF(ISBLANK(AE171),"",VLOOKUP(AE171,Übersicht!$B$3:$C$55,2,FALSE)) ->  | CL171: 0 | CN171: =IF(ISBLANK(D171),"",_xlfn.IFNA(SUM(SUMIFS(I$16:I171,E$16:E171,E171),ROUND(SUMIFS(J$16:J171,E$16:E171,E171)*-1,2),VLOOKUP(E171,$E$2:$H$5,4,FALSE)),"non-cash")) -> 
A172: 157 | B172: 0 | AD172: 0 | AF172: =IF(ISBLANK(AE172),"",VLOOKUP(AE172,Übersicht!$B$3:$C$55,2,FALSE)) ->  | CL172: 0 | CN172: =IF(ISBLANK(D172),"",_xlfn.IFNA(SUM(SUMIFS(I$16:I172,E$16:E172,E172),ROUND(SUMIFS(J$16:J172,E$16:E172,E172)*-1,2),VLOOKUP(E172,$E$2:$H$5,4,FALSE)),"non-cash")) ->  | CQ172: =IF(ISBLANK(CP172),"",HYPERLINK(CONCATENATE($CQ$15,"\",CP172,".pdf"),"anzeigen")) -> 
A173: 158 | B173: 0 | AD173: 0 | AF173: =IF(ISBLANK(AE173),"",VLOOKUP(AE173,Übersicht!$B$3:$C$55,2,FALSE)) ->  | CL173: 0 | CN173: =IF(ISBLANK(D173),"",_xlfn.IFNA(SUM(SUMIFS(I$16:I173,E$16:E173,E173),ROUND(SUMIFS(J$16:J173,E$16:E173,E173)*-1,2),VLOOKUP(E173,$E$2:$H$5,4,FALSE)),"non-cash")) -> 
A174: 159 | B174: 0 | AD174: 0 | AF174: =IF(ISBLANK(AE174),"",VLOOKUP(AE174,Übersicht!$B$3:$C$55,2,FALSE)) ->  | CL174: 0 | CN174: =IF(ISBLANK(D174),"",_xlfn.IFNA(SUM(SUMIFS(I$16:I174,E$16:E174,E174),ROUND(SUMIFS(J$16:J174,E$16:E174,E174)*-1,2),VLOOKUP(E174,$E$2:$H$5,4,FALSE)),"non-cash")) -> 
A175: 160 | B175: 0 | AD175: 0 | AF175: =IF(ISBLANK(AE175),"",VLOOKUP(AE175,Übersicht!$B$3:$C$55,2,FALSE)) ->  | CL175: 0 | CN175: =IF(ISBLANK(D175),"",_xlfn.IFNA(SUM(SUMIFS(I$16:I175,E$16:E175,E175),ROUND(SUMIFS(J$16:J175,E$16:E175,E175)*-1,2),VLOOKUP(E175,$E$2:$H$5,4,FALSE)),"non-cash")) -> 
A176: 161 | B176: 0 | C176: =IF(ISBLANK(D176)=TRUE,"",MONTH(D176)) ->  | N176: =IF(ISBLANK($I176),"",IF(ISBLANK($L176),IF($K176=N$15,ROUND($I176/(1+$N$15)*$N$15,2),""),"")) ->  | Q176: =IF(ISBLANK($I176),"",IF(ISBLANK($L176),IF($K176=Q$15,ROUND($I176/(1+$Q$15)*$Q$15,2),""),"")) ->  | R176: =IF(ISBLANK($I176),"",IF(ISBLANK($L176),IF(NOT(ISBLANK(K176)),IF($K176=R$15,ROUND($I176,2),""),""),"")) ->  | S176: =IF(ISBLANK($I176),"",IF($L176="n",$I176,"")) ->  | T176: =IF(ISBLANK($I176),"",IF($L176="a",$I176,"")) ->  | U176: =IF(ISBLANK($I176),"",IF($L176="i",$I176,"")) ->  | V176: =IF(ISBLANK($J176),"",IF($L176="I",IF($K176=V$15,ROUND($J176*$K176,2),""),"")) ->  | Z176: =IF(ISBLANK($J176),"",IF($L176="r",ROUND($J176*$K176,2),"")) ->  | AA176: =IF(ISBLANK($J176),"",IF(ISBLANK($L176),ROUND($J176/(1+$K176)*$K176*$M176,2),"")) ->  | AB176: =IF(ISBLANK($J176),"",IF($L176="i",ROUND($J176*$K176*$M176,2),"")) ->  | AC176: =IF(ISBLANK($J176),"",IF($L176="r",ROUND($J176*$K176*$M176,2),"")) ->  | AD176: =ROUND(I176-J176-SUM(N176:Q176,V176:Z176)+SUM(AA176:AC176),2) -> 0 | AF176: =IF(ISBLANK(AE176),"",VLOOKUP(AE176,Übersicht!$B$3:$C$55,2,FALSE)) ->  | AJ176: =IF($AE176=AJ$15,$AD176,"") ->  | AK176: =IF(AJ176="","",ROUND(SUM($AA176)*-1,2)) ->  | AL176: =IF($AE176=AL$15,$AD176,"") ->  | AM176: =IF(AL176="","",ROUND(SUM($AA176)*-1,2)) ->  | AN176: =IF($AE176=AN$15,$AD176,"") ->  | AO176: =IF(AN176="","",ROUND(SUM($AA176)*-1,2)) ->  | AP176: =IF($AE176=AP$15,$AD176,"") ->  | AQ176: =IF(AP176="","",ROUND(SUM($AA176)*-1,2)) ->  | AR176: =IF($AE176=AR$15,$AD176,"") ->  | AV176: =IF($AE176=AV$15,$AD176,"") ->  | BI176: =IF($AE176=BI$15,$AD176,"") ->  | BS176: =IF($AE176=BS$15,$AD176,"") ->  | CK176: =IF($AG176=CK$15,$I176-$J176,"") ->  | CL176: 0 | CM176: =IF($E176="R",IF($AE176="100","o.P.","100...?"),"") ->  | CN176: =IF(ISBLANK(D176),"",_xlfn.IFNA(SUM(SUMIFS(I$16:I176,E$16:E176,E176),ROUND(SUMIFS(J$16:J176,E$16:E176,E176)*-1,2),VLOOKUP(E176,$E$2:$H$5,4,FALSE)),"non-cash")) -> 
A177: 162 | B177: 0 | AD177: 0 | AF177: =IF(ISBLANK(AE177),"",VLOOKUP(AE177,Übersicht!$B$3:$C$55,2,FALSE)) ->  | CL177: 0 | CN177: =IF(ISBLANK(D177),"",_xlfn.IFNA(SUM(SUMIFS(I$16:I177,E$16:E177,E177),ROUND(SUMIFS(J$16:J177,E$16:E177,E177)*-1,2),VLOOKUP(E177,$E$2:$H$5,4,FALSE)),"non-cash")) -> 
A178: 163 | B178: 0 | AD178: 0 | AF178: =IF(ISBLANK(AE178),"",VLOOKUP(AE178,Übersicht!$B$3:$C$55,2,FALSE)) ->  | CL178: 0 | CN178: =IF(ISBLANK(D178),"",_xlfn.IFNA(SUM(SUMIFS(I$16:I178,E$16:E178,E178),ROUND(SUMIFS(J$16:J178,E$16:E178,E178)*-1,2),VLOOKUP(E178,$E$2:$H$5,4,FALSE)),"non-cash")) -> 
A179: 164 | B179: 0 | AD179: 0 | AF179: =IF(ISBLANK(AE179),"",VLOOKUP(AE179,Übersicht!$B$3:$C$55,2,FALSE)) ->  | CL179: 0 | CN179: =IF(ISBLANK(D179),"",_xlfn.IFNA(SUM(SUMIFS(I$16:I179,E$16:E179,E179),ROUND(SUMIFS(J$16:J179,E$16:E179,E179)*-1,2),VLOOKUP(E179,$E$2:$H$5,4,FALSE)),"non-cash")) -> 
A180: 165 | B180: 0 | AD180: 0 | AF180: =IF(ISBLANK(AE180),"",VLOOKUP(AE180,Übersicht!$B$3:$C$55,2,FALSE)) ->  | CL180: 0 | CN180: =IF(ISBLANK(D180),"",_xlfn.IFNA(SUM(SUMIFS(I$16:I180,E$16:E180,E180),ROUND(SUMIFS(J$16:J180,E$16:E180,E180)*-1,2),VLOOKUP(E180,$E$2:$H$5,4,FALSE)),"non-cash")) -> 
A181: 166 | B181: 0 | AD181: 0 | AF181: =IF(ISBLANK(AE181),"",VLOOKUP(AE181,Übersicht!$B$3:$C$55,2,FALSE)) ->  | CL181: 0 | CN181: =IF(ISBLANK(D181),"",_xlfn.IFNA(SUM(SUMIFS(I$16:I181,E$16:E181,E181),ROUND(SUMIFS(J$16:J181,E$16:E181,E181)*-1,2),VLOOKUP(E181,$E$2:$H$5,4,FALSE)),"non-cash")) -> 
A182: 167 | B182: 0 | AD182: 0 | AF182: =IF(ISBLANK(AE182),"",VLOOKUP(AE182,Übersicht!$B$3:$C$55,2,FALSE)) ->  | CL182: 0 | CN182: =IF(ISBLANK(D182),"",_xlfn.IFNA(SUM(SUMIFS(I$16:I182,E$16:E182,E182),ROUND(SUMIFS(J$16:J182,E$16:E182,E182)*-1,2),VLOOKUP(E182,$E$2:$H$5,4,FALSE)),"non-cash")) -> 
A183: 168 | B183: 0 | AD183: 0 | AF183: =IF(ISBLANK(AE183),"",VLOOKUP(AE183,Übersicht!$B$3:$C$55,2,FALSE)) ->  | CL183: 0 | CN183: =IF(ISBLANK(D183),"",_xlfn.IFNA(SUM(SUMIFS(I$16:I183,E$16:E183,E183),ROUND(SUMIFS(J$16:J183,E$16:E183,E183)*-1,2),VLOOKUP(E183,$E$2:$H$5,4,FALSE)),"non-cash")) -> 
A184: 169 | B184: 0 | AD184: 0 | AF184: =IF(ISBLANK(AE184),"",VLOOKUP(AE184,Übersicht!$B$3:$C$55,2,FALSE)) ->  | CL184: 0 | CN184: =IF(ISBLANK(D184),"",_xlfn.IFNA(SUM(SUMIFS(I$16:I184,E$16:E184,E184),ROUND(SUMIFS(J$16:J184,E$16:E184,E184)*-1,2),VLOOKUP(E184,$E$2:$H$5,4,FALSE)),"non-cash")) -> 
A185: 170 | B185: 0 | AD185: 0 | AF185: =IF(ISBLANK(AE185),"",VLOOKUP(AE185,Übersicht!$B$3:$C$55,2,FALSE)) ->  | CL185: 0 | CN185: =IF(ISBLANK(D185),"",_xlfn.IFNA(SUM(SUMIFS(I$16:I185,E$16:E185,E185),ROUND(SUMIFS(J$16:J185,E$16:E185,E185)*-1,2),VLOOKUP(E185,$E$2:$H$5,4,FALSE)),"non-cash")) -> 
A186: 171 | B186: 0 | AD186: 0 | AF186: =IF(ISBLANK(AE186),"",VLOOKUP(AE186,Übersicht!$B$3:$C$55,2,FALSE)) ->  | AV186: =IF($AE186=AV$15,$AD186,"") ->  | BI186: =IF($AE186=BI$15,$AD186,"") ->  | BS186: =IF($AE186=BS$15,$AD186,"") ->  | CL186: 0 | CN186: =IF(ISBLANK(D186),"",_xlfn.IFNA(SUM(SUMIFS(I$16:I186,E$16:E186,E186),ROUND(SUMIFS(J$16:J186,E$16:E186,E186)*-1,2),VLOOKUP(E186,$E$2:$H$5,4,FALSE)),"non-cash")) -> 
A187: 172 | B187: 0 | AD187: 0 | AF187: =IF(ISBLANK(AE187),"",VLOOKUP(AE187,Übersicht!$B$3:$C$55,2,FALSE)) ->  | CL187: 0 | CN187: =IF(ISBLANK(D187),"",_xlfn.IFNA(SUM(SUMIFS(I$16:I187,E$16:E187,E187),ROUND(SUMIFS(J$16:J187,E$16:E187,E187)*-1,2),VLOOKUP(E187,$E$2:$H$5,4,FALSE)),"non-cash")) -> 
A188: 173 | B188: 0 | AD188: 0 | AF188: =IF(ISBLANK(AE188),"",VLOOKUP(AE188,Übersicht!$B$3:$C$55,2,FALSE)) ->  | CL188: 0 | CN188: =IF(ISBLANK(D188),"",_xlfn.IFNA(SUM(SUMIFS(I$16:I188,E$16:E188,E188),ROUND(SUMIFS(J$16:J188,E$16:E188,E188)*-1,2),VLOOKUP(E188,$E$2:$H$5,4,FALSE)),"non-cash")) -> 
A189: 174 | B189: 0 | AD189: 0 | AF189: =IF(ISBLANK(AE189),"",VLOOKUP(AE189,Übersicht!$B$3:$C$55,2,FALSE)) ->  | CL189: 0 | CN189: =IF(ISBLANK(D189),"",_xlfn.IFNA(SUM(SUMIFS(I$16:I189,E$16:E189,E189),ROUND(SUMIFS(J$16:J189,E$16:E189,E189)*-1,2),VLOOKUP(E189,$E$2:$H$5,4,FALSE)),"non-cash")) -> 
A190: 175 | B190: 0 | AD190: 0 | AF190: =IF(ISBLANK(AE190),"",VLOOKUP(AE190,Übersicht!$B$3:$C$55,2,FALSE)) ->  | CL190: 0 | CN190: =IF(ISBLANK(D190),"",_xlfn.IFNA(SUM(SUMIFS(I$16:I190,E$16:E190,E190),ROUND(SUMIFS(J$16:J190,E$16:E190,E190)*-1,2),VLOOKUP(E190,$E$2:$H$5,4,FALSE)),"non-cash")) -> 
A191: 176 | B191: 0 | AD191: 0 | AF191: =IF(ISBLANK(AE191),"",VLOOKUP(AE191,Übersicht!$B$3:$C$55,2,FALSE)) ->  | CL191: 0 | CN191: =IF(ISBLANK(D191),"",_xlfn.IFNA(SUM(SUMIFS(I$16:I191,E$16:E191,E191),ROUND(SUMIFS(J$16:J191,E$16:E191,E191)*-1,2),VLOOKUP(E191,$E$2:$H$5,4,FALSE)),"non-cash")) -> 
A192: 177 | B192: 0 | AD192: 0 | AF192: =IF(ISBLANK(AE192),"",VLOOKUP(AE192,Übersicht!$B$3:$C$55,2,FALSE)) ->  | CL192: 0 | CN192: =IF(ISBLANK(D192),"",_xlfn.IFNA(SUM(SUMIFS(I$16:I192,E$16:E192,E192),ROUND(SUMIFS(J$16:J192,E$16:E192,E192)*-1,2),VLOOKUP(E192,$E$2:$H$5,4,FALSE)),"non-cash")) -> 
A193: 178 | B193: 0 | AD193: 0 | AF193: =IF(ISBLANK(AE193),"",VLOOKUP(AE193,Übersicht!$B$3:$C$55,2,FALSE)) ->  | CL193: 0 | CN193: =IF(ISBLANK(D193),"",_xlfn.IFNA(SUM(SUMIFS(I$16:I193,E$16:E193,E193),ROUND(SUMIFS(J$16:J193,E$16:E193,E193)*-1,2),VLOOKUP(E193,$E$2:$H$5,4,FALSE)),"non-cash")) -> 
A194: 179 | B194: 0 | AD194: 0 | AF194: =IF(ISBLANK(AE194),"",VLOOKUP(AE194,Übersicht!$B$3:$C$55,2,FALSE)) ->  | CL194: 0 | CN194: =IF(ISBLANK(D194),"",_xlfn.IFNA(SUM(SUMIFS(I$16:I194,E$16:E194,E194),ROUND(SUMIFS(J$16:J194,E$16:E194,E194)*-1,2),VLOOKUP(E194,$E$2:$H$5,4,FALSE)),"non-cash")) -> 
A195: 180 | B195: 0 | AD195: 0 | AF195: =IF(ISBLANK(AE195),"",VLOOKUP(AE195,Übersicht!$B$3:$C$55,2,FALSE)) ->  | CL195: 0 | CN195: =IF(ISBLANK(D195),"",_xlfn.IFNA(SUM(SUMIFS(I$16:I195,E$16:E195,E195),ROUND(SUMIFS(J$16:J195,E$16:E195,E195)*-1,2),VLOOKUP(E195,$E$2:$H$5,4,FALSE)),"non-cash")) -> 
A196: 181 | B196: 0 | V196: =IF(ISBLANK($J196),"",IF($L196="I",IF($K196=V$15,ROUND($J196*$K196,2),""),"")) ->  | AD196: 0 | AF196: =IF(ISBLANK(AE196),"",VLOOKUP(AE196,Übersicht!$B$3:$C$55,2,FALSE)) ->  | AR196: =IF($AE196=AR$15,$AD196,"") ->  | AV196: =IF($AE196=AV$15,$AD196,"") ->  | BI196: =IF($AE196=BI$15,$AD196,"") ->  | BS196: =IF($AE196=BS$15,$AD196,"") ->  | CK196: =IF($AG196=CK$15,$I196-$J196,"") ->  | CL196: 0 | CN196: =IF(ISBLANK(D196),"",_xlfn.IFNA(SUM(SUMIFS(I$16:I196,E$16:E196,E196),ROUND(SUMIFS(J$16:J196,E$16:E196,E196)*-1,2),VLOOKUP(E196,$E$2:$H$5,4,FALSE)),"non-cash")) -> 
A197: 182 | B197: 0 | AD197: 0 | AF197: =IF(ISBLANK(AE197),"",VLOOKUP(AE197,Übersicht!$B$3:$C$55,2,FALSE)) ->  | CL197: 0 | CN197: =IF(ISBLANK(D197),"",_xlfn.IFNA(SUM(SUMIFS(I$16:I197,E$16:E197,E197),ROUND(SUMIFS(J$16:J197,E$16:E197,E197)*-1,2),VLOOKUP(E197,$E$2:$H$5,4,FALSE)),"non-cash")) -> 
A198: 183 | B198: 0 | AD198: 0 | AF198: =IF(ISBLANK(AE198),"",VLOOKUP(AE198,Übersicht!$B$3:$C$55,2,FALSE)) ->  | CL198: 0 | CN198: =IF(ISBLANK(D198),"",_xlfn.IFNA(SUM(SUMIFS(I$16:I198,E$16:E198,E198),ROUND(SUMIFS(J$16:J198,E$16:E198,E198)*-1,2),VLOOKUP(E198,$E$2:$H$5,4,FALSE)),"non-cash")) -> 
A199: 184 | B199: 0 | X199: =IF(ISBLANK($J199),"",IF($L199="I",IF($K199=X$15,ROUND($J199*$K199,2),""),"")) ->  | AD199: 0 | AF199: =IF(ISBLANK(AE199),"",VLOOKUP(AE199,Übersicht!$B$3:$C$55,2,FALSE)) ->  | CL199: 0 | CN199: =IF(ISBLANK(D199),"",_xlfn.IFNA(SUM(SUMIFS(I$16:I199,E$16:E199,E199),ROUND(SUMIFS(J$16:J199,E$16:E199,E199)*-1,2),VLOOKUP(E199,$E$2:$H$5,4,FALSE)),"non-cash")) -> 
A200: 185 | B200: 0 | AD200: 0 | AF200: =IF(ISBLANK(AE200),"",VLOOKUP(AE200,Übersicht!$B$3:$C$55,2,FALSE)) ->  | CL200: 0 | CN200: =IF(ISBLANK(D200),"",_xlfn.IFNA(SUM(SUMIFS(I$16:I200,E$16:E200,E200),ROUND(SUMIFS(J$16:J200,E$16:E200,E200)*-1,2),VLOOKUP(E200,$E$2:$H$5,4,FALSE)),"non-cash")) -> 
A201: 186 | B201: 0 | AD201: 0 | AF201: =IF(ISBLANK(AE201),"",VLOOKUP(AE201,Übersicht!$B$3:$C$55,2,FALSE)) ->  | CL201: 0 | CN201: =IF(ISBLANK(D201),"",_xlfn.IFNA(SUM(SUMIFS(I$16:I201,E$16:E201,E201),ROUND(SUMIFS(J$16:J201,E$16:E201,E201)*-1,2),VLOOKUP(E201,$E$2:$H$5,4,FALSE)),"non-cash")) -> 
A202: 187 | B202: 0 | AD202: 0 | AF202: =IF(ISBLANK(AE202),"",VLOOKUP(AE202,Übersicht!$B$3:$C$55,2,FALSE)) ->  | CL202: 0 | CN202: =IF(ISBLANK(D202),"",_xlfn.IFNA(SUM(SUMIFS(I$16:I202,E$16:E202,E202),ROUND(SUMIFS(J$16:J202,E$16:E202,E202)*-1,2),VLOOKUP(E202,$E$2:$H$5,4,FALSE)),"non-cash")) -> 
A203: 188 | B203: 0 | AD203: 0 | AF203: =IF(ISBLANK(AE203),"",VLOOKUP(AE203,Übersicht!$B$3:$C$55,2,FALSE)) ->  | CL203: 0 | CN203: =IF(ISBLANK(D203),"",_xlfn.IFNA(SUM(SUMIFS(I$16:I203,E$16:E203,E203),ROUND(SUMIFS(J$16:J203,E$16:E203,E203)*-1,2),VLOOKUP(E203,$E$2:$H$5,4,FALSE)),"non-cash")) -> 
... 12 more rows

Sheet Anlagen
D1: Anlagenzugänge lt. Übersicht | I1: =SUM(Übersicht!E45:E47) -> 0 | V1: http://www.rvo.at/
Y2: A b s c h r e i b u n g i n d e n M o n a t e n d e s A f A - J a h r e s (linear verteilt) | AM2: A f A - V o r s c h a u a u f d i e f o l g e n d e n f ü n f J a h r e (bei fortgesetzter linearer AfA) | AX2: Abschreibungs-Vergleich zu degressiver AfA des Wirtschaftsgutes und bei fiktiven AfA-Beginn "Jänner" eines Jahres (Ganzjahresabschreibung)
D3: Anlagen des Jahres | E3: 2016 | H3: =SUBTOTAL(9,H6:H20) -> 1000 | I3: 800 | J3: 0 | K3: 0 | L3: 0 | M3: 1800 | N3: 500 | O3: 500 | P3: 333.33 | R3: =SUBTOTAL(9,R6:R20) -> 0 | S3: =SUBTOTAL(9,S6:S20) -> 0 | T3: =SUBTOTAL(9,T6:T20) -> 833.33 | U3: =SUBTOTAL(9,U6:U20) -> 0 | V3: =SUBTOTAL(9,V6:V20) -> 966.67 | X3: www.rvo.at | Y3: =SUBTOTAL(9,Y6:Y20) -> 27.7775 | Z3: 27.7775 | AA3: 27.7775 | AB3: 27.7775 | AC3: 27.7775 | AD3: 27.7775 | AE3: 27.7775 | AF3: 27.7775 | AG3: 27.7775 | AH3: 27.7775 | AI3: 27.7775 | AJ3: 27.7775 | AK3: 333.33 | AL3: =IF(ISBLANK($E3),"",AND(ROUND(SUM(Y3:AJ3),2)=ROUND(SUM($P3,$R3),2))) -> TRUE | AM3: =SUBTOTAL(9,AM6:AM20) -> 166.66 | AN3: 800.01 | AO3: 0 | AP3: 800.01 | AQ3: 0 | AR3: 800.01 | AS3: 0 | AT3: 800.01 | AU3: 0 | AV3: 800.01
A5: ENr | B5: ANr | C5: Art | D5: Anlagenbezeichnung | E5: A/N Datum | F5: ND | G5: Rest- wert | H5: A-Bestand | I5: (+) Zugang | J5: (-) Abzüge | K5: (-) Abgang | L5: (+/-) UB | M5: E-Bestand | N5: BW-Anfang | O5: kum. AfA Anfang | P5: lineare AfA d.J. | Q5: Monate | R5: Sonder- Afa d.J | S5: Zu- schreibg | T5: kum.AfA Ende | U5: Rest-BW Abgänge | V5: BW-Ende | W5: RND | X5: Anmerkung | Y5: AfA Jan | Z5: AfA Feb | AA5: AfA März | AB5: AfA Apr | AC5: AfA Mai | AD5: AfA Juni | AE5: AfA Juli | AF5: AfA August | AG5: AfA Sep | AH5: AfA Okt | AI5: AfA Nov | AJ5: AfA Dez | AK5: Afa gesamt | AL5: SUMME | AM5: =CONCATENATE("AfA ",RIGHT($E$3,4)+1) -> AfA 2017 | AN5: =CONCATENATE("BW ",RIGHT($E$3,4)+1) -> BW 2017 | AO5: =CONCATENATE("AfA ",RIGHT($E$3,4)+2) -> AfA 2018 | AP5: =CONCATENATE("BW ",RIGHT($E$3,4)+2) -> BW 2018 | AQ5: =CONCATENATE("AfA ",RIGHT($E$3,4)+3) -> AfA 2019 | AR5: =CONCATENATE("BW ",RIGHT($E$3,4)+3) -> BW 2019 | AS5: =CONCATENATE("AfA ",RIGHT($E$3,4)+4) -> AfA 2020 | AT5: =CONCATENATE("BW ",RIGHT($E$3,4)+4) -> BW 2020 | AU5: =CONCATENATE("AfA ",RIGHT($E$3,4)+5) -> AfA 2021 | AV5: =CONCATENATE("BW ",RIGHT($E$3,4)+5) -> BW 2021 | AW5: =CONCATENATE("RND ",RIGHT($E$3,4)+5) -> RND 2021 | AX5: lineare AfA + AfA-% | AZ5: arithmetisch-degresssive AfA + AfA% 1. u. 2. Jahr + AfA-Degressionsbetrag ff (digitale Abschreibung) | BE5: geometrisch-degressive AfA + AfA% 1. u. 2. Jahr + gdAfA% ff (Doppelratenabschreibung) | BJ5: degressive AfA bei fixen dAfA% 1. u. 2. Jahr + AfA% + AfABetrag ff (BW linear auf absolute RND verteilt)
A6: 1 | B6: 1 | C6: bga | D6: BeispielComputer | E6: 2014-07-01 | F6: 3 | G6: 0.01 | H6: 1000 | M6: =IF(ISBLANK(E6),"",ROUND(SUM(H6:L6),2)) -> 1000 | N6: 500 | O6: 500 | P6: =IF(ISBLANK(F6),"",IF(Q6="GwG",I6,ROUND(IF(SLN(H6+I6+J6+L6,G6,F6)*Q6/12<H6+I6+J6+L6-O6-G6,SLN(H6+I6+J6+L6,G6,F6)*Q6/12,N6-G6),2))) -> 333.33 | Q6: =IF(ISBLANK(F6),"",IF(ISBLANK(I6),12,IF(MONTH(E6)<7,12,6))) -> 12 | T6: =IF(ISBLANK(F6),"",ROUND(H6+SUM(I6:L6)-V6+S6,2)) -> 833.33 | V6: =IF(ISBLANK(E6),"",ROUND(SUM(N6,I6,J6,L6,S6)-SUM(P6,R6,U6),2)) -> 166.67 | W6: =IF(ISBLANK(F6),"",IF(P6=0,0,IF(Q6="GwG",0,ROUND(SUM(V6,G6*-1)/P6*Q6/12,1)))) -> 0.5 | Y6: =IF(ISBLANK($E6),"",IF(ISBLANK($I6),IF(SUM($P6,$R6)=0,0,SUM($P6,$R6)/12),IF(13-MONTH($E6)<12,"",SUM($P6,$R6)/(13-MONTH($E6))))) -> 27.7775 | Z6: =IF(ISBLANK($E6),"",IF(ISBLANK($I6),IF(SUM($P6,$R6)=0,0,SUM($P6,$R6)/12),IF(13-MONTH($E6)<11,"",SUM($P6,$R6)/(13-MONTH($E6))))) -> 27.7775 | AA6: =IF(ISBLANK($E6),"",IF(ISBLANK($I6),IF(SUM($P6,$R6)=0,0,SUM($P6,$R6)/12),IF(13-MONTH($E6)<10,"",SUM($P6,$R6)/(13-MONTH($E6))))) -> 27.7775 | AB6: =IF(ISBLANK($E6),"",IF(ISBLANK($I6),IF(SUM($P6,$R6)=0,0,SUM($P6,$R6)/12),IF(13-MONTH($E6)<9,"",SUM($P6,$R6)/(13-MONTH($E6))))) -> 27.7775 | AC6: =IF(ISBLANK($E6),"",IF(ISBLANK($I6),IF(SUM($P6,$R6)=0,0,SUM($P6,$R6)/12),IF(13-MONTH($E6)<8,"",SUM($P6,$R6)/(13-MONTH($E6))))) -> 27.7775 | AD6: =IF(ISBLANK($E6),"",IF(ISBLANK($I6),IF(SUM($P6,$R6)=0,0,SUM($P6,$R6)/12),IF(13-MONTH($E6)<7,"",SUM($P6,$R6)/(13-MONTH($E6))))) -> 27.7775 | AE6: =IF(ISBLANK($E6),"",IF(ISBLANK($I6),IF(SUM($P6,$R6)=0,0,SUM($P6,$R6)/12),IF(13-MONTH($E6)<6,"",SUM($P6,$R6)/(13-MONTH($E6))))) -> 27.7775 | AF6: =IF(ISBLANK($E6),"",IF(ISBLANK($I6),IF(SUM($P6,$R6)=0,0,SUM($P6,$R6)/12),IF(13-MONTH($E6)<5,"",SUM($P6,$R6)/(13-MONTH($E6))))) -> 27.7775 | AG6: =IF(ISBLANK($E6),"",IF(ISBLANK($I6),IF(SUM($P6,$R6)=0,0,SUM($P6,$R6)/12),IF(13-MONTH($E6)<4,"",SUM($P6,$R6)/(13-MONTH($E6))))) -> 27.7775 | AH6: =IF(ISBLANK($E6),"",IF(ISBLANK($I6),IF(SUM($P6,$R6)=0,0,SUM($P6,$R6)/12),IF(13-MONTH($E6)<3,"",SUM($P6,$R6)/(13-MONTH($E6))))) -> 27.7775 | AI6: =IF(ISBLANK($E6),"",IF(ISBLANK($I6),IF(SUM($P6,$R6)=0,0,SUM($P6,$R6)/12),IF(13-MONTH($E6)<2,"",SUM($P6,$R6)/(13-MONTH($E6))))) -> 27.7775 | AJ6: =IF(ISBLANK($E6),"",IF(ISBLANK($I6),IF(SUM($P6,$R6)=0,0,SUM($P6,$R6)/12),IF(13-MONTH($E6)<1,"",SUM($P6,$R6)/(13-MONTH($E6))))) -> 27.7775 | AK6: =SUM(Y6:AJ6) -> 333.33 | AL6: =IF(ISBLANK($E6),"",AND(ROUND(SUM(Y6:AJ6),2)=ROUND(SUM($P6,$R6),2))) -> TRUE | AM6: =IF(ISBLANK(F6),0,IF(ROUND(SLN(M6,G6,F6),2)+T6<M6,ROUND(SLN(M6,G6,F6),2),ROUND(M6-T6-G6,2))) -> 166.66 | AN6: =IF(ISBLANK(D6),"",ROUND(V6-AM6,2)) -> 0.01 | AO6: =IF(ISBLANK(F6),0,IF(ROUND(SLN(M6,G6,F6),2)+T6+AM6<M6,ROUND(SLN(M6,G6,F6),2),ROUND(M6-T6-AM6-G6,2))) -> 0 | AP6: =IF(ISBLANK(D6),"",ROUND(AN6-AO6,2)) -> 0.01 | AQ6: =IF(ISBLANK(F6),0,IF(ROUND(SLN(M6,G6,F6),2)+T6+AM6+AO6<M6,ROUND(SLN(M6,G6,F6),2),ROUND(M6-T6-AM6-AO6-G6,2))) -> 0 | AR6: =IF(ISBLANK(D6),"",ROUND(AP6-AQ6,2)) -> 0.01 | AS6: =IF(ISBLANK(F6),0,IF(ROUND(SLN(M6,G6,F6),2)+T6+AM6+AO6+AQ6<M6,ROUND(SLN(M6,G6,F6),2),ROUND(M6-T6-AM6-AO6-AQ6-G6,2))) -> 0 | AT6: =IF(ISBLANK(D6),"",ROUND(AR6-AS6,2)) -> 0.01 | AU6: =IF(ISBLANK(F6),0,IF(ROUND(SLN(M6,G6,F6),2)+T6+AM6+AO6+AQ6+AS6<M6,ROUND(SLN(M6,G6,F6),2),ROUND(M6-T6-AM6-AO6-AQ6-AS6-G6,2))) -> 0 | AV6: =IF(ISBLANK(D6),"",ROUND(AT6-AU6,2)) -> 0.01 | AW6: =IF(ISBLANK(F6),"",IF(W6-5<0,0,W6-5)) -> 0 | AX6: =IF(ISBLANK(F6),"",SLN(SUM(H6:I6),G6,F6)) -> 333.33 | AY6: =IF(ISBLANK(F6),"",1/F6) -> 0.3333333333 | AZ6: =IF(ISBLANK(F6),"",SYD(SUM(H6:I6),G6,F6,1)) -> 499.995 | BA6: =IF(ISBLANK(F6),"",AZ6/SUM(H6:I6)) -> 0.499995 | BB6: =IF(ISBLANK(F6),"",BD6*(F6-1)) -> 333.33 | BC6: =IF(ISBLANK(F6),"",BB6/SUM(H6:I6)) -> 0.33333 | BD6: =IF(ISBLANK(F6),"",((SUM(H6:I6)-G6)*2)/(F6*(F6+1))) -> 166.665 | BE6: =IF(ISBLANK(F6),"",DDB(SUM(H6:I6),G6,F6,1)) -> 666.6666667 | BF6: =IF(ISBLANK(F6),"",BE6/SUM(H6:I6)) -> 0.6666666667 | BG6: =IF(ISBLANK(F6),"",DDB(SUM(H6:I6),G6,F6,2)) -> 222.2222222 | BH6: =IF(ISBLANK(F6),"",BG6/SUM(H6:I6)) -> 0.2222222222 | BI6: =IF(ISBLANK(F6),"",2/F6) -> 0.6666666667 | BJ6: =IF(ISBLANK(F6),"",(SUM(H6:I6)-G6)*BK6) -> 299.997 | BK6: 0.3 | BL6: =IF(ISBLANK(F6),"",((SUM(H6:I6)-G6)-BJ6)*BN6) -> 209.9979 | BM6: =IF(ISBLANK(F6),"",BL6/SUM(H6:I6)) -> 0.2099979 | BN6: 0.3 | BO6: =IF(ISBLANK(F6),"",((SUM(H6:I6)-G6)-BJ6-BL6)/((F6)-IF(BL6>0,2,1))) -> 489.9951
A7: 2 | B7: 2 | C7: kunst | D7: BeispielÖlgemälde | E7: 2016-03-01 | I7: 800 | M7: 800 | P7: =IF(ISBLANK(F7),"",IF(Q7="GwG",I7,ROUND(IF(SLN(H7+I7+J7+L7,G7,F7)*Q7/12<H7+I7+J7+L7-O7-G7,SLN(H7+I7+J7+L7,G7,F7)*Q7/12,N7-G7),2))) ->  | Q7: =IF(ISBLANK(F7),"",IF(ISBLANK(I7),12,IF(MONTH(E7)<7,12,6))) ->  | V7: 800 | AA7: 0 | AB7: 0 | AC7: 0 | AD7: 0 | AE7: 0 | AF7: 0 | AG7: 0 | AH7: 0 | AI7: 0 | AJ7: 0 | AK7: 0 | AL7: =IF(ISBLANK($E7),"",AND(ROUND(SUM(Y7:AJ7),2)=ROUND(SUM($P7,$R7),2))) -> TRUE | AM7: =IF(ISBLANK(F7),0,IF(ROUND(SLN(M7,G7,F7),2)+T7<M7,ROUND(SLN(M7,G7,F7),2),ROUND(M7-T7-G7,2))) -> 0 | AN7: =IF(ISBLANK(D7),"",ROUND(V7-AM7,2)) -> 800 | AO7: =IF(ISBLANK(F7),0,IF(ROUND(SLN(M7,G7,F7),2)+T7+AM7<M7,ROUND(SLN(M7,G7,F7),2),ROUND(M7-T7-AM7-G7,2))) -> 0 | AP7: =IF(ISBLANK(D7),"",ROUND(AN7-AO7,2)) -> 800 | AQ7: =IF(ISBLANK(F7),0,IF(ROUND(SLN(M7,G7,F7),2)+T7+AM7+AO7<M7,ROUND(SLN(M7,G7,F7),2),ROUND(M7-T7-AM7-AO7-G7,2))) -> 0 | AR7: =IF(ISBLANK(D7),"",ROUND(AP7-AQ7,2)) -> 800 | AS7: =IF(ISBLANK(F7),0,IF(ROUND(SLN(M7,G7,F7),2)+T7+AM7+AO7+AQ7<M7,ROUND(SLN(M7,G7,F7),2),ROUND(M7-T7-AM7-AO7-AQ7-G7,2))) -> 0 | AT7: =IF(ISBLANK(D7),"",ROUND(AR7-AS7,2)) -> 800 | AU7: =IF(ISBLANK(F7),0,IF(ROUND(SLN(M7,G7,F7),2)+T7+AM7+AO7+AQ7+AS7<M7,ROUND(SLN(M7,G7,F7),2),ROUND(M7-T7-AM7-AO7-AQ7-AS7-G7,2))) -> 0 | AV7: =IF(ISBLANK(D7),"",ROUND(AT7-AU7,2)) -> 800 | AW7: =IF(ISBLANK(F7),"",IF(W7-5<0,0,W7-5)) ->  | BK7: 0.3 | BN7: 0.3
A8: 3 | AK8: 0 | AM8: 0 | AO8: 0 | AQ8: 0 | AS8: 0 | AU8: 0 | BK8: 0.3 | BN8: 0.3
A9: 4 | AK9: 0 | AM9: 0 | AO9: 0 | AQ9: 0 | AS9: 0 | AU9: 0 | BK9: 0.3 | BN9: 0.3
A10: 5 | AK10: 0 | AM10: 0 | AO10: 0 | AQ10: 0 | AS10: 0 | AU10: 0 | BK10: 0.3 | BN10: 0.3
A11: 6 | AK11: 0 | AM11: 0 | AO11: 0 | AQ11: 0 | AS11: 0 | AU11: 0 | BK11: 0.3 | BN11: 0.3
A12: 7 | AK12: 0 | AM12: 0 | AO12: 0 | AQ12: 0 | AS12: 0 | AU12: 0 | BK12: 0.3 | BN12: 0.3
A13: 8 | AK13: 0 | AM13: 0 | AO13: 0 | AQ13: 0 | AS13: 0 | AU13: 0 | BK13: 0.3 | BN13: 0.3
A14: 9 | AK14: 0 | AM14: 0 | AO14: 0 | AQ14: 0 | AS14: 0 | AU14: 0 | BK14: 0.3 | BN14: 0.3
A15: 10 | AK15: 0 | AM15: 0 | AO15: 0 | AQ15: 0 | AS15: 0 | AU15: 0 | BK15: 0.3 | BN15: 0.3
A16: 11 | AK16: 0 | AM16: 0 | AO16: 0 | AQ16: 0 | AS16: 0 | AU16: 0 | BK16: 0.3 | BN16: 0.3
A17: 12 | AK17: 0 | AM17: 0 | AO17: 0 | AQ17: 0 | AS17: 0 | AU17: 0 | BK17: 0.3 | BN17: 0.3
A18: 13 | AK18: 0 | AM18: 0 | AO18: 0 | AQ18: 0 | AS18: 0 | AU18: 0 | BK18: 0.3 | BN18: 0.3
A19: 14 | AK19: 0 | AM19: 0 | AO19: 0 | AQ19: 0 | AS19: 0 | AU19: 0 | BK19: 0.3 | BN19: 0.3
A20: 15 | M20: =IF(ISBLANK(E20),"",ROUND(SUM(H20:L20),2)) ->  | T20: =IF(ISBLANK(F20),"",ROUND(H20+SUM(I20:L20)-V20+S20,2)) ->  | V20: =IF(ISBLANK(E20),"",ROUND(SUM(N20,I20,J20,L20,S20)-SUM(P20,R20,U20),2)) ->  | AK20: =SUM(Y20:AJ20) -> 0 | AL20: =IF(ISBLANK($E20),"",AND(ROUND(SUM(Y20:AJ20),2)=ROUND(SUM($P20,$R20),2))) ->  | AM20: =IF(ISBLANK(F20),0,IF(ROUND(SLN(M20,G20,F20),2)+T20<M20,ROUND(SLN(M20,G20,F20),2),ROUND(M20-T20-G20,2))) -> 0 | AN20: =IF(ISBLANK(D20),"",ROUND(V20-AM20,2)) ->  | AO20: =IF(ISBLANK(F20),0,IF(ROUND(SLN(M20,G20,F20),2)+T20+AM20<M20,ROUND(SLN(M20,G20,F20),2),ROUND(M20-T20-AM20-G20,2))) -> 0 | AP20: =IF(ISBLANK(D20),"",ROUND(AN20-AO20,2)) ->  | AQ20: =IF(ISBLANK(F20),0,IF(ROUND(SLN(M20,G20,F20),2)+T20+AM20+AO20<M20,ROUND(SLN(M20,G20,F20),2),ROUND(M20-T20-AM20-AO20-G20,2))) -> 0 | AR20: =IF(ISBLANK(D20),"",ROUND(AP20-AQ20,2)) ->  | AS20: =IF(ISBLANK(F20),0,IF(ROUND(SLN(M20,G20,F20),2)+T20+AM20+AO20+AQ20<M20,ROUND(SLN(M20,G20,F20),2),ROUND(M20-T20-AM20-AO20-AQ20-G20,2))) -> 0 | AT20: =IF(ISBLANK(D20),"",ROUND(AR20-AS20,2)) ->  | AU20: =IF(ISBLANK(F20),0,IF(ROUND(SLN(M20,G20,F20),2)+T20+AM20+AO20+AQ20+AS20<M20,ROUND(SLN(M20,G20,F20),2),ROUND(M20-T20-AM20-AO20-AQ20-AS20-G20,2))) -> 0 | AV20: =IF(ISBLANK(D20),"",ROUND(AT20-AU20,2)) ->  | AW20: =IF(ISBLANK(F20),"",IF(W20-5<0,0,W20-5)) ->  | AX20: =IF(ISBLANK(F20),"",SLN(SUM(H20:I20),G20,F20)) ->  | AY20: =IF(ISBLANK(F20),"",1/F20) ->  | AZ20: =IF(ISBLANK(F20),"",SYD(SUM(H20:I20),G20,F20,1)) ->  | BA20: =IF(ISBLANK(F20),"",AZ20/SUM(H20:I20)) ->  | BB20: =IF(ISBLANK(F20),"",BD20*(F20-1)) ->  | BC20: =IF(ISBLANK(F20),"",BB20/SUM(H20:I20)) ->  | BD20: =IF(ISBLANK(F20),"",((SUM(H20:I20)-G20)*2)/(F20*(F20+1))) ->  | BE20: =IF(ISBLANK(F20),"",DDB(SUM(H20:I20),G20,F20,1)) ->  | BF20: =IF(ISBLANK(F20),"",BE20/SUM(H20:I20)) ->  | BG20: =IF(ISBLANK(F20),"",DDB(SUM(H20:I20),G20,F20,2)) ->  | BH20: =IF(ISBLANK(F20),"",BG20/SUM(H20:I20)) ->  | BI20: =IF(ISBLANK(F20),"",2/F20) ->  | BJ20: =IF(ISBLANK(F20),"",(SUM(H20:I20)-G20)*BK20) ->  | BK20: 0.3 | BL20: =IF(ISBLANK(F20),"",((SUM(H20:I20)-G20)-BJ20)*BN20) ->  | BM20: =IF(ISBLANK(F20),"",BL20/SUM(H20:I20)) ->  | BN20: 0.3 | BO20: =IF(ISBLANK(F20),"",((SUM(H20:I20)-G20)-BJ20-BL20)/((F20)-IF(BL20>0,2,1))) -> 

Sheet Übersicht
A1: www.rvo.at | C1: Auswertungen für das/die Monat(e) | D1: =CONCATENATE(SUBTOTAL(5,Einzelposten!C16:C215)," bis ",SUBTOTAL(4,Einzelposten!C16:C215)) -> 1 bis 10 | E1: http://www.rvo.at/ | G1: =D119 -> 1607.23 | I1: Basispauschalierung | L1: Kleinunternehmer pauschalierung 2020 ff | O1: Branchenpauschalierung | R1: Gastgewerbepauschalierung 2013 ff | V1: Gastgewerbepauschalierung 2013 | Z1: Weitere Pauschalierungen
A2: ein/aus | B2: Konto | C2: Netto Einnahmen/Ausgaben | D2: netto | E2: =AND(ROUND(Einzelposten!I12-Einzelposten!J12,2)=ROUND(SUM(D3:D34,D51:D55,E84)-SUM(E45:E48),2)) -> TRUE | F2: =IF(E2=TRUE," ",CONCATENATE("€ ",ROUND(Einzelposten!I12-Einzelposten!J12-(SUM(D3:D34,D51:D55,E84)-SUM(E45:E48)),2),)) ->  | G2: ESt-Kennzahl | I2: =IF(ISBLANK(J3),"","(Vorjahresumsatz < 220.000,-)") ->  | O2: (Nichtbuchführende Gewerbe) | R2: (Gastgewerbe gem. § 111 GewO) | W2: in der Fassung 08/2020
A3: ein | B3: 400 | C3: Erlöse nicht steuerbar | D3: =Einzelposten!AV12 -> 0 | F3: =ROUND(IF(D3=0,0,D3/E$9),3) -> 0 | G3: 9040 | I3: BA-Prozent: | L3: BA-Prozent: | O3: VO-Prozent: | R3: =IF(ISBLANK(T5),"","(Vorjahresumsatz < 255.000,-)") ->  | V3: =IF(ISBLANK(X5),"","(Vorjahresumsatz < 400.000,-)") -> 
A4: ein | B4: 405 | C4: =CONCATENATE("Erlöse ",Einzelposten!K10*100,"% steuerbar") -> Erlöse 5% steuerbar | D4: =Einzelposten!AW12 -> 0 | F4: =ROUND(IF(D4=0,0,D4/E$9),3) -> 0 | G4: 9040
A5: ein | B5: 410 | C5: =CONCATENATE("Erlöse ",Einzelposten!K8*100,"% steuerbar") -> Erlöse 10% steuerbar | D5: =Einzelposten!AX12 -> 0 | F5: 0 | G5: 9040 | I5: =IF(ISBLANK(J3),"","max. Euro") ->  | J5: =IF(J3=-6%,-13200,IF(J3=-12%,-26400,"")) ->  | L5: =IF(ISBLANK(M3),"","Achtung: Jahresumsatzgrenze!") ->  | O5: Gewerbe: | R5: Grundpauschale | V5: Grundpauschale | Z5: Lebensmitteleinzel- u. Gemischtwarenhändler
A6: ein | B6: 413 | C6: =CONCATENATE("Erlöse ",Einzelposten!K9*100,"% steuerbar") -> Erlöse 13% steuerbar | D6: =Einzelposten!AY12 -> 0 | F6: 0 | G6: 9040 | I6: =IF(ISBLANK(J3),"","Achtung:") ->  | J6: =IF(ISBLANK(J3),"","Bindefristen!") ->  | L6: =IF(ISBLANK(M3),"","Achtung:") ->  | M6: =IF(ISBLANK(M3),"","Bindefristen!") ->  | R6: Mobilitätspauschale | V6: Mobilitätspauschale | Z6: Drogisten
A7: ein | B7: 420 | C7: =CONCATENATE("Erlöse ",Einzelposten!K7*100,"% steuerbar") -> Erlöse 20% steuerbar | D7: =Einzelposten!AZ12 -> 2333.33 | F7: 1 | G7: 9040 | I7: Info: | J7: usp.gv.at | L7: Info: | M7: usp.gv.at | O7: Info: | P7: usp.gv.at | R7: Energie- Raumpauschale | V7: Energie- Raumpauschale | Z7: Handelsvertreter
A8: ein | B8: 430 | C8: sonstige Erlöse | D8: =Einzelposten!BA12 -> 0 | F8: 0 | G8: 9040 | I8: BA-Prozent: | J8: usp.gv.at | L8: BA-Prozent: | M8: ris.bka.gv.at | O8: VO-Prozent: | P8: ris.bka.gv.at | S8: Info / Verordnung: | T8: ris.bka.gv.at | W8: Info / Verordnung: | X8: ris.bka.gv.at | Z8: Künstler- und Schriftsteller
A9: ein | B9: 490 | C9: Privatanteil, Nutzungsentnahmen | D9: =Einzelposten!BB12 -> 0 | E9: =SUM(D3:D9) -> 2333.33 | F9: 0 | G9: 9040 | I9: Einnahmen | J9: =E9 -> 2333.33 | L9: Einnahmen | M9: =E9 -> 2333.33 | O9: Einnahmen | P9: =E9 -> 2333.33 | R9: Einnahmen | T9: =E9 -> 2333.33 | V9: Einnahmen | X9: =E9 -> 2333.33 | Z9: Sportler
A10: aus | B10: 505 | C10: =CONCATENATE("Wareneinkauf ",Einzelposten!K10*100,"% VSt-Abzug") -> Wareneinkauf 5% VSt-Abzug | D10: =Einzelposten!BC12 -> 0 | F10: 0 | G10: 9100 | I10: =D10 -> 0 | L10: pauschaliert | O10: =D10 -> 0 | R10: =B10 -> 505 | S10: =D10 -> 0 | V10: =B10 -> 505 | W10: =D10 -> 0 | Z10: Tagesmütter
A11: aus | B11: 510 | C11: =CONCATENATE("Wareneinkauf ",Einzelposten!K8*100,"% VSt-Abzug") -> Wareneinkauf 10% VSt-Abzug | D11: =Einzelposten!BD12 -> 0 | F11: 0 | G11: 9100 | I11: 0 | L11: pauschaliert | O11: 0 | R11: =B11 -> 510 | S11: 0 | V11: =B11 -> 510 | W11: =D11 -> 0
A12: aus | B12: 513 | C12: =CONCATENATE("Wareneinkauf ",Einzelposten!K9*100,"% VSt-Abzug") -> Wareneinkauf 13% VSt-Abzug | D12: =Einzelposten!BE12 -> 0 | F12: =ROUND(IF(D12=0,0,D12/E$9),3) -> 0 | G12: 9100 | I12: 0 | L12: pauschaliert | O12: =D12 -> 0 | R12: =B12 -> 513 | S12: =D12 -> 0 | V12: 513 | W12: 0
A13: aus | B13: 520 | C13: =CONCATENATE("Wareneinkauf ",Einzelposten!K7*100,"% VSt-Abzug") -> Wareneinkauf 20% VSt-Abzug | D13: =Einzelposten!BF12 -> -500 | F13: -0.214 | G13: 9100 | I13: -500 | L13: pauschaliert | O13: -500 | R13: =B13 -> 520 | S13: -500 | V13: 520 | W13: -500
A14: aus | B14: 580 | C14: Fremdleistungen | D14: =Einzelposten!BG12 -> 0 | F14: 0 | G14: 9110 | I14: 0 | L14: pauschaliert | O14: 0 | R14: 580 | S14: 0 | V14: 580 | W14: 0 | Z14: Werbungskostenpauschalierung
A15: aus | B15: 600 | C15: Personalaufwand | D15: =Einzelposten!BH12 -> 0 | F15: 0 | G15: 9120 | I15: 0 | L15: pauschaliert | O15: 0 | R15: 600 | S15: 0 | V15: 600 | W15: 0 | Z15: Vorübergehend beschäftigte Arbeitnehmer
A16: aus | B16: 700 | C16: AFA, Absetzung f. Abnutzung | D16: =Einzelposten!BI12 -> -83.33 | F16: -0.036 | G16: 9130 | I16: pauschaliert | L16: pauschaliert | O16: -83.33 | R16: 700 | S16: -83.33 | V16: 700 | W16: -83.33 | Z16: Pauschale BA / WK bei Vereinstätigkeit
A17: aus | B17: 705 | C17: GWG, geringwertige Wirtschaftsgüter | D17: =Einzelposten!BJ12 -> 0 | F17: 0 | G17: 9130 | I17: pauschaliert | L17: pauschaliert | O17: 0 | R17: 705 | S17: 0 | V17: 705 | W17: 0
A18: aus | B18: 710 | C18: Abgaben und Beiträge | D18: =Einzelposten!BK12 -> 0 | F18: 0 | G18: 9230 | I18: pauschaliert | L18: pauschaliert | O18: pauschaliert | R18: 710 | S18: pauschaliert | V18: 710 | W18: pauschaliert | Z18: Land- und Forstwirte
A19: aus | B19: 720 | C19: Instandhaltungen (nur Gebäude-Erhaltung) | D19: =Einzelposten!BL12 -> 0 | F19: 0 | G19: 9150 | I19: pauschaliert | L19: pauschaliert | O19: pauschaliert | R19: 720 | S19: =D19 -> 0 | V19: 720 | W19: =H19 -> 0
A20: aus | B20: 725 | C20: Energieaufwand, Betriebskosten, Kleinmat. | D20: =Einzelposten!BM12 -> 0 | F20: 0 | G20: 9230 | I20: pauschaliert | L20: pauschaliert | O20: =D20 -> 0 | R20: 725 | S20: =IF(ISBLANK(T7),D20,"pauschaliert E") -> 0 | V20: 725 | W20: =IF(ISBLANK(X7),D20,"pauschaliert E") -> 0 | Z20: Pauschalierungen in der Umsatzsteuer
A21: aus | B21: 730 | C21: Porto-, Fracht-, Transportaufwand d. Dritte | D21: =Einzelposten!BN12 -> 0 | F21: 0 | G21: 9230 | I21: pauschaliert | L21: pauschaliert | O21: =D21 -> 0 | R21: 730 | S21: pauschaliert | V21: 730 | W21: pauschaliert
A22: aus | B22: 732 | C22: KFZ-Aufwand (ohne AfA, Leasing u. Kilometergeld | D22: =Einzelposten!BO12 -> -5.9 | F22: -0.003 | G22: 9170 | I22: pauschaliert | L22: pauschaliert | O22: pauschaliert | R22: 732 | S22: =IF(ISBLANK(T6),D22,"pauschaliert M") -> -5.9 | V22: 732 | W22: =IF(ISBLANK(X6),D22,"pauschaliert M") -> -5.9
A23: aus | B23: 735 | C23: Reise-, Fahrtspesen, Taggelder (inkl. Kilometergelder) | D23: =Einzelposten!BP12 -> 0 | F23: 0 | G23: 9160 | I23: =IF(J23="Rsp verrechnet!",D23,0) -> 0 | J23: Rsp verrechnet! | L23: pauschaliert | O23: pauschaliert | R23: 735 | S23: =IF(ISBLANK(T6),D23,"pauschaliert M") -> 0 | V23: 735 | W23: =IF(ISBLANK(X6),D23,"pauschaliert M") -> 0
A24: aus | B24: 739 | C24: Telekommunikation | D24: =Einzelposten!BQ12 -> 0 | F24: 0 | G24: 9230 | I24: pauschaliert | L24: pauschaliert | O24: =D24 -> 0 | R24: 739 | S24: pauschaliert | V24: 739 | W24: pauschaliert
A25: aus | B25: 740 | C25: Geschäftsmieten, Leasing, Raumkosten | D25: =Einzelposten!BR12 -> 0 | F25: 0 | G25: 9180 | I25: =IF($J25="mit Arbeitsplatzpauschale!",D25,0) -> 0 | J25: ohne Arbeitsplatzpauschale! | L25: =IF($M25="mit Arbeitsplatzpauschale!",D25,0) -> 0 | M25: ohne Arbeitsplatzpauschale! | O25: =D25 -> 0 | R25: 740 | S25: =D25 -> 0 | V25: 740 | W25: =D25 -> 0
A26: aus | B26: 741 | C26: KFZ-Mieten/-Leasing (PkW und LKW) | D26: =Einzelposten!BS12 -> 0 | F26: 0 | G26: 9180 | I26: pauschaliert | L26: pauschaliert | O26: =D26 -> 0 | R26: 741 | S26: =IF(ISBLANK(T6),D26,"pauschaliert M") -> 0 | V26: 741 | W26: =IF(ISBLANK(X6),D26,"pauschaliert M") -> 0
A27: aus | B27: 748 | C27: Lizenz- u. Wartungsgebühren, Provisionen | D27: =Einzelposten!BT12 -> 0 | F27: 0 | G27: 9190 | I27: pauschaliert | L27: pauschaliert | O27: pauschaliert | R27: 748 | S27: pauschaliert | V27: 748 | W27: pauschaliert
A28: aus | B28: 760 | C28: Büromaterial, Fachliteratur | D28: =Einzelposten!BU12 -> -66.87 | F28: -0.029 | G28: 9230 | I28: pauschaliert | L28: pauschaliert | O28: pauschaliert | R28: 760 | S28: pauschaliert | V28: 760 | W28: pauschaliert
A29: aus | B29: 765 | C29: Werbung, Repräsentationen | D29: =Einzelposten!BV12 -> -70 | F29: -0.03 | G29: 9200 | I29: pauschaliert | L29: pauschaliert | O29: pauschaliert | R29: 765 | S29: pauschaliert | V29: 765 | W29: pauschaliert
A30: aus | B30: 770 | C30: Versicherung, Beratung, Fortbildung | D30: =Einzelposten!BW$12 -> 0 | F30: 0 | G30: 9230 | I30: pauschaliert | L30: pauschaliert | O30: pauschaliert | R30: 770 | S30: pauschaliert | V30: 770 | W30: pauschaliert
A31: aus | B31: 771 | C31: Pflichtversicherung Unternehmer (SVA) | D31: =Einzelposten!BX$12 -> 0 | F31: 0 | G31: 9225 | I31: =D31 -> 0 | J31: =SUM(I10:I31) -> -500 | L31: =D31 -> 0 | M31: =SUM(L25:L31) -> 0 | O31: =D31 -> 0 | P31: =SUM(O10:O31) -> -583.33 | R31: 771 | S31: =D31 -> 0 | V31: 771 | W31: =D31 -> 0
A32: aus | B32: 780 | C32: Spesen des Geldverkehrs | D32: =Einzelposten!BY12 -> 0 | F32: 0 | G32: 9230 | I32: pauschaliert | L32: pauschaliert | O32: pauschaliert | R32: 780 | S32: pauschaliert | V32: 780 | W32: pauschaliert
A33: aus | B33: 790 | C33: sonstige Aufwendungen | D33: =Einzelposten!BZ12 -> 0 | F33: 0 | G33: 9230 | I33: pauschaliert | L33: pauschaliert | O33: pauschaliert | R33: 790 | S33: pauschaliert | V33: 790 | W33: pauschaliert
A34: aus | B34: 830 | C34: Zinsen und ähnliche Aufwendungen | D34: =Einzelposten!CA12 -> 0 | E34: =SUM(D10:D34) -> -726.1 | F34: 0 | G34: 9220 | I34: pauschaliert | J34: =IF(ISBLANK(J3),#N/A,ROUND(MAX(SUM(J9,I23)*J3,J5),2)) ->  | L34: pauschaliert | M34: =IF(ISBLANK(M3),#N/A,ROUND(M9*M3,2)) ->  | O34: pauschaliert | P34: =IF(ISBLANK(P3),#N/A,ROUND(P9*P3,2)) ->  | R34: 830 | S34: =D34 -> 0 | T34: =SUM(S10:S34) -> -589.23 | V34: 830 | W34: =D34 -> 0 | X34: =SUM(W10:W34) -> -589.23
C35: =IF(D35<0," V e r l u s t"," G e w i n n ( Ü b e r s c h u s s )") -> G e w i n n ( Ü b e r s c h u s s ) | D35: =ROUND(SUBTOTAL(9,D3:D34),2) -> 1607.23 | E35: =SUM(E3:E34) -> 1607.23 | F35: =SUM(F3:F34) -> 0.688 | J35: =SUM(J9:J34) ->  | M35: =SUM(M9:M34) ->  | P35: =SUM(P9:P34) ->  | R35: Zwischensumme | T35: =SUM(T9:T34) -> 1744.1 | V35: Zwischensumme | X35: =SUM(X9:X34) -> 1744.1
R36: =R5 -> Grundpauschale | T36: =IF(ISBLANK(T5),#N/A,MAX(MIN(ROUND(T9*T5,2),S43),S44)) ->  | V36: =V5 -> Grundpauschale | X36: =IF(ISBLANK(X5),#N/A,MAX(MIN(ROUND(X9*X5,2),W43),W44)) -> 
C37: =C$1 -> Auswertungen für das/die Monat(e) | D37: =D$1 -> 1 bis 10
C38: Bruttoergebnis/Kontrollrechnung | D38: brutto | F38: Prozent
C39: Einnahmen brutto | D39: =ROUND(SUM(D3:D9,E65:E68),2) -> 2800 | F39: 1
C40: Ausgaben brutto | D40: =SUM(D10:D34,D51,D77:D78,E69:E74,D79:D80) -> -732.23 | F40: =D40/D39 -> -0.2615107143
C41: Bruttoergebnis Einnahmen/Ausgaben | D41: =ROUND(SUM(D39:D40),2) -> 2067.77 | E41: =AND(ROUND(D41-D51,2)=ROUND(SUM(D35,E65:E68,D77:D78)+SUM(E69:E74,D79:D80),2)) -> TRUE | F41: =D41/D39 -> 0.7384892857
C43: =C$1 -> Auswertungen für das/die Monat(e) | D43: =D$1 -> 1 bis 10 | R43: min | S43: =IF(T9<30000,ROUND(MAX(-3000,SUM(T35,T46,T50)*-1),2),-3000) -> -1744.1 | V43: min | W43: =IF(X9<40000,ROUND(MAX(-6000,SUM(X35,X46,X50)*-1),2),-6000) -> -1744.1
B44: Konto | C44: nicht-einnahmen/ausgabenwirksam | D44: brutto | E44: netto | F44: VSt (.at) | R44: max | S44: -25500 | V44: max | W44: -60000
B45: 030 | C45: Anlagenzugang Gebäude | D45: =E45+F45 -> 0 | E45: =Einzelposten!AJ12*-1 -> 0 | F45: =Einzelposten!AK12*-1 -> 0
B46: 064 | C46: Anlagenzugang KfZ (PKW / LKW) | D46: =E46+F46 -> 0 | E46: =Einzelposten!AL12*-1 -> 0 | F46: =Einzelposten!AM12*-1 -> 0 | R46: =R6 -> Mobilitätspauschale | T46: =MAX(ROUND(T9*T6,2),S47,S48) -> 0 | V46: =V6 -> Mobilitätspauschale | X46: =MAX(ROUND(X9*X6,2),W48) -> 0
B47: 000 | C47: Anlagenzugang Andere | D47: =E47+F47 -> 0 | E47: =Einzelposten!AN12*-1 -> 0 | F47: =Einzelposten!AO12*-1 -> 0 | R47: PPmax | S47: -3672 | V47: Gde | W47: =IF(ISBLANK(X6),"/Einwohnerzahl abhängig!",IF(X6=-0.02,"mit mehr als 10.000 Einwohnern",IF(X6=-0.04,"mit 5.000 - 10.000 Einwohnern","mit höchstens 5.000 Einwohnern"))) -> /Einwohnerzahl abhängig!
B48: 100 | C48: Rechnungen auf Ziel | D48: =E48+F48 -> 0 | E48: =ROUND(Einzelposten!AP12*-1,2) -> 0 | F48: =ROUND(Einzelposten!AQ12*-1,2) -> 0 | R48: max | S48: -5100 | V48: max | W48: =IF(ISBLANK(X6),"",IF(X6=-0.02,-8000,IF(X6=-0.04,-16000,-24000))) -> 
B49: 251 | C49: Vorsteuer direkt | D49: =Einzelposten!AR12*-1 -> 0 | F49: =ROUND(Einzelposten!AR12*-1,2) -> 0
B50: 259 | C50: Einfuhrumsatzsteuer | D50: =Einzelposten!AS12*-1 -> 0 | F50: =ROUND(Einzelposten!AS12*-1,2) -> 0 | R50: =R7 -> Energie- Raumpauschale | T50: =MAX(ROUND(T9*T7,2),S51) -> 0 | V50: =V7 -> Energie- Raumpauschale | X50: =MAX(ROUND(X9*X7,2),W51) -> 0
B51: 991 | C51: Durchläufer, Finanzamt USt | D51: =Einzelposten!CB12 -> 0 | R51: max | S51: -20400 | V51: max | W51: -32000
B52: 992 | C52: Durchläufer, Finanzamt ESt | D52: =Einzelposten!CC12 -> 0 | T52: =SUM(T35:T50) ->  | X52: =SUM(X35:X50) -> 
B53: 995 | C53: Durchläufer, Finanzierung (betrieblich) | D53: =Einzelposten!CD12 -> 0
B54: 998 | C54: Durchläufer, Privat (Einlagen/Entnahmen) | D54: =Einzelposten!CE12 -> 0 | T54: =IF(ISBLANK(T5),"","Achtung: Bindefristen!") ->  | X54: =IF(ISBLANK(X5),"","Achtung: Bindefristen!") -> 
B55: 999 | C55: Durchläufer, sonstiges | D55: =Einzelposten!CF12 -> 0
A57: www.rvo.at | C57: =C1 -> Auswertungen für das/die Monat(e) | D57: =D1 -> 1 bis 10 | E57: FA 99 999/9999
B58: KZ | C58: Umsatzsteuervoranmeldung | D58: BMG | E58: Steuer
B59: 005 | C59: Nichtsteuerbare Auslandsumsätze | D59: =Einzelposten!S12 -> 0
B60: 000 | C60: Lieferungen u. Leistungen gesamt | D60: =SUM(D65:D68)-SUM(D61:D63) -> 2333.35
B61: 011 | C61: Ausfuhrlieferungen (Exporte st.frei) | D61: =ROUND(Einzelposten!T12*-1,2) -> 0
B62: 017 | C62: innergemeinschaftliche Lieferungen | D62: =ROUND(Einzelposten!U12*-1,2) -> 0
B63: 0..... | C63: andere steuerfreie Umsätze | D63: =ROUND(Einzelposten!R12*-1,2) -> 0
C64: Lieferungen u. Leistungen st.pflichtig | D64: =SUM(D60:D63) -> 2333.35
B65: 022 | C65: =CONCATENATE("Ust ",Einzelposten!K7*100," % lt. Einzelposten") -> Ust 20 % lt. Einzelposten | D65: =ROUND(E65/Einzelposten!K7,2) -> 2333.35 | E65: =Einzelposten!N12 -> 466.67
B66: 029 | C66: =CONCATENATE("Ust ",Einzelposten!K8*100," % lt. Einzelposten") -> Ust 10 % lt. Einzelposten | D66: =ROUND(E66/Einzelposten!K8,2) -> 0 | E66: =Einzelposten!O12 -> 0
B67: 006 | C67: =CONCATENATE("Ust ",Einzelposten!K9*100," % lt. Einzelposten") -> Ust 13 % lt. Einzelposten | D67: =ROUND(E67/Einzelposten!K9,2) -> 0 | E67: =Einzelposten!P12 -> 0
B68: 009 | C68: =CONCATENATE("Ust ",Einzelposten!K10*100," % lt. Einzelposten") -> Ust 5 % lt. Einzelposten | D68: =ROUND(E68/Einzelposten!K10,2) -> 0 | E68: =Einzelposten!Q12 -> 0
B69: 057 | C69: Steuerschuld Reverse Charge | E69: =ROUND(Einzelposten!Z12,2) -> 14
B70: 070 | C70: ig. Erwerbe gesamt | D70: =ROUND(SUM(D71:D74),2) -> 530
B71: 072 | C71: =CONCATENATE("davon ig. Erwerbe ",Einzelposten!K7*100," %") -> davon ig. Erwerbe 20 % | D71: =ROUND(E71/Einzelposten!K7,2) -> 500 | E71: =Einzelposten!V12 -> 100
B72: 073 | C72: =CONCATENATE("davon ig. Erwerbe ",Einzelposten!K8*100," %") -> davon ig. Erwerbe 10 % | D72: =ROUND(E72/Einzelposten!K8,2) -> 30 | E72: =Einzelposten!W12 -> 3
B73: 008 | C73: =CONCATENATE("davon ig. Erwerbe ",Einzelposten!K9*100," %") -> davon ig. Erwerbe 13 % | D73: =ROUND(E73/Einzelposten!K9,2) -> 0 | E73: =Einzelposten!X12 -> 0
B74: 010 | C74: =CONCATENATE("davon ig. Erwerbe ",Einzelposten!K10*100," %") -> davon ig. Erwerbe 5 % | D74: =ROUND(E74/Einzelposten!K10,2) -> 0 | E74: =Einzelposten!Y12 -> 0
C75: Übertrag | E75: =SUM(E65:E74) -> 583.67
C76: Übertrag | D76: Steuer | E76: =E75 -> 583.67
B77: 060 | C77: Vorsteuer, allgemeine | D77: =(Einzelposten!AA12*-1)+Einzelposten!AR12 -> -6.13
B78: 061 | C78: Einfuhrumsatzsteuer | D78: =Einzelposten!AS12 -> 0
B79: 065 | C79: Vorsteuer, ig. Erwerbe | D79: =(Einzelposten!AB12)*-1 -> -103
B80: 066 | C80: Vorsteuer Reverse Charge | D80: =ROUND(Einzelposten!AC12*-1,2) -> -14
C81: abziehbare Vorsteuer | E81: =SUM(D77:D80) -> -123.13
B82: 027 | C82: davon VSt betr. KfZ (KZ 060 / 065 / 066) | D82: =Einzelposten!AT12 -> 0
B83: 028 | C83: davon VSt betr. Gebäude (KZ 060 / 065) | D83: =Einzelposten!AU12 -> 0
C84: =IF(E84<0," Ü b e r s c h u s s ( G u t s c h r i f t )"," V o r a u s z a h l u n g ( Z a h l l a s t )") -> V o r a u s z a h l u n g ( Z a h l l a s t ) | E84: =SUM(E76:E81) -> 460.54
C86: =C$1 -> Auswertungen für das/die Monat(e) | D86: =D$1 -> 1 bis 10 | E86: =AND(D102=0) -> TRUE | F86: =IF(ROUND(D102,0)=0,"",D102) -> 
A87: Monate | C87: cash flow | D87: cf / gesamt | E87: je Monat € | F87: Prozent
A88: =SUBTOTAL(4,Einzelposten!C16:C215)-SUBTOTAL(5,Einzelposten!C16:C215)+1 -> 10 | C88: Zuflüsse operativer Bereich | D88: =Einzelposten!CG12 -> 2800 | E88: =D88/A88 -> 280 | F88: 1
A89: =A$88 -> 10 | C89: Abflüsse operativer Bereich | D89: =Einzelposten!CH12*-1+Einzelposten!CJ12 -> -648.9 | E89: =D89/A89 -> -64.89 | F89: =ROUND(D89/D88,3) -> -0.232
A90: =A$88 -> 10 | C90: Saldo operativer Bereich | D90: =SUM(D88:D89) -> 2151.1 | E90: =SUM(E88:E89) -> 215.11
A91: =A$88 -> 10 | C91: Saldo Investitionsbereich (netto) | D91: =Einzelposten!CI12 -> 0 | E91: =D91/A91 -> 0 | F91: =ROUND(D91/D88,3) -> 0
A92: =A$88 -> 10 | C92: Saldo Finanzierungsbereich | D92: =Einzelposten!CK12 -> 0 | E92: =D92/A92 -> 0
C93: c a s h f l o w | D93: =SUM(D90:D92) -> 2151.1 | E93: =SUM(E90:E92) -> 215.11
C94: Kontrolle | D94: Jahr € | E94: Monat €
B95: + | C95: cash flow | D95: =D93 -> 2151.1
B96: - | C96: nicht ausgabenwirksame Aufwände | D96: =Einzelposten!CL12 -> -83.33
D97: =SUM(D95:D96) -> 2067.77
B98: - | C98: Bruttoergebnis | D98: =D41*-1 -> -2067.77
B99: + | C99: Anlagenzugänge | D99: =ROUND(SUM(E45:E47),2) -> 0
B100: + | C100: Wareneinkauf auf Ziel | D100: =E48 -> 0
B101: - | C101: Durchläufer | D101: =SUM(D52:D55)*-1 -> 0
C102: Kontrolle Differenz | D102: =ROUND(SUM(D97:D101),2) -> 0
C104: =C86 -> Auswertungen für das/die Monat(e) | D104: =D86 -> 1 bis 10 | E104: =AND(D110=D35) -> TRUE | F104: =IF(E104=TRUE,"",D110-D35) -> 
A105: Monate | C105: EBITDA | D105: ebitda/gesamt | E105: je Monat € | F105: Jahresprognose
A106: =A88 -> 10 | C106: EBITDA (Ergebnis vor Zinsen u. Afa) | D106: =ROUND(D35-D16-D17-D34,2) -> 1690.56 | E106: =D106/A106 -> 169.056 | F106: =ROUND(E106*12,0) -> 2029
A107: =A106 -> 10 | C107: Finanzergebnis (Zinsen) | D107: =D34 -> 0 | E107: =D107/A107 -> 0 | F107: =ROUND(E107*12,0) -> 0
A108: =A106 -> 10 | C108: Ergebnis nach Zinsen, vor Afa | D108: =SUM(D106:D107) -> 1690.56 | E108: =D108/A108 -> 169.056 | F108: =ROUND(E108*12,0) -> 2029
A109: =A106 -> 10 | C109: Afa | D109: =D16+D17 -> -83.33 | E109: =D109/A109 -> -8.333 | F109: =ROUND(E109*12,0) -> -100
C110: =IF(D110<0," V e r l u s t"," G e w i n n") -> G e w i n n | D110: =ROUND(SUM(D108:D109),2) -> 1607.23 | E110: =ROUND(SUM(E108:E109),2) -> 160.72 | F110: =SUM(F108:F109) -> 1929
C112: =C$1 -> Auswertungen für das/die Monat(e) | D112: =D$1 -> 1 bis 10 | E112: =$E$57 -> FA 99 999/9999
A113: Monate | B113: Jahr | C113: ESt-Vorschau | D113: BMG | E113: Prozent | F113: Steuer
A114: =$A$88 -> 10 | B114: 2024 | C114: Gewinn "Ist" (betriebliche Einkünfte) | D114: =D35 -> 1607.23
C115: Gewinn "Plan bis Jahresende"
C116: Gewinn vor Freibeträge | D116: =ROUND(SUM(D114:D115),2) -> 1607.23 | E116: begünst. Invest. | F116: Max / Min
B117: 0.1 | C117: IFB, Investitionsfreibetrag (ab 2023) | D117: =ROUND(IF(ISBLANK(E117),0,E117*B117*-1),2) -> 0 | F117: der Anlagen | G117: 9227 / 9229
B118: 0.15 | C118: IFB, Investitionsfreibetrag (ab 2023) | D118: =ROUND(IF(ISBLANK(E118),0,E118*B118*-1),2) -> 0 | F118: d.Öko-Anlagen
C119: Zwischensumme Gewinn abzgl. IFBs | D119: =SUM(D116:D118) -> 1607.23
B120: 0.15 | C120: GFB, Grundfreibetrag | D120: =ROUND(F120*-1,2) -> -241.08 | E120: 0 | F120: =ROUNDDOWN(MIN(MAX(SUM(D114,D115,D117:D118),0),33000)*B120,2) -> 241.08 | G120: - / 9221
C121: GFB, investitionsbedingter FB | D121: =IF(ISBLANK(E121),0,ROUND(MIN(E121,F121)*-1,2)) -> 0 | F121: =ROUND(IF(D119<33000,0,IF(D119<178000,D119*0.13-4290,IF(D119<353000,(D119-178000)*0.07+18850,IF(D119<583000,(D119-353000)*0.045+31100,41450)))),2) -> 0 | G121: 9227 / 9229
C122: Einkünfte gesamt | D122: =SUM(D119:D121) -> 1366.15 | E122: Ist-Werte | F122: Max / Min
C123: Sonderausgaben
C124: Einkünfte nach Sonderausgaben | D124: =ROUND(IF(SUM(D122:D123)<0,0,SUM(D122:D123)),2) -> 1366.15
B125: =ROUND(IF(D124>36400,0.12,IF(D124>14600,0.1,IF(D124>7300,0.08,0.06)))-SUM(B131/100,B132/100),3) -> 0.06 | C125: =CONCATENATE("außergew. Belastungen ",B125*-100,"% Selbstbh.") -> außergew. Belastungen -6% Selbstbh. | D125: =ROUND(IF(E125<F125,0,(E125-F125)*-1),2) -> 0 | F125: =ROUND(D124*B125,2) -> 81.97
C126: außergew. Belastungen ohne Selbstb.
B127: 1 | C127: Einkommen - Steuer | D127: =ROUND(IF(SUM(D124:D126)<0,0,SUM(D124:D126)),2) -> 1366.15 | E127: =F127/D127 -> 0 | F127: =ROUND(IF(D127<12816,0,IF(D127<20818,(D127-12816)*-0.2,IF(D127<34513,(D127-20818)*-0.3-1600.4,IF(D127<66612,(D127-34513)*-0.4-5708.9,IF(D127<99266,(D127-66612)*-0.48-18548.5,IF(D127<1000000,(D127-99266)*-0.5-34222.42,(D127-1000000)*-0.55-484589.42)))))),2) -> 0 | G127: bmf.gv.at
C128: Familienbonus Plus (ab 2019/22) | E128: =IF($B$114<2019,"",F128/D$127) -> 0
C129: Kindermehrbetrag (ab 2019/22) | E129: =IF($B$114<2019,"",F129/D$127) -> 0
C130: Zwischensumme | F130: =ROUND(IF(SUM(F127,F128)>0,F129,SUM(F127,F128:F129)),2) -> 0
C131: =IF(SUM(B131,F131)=1,"Einkommen Ehe-/Lebenspartner < 6000,-/Jahr","Alleinverdiener, -erzieherabsetzbetrag") -> Alleinverdiener, -erzieherabsetzbetrag | D131: =IF(SUM(B131:B132)=0,"",CONCATENATE(SUM(B131:B132)," Kind(er)")) ->  | E131: =F131/D$127 -> 0 | F131: =IF(ISBLANK(B131),0,IF(B131=1,572,IF(B131=2,774,1029))) -> 0
C132: weitere Kinderzugschläg zum AVAB | E132: =F132/D$127 -> 0 | F132: =IF(ISBLANK(B132),0,B132*255) -> 0
C133: Zwischensumme | F133: =ROUND(SUM(F130:F132),2) -> 0
C134: Unterhaltsabsetzbetrag | E134: =F134/D$127 -> 0
A135: =IF(D115=0,$A$88,12) -> 10 | C135: =IF(F135<=0,"Einkommensteuer (ESt) des Jahres","ESt-Gutschrift aus Negativsteuer") -> Einkommensteuer (ESt) des Jahres | D135: =F135 -> 0 | E135: =SUM(E127:E134) -> 0 | F135: =ROUND(IF(F133>0,F133,IF(SUM(F133:F134)>0,0,SUM(F133:F134))),0) -> 0
C136: - ESt-Vorauszahlung 1. Quartal | G136: =IF(B131>2,"MKZ","") -> 
C137: - ESt-Vorauszahlung 2. Quartal
C138: - ESt-Vorauszahlung 3. Quartal | G138: =IF(G137="inkl. MKZ für",IF(ISBLANK(G139),ROUND((SUM(B131,B132)-2)*12,0),""),"") -> 
C139: - ESt-Vorauszahlung 4. Quartal
C140: =IF(F140<=0,"ESt-Nachzahlung des Jahres","ESt-Überzahlung des Jahres") -> ESt-Nachzahlung des Jahres | F140: =SUM(F135:F139) -> 0 | G140: =IF(G137="inkl. MKZ für",IF(B131>2,IF(ISBLANK(G139),ROUND(G138*23.3,2),ROUND(G139*23.3,2)),""),"") -> 
C141: Jahreseinkommen nach ESt | D141: =SUM(D127,D135) -> 1366.15 | E141: =IF(D127<=12816,"",CONCATENATE("(Grenzsteuersatz .. ",IF(D127<=20818,"20 %",IF(D127<=34513,"30 %",IF(D127<=66612,"40 %",IF(D127<=99266,"48 %",IF(D127<=1000000,"50 %","55 %"))))),")")) -> 
C143: =C$1 -> Auswertungen für das/die Monat(e) | D143: =D$1 -> 1 bis 10
A144: Monate | B144: Prozent | C144: SV-Vorschau | D144: bis jetzt € | E144: je Monat € | F144: Prognose Jahr € | G144: Bmgs
A145: =IF(D115=0,A114,12) -> 10 | B145: 1 | C145: Gewinn nach Freibeträge | D145: =D122 -> 1366.15 | E145: =D145/A145 -> 136.615 | F145: =E145*12 -> 1639.38
A146: =A$145 -> 10 | B146: =ROUND(D146/D$145,3) -> 0 | C146: KV, PV -Vorschreibung 1. Quartal | E146: 0
A147: 10 | B147: =ROUND(D147/D$145,3) -> 0 | C147: KV, PV -Vorschreibung 2. Quartal | E147: 0
A148: 10 | B148: =ROUND(D148/D$145,3) -> 0 | C148: KV, PV -Vorschreibung 3. Quartal | E148: 0
A149: 10 | B149: =ROUND(D149/D$145,3) -> 0 | C149: KV, PV -Vorschreibung 4. Quartal | E149: 0
A150: 10 | B150: =SUM(B145:B149) -> 1 | C150: SV-Bemessungsgrundlage | D150: =SUM(D145:D149) -> 1366.15 | E150: =SUM(E145:E149) -> 136.615
A151: 10 | C151: UV .. Unfallversicherung | D151: =E151*A151 -> -113.5 | E151: -11.35 | F151: Mindestbmg | G151: Höchstbmg | H151: aktuelle Werte
A152: 10 | B152: -0.185 | C152: PV .. Pensionsversicherung | D152: =E152*A152 -> -959.114 | E152: =IF(E150<F152,F152*B152,IF(E150>G152,G152*B152,E150*B152)) -> -95.9114 | F152: 518.44 | G152: 7070 | H152: svs.at
A153: 10 | B153: -0.068 | C153: KV .. Krankenversicherung | D153: =E153*A153 -> -352.5392 | E153: =IF(E150<F153,F153*B153,IF(E150>G153,G153*B153,E150*B153)) -> -35.25392 | F153: 518.44 | G153: 7070
A154: 10 | B154: -0.0153 | C154: Sevo .. Selbständigenvorsorge (ab 2008) | D154: =E154*A154 -> -540.855 | E154: =IF(E150<F154,F154*B154,IF(E150>G154,G154*B154,E150*B154)) -> -54.0855 | F154: 3535 | G154: 3535
A155: 10 | B155: -0.06 | C155: AV .. Arbeitslosenversicherung (ab 2009) | D155: =E155*A155 -> -2121 | E155: =IF(E150<F155,F155*B155,IF(E150>G155,G155*B155,E150*B155)) -> -212.1 | F155: 3535 | G155: 3535
A156: 10 | B156: =ROUND(D156/D150,3) -> -2.992 | C156: derzeitige SV dieses Jahres, ca. | D156: =SUM(D151:D155) -> -4087.0082 | E156: =SUM(E151:E155) -> -408.70082
C157: UV, KV, PV - Zahlung 1. Quartal d. J.
C158: UV, KV, PV - Zahlung 2. Quartal d. J.
C159: UV, KV, PV - Zahlung 3. Quartal d. J.
C160: UV, KV, PV - Zahlung 4. Quartal d. J.
C161: KV, PV Rückstellung/Vorauszahlung d. J. | F161: =IF(E150>G152,ROUND(D162*-1,2),IF(E150<F153,ROUND(D162*-1,2),IF(D162>0,0,ROUND(SUM(D156:D161)*-1/(1+SUM(B152:B153)*-1),2)))) -> 4087.01 | G161: RSt / Vzhlg
C162: =IF(D162>0,"KV, PV - Überzahlung dieses Jahres","KV, PV - Nachzahlung dieses Jahres") -> KV, PV - Nachzahlung dieses Jahres | D162: =SUM(D156:D161) -> -4087.0082 | E162: =D162/A156 -> -408.70082

Sheet Monate
D1: 01 | E1: 02 | F1: 03 | G1: 04 | H1: 05 | I1: 06 | J1: 07 | K1: 08 | L1: 09 | M1: 10 | N1: 11 | O1: 12 | T1: 01 | U1: 02 | V1: 03 | W1: 04 | X1: 05 | Y1: 06 | Z1: 07 | AA1: 08 | AB1: 09 | AC1: 10 | AD1: 11 | AE1: 12 | AH1: =VLOOKUP(AH2,$AT$2:$AU$15,2,FALSE) -> 5
A2: ein/aus | B2: rvo.at | C2: Einnahmen/Ausgaben | D2: Januar | E2: Februar | F2: März | G2: April | H2: Mai | I2: Juni | J2: Juli | K2: August | L2: September | M2: Oktober | N2: November | O2: Dezember | P2: gesamt | R2: rvo.at | S2: Einnahmen/Ausgaben | T2: Januar | U2: Februar | V2: März | W2: April | X2: Mai | Y2: Juni | Z2: Juli | AA2: August | AB2: September | AC2: Oktober | AD2: November | AE2: Dezember | AG2: rvo.at | AH2: March | AI2: Actual | AJ2: Budget | AK2: Prior | AL2: Actual YTD | AM2: Budget YTD | AN2: Prior YTD | AO2: Variance M | AP2: Variance YTD | AQ2: Variance M | AR2: Variance YTD | AT2: January | AU2: 3
A3: ein | B3: 400 | C3: =Übersicht!C3 -> Erlöse nicht steuerbar | D3: =SUMIF(Einzelposten!$AH$16:$AH$215,CONCATENATE(D$1,$B3),Einzelposten!$AD$16:$AD$215) -> 0 | E3: =SUMIF(Einzelposten!$AH$16:$AH$215,CONCATENATE(E$1,$B3),Einzelposten!$AD$16:$AD$215) -> 0 | F3: =SUMIF(Einzelposten!$AH$16:$AH$215,CONCATENATE(F$1,$B3),Einzelposten!$AD$16:$AD$215) -> 0 | G3: =SUMIF(Einzelposten!$AH$16:$AH$215,CONCATENATE(G$1,$B3),Einzelposten!$AD$16:$AD$215) -> 0 | H3: =SUMIF(Einzelposten!$AH$16:$AH$215,CONCATENATE(H$1,$B3),Einzelposten!$AD$16:$AD$215) -> 0 | I3: =SUMIF(Einzelposten!$AH$16:$AH$215,CONCATENATE(I$1,$B3),Einzelposten!$AD$16:$AD$215) -> 0 | J3: =SUMIF(Einzelposten!$AH$16:$AH$215,CONCATENATE(J$1,$B3),Einzelposten!$AD$16:$AD$215) -> 0 | K3: =SUMIF(Einzelposten!$AH$16:$AH$215,CONCATENATE(K$1,$B3),Einzelposten!$AD$16:$AD$215) -> 0 | L3: =SUMIF(Einzelposten!$AH$16:$AH$215,CONCATENATE(L$1,$B3),Einzelposten!$AD$16:$AD$215) -> 0 | M3: =SUMIF(Einzelposten!$AH$16:$AH$215,CONCATENATE(M$1,$B3),Einzelposten!$AD$16:$AD$215) -> 0 | N3: =SUMIF(Einzelposten!$AH$16:$AH$215,CONCATENATE(N$1,$B3),Einzelposten!$AD$16:$AD$215) -> 0 | O3: =SUMIF(Einzelposten!$AH$16:$AH$215,CONCATENATE(O$1,$B3),Einzelposten!$AD$16:$AD$215) -> 0 | P3: =SUM(D3:O3) -> 0 | R3: 400 | S3: =C3 -> Erlöse nicht steuerbar | T3: =D3 -> 0 | U3: =SUM($D3:E3) -> 0 | V3: =SUM($D3:F3) -> 0 | W3: =SUM($D3:G3) -> 0 | X3: =SUM($D3:H3) -> 0 | Y3: =SUM($D3:I3) -> 0 | Z3: =SUM($D3:J3) -> 0 | AA3: =SUM($D3:K3) -> 0 | AB3: =SUM($D3:L3) -> 0 | AC3: =SUM($D3:M3) -> 0 | AD3: =SUM($D3:N3) -> 0 | AE3: =SUM($D3:O3) -> 0 | AG3: 400 | AH3: =C3 -> Erlöse nicht steuerbar | AI3: =VLOOKUP(AG3,$B$3:$O$34,$AH$1,FALSE) -> 0 | AJ3: =VLOOKUP(AG3,$B$106:$O$137,$AH$1,FALSE) -> 0 | AK3: =VLOOKUP(AG3,$B$209:$O$240,$AH$1,FALSE) -> 0 | AL3: =VLOOKUP(AG3,$R$3:$AE$34,$AH$1,FALSE) -> 0 | AM3: =VLOOKUP(AG3,$R$106:$AE$137,$AH$1,FALSE) -> 0 | AN3: =VLOOKUP(AG3,$R$209:$AE$240,$AH$1,FALSE) -> 0 | AO3: =AI3-AJ3 -> 0 | AP3: =AL3-AM3 -> 0 | AQ3: =AI3-AK3 -> 0 | AR3: =AL3-AN3 -> 0 | AT3: February | AU3: 4
A4: ein | B4: 405 | C4: =Übersicht!C4 -> Erlöse 5% steuerbar | D4: =SUMIF(Einzelposten!$AH$16:$AH$215,CONCATENATE(D$1,$B4),Einzelposten!$AD$16:$AD$215) -> 0 | E4: =SUMIF(Einzelposten!$AH$16:$AH$215,CONCATENATE(E$1,$B4),Einzelposten!$AD$16:$AD$215) -> 0 | F4: =SUMIF(Einzelposten!$AH$16:$AH$215,CONCATENATE(F$1,$B4),Einzelposten!$AD$16:$AD$215) -> 0 | G4: =SUMIF(Einzelposten!$AH$16:$AH$215,CONCATENATE(G$1,$B4),Einzelposten!$AD$16:$AD$215) -> 0 | H4: =SUMIF(Einzelposten!$AH$16:$AH$215,CONCATENATE(H$1,$B4),Einzelposten!$AD$16:$AD$215) -> 0 | I4: =SUMIF(Einzelposten!$AH$16:$AH$215,CONCATENATE(I$1,$B4),Einzelposten!$AD$16:$AD$215) -> 0 | J4: =SUMIF(Einzelposten!$AH$16:$AH$215,CONCATENATE(J$1,$B4),Einzelposten!$AD$16:$AD$215) -> 0 | K4: =SUMIF(Einzelposten!$AH$16:$AH$215,CONCATENATE(K$1,$B4),Einzelposten!$AD$16:$AD$215) -> 0 | L4: =SUMIF(Einzelposten!$AH$16:$AH$215,CONCATENATE(L$1,$B4),Einzelposten!$AD$16:$AD$215) -> 0 | M4: =SUMIF(Einzelposten!$AH$16:$AH$215,CONCATENATE(M$1,$B4),Einzelposten!$AD$16:$AD$215) -> 0 | N4: =SUMIF(Einzelposten!$AH$16:$AH$215,CONCATENATE(N$1,$B4),Einzelposten!$AD$16:$AD$215) -> 0 | O4: =SUMIF(Einzelposten!$AH$16:$AH$215,CONCATENATE(O$1,$B4),Einzelposten!$AD$16:$AD$215) -> 0 | P4: =SUM(D4:O4) -> 0 | R4: 405 | S4: =C4 -> Erlöse 5% steuerbar | T4: =D4 -> 0 | U4: =SUM($D4:E4) -> 0 | V4: =SUM($D4:F4) -> 0 | W4: =SUM($D4:G4) -> 0 | X4: =SUM($D4:H4) -> 0 | Y4: =SUM($D4:I4) -> 0 | Z4: =SUM($D4:J4) -> 0 | AA4: =SUM($D4:K4) -> 0 | AB4: =SUM($D4:L4) -> 0 | AC4: =SUM($D4:M4) -> 0 | AD4: =SUM($D4:N4) -> 0 | AE4: =SUM($D4:O4) -> 0 | AG4: 405 | AH4: =C4 -> Erlöse 5% steuerbar | AI4: 0 | AJ4: 0 | AK4: 0 | AL4: 0 | AM4: 0 | AN4: 0 | AO4: =AI4-AJ4 -> 0 | AP4: =AL4-AM4 -> 0 | AQ4: =AI4-AK4 -> 0 | AR4: =AL4-AN4 -> 0 | AT4: March | AU4: 5
A5: ein | B5: 410 | C5: =Übersicht!C5 -> Erlöse 10% steuerbar | D5: =SUMIF(Einzelposten!$AH$16:$AH$215,CONCATENATE(D$1,$B5),Einzelposten!$AD$16:$AD$215) -> 0 | E5: =SUMIF(Einzelposten!$AH$16:$AH$215,CONCATENATE(E$1,$B5),Einzelposten!$AD$16:$AD$215) -> 0 | F5: =SUMIF(Einzelposten!$AH$16:$AH$215,CONCATENATE(F$1,$B5),Einzelposten!$AD$16:$AD$215) -> 0 | G5: =SUMIF(Einzelposten!$AH$16:$AH$215,CONCATENATE(G$1,$B5),Einzelposten!$AD$16:$AD$215) -> 0 | H5: =SUMIF(Einzelposten!$AH$16:$AH$215,CONCATENATE(H$1,$B5),Einzelposten!$AD$16:$AD$215) -> 0 | I5: =SUMIF(Einzelposten!$AH$16:$AH$215,CONCATENATE(I$1,$B5),Einzelposten!$AD$16:$AD$215) -> 0 | J5: =SUMIF(Einzelposten!$AH$16:$AH$215,CONCATENATE(J$1,$B5),Einzelposten!$AD$16:$AD$215) -> 0 | K5: =SUMIF(Einzelposten!$AH$16:$AH$215,CONCATENATE(K$1,$B5),Einzelposten!$AD$16:$AD$215) -> 0 | L5: =SUMIF(Einzelposten!$AH$16:$AH$215,CONCATENATE(L$1,$B5),Einzelposten!$AD$16:$AD$215) -> 0 | M5: =SUMIF(Einzelposten!$AH$16:$AH$215,CONCATENATE(M$1,$B5),Einzelposten!$AD$16:$AD$215) -> 0 | N5: =SUMIF(Einzelposten!$AH$16:$AH$215,CONCATENATE(N$1,$B5),Einzelposten!$AD$16:$AD$215) -> 0 | O5: =SUMIF(Einzelposten!$AH$16:$AH$215,CONCATENATE(O$1,$B5),Einzelposten!$AD$16:$AD$215) -> 0 | P5: 0 | R5: 410 | S5: =C5 -> Erlöse 10% steuerbar | T5: 0 | U5: =SUM($D5:E5) -> 0 | V5: =SUM($D5:F5) -> 0 | W5: =SUM($D5:G5) -> 0 | X5: =SUM($D5:H5) -> 0 | Y5: =SUM($D5:I5) -> 0 | Z5: =SUM($D5:J5) -> 0 | AA5: =SUM($D5:K5) -> 0 | AB5: =SUM($D5:L5) -> 0 | AC5: =SUM($D5:M5) -> 0 | AD5: =SUM($D5:N5) -> 0 | AE5: =SUM($D5:O5) -> 0 | AG5: 410 | AH5: =C5 -> Erlöse 10% steuerbar | AI5: 0 | AJ5: 0 | AK5: 0 | AL5: 0 | AM5: 0 | AN5: 0 | AO5: =AI5-AJ5 -> 0 | AP5: =AL5-AM5 -> 0 | AQ5: =AI5-AK5 -> 0 | AR5: =AL5-AN5 -> 0 | AT5: April | AU5: 6
A6: aus | B6: 413 | C6: =Übersicht!C6 -> Erlöse 13% steuerbar | D6: =SUMIF(Einzelposten!$AH$16:$AH$215,CONCATENATE(D$1,$B6),Einzelposten!$AD$16:$AD$215) -> 0 | E6: =SUMIF(Einzelposten!$AH$16:$AH$215,CONCATENATE(E$1,$B6),Einzelposten!$AD$16:$AD$215) -> 0 | F6: =SUMIF(Einzelposten!$AH$16:$AH$215,CONCATENATE(F$1,$B6),Einzelposten!$AD$16:$AD$215) -> 0 | G6: =SUMIF(Einzelposten!$AH$16:$AH$215,CONCATENATE(G$1,$B6),Einzelposten!$AD$16:$AD$215) -> 0 | H6: =SUMIF(Einzelposten!$AH$16:$AH$215,CONCATENATE(H$1,$B6),Einzelposten!$AD$16:$AD$215) -> 0 | I6: =SUMIF(Einzelposten!$AH$16:$AH$215,CONCATENATE(I$1,$B6),Einzelposten!$AD$16:$AD$215) -> 0 | J6: =SUMIF(Einzelposten!$AH$16:$AH$215,CONCATENATE(J$1,$B6),Einzelposten!$AD$16:$AD$215) -> 0 | K6: =SUMIF(Einzelposten!$AH$16:$AH$215,CONCATENATE(K$1,$B6),Einzelposten!$AD$16:$AD$215) -> 0 | L6: =SUMIF(Einzelposten!$AH$16:$AH$215,CONCATENATE(L$1,$B6),Einzelposten!$AD$16:$AD$215) -> 0 | M6: =SUMIF(Einzelposten!$AH$16:$AH$215,CONCATENATE(M$1,$B6),Einzelposten!$AD$16:$AD$215) -> 0 | N6: =SUMIF(Einzelposten!$AH$16:$AH$215,CONCATENATE(N$1,$B6),Einzelposten!$AD$16:$AD$215) -> 0 | O6: =SUMIF(Einzelposten!$AH$16:$AH$215,CONCATENATE(O$1,$B6),Einzelposten!$AD$16:$AD$215) -> 0 | P6: 0 | R6: 413 | S6: Erlöse 13% steuerbar | T6: 0 | U6: =SUM($D6:E6) -> 0 | V6: =SUM($D6:F6) -> 0 | W6: =SUM($D6:G6) -> 0 | X6: =SUM($D6:H6) -> 0 | Y6: =SUM($D6:I6) -> 0 | Z6: =SUM($D6:J6) -> 0 | AA6: =SUM($D6:K6) -> 0 | AB6: =SUM($D6:L6) -> 0 | AC6: =SUM($D6:M6) -> 0 | AD6: =SUM($D6:N6) -> 0 | AE6: =SUM($D6:O6) -> 0 | AG6: 413 | AH6: Erlöse 13% steuerbar | AI6: 0 | AJ6: 0 | AK6: 0 | AL6: 0 | AM6: 80 | AN6: 50 | AO6: 0 | AP6: -80 | AQ6: 0 | AR6: -50 | AT6: May | AU6: 7
A7: aus | B7: 420 | C7: =Übersicht!C7 -> Erlöse 20% steuerbar | D7: =SUMIF(Einzelposten!$AH$16:$AH$215,CONCATENATE(D$1,$B7),Einzelposten!$AD$16:$AD$215) -> 83.33 | E7: =SUMIF(Einzelposten!$AH$16:$AH$215,CONCATENATE(E$1,$B7),Einzelposten!$AD$16:$AD$215) -> 0 | F7: =SUMIF(Einzelposten!$AH$16:$AH$215,CONCATENATE(F$1,$B7),Einzelposten!$AD$16:$AD$215) -> 2250 | G7: =SUMIF(Einzelposten!$AH$16:$AH$215,CONCATENATE(G$1,$B7),Einzelposten!$AD$16:$AD$215) -> 0 | H7: =SUMIF(Einzelposten!$AH$16:$AH$215,CONCATENATE(H$1,$B7),Einzelposten!$AD$16:$AD$215) -> 0 | I7: =SUMIF(Einzelposten!$AH$16:$AH$215,CONCATENATE(I$1,$B7),Einzelposten!$AD$16:$AD$215) -> 0 | J7: =SUMIF(Einzelposten!$AH$16:$AH$215,CONCATENATE(J$1,$B7),Einzelposten!$AD$16:$AD$215) -> 0 | K7: =SUMIF(Einzelposten!$AH$16:$AH$215,CONCATENATE(K$1,$B7),Einzelposten!$AD$16:$AD$215) -> 0 | L7: =SUMIF(Einzelposten!$AH$16:$AH$215,CONCATENATE(L$1,$B7),Einzelposten!$AD$16:$AD$215) -> 0 | M7: =SUMIF(Einzelposten!$AH$16:$AH$215,CONCATENATE(M$1,$B7),Einzelposten!$AD$16:$AD$215) -> 0 | N7: =SUMIF(Einzelposten!$AH$16:$AH$215,CONCATENATE(N$1,$B7),Einzelposten!$AD$16:$AD$215) -> 0 | O7: =SUMIF(Einzelposten!$AH$16:$AH$215,CONCATENATE(O$1,$B7),Einzelposten!$AD$16:$AD$215) -> 0 | P7: 2333.33 | R7: 420 | S7: Erlöse 20% steuerbar | T7: 83.33 | U7: =SUM($D7:E7) -> 83.33 | V7: =SUM($D7:F7) -> 2333.33 | W7: =SUM($D7:G7) -> 2333.33 | X7: =SUM($D7:H7) -> 2333.33 | Y7: =SUM($D7:I7) -> 2333.33 | Z7: =SUM($D7:J7) -> 2333.33 | AA7: =SUM($D7:K7) -> 2333.33 | AB7: =SUM($D7:L7) -> 2333.33 | AC7: =SUM($D7:M7) -> 2333.33 | AD7: =SUM($D7:N7) -> 2333.33 | AE7: =SUM($D7:O7) -> 2333.33 | AG7: 420 | AH7: Erlöse 20% steuerbar | AI7: 2250 | AJ7: 2500 | AK7: 2400 | AL7: 2333.33 | AM7: 7500 | AN7: 7200 | AO7: -250 | AP7: -5166.67 | AQ7: -150 | AR7: -4866.67 | AT7: June | AU7: 8
A8: aus | B8: 430 | C8: =Übersicht!C8 -> sonstige Erlöse | D8: =SUMIF(Einzelposten!$AH$16:$AH$215,CONCATENATE(D$1,$B8),Einzelposten!$AD$16:$AD$215) -> 0 | E8: =SUMIF(Einzelposten!$AH$16:$AH$215,CONCATENATE(E$1,$B8),Einzelposten!$AD$16:$AD$215) -> 0 | F8: =SUMIF(Einzelposten!$AH$16:$AH$215,CONCATENATE(F$1,$B8),Einzelposten!$AD$16:$AD$215) -> 0 | G8: =SUMIF(Einzelposten!$AH$16:$AH$215,CONCATENATE(G$1,$B8),Einzelposten!$AD$16:$AD$215) -> 0 | H8: =SUMIF(Einzelposten!$AH$16:$AH$215,CONCATENATE(H$1,$B8),Einzelposten!$AD$16:$AD$215) -> 0 | I8: =SUMIF(Einzelposten!$AH$16:$AH$215,CONCATENATE(I$1,$B8),Einzelposten!$AD$16:$AD$215) -> 0 | J8: =SUMIF(Einzelposten!$AH$16:$AH$215,CONCATENATE(J$1,$B8),Einzelposten!$AD$16:$AD$215) -> 0 | K8: =SUMIF(Einzelposten!$AH$16:$AH$215,CONCATENATE(K$1,$B8),Einzelposten!$AD$16:$AD$215) -> 0 | L8: =SUMIF(Einzelposten!$AH$16:$AH$215,CONCATENATE(L$1,$B8),Einzelposten!$AD$16:$AD$215) -> 0 | M8: =SUMIF(Einzelposten!$AH$16:$AH$215,CONCATENATE(M$1,$B8),Einzelposten!$AD$16:$AD$215) -> 0 | N8: =SUMIF(Einzelposten!$AH$16:$AH$215,CONCATENATE(N$1,$B8),Einzelposten!$AD$16:$AD$215) -> 0 | O8: =SUMIF(Einzelposten!$AH$16:$AH$215,CONCATENATE(O$1,$B8),Einzelposten!$AD$16:$AD$215) -> 0 | P8: 0 | R8: 430 | S8: sonstige Erlöse | T8: 0 | U8: =SUM($D8:E8) -> 0 | V8: =SUM($D8:F8) -> 0 | W8: =SUM($D8:G8) -> 0 | X8: =SUM($D8:H8) -> 0 | Y8: =SUM($D8:I8) -> 0 | Z8: =SUM($D8:J8) -> 0 | AA8: =SUM($D8:K8) -> 0 | AB8: =SUM($D8:L8) -> 0 | AC8: =SUM($D8:M8) -> 0 | AD8: =SUM($D8:N8) -> 0 | AE8: =SUM($D8:O8) -> 0 | AG8: 430 | AH8: sonstige Erlöse | AI8: 0 | AJ8: 0 | AK8: 0 | AL8: 0 | AM8: 0 | AN8: 0 | AO8: 0 | AP8: 0 | AQ8: 0 | AR8: 0 | AT8: July | AU8: 9
A9: aus | B9: 490 | C9: =Übersicht!C9 -> Privatanteil, Nutzungsentnahmen | D9: =SUMIF(Einzelposten!$AH$16:$AH$215,CONCATENATE(D$1,$B9),Einzelposten!$AD$16:$AD$215) -> 0 | E9: =SUMIF(Einzelposten!$AH$16:$AH$215,CONCATENATE(E$1,$B9),Einzelposten!$AD$16:$AD$215) -> 0 | F9: =SUMIF(Einzelposten!$AH$16:$AH$215,CONCATENATE(F$1,$B9),Einzelposten!$AD$16:$AD$215) -> 0 | G9: =SUMIF(Einzelposten!$AH$16:$AH$215,CONCATENATE(G$1,$B9),Einzelposten!$AD$16:$AD$215) -> 0 | H9: =SUMIF(Einzelposten!$AH$16:$AH$215,CONCATENATE(H$1,$B9),Einzelposten!$AD$16:$AD$215) -> 0 | I9: =SUMIF(Einzelposten!$AH$16:$AH$215,CONCATENATE(I$1,$B9),Einzelposten!$AD$16:$AD$215) -> 0 | J9: =SUMIF(Einzelposten!$AH$16:$AH$215,CONCATENATE(J$1,$B9),Einzelposten!$AD$16:$AD$215) -> 0 | K9: =SUMIF(Einzelposten!$AH$16:$AH$215,CONCATENATE(K$1,$B9),Einzelposten!$AD$16:$AD$215) -> 0 | L9: =SUMIF(Einzelposten!$AH$16:$AH$215,CONCATENATE(L$1,$B9),Einzelposten!$AD$16:$AD$215) -> 0 | M9: =SUMIF(Einzelposten!$AH$16:$AH$215,CONCATENATE(M$1,$B9),Einzelposten!$AD$16:$AD$215) -> 0 | N9: =SUMIF(Einzelposten!$AH$16:$AH$215,CONCATENATE(N$1,$B9),Einzelposten!$AD$16:$AD$215) -> 0 | O9: =SUMIF(Einzelposten!$AH$16:$AH$215,CONCATENATE(O$1,$B9),Einzelposten!$AD$16:$AD$215) -> 0 | P9: 0 | R9: 490 | S9: Privatanteil, Nutzungsentnahmen | T9: 0 | U9: =SUM($D9:E9) -> 0 | V9: =SUM($D9:F9) -> 0 | W9: =SUM($D9:G9) -> 0 | X9: =SUM($D9:H9) -> 0 | Y9: =SUM($D9:I9) -> 0 | Z9: =SUM($D9:J9) -> 0 | AA9: =SUM($D9:K9) -> 0 | AB9: =SUM($D9:L9) -> 0 | AC9: =SUM($D9:M9) -> 0 | AD9: =SUM($D9:N9) -> 0 | AE9: =SUM($D9:O9) -> 0 | AG9: 490 | AH9: Privatanteil, Nutzungsentnahmen | AI9: 0 | AJ9: 0 | AK9: 0 | AL9: 0 | AM9: 0 | AN9: 0 | AO9: 0 | AP9: 0 | AQ9: 0 | AR9: 0 | AT9: August | AU9: 10
A10: aus | B10: 505 | C10: =Übersicht!C10 -> Wareneinkauf 5% VSt-Abzug | D10: =SUMIF(Einzelposten!$AH$16:$AH$215,CONCATENATE(D$1,$B10),Einzelposten!$AD$16:$AD$215) -> 0 | E10: =SUMIF(Einzelposten!$AH$16:$AH$215,CONCATENATE(E$1,$B10),Einzelposten!$AD$16:$AD$215) -> 0 | F10: =SUMIF(Einzelposten!$AH$16:$AH$215,CONCATENATE(F$1,$B10),Einzelposten!$AD$16:$AD$215) -> 0 | G10: =SUMIF(Einzelposten!$AH$16:$AH$215,CONCATENATE(G$1,$B10),Einzelposten!$AD$16:$AD$215) -> 0 | H10: =SUMIF(Einzelposten!$AH$16:$AH$215,CONCATENATE(H$1,$B10),Einzelposten!$AD$16:$AD$215) -> 0 | I10: =SUMIF(Einzelposten!$AH$16:$AH$215,CONCATENATE(I$1,$B10),Einzelposten!$AD$16:$AD$215) -> 0 | J10: =SUMIF(Einzelposten!$AH$16:$AH$215,CONCATENATE(J$1,$B10),Einzelposten!$AD$16:$AD$215) -> 0 | K10: =SUMIF(Einzelposten!$AH$16:$AH$215,CONCATENATE(K$1,$B10),Einzelposten!$AD$16:$AD$215) -> 0 | L10: =SUMIF(Einzelposten!$AH$16:$AH$215,CONCATENATE(L$1,$B10),Einzelposten!$AD$16:$AD$215) -> 0 | M10: =SUMIF(Einzelposten!$AH$16:$AH$215,CONCATENATE(M$1,$B10),Einzelposten!$AD$16:$AD$215) -> 0 | N10: =SUMIF(Einzelposten!$AH$16:$AH$215,CONCATENATE(N$1,$B10),Einzelposten!$AD$16:$AD$215) -> 0 | O10: =SUMIF(Einzelposten!$AH$16:$AH$215,CONCATENATE(O$1,$B10),Einzelposten!$AD$16:$AD$215) -> 0 | P10: 0 | R10: 505 | S10: Wareneinkauf 5% VSt-Abzug | T10: 0 | U10: =SUM($D10:E10) -> 0 | V10: =SUM($D10:F10) -> 0 | W10: =SUM($D10:G10) -> 0 | X10: =SUM($D10:H10) -> 0 | Y10: =SUM($D10:I10) -> 0 | Z10: =SUM($D10:J10) -> 0 | AA10: =SUM($D10:K10) -> 0 | AB10: =SUM($D10:L10) -> 0 | AC10: =SUM($D10:M10) -> 0 | AD10: =SUM($D10:N10) -> 0 | AE10: =SUM($D10:O10) -> 0 | AG10: 505 | AH10: Wareneinkauf 5% VSt-Abzug | AI10: 0 | AJ10: 0 | AK10: 0 | AL10: 0 | AM10: 0 | AN10: 0 | AO10: 0 | AP10: 0 | AQ10: 0 | AR10: 0 | AT10: September | AU10: 11
A11: aus | B11: 510 | C11: =Übersicht!C11 -> Wareneinkauf 10% VSt-Abzug | D11: =SUMIF(Einzelposten!$AH$16:$AH$215,CONCATENATE(D$1,$B11),Einzelposten!$AD$16:$AD$215) -> 0 | E11: =SUMIF(Einzelposten!$AH$16:$AH$215,CONCATENATE(E$1,$B11),Einzelposten!$AD$16:$AD$215) -> 0 | F11: =SUMIF(Einzelposten!$AH$16:$AH$215,CONCATENATE(F$1,$B11),Einzelposten!$AD$16:$AD$215) -> 0 | G11: =SUMIF(Einzelposten!$AH$16:$AH$215,CONCATENATE(G$1,$B11),Einzelposten!$AD$16:$AD$215) -> 0 | H11: =SUMIF(Einzelposten!$AH$16:$AH$215,CONCATENATE(H$1,$B11),Einzelposten!$AD$16:$AD$215) -> 0 | I11: =SUMIF(Einzelposten!$AH$16:$AH$215,CONCATENATE(I$1,$B11),Einzelposten!$AD$16:$AD$215) -> 0 | J11: =SUMIF(Einzelposten!$AH$16:$AH$215,CONCATENATE(J$1,$B11),Einzelposten!$AD$16:$AD$215) -> 0 | K11: =SUMIF(Einzelposten!$AH$16:$AH$215,CONCATENATE(K$1,$B11),Einzelposten!$AD$16:$AD$215) -> 0 | L11: =SUMIF(Einzelposten!$AH$16:$AH$215,CONCATENATE(L$1,$B11),Einzelposten!$AD$16:$AD$215) -> 0 | M11: =SUMIF(Einzelposten!$AH$16:$AH$215,CONCATENATE(M$1,$B11),Einzelposten!$AD$16:$AD$215) -> 0 | N11: =SUMIF(Einzelposten!$AH$16:$AH$215,CONCATENATE(N$1,$B11),Einzelposten!$AD$16:$AD$215) -> 0 | O11: =SUMIF(Einzelposten!$AH$16:$AH$215,CONCATENATE(O$1,$B11),Einzelposten!$AD$16:$AD$215) -> 0 | P11: 0 | R11: 510 | S11: Wareneinkauf 10% VSt-Abzug | T11: 0 | U11: =SUM($D11:E11) -> 0 | V11: =SUM($D11:F11) -> 0 | W11: =SUM($D11:G11) -> 0 | X11: =SUM($D11:H11) -> 0 | Y11: =SUM($D11:I11) -> 0 | Z11: =SUM($D11:J11) -> 0 | AA11: =SUM($D11:K11) -> 0 | AB11: =SUM($D11:L11) -> 0 | AC11: =SUM($D11:M11) -> 0 | AD11: =SUM($D11:N11) -> 0 | AE11: =SUM($D11:O11) -> 0 | AG11: 510 | AH11: Wareneinkauf 10% VSt-Abzug | AI11: 0 | AJ11: 0 | AK11: 0 | AL11: 0 | AM11: 0 | AN11: 0 | AO11: 0 | AP11: 0 | AQ11: 0 | AR11: 0 | AT11: October | AU11: 12
A12: aus | B12: 513 | C12: =Übersicht!C12 -> Wareneinkauf 13% VSt-Abzug | D12: =SUMIF(Einzelposten!$AH$16:$AH$215,CONCATENATE(D$1,$B12),Einzelposten!$AD$16:$AD$215) -> 0 | E12: =SUMIF(Einzelposten!$AH$16:$AH$215,CONCATENATE(E$1,$B12),Einzelposten!$AD$16:$AD$215) -> 0 | F12: =SUMIF(Einzelposten!$AH$16:$AH$215,CONCATENATE(F$1,$B12),Einzelposten!$AD$16:$AD$215) -> 0 | G12: =SUMIF(Einzelposten!$AH$16:$AH$215,CONCATENATE(G$1,$B12),Einzelposten!$AD$16:$AD$215) -> 0 | H12: =SUMIF(Einzelposten!$AH$16:$AH$215,CONCATENATE(H$1,$B12),Einzelposten!$AD$16:$AD$215) -> 0 | I12: =SUMIF(Einzelposten!$AH$16:$AH$215,CONCATENATE(I$1,$B12),Einzelposten!$AD$16:$AD$215) -> 0 | J12: =SUMIF(Einzelposten!$AH$16:$AH$215,CONCATENATE(J$1,$B12),Einzelposten!$AD$16:$AD$215) -> 0 | K12: =SUMIF(Einzelposten!$AH$16:$AH$215,CONCATENATE(K$1,$B12),Einzelposten!$AD$16:$AD$215) -> 0 | L12: =SUMIF(Einzelposten!$AH$16:$AH$215,CONCATENATE(L$1,$B12),Einzelposten!$AD$16:$AD$215) -> 0 | M12: =SUMIF(Einzelposten!$AH$16:$AH$215,CONCATENATE(M$1,$B12),Einzelposten!$AD$16:$AD$215) -> 0 | N12: =SUMIF(Einzelposten!$AH$16:$AH$215,CONCATENATE(N$1,$B12),Einzelposten!$AD$16:$AD$215) -> 0 | O12: =SUMIF(Einzelposten!$AH$16:$AH$215,CONCATENATE(O$1,$B12),Einzelposten!$AD$16:$AD$215) -> 0 | P12: =SUM(D12:O12) -> 0 | R12: 513 | S12: =C12 -> Wareneinkauf 13% VSt-Abzug | T12: =D12 -> 0 | U12: =SUM($D12:E12) -> 0 | V12: =SUM($D12:F12) -> 0 | W12: =SUM($D12:G12) -> 0 | X12: =SUM($D12:H12) -> 0 | Y12: =SUM($D12:I12) -> 0 | Z12: =SUM($D12:J12) -> 0 | AA12: =SUM($D12:K12) -> 0 | AB12: =SUM($D12:L12) -> 0 | AC12: =SUM($D12:M12) -> 0 | AD12: =SUM($D12:N12) -> 0 | AE12: =SUM($D12:O12) -> 0 | AG12: 513 | AH12: =C12 -> Wareneinkauf 13% VSt-Abzug | AI12: 0 | AJ12: 0 | AK12: 0 | AL12: 0 | AM12: 0 | AN12: 0 | AO12: =AI12-AJ12 -> 0 | AP12: =AL12-AM12 -> 0 | AQ12: =AI12-AK12 -> 0 | AR12: =AL12-AN12 -> 0 | AT12: November | AU12: 13
A13: aus | B13: 520 | C13: =Übersicht!C13 -> Wareneinkauf 20% VSt-Abzug | D13: =SUMIF(Einzelposten!$AH$16:$AH$215,CONCATENATE(D$1,$B13),Einzelposten!$AD$16:$AD$215) -> 0 | E13: =SUMIF(Einzelposten!$AH$16:$AH$215,CONCATENATE(E$1,$B13),Einzelposten!$AD$16:$AD$215) -> -500 | F13: =SUMIF(Einzelposten!$AH$16:$AH$215,CONCATENATE(F$1,$B13),Einzelposten!$AD$16:$AD$215) -> 0 | G13: =SUMIF(Einzelposten!$AH$16:$AH$215,CONCATENATE(G$1,$B13),Einzelposten!$AD$16:$AD$215) -> 0 | H13: =SUMIF(Einzelposten!$AH$16:$AH$215,CONCATENATE(H$1,$B13),Einzelposten!$AD$16:$AD$215) -> 0 | I13: =SUMIF(Einzelposten!$AH$16:$AH$215,CONCATENATE(I$1,$B13),Einzelposten!$AD$16:$AD$215) -> 0 | J13: =SUMIF(Einzelposten!$AH$16:$AH$215,CONCATENATE(J$1,$B13),Einzelposten!$AD$16:$AD$215) -> 0 | K13: =SUMIF(Einzelposten!$AH$16:$AH$215,CONCATENATE(K$1,$B13),Einzelposten!$AD$16:$AD$215) -> 0 | L13: =SUMIF(Einzelposten!$AH$16:$AH$215,CONCATENATE(L$1,$B13),Einzelposten!$AD$16:$AD$215) -> 0 | M13: =SUMIF(Einzelposten!$AH$16:$AH$215,CONCATENATE(M$1,$B13),Einzelposten!$AD$16:$AD$215) -> 0 | N13: =SUMIF(Einzelposten!$AH$16:$AH$215,CONCATENATE(N$1,$B13),Einzelposten!$AD$16:$AD$215) -> 0 | O13: =SUMIF(Einzelposten!$AH$16:$AH$215,CONCATENATE(O$1,$B13),Einzelposten!$AD$16:$AD$215) -> 0 | P13: -500 | R13: 520 | S13: Wareneinkauf 20% VSt-Abzug | T13: 0 | U13: =SUM($D13:E13) -> -500 | V13: =SUM($D13:F13) -> -500 | W13: =SUM($D13:G13) -> -500 | X13: =SUM($D13:H13) -> -500 | Y13: =SUM($D13:I13) -> -500 | Z13: =SUM($D13:J13) -> -500 | AA13: =SUM($D13:K13) -> -500 | AB13: =SUM($D13:L13) -> -500 | AC13: =SUM($D13:M13) -> -500 | AD13: =SUM($D13:N13) -> -500 | AE13: =SUM($D13:O13) -> -500 | AG13: 520 | AH13: Wareneinkauf 20% VSt-Abzug | AI13: 0 | AJ13: 0 | AK13: 0 | AL13: -500 | AM13: 0 | AN13: 0 | AO13: 0 | AP13: -500 | AQ13: 0 | AR13: -500 | AT13: December | AU13: 14
A14: aus | B14: 580 | C14: =Übersicht!C14 -> Fremdleistungen | D14: =SUMIF(Einzelposten!$AH$16:$AH$215,CONCATENATE(D$1,$B14),Einzelposten!$AD$16:$AD$215) -> 0 | E14: =SUMIF(Einzelposten!$AH$16:$AH$215,CONCATENATE(E$1,$B14),Einzelposten!$AD$16:$AD$215) -> 0 | F14: =SUMIF(Einzelposten!$AH$16:$AH$215,CONCATENATE(F$1,$B14),Einzelposten!$AD$16:$AD$215) -> 0 | G14: =SUMIF(Einzelposten!$AH$16:$AH$215,CONCATENATE(G$1,$B14),Einzelposten!$AD$16:$AD$215) -> 0 | H14: =SUMIF(Einzelposten!$AH$16:$AH$215,CONCATENATE(H$1,$B14),Einzelposten!$AD$16:$AD$215) -> 0 | I14: =SUMIF(Einzelposten!$AH$16:$AH$215,CONCATENATE(I$1,$B14),Einzelposten!$AD$16:$AD$215) -> 0 | J14: =SUMIF(Einzelposten!$AH$16:$AH$215,CONCATENATE(J$1,$B14),Einzelposten!$AD$16:$AD$215) -> 0 | K14: =SUMIF(Einzelposten!$AH$16:$AH$215,CONCATENATE(K$1,$B14),Einzelposten!$AD$16:$AD$215) -> 0 | L14: =SUMIF(Einzelposten!$AH$16:$AH$215,CONCATENATE(L$1,$B14),Einzelposten!$AD$16:$AD$215) -> 0 | M14: =SUMIF(Einzelposten!$AH$16:$AH$215,CONCATENATE(M$1,$B14),Einzelposten!$AD$16:$AD$215) -> 0 | N14: =SUMIF(Einzelposten!$AH$16:$AH$215,CONCATENATE(N$1,$B14),Einzelposten!$AD$16:$AD$215) -> 0 | O14: =SUMIF(Einzelposten!$AH$16:$AH$215,CONCATENATE(O$1,$B14),Einzelposten!$AD$16:$AD$215) -> 0 | P14: 0 | R14: 580 | S14: Fremdleistungen | T14: 0 | U14: =SUM($D14:E14) -> 0 | V14: =SUM($D14:F14) -> 0 | W14: =SUM($D14:G14) -> 0 | X14: =SUM($D14:H14) -> 0 | Y14: =SUM($D14:I14) -> 0 | Z14: =SUM($D14:J14) -> 0 | AA14: =SUM($D14:K14) -> 0 | AB14: =SUM($D14:L14) -> 0 | AC14: =SUM($D14:M14) -> 0 | AD14: =SUM($D14:N14) -> 0 | AE14: =SUM($D14:O14) -> 0 | AG14: 580 | AH14: Fremdleistungen | AI14: 0 | AJ14: 0 | AK14: 0 | AL14: 0 | AM14: 0 | AN14: 0 | AO14: 0 | AP14: 0 | AQ14: 0 | AR14: 0
A15: aus | B15: 600 | C15: =Übersicht!C15 -> Personalaufwand | D15: =SUMIF(Einzelposten!$AH$16:$AH$215,CONCATENATE(D$1,$B15),Einzelposten!$AD$16:$AD$215) -> 0 | E15: =SUMIF(Einzelposten!$AH$16:$AH$215,CONCATENATE(E$1,$B15),Einzelposten!$AD$16:$AD$215) -> 0 | F15: =SUMIF(Einzelposten!$AH$16:$AH$215,CONCATENATE(F$1,$B15),Einzelposten!$AD$16:$AD$215) -> 0 | G15: =SUMIF(Einzelposten!$AH$16:$AH$215,CONCATENATE(G$1,$B15),Einzelposten!$AD$16:$AD$215) -> 0 | H15: =SUMIF(Einzelposten!$AH$16:$AH$215,CONCATENATE(H$1,$B15),Einzelposten!$AD$16:$AD$215) -> 0 | I15: =SUMIF(Einzelposten!$AH$16:$AH$215,CONCATENATE(I$1,$B15),Einzelposten!$AD$16:$AD$215) -> 0 | J15: =SUMIF(Einzelposten!$AH$16:$AH$215,CONCATENATE(J$1,$B15),Einzelposten!$AD$16:$AD$215) -> 0 | K15: =SUMIF(Einzelposten!$AH$16:$AH$215,CONCATENATE(K$1,$B15),Einzelposten!$AD$16:$AD$215) -> 0 | L15: =SUMIF(Einzelposten!$AH$16:$AH$215,CONCATENATE(L$1,$B15),Einzelposten!$AD$16:$AD$215) -> 0 | M15: =SUMIF(Einzelposten!$AH$16:$AH$215,CONCATENATE(M$1,$B15),Einzelposten!$AD$16:$AD$215) -> 0 | N15: =SUMIF(Einzelposten!$AH$16:$AH$215,CONCATENATE(N$1,$B15),Einzelposten!$AD$16:$AD$215) -> 0 | O15: =SUMIF(Einzelposten!$AH$16:$AH$215,CONCATENATE(O$1,$B15),Einzelposten!$AD$16:$AD$215) -> 0 | P15: 0 | R15: 600 | S15: Personalaufwand | T15: 0 | U15: =SUM($D15:E15) -> 0 | V15: =SUM($D15:F15) -> 0 | W15: =SUM($D15:G15) -> 0 | X15: =SUM($D15:H15) -> 0 | Y15: =SUM($D15:I15) -> 0 | Z15: =SUM($D15:J15) -> 0 | AA15: =SUM($D15:K15) -> 0 | AB15: =SUM($D15:L15) -> 0 | AC15: =SUM($D15:M15) -> 0 | AD15: =SUM($D15:N15) -> 0 | AE15: =SUM($D15:O15) -> 0 | AG15: 600 | AH15: Personalaufwand | AI15: 0 | AJ15: 0 | AK15: 0 | AL15: 0 | AM15: 0 | AN15: 0 | AO15: 0 | AP15: 0 | AQ15: 0 | AR15: 0
A16: aus | B16: 700 | C16: =Übersicht!C16 -> AFA, Absetzung f. Abnutzung | D16: =SUMIF(Einzelposten!$AH$16:$AH$215,CONCATENATE(D$1,$B16),Einzelposten!$AD$16:$AD$215) -> 0 | E16: =SUMIF(Einzelposten!$AH$16:$AH$215,CONCATENATE(E$1,$B16),Einzelposten!$AD$16:$AD$215) -> 0 | F16: =SUMIF(Einzelposten!$AH$16:$AH$215,CONCATENATE(F$1,$B16),Einzelposten!$AD$16:$AD$215) -> -83.33 | G16: =SUMIF(Einzelposten!$AH$16:$AH$215,CONCATENATE(G$1,$B16),Einzelposten!$AD$16:$AD$215) -> 0 | H16: =SUMIF(Einzelposten!$AH$16:$AH$215,CONCATENATE(H$1,$B16),Einzelposten!$AD$16:$AD$215) -> 0 | I16: =SUMIF(Einzelposten!$AH$16:$AH$215,CONCATENATE(I$1,$B16),Einzelposten!$AD$16:$AD$215) -> 0 | J16: =SUMIF(Einzelposten!$AH$16:$AH$215,CONCATENATE(J$1,$B16),Einzelposten!$AD$16:$AD$215) -> 0 | K16: =SUMIF(Einzelposten!$AH$16:$AH$215,CONCATENATE(K$1,$B16),Einzelposten!$AD$16:$AD$215) -> 0 | L16: =SUMIF(Einzelposten!$AH$16:$AH$215,CONCATENATE(L$1,$B16),Einzelposten!$AD$16:$AD$215) -> 0 | M16: =SUMIF(Einzelposten!$AH$16:$AH$215,CONCATENATE(M$1,$B16),Einzelposten!$AD$16:$AD$215) -> 0 | N16: =SUMIF(Einzelposten!$AH$16:$AH$215,CONCATENATE(N$1,$B16),Einzelposten!$AD$16:$AD$215) -> 0 | O16: =SUMIF(Einzelposten!$AH$16:$AH$215,CONCATENATE(O$1,$B16),Einzelposten!$AD$16:$AD$215) -> 0 | P16: -83.33 | R16: 700 | S16: AFA, Absetzung f. Abnutzung | T16: 0 | U16: =SUM($D16:E16) -> 0 | V16: =SUM($D16:F16) -> -83.33 | W16: =SUM($D16:G16) -> -83.33 | X16: =SUM($D16:H16) -> -83.33 | Y16: =SUM($D16:I16) -> -83.33 | Z16: =SUM($D16:J16) -> -83.33 | AA16: =SUM($D16:K16) -> -83.33 | AB16: =SUM($D16:L16) -> -83.33 | AC16: =SUM($D16:M16) -> -83.33 | AD16: =SUM($D16:N16) -> -83.33 | AE16: =SUM($D16:O16) -> -83.33 | AG16: 700 | AH16: AFA, Absetzung f. Abnutzung | AI16: -83.33 | AJ16: -250 | AK16: -150 | AL16: -83.33 | AM16: -750 | AN16: -450 | AO16: 166.67 | AP16: 666.67 | AQ16: 66.67 | AR16: 366.67
A17: aus | B17: 705 | C17: =Übersicht!C17 -> GWG, geringwertige Wirtschaftsgüter | D17: =SUMIF(Einzelposten!$AH$16:$AH$215,CONCATENATE(D$1,$B17),Einzelposten!$AD$16:$AD$215) -> 0 | E17: =SUMIF(Einzelposten!$AH$16:$AH$215,CONCATENATE(E$1,$B17),Einzelposten!$AD$16:$AD$215) -> 0 | F17: =SUMIF(Einzelposten!$AH$16:$AH$215,CONCATENATE(F$1,$B17),Einzelposten!$AD$16:$AD$215) -> 0 | G17: =SUMIF(Einzelposten!$AH$16:$AH$215,CONCATENATE(G$1,$B17),Einzelposten!$AD$16:$AD$215) -> 0 | H17: =SUMIF(Einzelposten!$AH$16:$AH$215,CONCATENATE(H$1,$B17),Einzelposten!$AD$16:$AD$215) -> 0 | I17: =SUMIF(Einzelposten!$AH$16:$AH$215,CONCATENATE(I$1,$B17),Einzelposten!$AD$16:$AD$215) -> 0 | J17: =SUMIF(Einzelposten!$AH$16:$AH$215,CONCATENATE(J$1,$B17),Einzelposten!$AD$16:$AD$215) -> 0 | K17: =SUMIF(Einzelposten!$AH$16:$AH$215,CONCATENATE(K$1,$B17),Einzelposten!$AD$16:$AD$215) -> 0 | L17: =SUMIF(Einzelposten!$AH$16:$AH$215,CONCATENATE(L$1,$B17),Einzelposten!$AD$16:$AD$215) -> 0 | M17: =SUMIF(Einzelposten!$AH$16:$AH$215,CONCATENATE(M$1,$B17),Einzelposten!$AD$16:$AD$215) -> 0 | N17: =SUMIF(Einzelposten!$AH$16:$AH$215,CONCATENATE(N$1,$B17),Einzelposten!$AD$16:$AD$215) -> 0 | O17: =SUMIF(Einzelposten!$AH$16:$AH$215,CONCATENATE(O$1,$B17),Einzelposten!$AD$16:$AD$215) -> 0 | P17: 0 | R17: 705 | S17: GWG, geringwertige Wirtschaftsgüter | T17: 0 | U17: =SUM($D17:E17) -> 0 | V17: =SUM($D17:F17) -> 0 | W17: =SUM($D17:G17) -> 0 | X17: =SUM($D17:H17) -> 0 | Y17: =SUM($D17:I17) -> 0 | Z17: =SUM($D17:J17) -> 0 | AA17: =SUM($D17:K17) -> 0 | AB17: =SUM($D17:L17) -> 0 | AC17: =SUM($D17:M17) -> 0 | AD17: =SUM($D17:N17) -> 0 | AE17: =SUM($D17:O17) -> 0 | AG17: 705 | AH17: GWG, geringwertige Wirtschaftsgüter | AI17: 0 | AJ17: 0 | AK17: 0 | AL17: 0 | AM17: 0 | AN17: 0 | AO17: 0 | AP17: 0 | AQ17: 0 | AR17: 0
A18: aus | B18: 710 | C18: =Übersicht!C18 -> Abgaben und Beiträge | D18: =SUMIF(Einzelposten!$AH$16:$AH$215,CONCATENATE(D$1,$B18),Einzelposten!$AD$16:$AD$215) -> 0 | E18: =SUMIF(Einzelposten!$AH$16:$AH$215,CONCATENATE(E$1,$B18),Einzelposten!$AD$16:$AD$215) -> 0 | F18: =SUMIF(Einzelposten!$AH$16:$AH$215,CONCATENATE(F$1,$B18),Einzelposten!$AD$16:$AD$215) -> 0 | G18: =SUMIF(Einzelposten!$AH$16:$AH$215,CONCATENATE(G$1,$B18),Einzelposten!$AD$16:$AD$215) -> 0 | H18: =SUMIF(Einzelposten!$AH$16:$AH$215,CONCATENATE(H$1,$B18),Einzelposten!$AD$16:$AD$215) -> 0 | I18: =SUMIF(Einzelposten!$AH$16:$AH$215,CONCATENATE(I$1,$B18),Einzelposten!$AD$16:$AD$215) -> 0 | J18: =SUMIF(Einzelposten!$AH$16:$AH$215,CONCATENATE(J$1,$B18),Einzelposten!$AD$16:$AD$215) -> 0 | K18: =SUMIF(Einzelposten!$AH$16:$AH$215,CONCATENATE(K$1,$B18),Einzelposten!$AD$16:$AD$215) -> 0 | L18: =SUMIF(Einzelposten!$AH$16:$AH$215,CONCATENATE(L$1,$B18),Einzelposten!$AD$16:$AD$215) -> 0 | M18: =SUMIF(Einzelposten!$AH$16:$AH$215,CONCATENATE(M$1,$B18),Einzelposten!$AD$16:$AD$215) -> 0 | N18: =SUMIF(Einzelposten!$AH$16:$AH$215,CONCATENATE(N$1,$B18),Einzelposten!$AD$16:$AD$215) -> 0 | O18: =SUMIF(Einzelposten!$AH$16:$AH$215,CONCATENATE(O$1,$B18),Einzelposten!$AD$16:$AD$215) -> 0 | P18: 0 | R18: 710 | S18: Abgaben und Beiträge | T18: 0 | U18: =SUM($D18:E18) -> 0 | V18: =SUM($D18:F18) -> 0 | W18: =SUM($D18:G18) -> 0 | X18: =SUM($D18:H18) -> 0 | Y18: =SUM($D18:I18) -> 0 | Z18: =SUM($D18:J18) -> 0 | AA18: =SUM($D18:K18) -> 0 | AB18: =SUM($D18:L18) -> 0 | AC18: =SUM($D18:M18) -> 0 | AD18: =SUM($D18:N18) -> 0 | AE18: =SUM($D18:O18) -> 0 | AG18: 710 | AH18: Abgaben und Beiträge | AI18: 0 | AJ18: 0 | AK18: 0 | AL18: 0 | AM18: 0 | AN18: 0 | AO18: 0 | AP18: 0 | AQ18: 0 | AR18: 0
A19: aus | B19: 720 | C19: =Übersicht!C19 -> Instandhaltungen (nur Gebäude-Erhaltung) | D19: =SUMIF(Einzelposten!$AH$16:$AH$215,CONCATENATE(D$1,$B19),Einzelposten!$AD$16:$AD$215) -> 0 | E19: =SUMIF(Einzelposten!$AH$16:$AH$215,CONCATENATE(E$1,$B19),Einzelposten!$AD$16:$AD$215) -> 0 | F19: =SUMIF(Einzelposten!$AH$16:$AH$215,CONCATENATE(F$1,$B19),Einzelposten!$AD$16:$AD$215) -> 0 | G19: =SUMIF(Einzelposten!$AH$16:$AH$215,CONCATENATE(G$1,$B19),Einzelposten!$AD$16:$AD$215) -> 0 | H19: =SUMIF(Einzelposten!$AH$16:$AH$215,CONCATENATE(H$1,$B19),Einzelposten!$AD$16:$AD$215) -> 0 | I19: =SUMIF(Einzelposten!$AH$16:$AH$215,CONCATENATE(I$1,$B19),Einzelposten!$AD$16:$AD$215) -> 0 | J19: =SUMIF(Einzelposten!$AH$16:$AH$215,CONCATENATE(J$1,$B19),Einzelposten!$AD$16:$AD$215) -> 0 | K19: =SUMIF(Einzelposten!$AH$16:$AH$215,CONCATENATE(K$1,$B19),Einzelposten!$AD$16:$AD$215) -> 0 | L19: =SUMIF(Einzelposten!$AH$16:$AH$215,CONCATENATE(L$1,$B19),Einzelposten!$AD$16:$AD$215) -> 0 | M19: =SUMIF(Einzelposten!$AH$16:$AH$215,CONCATENATE(M$1,$B19),Einzelposten!$AD$16:$AD$215) -> 0 | N19: =SUMIF(Einzelposten!$AH$16:$AH$215,CONCATENATE(N$1,$B19),Einzelposten!$AD$16:$AD$215) -> 0 | O19: =SUMIF(Einzelposten!$AH$16:$AH$215,CONCATENATE(O$1,$B19),Einzelposten!$AD$16:$AD$215) -> 0 | P19: 0 | R19: 720 | S19: Instandhaltungen (nur Gebäude-Erhaltung) | T19: 0 | U19: =SUM($D19:E19) -> 0 | V19: =SUM($D19:F19) -> 0 | W19: =SUM($D19:G19) -> 0 | X19: =SUM($D19:H19) -> 0 | Y19: =SUM($D19:I19) -> 0 | Z19: =SUM($D19:J19) -> 0 | AA19: =SUM($D19:K19) -> 0 | AB19: =SUM($D19:L19) -> 0 | AC19: =SUM($D19:M19) -> 0 | AD19: =SUM($D19:N19) -> 0 | AE19: =SUM($D19:O19) -> 0 | AG19: 720 | AH19: Instandhaltungen (nur Gebäude-Erhaltung) | AI19: 0 | AJ19: 0 | AK19: 0 | AL19: 0 | AM19: 0 | AN19: 0 | AO19: 0 | AP19: 0 | AQ19: 0 | AR19: 0
A20: aus | B20: 725 | C20: =Übersicht!C20 -> Energieaufwand, Betriebskosten, Kleinmat. | D20: =SUMIF(Einzelposten!$AH$16:$AH$215,CONCATENATE(D$1,$B20),Einzelposten!$AD$16:$AD$215) -> 0 | E20: =SUMIF(Einzelposten!$AH$16:$AH$215,CONCATENATE(E$1,$B20),Einzelposten!$AD$16:$AD$215) -> 0 | F20: =SUMIF(Einzelposten!$AH$16:$AH$215,CONCATENATE(F$1,$B20),Einzelposten!$AD$16:$AD$215) -> 0 | G20: =SUMIF(Einzelposten!$AH$16:$AH$215,CONCATENATE(G$1,$B20),Einzelposten!$AD$16:$AD$215) -> 0 | H20: =SUMIF(Einzelposten!$AH$16:$AH$215,CONCATENATE(H$1,$B20),Einzelposten!$AD$16:$AD$215) -> 0 | I20: =SUMIF(Einzelposten!$AH$16:$AH$215,CONCATENATE(I$1,$B20),Einzelposten!$AD$16:$AD$215) -> 0 | J20: =SUMIF(Einzelposten!$AH$16:$AH$215,CONCATENATE(J$1,$B20),Einzelposten!$AD$16:$AD$215) -> 0 | K20: =SUMIF(Einzelposten!$AH$16:$AH$215,CONCATENATE(K$1,$B20),Einzelposten!$AD$16:$AD$215) -> 0 | L20: =SUMIF(Einzelposten!$AH$16:$AH$215,CONCATENATE(L$1,$B20),Einzelposten!$AD$16:$AD$215) -> 0 | M20: =SUMIF(Einzelposten!$AH$16:$AH$215,CONCATENATE(M$1,$B20),Einzelposten!$AD$16:$AD$215) -> 0 | N20: =SUMIF(Einzelposten!$AH$16:$AH$215,CONCATENATE(N$1,$B20),Einzelposten!$AD$16:$AD$215) -> 0 | O20: =SUMIF(Einzelposten!$AH$16:$AH$215,CONCATENATE(O$1,$B20),Einzelposten!$AD$16:$AD$215) -> 0 | P20: 0 | R20: 725 | S20: Energieaufwand, Betriebskosten, Kleinmat. | T20: 0 | U20: =SUM($D20:E20) -> 0 | V20: =SUM($D20:F20) -> 0 | W20: =SUM($D20:G20) -> 0 | X20: =SUM($D20:H20) -> 0 | Y20: =SUM($D20:I20) -> 0 | Z20: =SUM($D20:J20) -> 0 | AA20: =SUM($D20:K20) -> 0 | AB20: =SUM($D20:L20) -> 0 | AC20: =SUM($D20:M20) -> 0 | AD20: =SUM($D20:N20) -> 0 | AE20: =SUM($D20:O20) -> 0 | AG20: 725 | AH20: Energieaufwand, Betriebskosten, Kleinmat. | AI20: 0 | AJ20: 0 | AK20: 0 | AL20: 0 | AM20: 0 | AN20: 0 | AO20: 0 | AP20: 0 | AQ20: 0 | AR20: 0
A21: aus | B21: 730 | C21: =Übersicht!C21 -> Porto-, Fracht-, Transportaufwand d. Dritte | D21: =SUMIF(Einzelposten!$AH$16:$AH$215,CONCATENATE(D$1,$B21),Einzelposten!$AD$16:$AD$215) -> 0 | E21: =SUMIF(Einzelposten!$AH$16:$AH$215,CONCATENATE(E$1,$B21),Einzelposten!$AD$16:$AD$215) -> 0 | F21: =SUMIF(Einzelposten!$AH$16:$AH$215,CONCATENATE(F$1,$B21),Einzelposten!$AD$16:$AD$215) -> 0 | G21: =SUMIF(Einzelposten!$AH$16:$AH$215,CONCATENATE(G$1,$B21),Einzelposten!$AD$16:$AD$215) -> 0 | H21: =SUMIF(Einzelposten!$AH$16:$AH$215,CONCATENATE(H$1,$B21),Einzelposten!$AD$16:$AD$215) -> 0 | I21: =SUMIF(Einzelposten!$AH$16:$AH$215,CONCATENATE(I$1,$B21),Einzelposten!$AD$16:$AD$215) -> 0 | J21: =SUMIF(Einzelposten!$AH$16:$AH$215,CONCATENATE(J$1,$B21),Einzelposten!$AD$16:$AD$215) -> 0 | K21: =SUMIF(Einzelposten!$AH$16:$AH$215,CONCATENATE(K$1,$B21),Einzelposten!$AD$16:$AD$215) -> 0 | L21: =SUMIF(Einzelposten!$AH$16:$AH$215,CONCATENATE(L$1,$B21),Einzelposten!$AD$16:$AD$215) -> 0 | M21: =SUMIF(Einzelposten!$AH$16:$AH$215,CONCATENATE(M$1,$B21),Einzelposten!$AD$16:$AD$215) -> 0 | N21: =SUMIF(Einzelposten!$AH$16:$AH$215,CONCATENATE(N$1,$B21),Einzelposten!$AD$16:$AD$215) -> 0 | O21: =SUMIF(Einzelposten!$AH$16:$AH$215,CONCATENATE(O$1,$B21),Einzelposten!$AD$16:$AD$215) -> 0 | P21: 0 | R21: 730 | S21: Porto-, Fracht-, Transportaufwand d. Dritte | T21: 0 | U21: =SUM($D21:E21) -> 0 | V21: =SUM($D21:F21) -> 0 | W21: =SUM($D21:G21) -> 0 | X21: =SUM($D21:H21) -> 0 | Y21: =SUM($D21:I21) -> 0 | Z21: =SUM($D21:J21) -> 0 | AA21: =SUM($D21:K21) -> 0 | AB21: =SUM($D21:L21) -> 0 | AC21: =SUM($D21:M21) -> 0 | AD21: =SUM($D21:N21) -> 0 | AE21: =SUM($D21:O21) -> 0 | AG21: 730 | AH21: Porto-, Fracht-, Transportaufwand d. Dritte | AI21: 0 | AJ21: 0 | AK21: 0 | AL21: 0 | AM21: 0 | AN21: 0 | AO21: 0 | AP21: 0 | AQ21: 0 | AR21: 0
A22: aus | B22: 732 | C22: =Übersicht!C22 -> KFZ-Aufwand (ohne AfA, Leasing u. Kilometergeld | D22: =SUMIF(Einzelposten!$AH$16:$AH$215,CONCATENATE(D$1,$B22),Einzelposten!$AD$16:$AD$215) -> 0 | E22: =SUMIF(Einzelposten!$AH$16:$AH$215,CONCATENATE(E$1,$B22),Einzelposten!$AD$16:$AD$215) -> 0 | F22: =SUMIF(Einzelposten!$AH$16:$AH$215,CONCATENATE(F$1,$B22),Einzelposten!$AD$16:$AD$215) -> 0 | G22: =SUMIF(Einzelposten!$AH$16:$AH$215,CONCATENATE(G$1,$B22),Einzelposten!$AD$16:$AD$215) -> 0 | H22: =SUMIF(Einzelposten!$AH$16:$AH$215,CONCATENATE(H$1,$B22),Einzelposten!$AD$16:$AD$215) -> 0 | I22: =SUMIF(Einzelposten!$AH$16:$AH$215,CONCATENATE(I$1,$B22),Einzelposten!$AD$16:$AD$215) -> 0 | J22: =SUMIF(Einzelposten!$AH$16:$AH$215,CONCATENATE(J$1,$B22),Einzelposten!$AD$16:$AD$215) -> 0 | K22: =SUMIF(Einzelposten!$AH$16:$AH$215,CONCATENATE(K$1,$B22),Einzelposten!$AD$16:$AD$215) -> 0 | L22: =SUMIF(Einzelposten!$AH$16:$AH$215,CONCATENATE(L$1,$B22),Einzelposten!$AD$16:$AD$215) -> 0 | M22: =SUMIF(Einzelposten!$AH$16:$AH$215,CONCATENATE(M$1,$B22),Einzelposten!$AD$16:$AD$215) -> -5.9 | N22: =SUMIF(Einzelposten!$AH$16:$AH$215,CONCATENATE(N$1,$B22),Einzelposten!$AD$16:$AD$215) -> 0 | O22: =SUMIF(Einzelposten!$AH$16:$AH$215,CONCATENATE(O$1,$B22),Einzelposten!$AD$16:$AD$215) -> 0 | P22: -5.9 | R22: 732 | S22: KFZ-Aufwand (ohne AfA, Leasing u. Kilometergeld | T22: 0 | U22: =SUM($D22:E22) -> 0 | V22: =SUM($D22:F22) -> 0 | W22: =SUM($D22:G22) -> 0 | X22: =SUM($D22:H22) -> 0 | Y22: =SUM($D22:I22) -> 0 | Z22: =SUM($D22:J22) -> 0 | AA22: =SUM($D22:K22) -> 0 | AB22: =SUM($D22:L22) -> 0 | AC22: =SUM($D22:M22) -> -5.9 | AD22: =SUM($D22:N22) -> -5.9 | AE22: =SUM($D22:O22) -> -5.9 | AG22: 732 | AH22: KFZ-Aufwand (ohne AfA, Leasing u. Kilometergeld | AI22: 0 | AJ22: 0 | AK22: 0 | AL22: 0 | AM22: 0 | AN22: 0 | AO22: 0 | AP22: 0 | AQ22: 0 | AR22: 0
A23: aus | B23: 735 | C23: =Übersicht!C23 -> Reise-, Fahrtspesen, Taggelder (inkl. Kilometergelder) | D23: =SUMIF(Einzelposten!$AH$16:$AH$215,CONCATENATE(D$1,$B23),Einzelposten!$AD$16:$AD$215) -> 0 | E23: =SUMIF(Einzelposten!$AH$16:$AH$215,CONCATENATE(E$1,$B23),Einzelposten!$AD$16:$AD$215) -> 0 | F23: =SUMIF(Einzelposten!$AH$16:$AH$215,CONCATENATE(F$1,$B23),Einzelposten!$AD$16:$AD$215) -> 0 | G23: =SUMIF(Einzelposten!$AH$16:$AH$215,CONCATENATE(G$1,$B23),Einzelposten!$AD$16:$AD$215) -> 0 | H23: =SUMIF(Einzelposten!$AH$16:$AH$215,CONCATENATE(H$1,$B23),Einzelposten!$AD$16:$AD$215) -> 0 | I23: =SUMIF(Einzelposten!$AH$16:$AH$215,CONCATENATE(I$1,$B23),Einzelposten!$AD$16:$AD$215) -> 0 | J23: =SUMIF(Einzelposten!$AH$16:$AH$215,CONCATENATE(J$1,$B23),Einzelposten!$AD$16:$AD$215) -> 0 | K23: =SUMIF(Einzelposten!$AH$16:$AH$215,CONCATENATE(K$1,$B23),Einzelposten!$AD$16:$AD$215) -> 0 | L23: =SUMIF(Einzelposten!$AH$16:$AH$215,CONCATENATE(L$1,$B23),Einzelposten!$AD$16:$AD$215) -> 0 | M23: =SUMIF(Einzelposten!$AH$16:$AH$215,CONCATENATE(M$1,$B23),Einzelposten!$AD$16:$AD$215) -> 0 | N23: =SUMIF(Einzelposten!$AH$16:$AH$215,CONCATENATE(N$1,$B23),Einzelposten!$AD$16:$AD$215) -> 0 | O23: =SUMIF(Einzelposten!$AH$16:$AH$215,CONCATENATE(O$1,$B23),Einzelposten!$AD$16:$AD$215) -> 0 | P23: 0 | R23: 735 | S23: Reise-, Fahrtspesen, Taggelder (inkl. Kilometergelder) | T23: 0 | U23: =SUM($D23:E23) -> 0 | V23: =SUM($D23:F23) -> 0 | W23: =SUM($D23:G23) -> 0 | X23: =SUM($D23:H23) -> 0 | Y23: =SUM($D23:I23) -> 0 | Z23: =SUM($D23:J23) -> 0 | AA23: =SUM($D23:K23) -> 0 | AB23: =SUM($D23:L23) -> 0 | AC23: =SUM($D23:M23) -> 0 | AD23: =SUM($D23:N23) -> 0 | AE23: =SUM($D23:O23) -> 0 | AG23: 735 | AH23: Reise-, Fahrtspesen, Taggelder (inkl. Kilometergelder) | AI23: 0 | AJ23: 0 | AK23: 0 | AL23: 0 | AM23: 0 | AN23: 0 | AO23: 0 | AP23: 0 | AQ23: 0 | AR23: 0
A24: aus | B24: 739 | C24: =Übersicht!C24 -> Telekommunikation | D24: =SUMIF(Einzelposten!$AH$16:$AH$215,CONCATENATE(D$1,$B24),Einzelposten!$AD$16:$AD$215) -> 0 | E24: =SUMIF(Einzelposten!$AH$16:$AH$215,CONCATENATE(E$1,$B24),Einzelposten!$AD$16:$AD$215) -> 0 | F24: =SUMIF(Einzelposten!$AH$16:$AH$215,CONCATENATE(F$1,$B24),Einzelposten!$AD$16:$AD$215) -> 0 | G24: =SUMIF(Einzelposten!$AH$16:$AH$215,CONCATENATE(G$1,$B24),Einzelposten!$AD$16:$AD$215) -> 0 | H24: =SUMIF(Einzelposten!$AH$16:$AH$215,CONCATENATE(H$1,$B24),Einzelposten!$AD$16:$AD$215) -> 0 | I24: =SUMIF(Einzelposten!$AH$16:$AH$215,CONCATENATE(I$1,$B24),Einzelposten!$AD$16:$AD$215) -> 0 | J24: =SUMIF(Einzelposten!$AH$16:$AH$215,CONCATENATE(J$1,$B24),Einzelposten!$AD$16:$AD$215) -> 0 | K24: =SUMIF(Einzelposten!$AH$16:$AH$215,CONCATENATE(K$1,$B24),Einzelposten!$AD$16:$AD$215) -> 0 | L24: =SUMIF(Einzelposten!$AH$16:$AH$215,CONCATENATE(L$1,$B24),Einzelposten!$AD$16:$AD$215) -> 0 | M24: =SUMIF(Einzelposten!$AH$16:$AH$215,CONCATENATE(M$1,$B24),Einzelposten!$AD$16:$AD$215) -> 0 | N24: =SUMIF(Einzelposten!$AH$16:$AH$215,CONCATENATE(N$1,$B24),Einzelposten!$AD$16:$AD$215) -> 0 | O24: =SUMIF(Einzelposten!$AH$16:$AH$215,CONCATENATE(O$1,$B24),Einzelposten!$AD$16:$AD$215) -> 0 | P24: 0 | R24: 739 | S24: Telekommunikation | T24: 0 | U24: =SUM($D24:E24) -> 0 | V24: =SUM($D24:F24) -> 0 | W24: =SUM($D24:G24) -> 0 | X24: =SUM($D24:H24) -> 0 | Y24: =SUM($D24:I24) -> 0 | Z24: =SUM($D24:J24) -> 0 | AA24: =SUM($D24:K24) -> 0 | AB24: =SUM($D24:L24) -> 0 | AC24: =SUM($D24:M24) -> 0 | AD24: =SUM($D24:N24) -> 0 | AE24: =SUM($D24:O24) -> 0 | AG24: 739 | AH24: Telekommunikation | AI24: 0 | AJ24: 0 | AK24: 0 | AL24: 0 | AM24: 0 | AN24: 0 | AO24: 0 | AP24: 0 | AQ24: 0 | AR24: 0
A25: aus | B25: 740 | C25: =Übersicht!C25 -> Geschäftsmieten, Leasing, Raumkosten | D25: =SUMIF(Einzelposten!$AH$16:$AH$215,CONCATENATE(D$1,$B25),Einzelposten!$AD$16:$AD$215) -> 0 | E25: =SUMIF(Einzelposten!$AH$16:$AH$215,CONCATENATE(E$1,$B25),Einzelposten!$AD$16:$AD$215) -> 0 | F25: =SUMIF(Einzelposten!$AH$16:$AH$215,CONCATENATE(F$1,$B25),Einzelposten!$AD$16:$AD$215) -> 0 | G25: =SUMIF(Einzelposten!$AH$16:$AH$215,CONCATENATE(G$1,$B25),Einzelposten!$AD$16:$AD$215) -> 0 | H25: =SUMIF(Einzelposten!$AH$16:$AH$215,CONCATENATE(H$1,$B25),Einzelposten!$AD$16:$AD$215) -> 0 | I25: =SUMIF(Einzelposten!$AH$16:$AH$215,CONCATENATE(I$1,$B25),Einzelposten!$AD$16:$AD$215) -> 0 | J25: =SUMIF(Einzelposten!$AH$16:$AH$215,CONCATENATE(J$1,$B25),Einzelposten!$AD$16:$AD$215) -> 0 | K25: =SUMIF(Einzelposten!$AH$16:$AH$215,CONCATENATE(K$1,$B25),Einzelposten!$AD$16:$AD$215) -> 0 | L25: =SUMIF(Einzelposten!$AH$16:$AH$215,CONCATENATE(L$1,$B25),Einzelposten!$AD$16:$AD$215) -> 0 | M25: =SUMIF(Einzelposten!$AH$16:$AH$215,CONCATENATE(M$1,$B25),Einzelposten!$AD$16:$AD$215) -> 0 | N25: =SUMIF(Einzelposten!$AH$16:$AH$215,CONCATENATE(N$1,$B25),Einzelposten!$AD$16:$AD$215) -> 0 | O25: =SUMIF(Einzelposten!$AH$16:$AH$215,CONCATENATE(O$1,$B25),Einzelposten!$AD$16:$AD$215) -> 0 | P25: 0 | R25: 740 | S25: Geschäftsmieten, Leasing, Raumkosten | T25: 0 | U25: =SUM($D25:E25) -> 0 | V25: =SUM($D25:F25) -> 0 | W25: =SUM($D25:G25) -> 0 | X25: =SUM($D25:H25) -> 0 | Y25: =SUM($D25:I25) -> 0 | Z25: =SUM($D25:J25) -> 0 | AA25: =SUM($D25:K25) -> 0 | AB25: =SUM($D25:L25) -> 0 | AC25: =SUM($D25:M25) -> 0 | AD25: =SUM($D25:N25) -> 0 | AE25: =SUM($D25:O25) -> 0 | AG25: 740 | AH25: Geschäftsmieten, Leasing, Raumkosten | AI25: 0 | AJ25: 0 | AK25: 0 | AL25: 0 | AM25: 0 | AN25: 0 | AO25: 0 | AP25: 0 | AQ25: 0 | AR25: 0
A26: aus | B26: 741 | C26: =Übersicht!C26 -> KFZ-Mieten/-Leasing (PkW und LKW) | D26: =SUMIF(Einzelposten!$AH$16:$AH$215,CONCATENATE(D$1,$B26),Einzelposten!$AD$16:$AD$215) -> 0 | E26: =SUMIF(Einzelposten!$AH$16:$AH$215,CONCATENATE(E$1,$B26),Einzelposten!$AD$16:$AD$215) -> 0 | F26: =SUMIF(Einzelposten!$AH$16:$AH$215,CONCATENATE(F$1,$B26),Einzelposten!$AD$16:$AD$215) -> 0 | G26: =SUMIF(Einzelposten!$AH$16:$AH$215,CONCATENATE(G$1,$B26),Einzelposten!$AD$16:$AD$215) -> 0 | H26: =SUMIF(Einzelposten!$AH$16:$AH$215,CONCATENATE(H$1,$B26),Einzelposten!$AD$16:$AD$215) -> 0 | I26: =SUMIF(Einzelposten!$AH$16:$AH$215,CONCATENATE(I$1,$B26),Einzelposten!$AD$16:$AD$215) -> 0 | J26: =SUMIF(Einzelposten!$AH$16:$AH$215,CONCATENATE(J$1,$B26),Einzelposten!$AD$16:$AD$215) -> 0 | K26: =SUMIF(Einzelposten!$AH$16:$AH$215,CONCATENATE(K$1,$B26),Einzelposten!$AD$16:$AD$215) -> 0 | L26: =SUMIF(Einzelposten!$AH$16:$AH$215,CONCATENATE(L$1,$B26),Einzelposten!$AD$16:$AD$215) -> 0 | M26: =SUMIF(Einzelposten!$AH$16:$AH$215,CONCATENATE(M$1,$B26),Einzelposten!$AD$16:$AD$215) -> 0 | N26: =SUMIF(Einzelposten!$AH$16:$AH$215,CONCATENATE(N$1,$B26),Einzelposten!$AD$16:$AD$215) -> 0 | O26: =SUMIF(Einzelposten!$AH$16:$AH$215,CONCATENATE(O$1,$B26),Einzelposten!$AD$16:$AD$215) -> 0 | P26: 0 | R26: 741 | S26: KFZ-Mieten/-Leasing (PkW und LKW) | T26: 0 | U26: =SUM($D26:E26) -> 0 | V26: =SUM($D26:F26) -> 0 | W26: =SUM($D26:G26) -> 0 | X26: =SUM($D26:H26) -> 0 | Y26: =SUM($D26:I26) -> 0 | Z26: =SUM($D26:J26) -> 0 | AA26: =SUM($D26:K26) -> 0 | AB26: =SUM($D26:L26) -> 0 | AC26: =SUM($D26:M26) -> 0 | AD26: =SUM($D26:N26) -> 0 | AE26: =SUM($D26:O26) -> 0 | AG26: 741 | AH26: KFZ-Mieten/-Leasing (PkW und LKW) | AI26: 0 | AJ26: 0 | AK26: 0 | AL26: 0 | AM26: 0 | AN26: 0 | AO26: 0 | AP26: 0 | AQ26: 0 | AR26: 0
A27: aus | B27: 748 | C27: =Übersicht!C27 -> Lizenz- u. Wartungsgebühren, Provisionen | D27: =SUMIF(Einzelposten!$AH$16:$AH$215,CONCATENATE(D$1,$B27),Einzelposten!$AD$16:$AD$215) -> 0 | E27: =SUMIF(Einzelposten!$AH$16:$AH$215,CONCATENATE(E$1,$B27),Einzelposten!$AD$16:$AD$215) -> 0 | F27: =SUMIF(Einzelposten!$AH$16:$AH$215,CONCATENATE(F$1,$B27),Einzelposten!$AD$16:$AD$215) -> 0 | G27: =SUMIF(Einzelposten!$AH$16:$AH$215,CONCATENATE(G$1,$B27),Einzelposten!$AD$16:$AD$215) -> 0 | H27: =SUMIF(Einzelposten!$AH$16:$AH$215,CONCATENATE(H$1,$B27),Einzelposten!$AD$16:$AD$215) -> 0 | I27: =SUMIF(Einzelposten!$AH$16:$AH$215,CONCATENATE(I$1,$B27),Einzelposten!$AD$16:$AD$215) -> 0 | J27: =SUMIF(Einzelposten!$AH$16:$AH$215,CONCATENATE(J$1,$B27),Einzelposten!$AD$16:$AD$215) -> 0 | K27: =SUMIF(Einzelposten!$AH$16:$AH$215,CONCATENATE(K$1,$B27),Einzelposten!$AD$16:$AD$215) -> 0 | L27: =SUMIF(Einzelposten!$AH$16:$AH$215,CONCATENATE(L$1,$B27),Einzelposten!$AD$16:$AD$215) -> 0 | M27: =SUMIF(Einzelposten!$AH$16:$AH$215,CONCATENATE(M$1,$B27),Einzelposten!$AD$16:$AD$215) -> 0 | N27: =SUMIF(Einzelposten!$AH$16:$AH$215,CONCATENATE(N$1,$B27),Einzelposten!$AD$16:$AD$215) -> 0 | O27: =SUMIF(Einzelposten!$AH$16:$AH$215,CONCATENATE(O$1,$B27),Einzelposten!$AD$16:$AD$215) -> 0 | P27: 0 | R27: 748 | S27: Lizenz- u. Wartungsgebühren, Provisionen | T27: 0 | U27: =SUM($D27:E27) -> 0 | V27: =SUM($D27:F27) -> 0 | W27: =SUM($D27:G27) -> 0 | X27: =SUM($D27:H27) -> 0 | Y27: =SUM($D27:I27) -> 0 | Z27: =SUM($D27:J27) -> 0 | AA27: =SUM($D27:K27) -> 0 | AB27: =SUM($D27:L27) -> 0 | AC27: =SUM($D27:M27) -> 0 | AD27: =SUM($D27:N27) -> 0 | AE27: =SUM($D27:O27) -> 0 | AG27: 748 | AH27: Lizenz- u. Wartungsgebühren, Provisionen | AI27: 0 | AJ27: 0 | AK27: 0 | AL27: 0 | AM27: 0 | AN27: 0 | AO27: 0 | AP27: 0 | AQ27: 0 | AR27: 0
B28: 760 | C28: =Übersicht!C28 -> Büromaterial, Fachliteratur | D28: =SUMIF(Einzelposten!$AH$16:$AH$215,CONCATENATE(D$1,$B28),Einzelposten!$AD$16:$AD$215) -> -19.17 | E28: =SUMIF(Einzelposten!$AH$16:$AH$215,CONCATENATE(E$1,$B28),Einzelposten!$AD$16:$AD$215) -> 0 | F28: =SUMIF(Einzelposten!$AH$16:$AH$215,CONCATENATE(F$1,$B28),Einzelposten!$AD$16:$AD$215) -> -47.7 | G28: =SUMIF(Einzelposten!$AH$16:$AH$215,CONCATENATE(G$1,$B28),Einzelposten!$AD$16:$AD$215) -> 0 | H28: =SUMIF(Einzelposten!$AH$16:$AH$215,CONCATENATE(H$1,$B28),Einzelposten!$AD$16:$AD$215) -> 0 | I28: =SUMIF(Einzelposten!$AH$16:$AH$215,CONCATENATE(I$1,$B28),Einzelposten!$AD$16:$AD$215) -> 0 | J28: =SUMIF(Einzelposten!$AH$16:$AH$215,CONCATENATE(J$1,$B28),Einzelposten!$AD$16:$AD$215) -> 0 | K28: =SUMIF(Einzelposten!$AH$16:$AH$215,CONCATENATE(K$1,$B28),Einzelposten!$AD$16:$AD$215) -> 0 | L28: =SUMIF(Einzelposten!$AH$16:$AH$215,CONCATENATE(L$1,$B28),Einzelposten!$AD$16:$AD$215) -> 0 | M28: =SUMIF(Einzelposten!$AH$16:$AH$215,CONCATENATE(M$1,$B28),Einzelposten!$AD$16:$AD$215) -> 0 | N28: =SUMIF(Einzelposten!$AH$16:$AH$215,CONCATENATE(N$1,$B28),Einzelposten!$AD$16:$AD$215) -> 0 | O28: =SUMIF(Einzelposten!$AH$16:$AH$215,CONCATENATE(O$1,$B28),Einzelposten!$AD$16:$AD$215) -> 0 | P28: -66.87 | R28: 760 | S28: Büromaterial, Fachliteratur | T28: -19.17 | U28: =SUM($D28:E28) -> -19.17 | V28: =SUM($D28:F28) -> -66.87 | W28: =SUM($D28:G28) -> -66.87 | X28: =SUM($D28:H28) -> -66.87 | Y28: =SUM($D28:I28) -> -66.87 | Z28: =SUM($D28:J28) -> -66.87 | AA28: =SUM($D28:K28) -> -66.87 | AB28: =SUM($D28:L28) -> -66.87 | AC28: =SUM($D28:M28) -> -66.87 | AD28: =SUM($D28:N28) -> -66.87 | AE28: =SUM($D28:O28) -> -66.87 | AG28: 760 | AH28: Büromaterial, Fachliteratur | AI28: -47.7 | AJ28: 0 | AK28: 0 | AL28: -66.87 | AM28: 0 | AN28: 0 | AO28: -47.7 | AP28: -66.87 | AQ28: -47.7 | AR28: -66.87
B29: 765 | C29: =Übersicht!C29 -> Werbung, Repräsentationen | D29: =SUMIF(Einzelposten!$AH$16:$AH$215,CONCATENATE(D$1,$B29),Einzelposten!$AD$16:$AD$215) -> 0 | E29: =SUMIF(Einzelposten!$AH$16:$AH$215,CONCATENATE(E$1,$B29),Einzelposten!$AD$16:$AD$215) -> -70 | F29: =SUMIF(Einzelposten!$AH$16:$AH$215,CONCATENATE(F$1,$B29),Einzelposten!$AD$16:$AD$215) -> 0 | G29: =SUMIF(Einzelposten!$AH$16:$AH$215,CONCATENATE(G$1,$B29),Einzelposten!$AD$16:$AD$215) -> 0 | H29: =SUMIF(Einzelposten!$AH$16:$AH$215,CONCATENATE(H$1,$B29),Einzelposten!$AD$16:$AD$215) -> 0 | I29: =SUMIF(Einzelposten!$AH$16:$AH$215,CONCATENATE(I$1,$B29),Einzelposten!$AD$16:$AD$215) -> 0 | J29: =SUMIF(Einzelposten!$AH$16:$AH$215,CONCATENATE(J$1,$B29),Einzelposten!$AD$16:$AD$215) -> 0 | K29: =SUMIF(Einzelposten!$AH$16:$AH$215,CONCATENATE(K$1,$B29),Einzelposten!$AD$16:$AD$215) -> 0 | L29: =SUMIF(Einzelposten!$AH$16:$AH$215,CONCATENATE(L$1,$B29),Einzelposten!$AD$16:$AD$215) -> 0 | M29: =SUMIF(Einzelposten!$AH$16:$AH$215,CONCATENATE(M$1,$B29),Einzelposten!$AD$16:$AD$215) -> 0 | N29: =SUMIF(Einzelposten!$AH$16:$AH$215,CONCATENATE(N$1,$B29),Einzelposten!$AD$16:$AD$215) -> 0 | O29: =SUMIF(Einzelposten!$AH$16:$AH$215,CONCATENATE(O$1,$B29),Einzelposten!$AD$16:$AD$215) -> 0 | P29: -70 | R29: 765 | S29: Werbung, Repräsentationen | T29: 0 | U29: =SUM($D29:E29) -> -70 | V29: =SUM($D29:F29) -> -70 | W29: =SUM($D29:G29) -> -70 | X29: =SUM($D29:H29) -> -70 | Y29: =SUM($D29:I29) -> -70 | Z29: =SUM($D29:J29) -> -70 | AA29: =SUM($D29:K29) -> -70 | AB29: =SUM($D29:L29) -> -70 | AC29: =SUM($D29:M29) -> -70 | AD29: =SUM($D29:N29) -> -70 | AE29: =SUM($D29:O29) -> -70 | AG29: 765 | AH29: Werbung, Repräsentationen | AI29: 0 | AJ29: 0 | AK29: 0 | AL29: -70 | AM29: 0 | AN29: 0 | AO29: 0 | AP29: -70 | AQ29: 0 | AR29: -70
B30: 770 | C30: =Übersicht!C30 -> Versicherung, Beratung, Fortbildung | D30: =SUMIF(Einzelposten!$AH$16:$AH$215,CONCATENATE(D$1,$B30),Einzelposten!$AD$16:$AD$215) -> 0 | E30: =SUMIF(Einzelposten!$AH$16:$AH$215,CONCATENATE(E$1,$B30),Einzelposten!$AD$16:$AD$215) -> 0 | F30: =SUMIF(Einzelposten!$AH$16:$AH$215,CONCATENATE(F$1,$B30),Einzelposten!$AD$16:$AD$215) -> 0 | G30: =SUMIF(Einzelposten!$AH$16:$AH$215,CONCATENATE(G$1,$B30),Einzelposten!$AD$16:$AD$215) -> 0 | H30: =SUMIF(Einzelposten!$AH$16:$AH$215,CONCATENATE(H$1,$B30),Einzelposten!$AD$16:$AD$215) -> 0 | I30: =SUMIF(Einzelposten!$AH$16:$AH$215,CONCATENATE(I$1,$B30),Einzelposten!$AD$16:$AD$215) -> 0 | J30: =SUMIF(Einzelposten!$AH$16:$AH$215,CONCATENATE(J$1,$B30),Einzelposten!$AD$16:$AD$215) -> 0 | K30: =SUMIF(Einzelposten!$AH$16:$AH$215,CONCATENATE(K$1,$B30),Einzelposten!$AD$16:$AD$215) -> 0 | L30: =SUMIF(Einzelposten!$AH$16:$AH$215,CONCATENATE(L$1,$B30),Einzelposten!$AD$16:$AD$215) -> 0 | M30: =SUMIF(Einzelposten!$AH$16:$AH$215,CONCATENATE(M$1,$B30),Einzelposten!$AD$16:$AD$215) -> 0 | N30: =SUMIF(Einzelposten!$AH$16:$AH$215,CONCATENATE(N$1,$B30),Einzelposten!$AD$16:$AD$215) -> 0 | O30: =SUMIF(Einzelposten!$AH$16:$AH$215,CONCATENATE(O$1,$B30),Einzelposten!$AD$16:$AD$215) -> 0 | P30: 0 | R30: 770 | S30: Versicherung, Beratung, Fortbildung | T30: 0 | U30: =SUM($D30:E30) -> 0 | V30: =SUM($D30:F30) -> 0 | W30: =SUM($D30:G30) -> 0 | X30: =SUM($D30:H30) -> 0 | Y30: =SUM($D30:I30) -> 0 | Z30: =SUM($D30:J30) -> 0 | AA30: =SUM($D30:K30) -> 0 | AB30: =SUM($D30:L30) -> 0 | AC30: =SUM($D30:M30) -> 0 | AD30: =SUM($D30:N30) -> 0 | AE30: =SUM($D30:O30) -> 0 | AG30: 770 | AH30: Versicherung, Beratung, Fortbildung | AI30: 0 | AJ30: 0 | AK30: 0 | AL30: 0 | AM30: 0 | AN30: 0 | AO30: 0 | AP30: 0 | AQ30: 0 | AR30: 0
B31: 771 | C31: =Übersicht!C31 -> Pflichtversicherung Unternehmer (SVA) | D31: =SUMIF(Einzelposten!$AH$16:$AH$215,CONCATENATE(D$1,$B31),Einzelposten!$AD$16:$AD$215) -> 0 | E31: =SUMIF(Einzelposten!$AH$16:$AH$215,CONCATENATE(E$1,$B31),Einzelposten!$AD$16:$AD$215) -> 0 | F31: =SUMIF(Einzelposten!$AH$16:$AH$215,CONCATENATE(F$1,$B31),Einzelposten!$AD$16:$AD$215) -> 0 | G31: =SUMIF(Einzelposten!$AH$16:$AH$215,CONCATENATE(G$1,$B31),Einzelposten!$AD$16:$AD$215) -> 0 | H31: =SUMIF(Einzelposten!$AH$16:$AH$215,CONCATENATE(H$1,$B31),Einzelposten!$AD$16:$AD$215) -> 0 | I31: =SUMIF(Einzelposten!$AH$16:$AH$215,CONCATENATE(I$1,$B31),Einzelposten!$AD$16:$AD$215) -> 0 | J31: =SUMIF(Einzelposten!$AH$16:$AH$215,CONCATENATE(J$1,$B31),Einzelposten!$AD$16:$AD$215) -> 0 | K31: =SUMIF(Einzelposten!$AH$16:$AH$215,CONCATENATE(K$1,$B31),Einzelposten!$AD$16:$AD$215) -> 0 | L31: =SUMIF(Einzelposten!$AH$16:$AH$215,CONCATENATE(L$1,$B31),Einzelposten!$AD$16:$AD$215) -> 0 | M31: =SUMIF(Einzelposten!$AH$16:$AH$215,CONCATENATE(M$1,$B31),Einzelposten!$AD$16:$AD$215) -> 0 | N31: =SUMIF(Einzelposten!$AH$16:$AH$215,CONCATENATE(N$1,$B31),Einzelposten!$AD$16:$AD$215) -> 0 | O31: =SUMIF(Einzelposten!$AH$16:$AH$215,CONCATENATE(O$1,$B31),Einzelposten!$AD$16:$AD$215) -> 0 | P31: 0 | R31: 771 | S31: Pflichtversicherung Unternehmer (SVA) | T31: 0 | U31: =SUM($D31:E31) -> 0 | V31: =SUM($D31:F31) -> 0 | W31: =SUM($D31:G31) -> 0 | X31: =SUM($D31:H31) -> 0 | Y31: =SUM($D31:I31) -> 0 | Z31: =SUM($D31:J31) -> 0 | AA31: =SUM($D31:K31) -> 0 | AB31: =SUM($D31:L31) -> 0 | AC31: =SUM($D31:M31) -> 0 | AD31: =SUM($D31:N31) -> 0 | AE31: =SUM($D31:O31) -> 0 | AG31: 771 | AH31: Pflichtversicherung Unternehmer (SVA) | AI31: 0 | AJ31: 0 | AK31: 0 | AL31: 0 | AM31: -1200 | AN31: -1000 | AO31: 0 | AP31: 1200 | AQ31: 0 | AR31: 1000
B32: 780 | C32: =Übersicht!C32 -> Spesen des Geldverkehrs | D32: =SUMIF(Einzelposten!$AH$16:$AH$215,CONCATENATE(D$1,$B32),Einzelposten!$AD$16:$AD$215) -> 0 | E32: =SUMIF(Einzelposten!$AH$16:$AH$215,CONCATENATE(E$1,$B32),Einzelposten!$AD$16:$AD$215) -> 0 | F32: =SUMIF(Einzelposten!$AH$16:$AH$215,CONCATENATE(F$1,$B32),Einzelposten!$AD$16:$AD$215) -> 0 | G32: =SUMIF(Einzelposten!$AH$16:$AH$215,CONCATENATE(G$1,$B32),Einzelposten!$AD$16:$AD$215) -> 0 | H32: =SUMIF(Einzelposten!$AH$16:$AH$215,CONCATENATE(H$1,$B32),Einzelposten!$AD$16:$AD$215) -> 0 | I32: =SUMIF(Einzelposten!$AH$16:$AH$215,CONCATENATE(I$1,$B32),Einzelposten!$AD$16:$AD$215) -> 0 | J32: =SUMIF(Einzelposten!$AH$16:$AH$215,CONCATENATE(J$1,$B32),Einzelposten!$AD$16:$AD$215) -> 0 | K32: =SUMIF(Einzelposten!$AH$16:$AH$215,CONCATENATE(K$1,$B32),Einzelposten!$AD$16:$AD$215) -> 0 | L32: =SUMIF(Einzelposten!$AH$16:$AH$215,CONCATENATE(L$1,$B32),Einzelposten!$AD$16:$AD$215) -> 0 | M32: =SUMIF(Einzelposten!$AH$16:$AH$215,CONCATENATE(M$1,$B32),Einzelposten!$AD$16:$AD$215) -> 0 | N32: =SUMIF(Einzelposten!$AH$16:$AH$215,CONCATENATE(N$1,$B32),Einzelposten!$AD$16:$AD$215) -> 0 | O32: =SUMIF(Einzelposten!$AH$16:$AH$215,CONCATENATE(O$1,$B32),Einzelposten!$AD$16:$AD$215) -> 0 | P32: 0 | R32: 780 | S32: Spesen des Geldverkehrs | T32: 0 | U32: =SUM($D32:E32) -> 0 | V32: =SUM($D32:F32) -> 0 | W32: =SUM($D32:G32) -> 0 | X32: =SUM($D32:H32) -> 0 | Y32: =SUM($D32:I32) -> 0 | Z32: =SUM($D32:J32) -> 0 | AA32: =SUM($D32:K32) -> 0 | AB32: =SUM($D32:L32) -> 0 | AC32: =SUM($D32:M32) -> 0 | AD32: =SUM($D32:N32) -> 0 | AE32: =SUM($D32:O32) -> 0 | AG32: 780 | AH32: Spesen des Geldverkehrs | AI32: 0 | AJ32: 0 | AK32: 0 | AL32: 0 | AM32: 0 | AN32: 0 | AO32: 0 | AP32: 0 | AQ32: 0 | AR32: 0
B33: 790 | C33: =Übersicht!C33 -> sonstige Aufwendungen | D33: =SUMIF(Einzelposten!$AH$16:$AH$215,CONCATENATE(D$1,$B33),Einzelposten!$AD$16:$AD$215) -> 0 | E33: =SUMIF(Einzelposten!$AH$16:$AH$215,CONCATENATE(E$1,$B33),Einzelposten!$AD$16:$AD$215) -> 0 | F33: =SUMIF(Einzelposten!$AH$16:$AH$215,CONCATENATE(F$1,$B33),Einzelposten!$AD$16:$AD$215) -> 0 | G33: =SUMIF(Einzelposten!$AH$16:$AH$215,CONCATENATE(G$1,$B33),Einzelposten!$AD$16:$AD$215) -> 0 | H33: =SUMIF(Einzelposten!$AH$16:$AH$215,CONCATENATE(H$1,$B33),Einzelposten!$AD$16:$AD$215) -> 0 | I33: =SUMIF(Einzelposten!$AH$16:$AH$215,CONCATENATE(I$1,$B33),Einzelposten!$AD$16:$AD$215) -> 0 | J33: =SUMIF(Einzelposten!$AH$16:$AH$215,CONCATENATE(J$1,$B33),Einzelposten!$AD$16:$AD$215) -> 0 | K33: =SUMIF(Einzelposten!$AH$16:$AH$215,CONCATENATE(K$1,$B33),Einzelposten!$AD$16:$AD$215) -> 0 | L33: =SUMIF(Einzelposten!$AH$16:$AH$215,CONCATENATE(L$1,$B33),Einzelposten!$AD$16:$AD$215) -> 0 | M33: =SUMIF(Einzelposten!$AH$16:$AH$215,CONCATENATE(M$1,$B33),Einzelposten!$AD$16:$AD$215) -> 0 | N33: =SUMIF(Einzelposten!$AH$16:$AH$215,CONCATENATE(N$1,$B33),Einzelposten!$AD$16:$AD$215) -> 0 | O33: =SUMIF(Einzelposten!$AH$16:$AH$215,CONCATENATE(O$1,$B33),Einzelposten!$AD$16:$AD$215) -> 0 | P33: 0 | R33: 790 | S33: sonstige Aufwendungen | T33: 0 | U33: =SUM($D33:E33) -> 0 | V33: =SUM($D33:F33) -> 0 | W33: =SUM($D33:G33) -> 0 | X33: =SUM($D33:H33) -> 0 | Y33: =SUM($D33:I33) -> 0 | Z33: =SUM($D33:J33) -> 0 | AA33: =SUM($D33:K33) -> 0 | AB33: =SUM($D33:L33) -> 0 | AC33: =SUM($D33:M33) -> 0 | AD33: =SUM($D33:N33) -> 0 | AE33: =SUM($D33:O33) -> 0 | AG33: 790 | AH33: sonstige Aufwendungen | AI33: 0 | AJ33: -500 | AK33: -400 | AL33: 0 | AM33: -1500 | AN33: -1200 | AO33: 500 | AP33: 1500 | AQ33: 400 | AR33: 1200
B34: 830 | C34: =Übersicht!C34 -> Zinsen und ähnliche Aufwendungen | D34: =SUMIF(Einzelposten!$AH$16:$AH$215,CONCATENATE(D$1,$B34),Einzelposten!$AD$16:$AD$215) -> 0 | E34: =SUMIF(Einzelposten!$AH$16:$AH$215,CONCATENATE(E$1,$B34),Einzelposten!$AD$16:$AD$215) -> 0 | F34: =SUMIF(Einzelposten!$AH$16:$AH$215,CONCATENATE(F$1,$B34),Einzelposten!$AD$16:$AD$215) -> 0 | G34: =SUMIF(Einzelposten!$AH$16:$AH$215,CONCATENATE(G$1,$B34),Einzelposten!$AD$16:$AD$215) -> 0 | H34: =SUMIF(Einzelposten!$AH$16:$AH$215,CONCATENATE(H$1,$B34),Einzelposten!$AD$16:$AD$215) -> 0 | I34: =SUMIF(Einzelposten!$AH$16:$AH$215,CONCATENATE(I$1,$B34),Einzelposten!$AD$16:$AD$215) -> 0 | J34: =SUMIF(Einzelposten!$AH$16:$AH$215,CONCATENATE(J$1,$B34),Einzelposten!$AD$16:$AD$215) -> 0 | K34: =SUMIF(Einzelposten!$AH$16:$AH$215,CONCATENATE(K$1,$B34),Einzelposten!$AD$16:$AD$215) -> 0 | L34: =SUMIF(Einzelposten!$AH$16:$AH$215,CONCATENATE(L$1,$B34),Einzelposten!$AD$16:$AD$215) -> 0 | M34: =SUMIF(Einzelposten!$AH$16:$AH$215,CONCATENATE(M$1,$B34),Einzelposten!$AD$16:$AD$215) -> 0 | N34: =SUMIF(Einzelposten!$AH$16:$AH$215,CONCATENATE(N$1,$B34),Einzelposten!$AD$16:$AD$215) -> 0 | O34: =SUMIF(Einzelposten!$AH$16:$AH$215,CONCATENATE(O$1,$B34),Einzelposten!$AD$16:$AD$215) -> 0 | P34: 0 | R34: 830 | S34: Zinsen und ähnliche Aufwendungen | T34: 0 | U34: =SUM($D34:E34) -> 0 | V34: =SUM($D34:F34) -> 0 | W34: =SUM($D34:G34) -> 0 | X34: =SUM($D34:H34) -> 0 | Y34: =SUM($D34:I34) -> 0 | Z34: =SUM($D34:J34) -> 0 | AA34: =SUM($D34:K34) -> 0 | AB34: =SUM($D34:L34) -> 0 | AC34: =SUM($D34:M34) -> 0 | AD34: =SUM($D34:N34) -> 0 | AE34: =SUM($D34:O34) -> 0 | AG34: 830 | AH34: Zinsen und ähnliche Aufwendungen | AI34: 0 | AJ34: 0 | AK34: 0 | AL34: 0 | AM34: 0 | AN34: 0 | AO34: 0 | AP34: 0 | AQ34: 0 | AR34: 0
C35: =IF(P35<0," V e r l u s t"," G e w i n n ( Ü b e r s c h u s s )") -> G e w i n n ( Ü b e r s c h u s s ) | D35: =SUM(D3:D34) -> 64.16 | E35: -570 | F35: 2118.97 | G35: 0 | H35: 0 | I35: 0 | J35: 0 | K35: 0 | L35: 0 | M35: -5.9 | N35: 0 | O35: 0 | P35: 1607.23 | S35: =C35 -> G e w i n n ( Ü b e r s c h u s s ) | T35: =D35 -> 64.16 | U35: =SUM($D35:E35) -> -505.84 | V35: =SUM($D35:F35) -> 1613.13 | W35: =SUM($D35:G35) -> 1613.13 | X35: =SUM($D35:H35) -> 1613.13 | Y35: =SUM($D35:I35) -> 1613.13 | Z35: =SUM($D35:J35) -> 1613.13 | AA35: =SUM($D35:K35) -> 1613.13 | AB35: =SUM($D35:L35) -> 1613.13 | AC35: =SUM($D35:M35) -> 1607.23 | AD35: =SUM($D35:N35) -> 1607.23 | AE35: =SUM($D35:O35) -> 1607.23 | AH35: G e w i n n (+) / V e r l u s t (-) | AI35: =SUM(AI3:AI34) -> 2118.97 | AJ35: 1750 | AK35: 1850 | AL35: 1613.13 | AM35: 4130 | AN35: 4600 | AO35: 368.97 | AP35: -2516.87 | AQ35: 268.97 | AR35: -2986.87
B37: rvo.at | C37: EBITDA | D37: Januar | E37: Februar | F37: März | G37: April | H37: Mai | I37: Juni | J37: Juli | K37: August | L37: September | M37: Oktober | N37: November | O37: Dezember | P37: gesamt | R37: rvo.at | S37: EBITDA | T37: Januar | U37: Februar | V37: März | W37: April | X37: Mai | Y37: Juni | Z37: Juli | AA37: August | AB37: September | AC37: Oktober | AD37: November | AE37: Dezember | AG37: rvo.at | AH37: =AH2 -> March | AI37: Actual | AJ37: Budget | AK37: Prior | AL37: Actual YTD | AM37: Budget YTD | AN37: Prior YTD | AO37: Variance M | AP37: Variance YTD | AQ37: Variance M | AR37: Variance YTD
C38: Umsatz | D38: =SUM(D3:D9) -> 83.33 | E38: 0 | F38: 2250 | G38: 0 | H38: 0 | I38: 0 | J38: 0 | K38: 0 | L38: 0 | M38: 0 | N38: 0 | O38: 0 | P38: =SUM(D38:O38) -> 2333.33 | S38: =C38 -> Umsatz | T38: 83.33 | U38: =SUM($D38:E38) -> 83.33 | V38: =SUM($D38:F38) -> 2333.33 | W38: =SUM($D38:G38) -> 2333.33 | X38: =SUM($D38:H38) -> 2333.33 | Y38: =SUM($D38:I38) -> 2333.33 | Z38: =SUM($D38:J38) -> 2333.33 | AA38: =SUM($D38:K38) -> 2333.33 | AB38: =SUM($D38:L38) -> 2333.33 | AC38: =SUM($D38:M38) -> 2333.33 | AD38: =SUM($D38:N38) -> 2333.33 | AE38: =SUM($D38:O38) -> 2333.33 | AH38: =C38 -> Umsatz | AI38: =SUM(AI3:AI9) -> 2250 | AJ38: 2500 | AK38: 2400 | AL38: =SUM(AL3:AL9) -> 2333.33 | AM38: =SUM(AM3:AM9) -> 7580 | AN38: =SUM(AN3:AN9) -> 7250 | AO38: -250 | AP38: -5246.67 | AQ38: -150 | AR38: -4916.67
C39: Direkter Aufwand (WES, Fremdl.) | D39: =SUM(D10:D14) -> 0 | E39: -500 | F39: 0 | G39: 0 | H39: 0 | I39: 0 | J39: 0 | K39: 0 | L39: 0 | M39: 0 | N39: 0 | O39: 0 | P39: =SUM(D39:O39) -> -500 | S39: Direkter Aufwand (WES, Fremdl.) | T39: 0 | U39: =SUM($D39:E39) -> -500 | V39: =SUM($D39:F39) -> -500 | W39: =SUM($D39:G39) -> -500 | X39: =SUM($D39:H39) -> -500 | Y39: =SUM($D39:I39) -> -500 | Z39: =SUM($D39:J39) -> -500 | AA39: =SUM($D39:K39) -> -500 | AB39: =SUM($D39:L39) -> -500 | AC39: =SUM($D39:M39) -> -500 | AD39: =SUM($D39:N39) -> -500 | AE39: =SUM($D39:O39) -> -500 | AH39: Direkter Aufwand (WES, Fremdl.) | AI39: =SUM(AI10:AI14) -> 0 | AJ39: 0 | AK39: 0 | AL39: -500 | AM39: 0 | AN39: 0 | AO39: 0 | AP39: -500 | AQ39: 0 | AR39: -500
C40: Rohertrag | D40: =SUM(D38:D39) -> 83.33 | E40: -500 | F40: 2250 | G40: 0 | H40: 0 | I40: 0 | J40: 0 | K40: 0 | L40: 0 | M40: 0 | N40: 0 | O40: 0 | P40: 1833.33 | S40: Rohertrag | T40: 83.33 | U40: =SUM($D40:E40) -> -416.67 | V40: =SUM($D40:F40) -> 1833.33 | W40: =SUM($D40:G40) -> 1833.33 | X40: =SUM($D40:H40) -> 1833.33 | Y40: =SUM($D40:I40) -> 1833.33 | Z40: =SUM($D40:J40) -> 1833.33 | AA40: =SUM($D40:K40) -> 1833.33 | AB40: =SUM($D40:L40) -> 1833.33 | AC40: =SUM($D40:M40) -> 1833.33 | AD40: =SUM($D40:N40) -> 1833.33 | AE40: =SUM($D40:O40) -> 1833.33 | AH40: Rohertrag | AI40: =SUM(AI38:AI39) -> 2250 | AJ40: 2500 | AK40: 2400 | AL40: 1833.33 | AM40: 7580 | AN40: 7250 | AO40: -250 | AP40: -5746.67 | AQ40: -150 | AR40: -5416.67
C41: Personalkosten u. Overheads | D41: =SUM(D15,D18:D33) -> -19.17 | E41: -70 | F41: -47.7 | G41: 0 | H41: 0 | I41: 0 | J41: 0 | K41: 0 | L41: 0 | M41: -5.9 | N41: 0 | O41: 0 | P41: =SUM(D41:O41) -> -142.77 | S41: Personalkosten u. Overheads | T41: -19.17 | U41: =SUM($D41:E41) -> -89.17 | V41: =SUM($D41:F41) -> -136.87 | W41: =SUM($D41:G41) -> -136.87 | X41: =SUM($D41:H41) -> -136.87 | Y41: =SUM($D41:I41) -> -136.87 | Z41: =SUM($D41:J41) -> -136.87 | AA41: =SUM($D41:K41) -> -136.87 | AB41: =SUM($D41:L41) -> -136.87 | AC41: =SUM($D41:M41) -> -142.77 | AD41: =SUM($D41:N41) -> -142.77 | AE41: =SUM($D41:O41) -> -142.77 | AH41: Personalkosten u. Overheads | AI41: =SUM(AI15,AI18:AI33) -> -47.7 | AJ41: -500 | AK41: -400 | AL41: -136.87 | AM41: -2700 | AN41: -2200 | AO41: 452.3 | AP41: 2563.13 | AQ41: 352.3 | AR41: 2063.13
C42: EBITDA (Ergebnis vor Zinsen u. Afa) | D42: =SUM(D40:D41) -> 64.16 | E42: -570 | F42: 2202.3 | G42: 0 | H42: 0 | I42: 0 | J42: 0 | K42: 0 | L42: 0 | M42: -5.9 | N42: 0 | O42: 0 | P42: 1690.56 | S42: EBITDA (Ergebnis vor Zinsen u. Afa) | T42: 64.16 | U42: =SUM($D42:E42) -> -505.84 | V42: =SUM($D42:F42) -> 1696.46 | W42: =SUM($D42:G42) -> 1696.46 | X42: =SUM($D42:H42) -> 1696.46 | Y42: =SUM($D42:I42) -> 1696.46 | Z42: =SUM($D42:J42) -> 1696.46 | AA42: =SUM($D42:K42) -> 1696.46 | AB42: =SUM($D42:L42) -> 1696.46 | AC42: =SUM($D42:M42) -> 1690.56 | AD42: =SUM($D42:N42) -> 1690.56 | AE42: =SUM($D42:O42) -> 1690.56 | AH42: EBITDA (Ergebnis vor Zinsen u. Afa) | AI42: =SUM(AI40:AI41) -> 2202.3 | AJ42: 2000 | AK42: 2000 | AL42: 1696.46 | AM42: 4880 | AN42: 5050 | AO42: 202.3 | AP42: -3183.54 | AQ42: 202.3 | AR42: -3353.54
C43: Finanzergebnis (Zinsen) | D43: =D34 -> 0 | E43: 0 | F43: 0 | G43: 0 | H43: 0 | I43: 0 | J43: 0 | K43: 0 | L43: 0 | M43: 0 | N43: 0 | O43: 0 | P43: =SUM(D43:O43) -> 0 | S43: Finanzergebnis (Zinsen) | T43: 0 | U43: =SUM($D43:E43) -> 0 | V43: =SUM($D43:F43) -> 0 | W43: =SUM($D43:G43) -> 0 | X43: =SUM($D43:H43) -> 0 | Y43: =SUM($D43:I43) -> 0 | Z43: =SUM($D43:J43) -> 0 | AA43: =SUM($D43:K43) -> 0 | AB43: =SUM($D43:L43) -> 0 | AC43: =SUM($D43:M43) -> 0 | AD43: =SUM($D43:N43) -> 0 | AE43: =SUM($D43:O43) -> 0 | AH43: Finanzergebnis (Zinsen) | AI43: =AI34 -> 0 | AJ43: 0 | AK43: 0 | AL43: 0 | AM43: 0 | AN43: 0 | AO43: 0 | AP43: 0 | AQ43: 0 | AR43: 0
C44: Ergebnis nach Zinsen, vor Afa | D44: =SUM(D42:D43) -> 64.16 | E44: -570 | F44: 2202.3 | G44: 0 | H44: 0 | I44: 0 | J44: 0 | K44: 0 | L44: 0 | M44: -5.9 | N44: 0 | O44: 0 | P44: 1690.56 | S44: Ergebnis nach Zinsen, vor Afa | T44: 64.16 | U44: =SUM($D44:E44) -> -505.84 | V44: =SUM($D44:F44) -> 1696.46 | W44: =SUM($D44:G44) -> 1696.46 | X44: =SUM($D44:H44) -> 1696.46 | Y44: =SUM($D44:I44) -> 1696.46 | Z44: =SUM($D44:J44) -> 1696.46 | AA44: =SUM($D44:K44) -> 1696.46 | AB44: =SUM($D44:L44) -> 1696.46 | AC44: =SUM($D44:M44) -> 1690.56 | AD44: =SUM($D44:N44) -> 1690.56 | AE44: =SUM($D44:O44) -> 1690.56 | AH44: Ergebnis nach Zinsen, vor Afa | AI44: =SUM(AI42:AI43) -> 2202.3 | AJ44: 2000 | AK44: 2000 | AL44: 1696.46 | AM44: 4880 | AN44: 5050 | AO44: 202.3 | AP44: -3183.54 | AQ44: 202.3 | AR44: -3353.54
C45: Afa | D45: =SUM(D16:D17) -> 0 | E45: 0 | F45: -83.33 | G45: 0 | H45: 0 | I45: 0 | J45: 0 | K45: 0 | L45: 0 | M45: 0 | N45: 0 | O45: 0 | P45: =SUM(D45:O45) -> -83.33 | S45: Afa | T45: 0 | U45: =SUM($D45:E45) -> 0 | V45: =SUM($D45:F45) -> -83.33 | W45: =SUM($D45:G45) -> -83.33 | X45: =SUM($D45:H45) -> -83.33 | Y45: =SUM($D45:I45) -> -83.33 | Z45: =SUM($D45:J45) -> -83.33 | AA45: =SUM($D45:K45) -> -83.33 | AB45: =SUM($D45:L45) -> -83.33 | AC45: =SUM($D45:M45) -> -83.33 | AD45: =SUM($D45:N45) -> -83.33 | AE45: =SUM($D45:O45) -> -83.33 | AH45: Afa | AI45: =SUM(AI16:AI17) -> -83.33 | AJ45: -250 | AK45: -150 | AL45: -83.33 | AM45: -750 | AN45: -450 | AO45: 166.67 | AP45: 666.67 | AQ45: 66.67 | AR45: 366.67
C46: =IF(P46<0," V e r l u s t"," G e w i n n ( Ü b e r s c h u s s )") -> G e w i n n ( Ü b e r s c h u s s ) | D46: =SUM(D44:D45) -> 64.16 | E46: -570 | F46: 2118.97 | G46: 0 | H46: 0 | I46: 0 | J46: 0 | K46: 0 | L46: 0 | M46: -5.9 | N46: 0 | O46: 0 | P46: 1607.23 | S46: G e w i n n ( Ü b e r s c h u s s ) | T46: 64.16 | U46: =SUM($D46:E46) -> -505.84 | V46: =SUM($D46:F46) -> 1613.13 | W46: =SUM($D46:G46) -> 1613.13 | X46: =SUM($D46:H46) -> 1613.13 | Y46: =SUM($D46:I46) -> 1613.13 | Z46: =SUM($D46:J46) -> 1613.13 | AA46: =SUM($D46:K46) -> 1613.13 | AB46: =SUM($D46:L46) -> 1613.13 | AC46: =SUM($D46:M46) -> 1607.23 | AD46: =SUM($D46:N46) -> 1607.23 | AE46: =SUM($D46:O46) -> 1607.23 | AH46: =AH35 -> G e w i n n (+) / V e r l u s t (-) | AI46: =SUM(AI44:AI45) -> 2118.97 | AJ46: 1750 | AK46: 1850 | AL46: 1613.13 | AM46: 4130 | AN46: 4600 | AO46: 368.97 | AP46: -2516.87 | AQ46: 268.97 | AR46: -2986.87
B48: rvo.at | C48: Cashflow | D48: Januar | E48: Februar | F48: März | G48: April | H48: Mai | I48: Juni | J48: Juli | K48: August | L48: September | M48: Oktober | N48: November | O48: Dezember | P48: gesamt | R48: rvo.at | S48: Cashflow | T48: Januar | U48: Februar | V48: März | W48: April | X48: Mai | Y48: Juni | Z48: Juli | AA48: August | AB48: September | AC48: Oktober | AD48: November | AE48: Dezember | AG48: rvo.at | AH48: =AH2 -> March | AI48: Actual | AJ48: Budget | AK48: Prior | AL48: Actual YTD | AM48: Budget YTD | AN48: Prior YTD | AO48: Variance M | AP48: Variance YTD | AQ48: Variance M | AR48: Variance YTD
B49: o | C49: Zuflüsse operativer Bereich | D49: =SUMIF(Einzelposten!$AI$16:$AI$215,CONCATENATE(D$1,$B49),Einzelposten!$CG$16:$CG$215) -> 100 | E49: =SUMIF(Einzelposten!$AI$16:$AI$215,CONCATENATE(E$1,$B49),Einzelposten!$CG$16:$CG$215) -> 0 | F49: =SUMIF(Einzelposten!$AI$16:$AI$215,CONCATENATE(F$1,$B49),Einzelposten!$CG$16:$CG$215) -> 2700 | G49: =SUMIF(Einzelposten!$AI$16:$AI$215,CONCATENATE(G$1,$B49),Einzelposten!$CG$16:$CG$215) -> 0 | H49: =SUMIF(Einzelposten!$AI$16:$AI$215,CONCATENATE(H$1,$B49),Einzelposten!$CG$16:$CG$215) -> 0 | I49: =SUMIF(Einzelposten!$AI$16:$AI$215,CONCATENATE(I$1,$B49),Einzelposten!$CG$16:$CG$215) -> 0 | J49: =SUMIF(Einzelposten!$AI$16:$AI$215,CONCATENATE(J$1,$B49),Einzelposten!$CG$16:$CG$215) -> 0 | K49: =SUMIF(Einzelposten!$AI$16:$AI$215,CONCATENATE(K$1,$B49),Einzelposten!$CG$16:$CG$215) -> 0 | L49: =SUMIF(Einzelposten!$AI$16:$AI$215,CONCATENATE(L$1,$B49),Einzelposten!$CG$16:$CG$215) -> 0 | M49: =SUMIF(Einzelposten!$AI$16:$AI$215,CONCATENATE(M$1,$B49),Einzelposten!$CG$16:$CG$215) -> 0 | N49: =SUMIF(Einzelposten!$AI$16:$AI$215,CONCATENATE(N$1,$B49),Einzelposten!$CG$16:$CG$215) -> 0 | O49: =SUMIF(Einzelposten!$AI$16:$AI$215,CONCATENATE(O$1,$B49),Einzelposten!$CG$16:$CG$215) -> 0 | P49: =SUM(D49:O49) -> 2800 | R49: o | S49: =C49 -> Zuflüsse operativer Bereich | T49: 100 | U49: =SUM($D49:E49) -> 100 | V49: =SUM($D49:F49) -> 2800 | W49: =SUM($D49:G49) -> 2800 | X49: =SUM($D49:H49) -> 2800 | Y49: =SUM($D49:I49) -> 2800 | Z49: =SUM($D49:J49) -> 2800 | AA49: =SUM($D49:K49) -> 2800 | AB49: =SUM($D49:L49) -> 2800 | AC49: =SUM($D49:M49) -> 2800 | AD49: =SUM($D49:N49) -> 2800 | AE49: =SUM($D49:O49) -> 2800 | AG49: o | AH49: =C49 -> Zuflüsse operativer Bereich | AI49: =VLOOKUP(AH49,$C$49:$O$59,$AH$1-1,FALSE) -> 2700 | AJ49: =VLOOKUP(AH49,$C$152:$O$162,$AH$1-1,FALSE) -> 3000 | AK49: =VLOOKUP(AH49,$C$255:$O$265,$AH$1-1,FALSE) -> 2900 | AL49: =VLOOKUP(AH49,$S$49:$AE$59,$AH$1-1,FALSE) -> 2800 | AM49: =VLOOKUP(AH49,$S$152:$AE$162,$AH$1-1,FALSE) -> 9000 | AN49: =VLOOKUP(AH49,$S$255:$AE$265,$AH$1-1,FALSE) -> 8700 | AO49: =AI49-AJ49 -> -300 | AP49: =AL49-AM49 -> -6200 | AQ49: =AI49-AK49 -> -200 | AR49: =AL49-AN49 -> -5900
B50: o | C50: Abflüsse operativer Bereich | D50: =SUMIF(Einzelposten!$AI$16:$AI$215,CONCATENATE(D$1,$B50),Einzelposten!$CH$16:$CH$215)*-1+SUMIF(Einzelposten!$AI$16:$AI$215,CONCATENATE(D$1,$B52),Einzelposten!$CJ$16:$CJ$215) -> -23 | E50: =SUMIF(Einzelposten!$AI$16:$AI$215,CONCATENATE(E$1,$B50),Einzelposten!$CH$16:$CH$215)*-1+SUMIF(Einzelposten!$AI$16:$AI$215,CONCATENATE(E$1,$B52),Einzelposten!$CJ$16:$CJ$215) -> -570 | F50: =SUMIF(Einzelposten!$AI$16:$AI$215,CONCATENATE(F$1,$B50),Einzelposten!$CH$16:$CH$215)*-1+SUMIF(Einzelposten!$AI$16:$AI$215,CONCATENATE(F$1,$B52),Einzelposten!$CJ$16:$CJ$215) -> -50 | G50: =SUMIF(Einzelposten!$AI$16:$AI$215,CONCATENATE(G$1,$B50),Einzelposten!$CH$16:$CH$215)*-1+SUMIF(Einzelposten!$AI$16:$AI$215,CONCATENATE(G$1,$B52),Einzelposten!$CJ$16:$CJ$215) -> 0 | H50: =SUMIF(Einzelposten!$AI$16:$AI$215,CONCATENATE(H$1,$B50),Einzelposten!$CH$16:$CH$215)*-1+SUMIF(Einzelposten!$AI$16:$AI$215,CONCATENATE(H$1,$B52),Einzelposten!$CJ$16:$CJ$215) -> 0 | I50: =SUMIF(Einzelposten!$AI$16:$AI$215,CONCATENATE(I$1,$B50),Einzelposten!$CH$16:$CH$215)*-1+SUMIF(Einzelposten!$AI$16:$AI$215,CONCATENATE(I$1,$B52),Einzelposten!$CJ$16:$CJ$215) -> 0 | J50: =SUMIF(Einzelposten!$AI$16:$AI$215,CONCATENATE(J$1,$B50),Einzelposten!$CH$16:$CH$215)*-1+SUMIF(Einzelposten!$AI$16:$AI$215,CONCATENATE(J$1,$B52),Einzelposten!$CJ$16:$CJ$215) -> 0 | K50: =SUMIF(Einzelposten!$AI$16:$AI$215,CONCATENATE(K$1,$B50),Einzelposten!$CH$16:$CH$215)*-1+SUMIF(Einzelposten!$AI$16:$AI$215,CONCATENATE(K$1,$B52),Einzelposten!$CJ$16:$CJ$215) -> 0 | L50: =SUMIF(Einzelposten!$AI$16:$AI$215,CONCATENATE(L$1,$B50),Einzelposten!$CH$16:$CH$215)*-1+SUMIF(Einzelposten!$AI$16:$AI$215,CONCATENATE(L$1,$B52),Einzelposten!$CJ$16:$CJ$215) -> 0 | M50: =SUMIF(Einzelposten!$AI$16:$AI$215,CONCATENATE(M$1,$B50),Einzelposten!$CH$16:$CH$215)*-1+SUMIF(Einzelposten!$AI$16:$AI$215,CONCATENATE(M$1,$B52),Einzelposten!$CJ$16:$CJ$215) -> -5.9 | N50: =SUMIF(Einzelposten!$AI$16:$AI$215,CONCATENATE(N$1,$B50),Einzelposten!$CH$16:$CH$215)*-1+SUMIF(Einzelposten!$AI$16:$AI$215,CONCATENATE(N$1,$B52),Einzelposten!$CJ$16:$CJ$215) -> 0 | O50: =SUMIF(Einzelposten!$AI$16:$AI$215,CONCATENATE(O$1,$B50),Einzelposten!$CH$16:$CH$215)*-1+SUMIF(Einzelposten!$AI$16:$AI$215,CONCATENATE(O$1,$B52),Einzelposten!$CJ$16:$CJ$215) -> 0 | P50: =SUM(D50:O50) -> -648.9 | R50: o | S50: Abflüsse operativer Bereich | T50: -23 | U50: =SUM($D50:E50) -> -593 | V50: =SUM($D50:F50) -> -643 | W50: =SUM($D50:G50) -> -643 | X50: =SUM($D50:H50) -> -643 | Y50: =SUM($D50:I50) -> -643 | Z50: =SUM($D50:J50) -> -643 | AA50: =SUM($D50:K50) -> -643 | AB50: =SUM($D50:L50) -> -643 | AC50: =SUM($D50:M50) -> -648.9 | AD50: =SUM($D50:N50) -> -648.9 | AE50: =SUM($D50:O50) -> -648.9 | AG50: o | AH50: Abflüsse operativer Bereich | AI50: =VLOOKUP(AH50,$C$49:$O$59,$AH$1-1,FALSE) -> -50 | AJ50: =VLOOKUP(AH50,$C$152:$O$162,$AH$1-1,FALSE) -> -1000 | AK50: =VLOOKUP(AH50,$C$255:$O$265,$AH$1-1,FALSE) -> -700 | AL50: =VLOOKUP(AH50,$S$49:$AE$59,$AH$1-1,FALSE) -> -643 | AM50: =VLOOKUP(AH50,$S$152:$AE$162,$AH$1-1,FALSE) -> -4200 | AN50: =VLOOKUP(AH50,$S$255:$AE$265,$AH$1-1,FALSE) -> -3200 | AO50: =AI50-AJ50 -> 950 | AP50: =AL50-AM50 -> 3557 | AQ50: =AI50-AK50 -> 650 | AR50: =AL50-AN50 -> 2557
B51: o | C51: Saldo operativer Bereich | D51: =SUM(D49:D50) -> 77 | E51: -570 | F51: 2650 | G51: 0 | H51: 0 | I51: 0 | J51: 0 | K51: 0 | L51: 0 | M51: -5.9 | N51: 0 | O51: 0 | P51: 2151.1 | R51: o | S51: Saldo operativer Bereich | T51: 77 | U51: =SUM($D51:E51) -> -493 | V51: =SUM($D51:F51) -> 2157 | W51: =SUM($D51:G51) -> 2157 | X51: =SUM($D51:H51) -> 2157 | Y51: =SUM($D51:I51) -> 2157 | Z51: =SUM($D51:J51) -> 2157 | AA51: =SUM($D51:K51) -> 2157 | AB51: =SUM($D51:L51) -> 2157 | AC51: =SUM($D51:M51) -> 2151.1 | AD51: =SUM($D51:N51) -> 2151.1 | AE51: =SUM($D51:O51) -> 2151.1 | AG51: o | AH51: Saldo operativer Bereich | AI51: =SUM(AI49:AI50) -> 2650 | AJ51: =SUM(AJ49:AJ50) -> 2000 | AK51: =SUM(AK49:AK50) -> 2200 | AL51: 2157 | AM51: 4800 | AN51: 5500 | AO51: 650 | AP51: -2643 | AQ51: 450 | AR51: -3343
B52: i | C52: Saldo Investitionsbereich (netto) | D52: =SUMIF(Einzelposten!$AI$16:$AI$215,CONCATENATE(D$1,$B52),Einzelposten!$CI$16:$CI$215) -> 0 | E52: =SUMIF(Einzelposten!$AI$16:$AI$215,CONCATENATE(E$1,$B52),Einzelposten!$CI$16:$CI$215) -> 0 | F52: =SUMIF(Einzelposten!$AI$16:$AI$215,CONCATENATE(F$1,$B52),Einzelposten!$CI$16:$CI$215) -> 0 | G52: =SUMIF(Einzelposten!$AI$16:$AI$215,CONCATENATE(G$1,$B52),Einzelposten!$CI$16:$CI$215) -> 0 | H52: =SUMIF(Einzelposten!$AI$16:$AI$215,CONCATENATE(H$1,$B52),Einzelposten!$CI$16:$CI$215) -> 0 | I52: =SUMIF(Einzelposten!$AI$16:$AI$215,CONCATENATE(I$1,$B52),Einzelposten!$CI$16:$CI$215) -> 0 | J52: =SUMIF(Einzelposten!$AI$16:$AI$215,CONCATENATE(J$1,$B52),Einzelposten!$CI$16:$CI$215) -> 0 | K52: =SUMIF(Einzelposten!$AI$16:$AI$215,CONCATENATE(K$1,$B52),Einzelposten!$CI$16:$CI$215) -> 0 | L52: =SUMIF(Einzelposten!$AI$16:$AI$215,CONCATENATE(L$1,$B52),Einzelposten!$CI$16:$CI$215) -> 0 | M52: =SUMIF(Einzelposten!$AI$16:$AI$215,CONCATENATE(M$1,$B52),Einzelposten!$CI$16:$CI$215) -> 0 | N52: =SUMIF(Einzelposten!$AI$16:$AI$215,CONCATENATE(N$1,$B52),Einzelposten!$CI$16:$CI$215) -> 0 | O52: =SUMIF(Einzelposten!$AI$16:$AI$215,CONCATENATE(O$1,$B52),Einzelposten!$CI$16:$CI$215) -> 0 | P52: =SUM(D52:O52) -> 0 | R52: i | S52: Saldo Investitionsbereich (netto) | T52: 0 | U52: =SUM($D52:E52) -> 0 | V52: =SUM($D52:F52) -> 0 | W52: =SUM($D52:G52) -> 0 | X52: =SUM($D52:H52) -> 0 | Y52: =SUM($D52:I52) -> 0 | Z52: =SUM($D52:J52) -> 0 | AA52: =SUM($D52:K52) -> 0 | AB52: =SUM($D52:L52) -> 0 | AC52: =SUM($D52:M52) -> 0 | AD52: =SUM($D52:N52) -> 0 | AE52: =SUM($D52:O52) -> 0 | AG52: i | AH52: Saldo Investitionsbereich (netto) | AI52: =VLOOKUP(AH52,$C$49:$O$59,$AH$1-1,FALSE) -> 0 | AJ52: =VLOOKUP(AH52,$C$152:$O$162,$AH$1-1,FALSE) -> 0 | AK52: =VLOOKUP(AH52,$C$255:$O$265,$AH$1-1,FALSE) -> 0 | AL52: =VLOOKUP(AH52,$S$49:$AE$59,$AH$1-1,FALSE) -> 0 | AM52: =VLOOKUP(AH52,$S$152:$AE$162,$AH$1-1,FALSE) -> 0 | AN52: =VLOOKUP(AH52,$S$255:$AE$265,$AH$1-1,FALSE) -> 0 | AO52: =AI52-AJ52 -> 0 | AP52: =AL52-AM52 -> 0 | AQ52: =AI52-AK52 -> 0 | AR52: =AL52-AN52 -> 0
B53: f | C53: Saldo Finanzierungsbereich | D53: =SUMIF(Einzelposten!$AI$16:$AI$215,CONCATENATE(D$1,$B53),Einzelposten!$CK$16:$CK$215) -> 0 | E53: =SUMIF(Einzelposten!$AI$16:$AI$215,CONCATENATE(E$1,$B53),Einzelposten!$CK$16:$CK$215) -> 0 | F53: =SUMIF(Einzelposten!$AI$16:$AI$215,CONCATENATE(F$1,$B53),Einzelposten!$CK$16:$CK$215) -> 0 | G53: =SUMIF(Einzelposten!$AI$16:$AI$215,CONCATENATE(G$1,$B53),Einzelposten!$CK$16:$CK$215) -> 0 | H53: =SUMIF(Einzelposten!$AI$16:$AI$215,CONCATENATE(H$1,$B53),Einzelposten!$CK$16:$CK$215) -> 0 | I53: =SUMIF(Einzelposten!$AI$16:$AI$215,CONCATENATE(I$1,$B53),Einzelposten!$CK$16:$CK$215) -> 0 | J53: =SUMIF(Einzelposten!$AI$16:$AI$215,CONCATENATE(J$1,$B53),Einzelposten!$CK$16:$CK$215) -> 0 | K53: =SUMIF(Einzelposten!$AI$16:$AI$215,CONCATENATE(K$1,$B53),Einzelposten!$CK$16:$CK$215) -> 0 | L53: =SUMIF(Einzelposten!$AI$16:$AI$215,CONCATENATE(L$1,$B53),Einzelposten!$CK$16:$CK$215) -> 0 | M53: =SUMIF(Einzelposten!$AI$16:$AI$215,CONCATENATE(M$1,$B53),Einzelposten!$CK$16:$CK$215) -> 0 | N53: =SUMIF(Einzelposten!$AI$16:$AI$215,CONCATENATE(N$1,$B53),Einzelposten!$CK$16:$CK$215) -> 0 | O53: =SUMIF(Einzelposten!$AI$16:$AI$215,CONCATENATE(O$1,$B53),Einzelposten!$CK$16:$CK$215) -> 0 | P53: =SUM(D53:O53) -> 0 | R53: f | S53: Saldo Finanzierungsbereich | T53: 0 | U53: =SUM($D53:E53) -> 0 | V53: =SUM($D53:F53) -> 0 | W53: =SUM($D53:G53) -> 0 | X53: =SUM($D53:H53) -> 0 | Y53: =SUM($D53:I53) -> 0 | Z53: =SUM($D53:J53) -> 0 | AA53: =SUM($D53:K53) -> 0 | AB53: =SUM($D53:L53) -> 0 | AC53: =SUM($D53:M53) -> 0 | AD53: =SUM($D53:N53) -> 0 | AE53: =SUM($D53:O53) -> 0 | AG53: f | AH53: Saldo Finanzierungsbereich | AI53: =VLOOKUP(AH53,$C$49:$O$59,$AH$1-1,FALSE) -> 0 | AJ53: =VLOOKUP(AH53,$C$152:$O$162,$AH$1-1,FALSE) -> 0 | AK53: =VLOOKUP(AH53,$C$255:$O$265,$AH$1-1,FALSE) -> 0 | AL53: =VLOOKUP(AH53,$S$49:$AE$59,$AH$1-1,FALSE) -> 0 | AM53: =VLOOKUP(AH53,$S$152:$AE$162,$AH$1-1,FALSE) -> 0 | AN53: =VLOOKUP(AH53,$S$255:$AE$265,$AH$1-1,FALSE) -> 0 | AO53: =AI53-AJ53 -> 0 | AP53: =AL53-AM53 -> 0 | AQ53: =AI53-AK53 -> 0 | AR53: =AL53-AN53 -> 0
C54: C a s h f l o w "betrieblich" | D54: =SUM(D51:D53) -> 77 | E54: -570 | F54: 2650 | G54: 0 | H54: 0 | I54: 0 | J54: 0 | K54: 0 | L54: 0 | M54: -5.9 | N54: 0 | O54: 0 | P54: 2151.1 | S54: C a s h f l o w "betrieblich" | T54: 77 | U54: =SUM($D54:E54) -> -493 | V54: =SUM($D54:F54) -> 2157 | W54: =SUM($D54:G54) -> 2157 | X54: =SUM($D54:H54) -> 2157 | Y54: =SUM($D54:I54) -> 2157 | Z54: =SUM($D54:J54) -> 2157 | AA54: =SUM($D54:K54) -> 2157 | AB54: =SUM($D54:L54) -> 2157 | AC54: =SUM($D54:M54) -> 2151.1 | AD54: =SUM($D54:N54) -> 2151.1 | AE54: =SUM($D54:O54) -> 2151.1 | AH54: C a s h f l o w "betrieblich" | AI54: =SUM(AI51:AI53) -> 2650 | AJ54: 2000 | AK54: 2200 | AL54: 2157 | AM54: 4800 | AN54: 5500 | AO54: 650 | AP54: -2643 | AQ54: 450 | AR54: -3343
B55: 992 | C55: Einkommensteuer bezahlt | D55: =SUMIF(Einzelposten!$AH$16:$AH$215,CONCATENATE(D$1,$B55),Einzelposten!$AD$16:$AD$215) -> 0 | E55: =SUMIF(Einzelposten!$AH$16:$AH$215,CONCATENATE(E$1,$B55),Einzelposten!$AD$16:$AD$215) -> 0 | F55: =SUMIF(Einzelposten!$AH$16:$AH$215,CONCATENATE(F$1,$B55),Einzelposten!$AD$16:$AD$215) -> 0 | G55: =SUMIF(Einzelposten!$AH$16:$AH$215,CONCATENATE(G$1,$B55),Einzelposten!$AD$16:$AD$215) -> 0 | H55: =SUMIF(Einzelposten!$AH$16:$AH$215,CONCATENATE(H$1,$B55),Einzelposten!$AD$16:$AD$215) -> 0 | I55: =SUMIF(Einzelposten!$AH$16:$AH$215,CONCATENATE(I$1,$B55),Einzelposten!$AD$16:$AD$215) -> 0 | J55: =SUMIF(Einzelposten!$AH$16:$AH$215,CONCATENATE(J$1,$B55),Einzelposten!$AD$16:$AD$215) -> 0 | K55: =SUMIF(Einzelposten!$AH$16:$AH$215,CONCATENATE(K$1,$B55),Einzelposten!$AD$16:$AD$215) -> 0 | L55: =SUMIF(Einzelposten!$AH$16:$AH$215,CONCATENATE(L$1,$B55),Einzelposten!$AD$16:$AD$215) -> 0 | M55: =SUMIF(Einzelposten!$AH$16:$AH$215,CONCATENATE(M$1,$B55),Einzelposten!$AD$16:$AD$215) -> 0 | N55: =SUMIF(Einzelposten!$AH$16:$AH$215,CONCATENATE(N$1,$B55),Einzelposten!$AD$16:$AD$215) -> 0 | O55: =SUMIF(Einzelposten!$AH$16:$AH$215,CONCATENATE(O$1,$B55),Einzelposten!$AD$16:$AD$215) -> 0 | P55: =SUM(D55:O55) -> 0 | R55: 992 | S55: Einkommensteuer bezahlt | T55: 0 | U55: =SUM($D55:E55) -> 0 | V55: =SUM($D55:F55) -> 0 | W55: =SUM($D55:G55) -> 0 | X55: =SUM($D55:H55) -> 0 | Y55: =SUM($D55:I55) -> 0 | Z55: =SUM($D55:J55) -> 0 | AA55: =SUM($D55:K55) -> 0 | AB55: =SUM($D55:L55) -> 0 | AC55: =SUM($D55:M55) -> 0 | AD55: =SUM($D55:N55) -> 0 | AE55: =SUM($D55:O55) -> 0 | AG55: 992 | AH55: Einkommensteuer bezahlt | AI55: =VLOOKUP(AH55,$C$49:$O$59,$AH$1-1,FALSE) -> 0 | AJ55: =VLOOKUP(AH55,$C$152:$O$162,$AH$1-1,FALSE) -> 0 | AK55: =VLOOKUP(AH55,$C$255:$O$265,$AH$1-1,FALSE) -> 0 | AL55: =VLOOKUP(AH55,$S$49:$AE$59,$AH$1-1,FALSE) -> 0 | AM55: =VLOOKUP(AH55,$S$152:$AE$162,$AH$1-1,FALSE) -> -300 | AN55: =VLOOKUP(AH55,$S$255:$AE$265,$AH$1-1,FALSE) -> -200 | AO55: =AI55-AJ55 -> 0 | AP55: =AL55-AM55 -> 300 | AQ55: =AI55-AK55 -> 0 | AR55: =AL55-AN55 -> 200
B56: 998 | C56: Private Lebensführung | D56: =SUMIF(Einzelposten!$AH$16:$AH$215,CONCATENATE(D$1,$B56),Einzelposten!$AD$16:$AD$215) -> 0 | E56: =SUMIF(Einzelposten!$AH$16:$AH$215,CONCATENATE(E$1,$B56),Einzelposten!$AD$16:$AD$215) -> 0 | F56: =SUMIF(Einzelposten!$AH$16:$AH$215,CONCATENATE(F$1,$B56),Einzelposten!$AD$16:$AD$215) -> 0 | G56: =SUMIF(Einzelposten!$AH$16:$AH$215,CONCATENATE(G$1,$B56),Einzelposten!$AD$16:$AD$215) -> 0 | H56: =SUMIF(Einzelposten!$AH$16:$AH$215,CONCATENATE(H$1,$B56),Einzelposten!$AD$16:$AD$215) -> 0 | I56: =SUMIF(Einzelposten!$AH$16:$AH$215,CONCATENATE(I$1,$B56),Einzelposten!$AD$16:$AD$215) -> 0 | J56: =SUMIF(Einzelposten!$AH$16:$AH$215,CONCATENATE(J$1,$B56),Einzelposten!$AD$16:$AD$215) -> 0 | K56: =SUMIF(Einzelposten!$AH$16:$AH$215,CONCATENATE(K$1,$B56),Einzelposten!$AD$16:$AD$215) -> 0 | L56: =SUMIF(Einzelposten!$AH$16:$AH$215,CONCATENATE(L$1,$B56),Einzelposten!$AD$16:$AD$215) -> 0 | M56: =SUMIF(Einzelposten!$AH$16:$AH$215,CONCATENATE(M$1,$B56),Einzelposten!$AD$16:$AD$215) -> 0 | N56: =SUMIF(Einzelposten!$AH$16:$AH$215,CONCATENATE(N$1,$B56),Einzelposten!$AD$16:$AD$215) -> 0 | O56: =SUMIF(Einzelposten!$AH$16:$AH$215,CONCATENATE(O$1,$B56),Einzelposten!$AD$16:$AD$215) -> 0 | P56: =SUM(D56:O56) -> 0 | R56: 998 | S56: Private Lebensführung | T56: 0 | U56: =SUM($D56:E56) -> 0 | V56: =SUM($D56:F56) -> 0 | W56: =SUM($D56:G56) -> 0 | X56: =SUM($D56:H56) -> 0 | Y56: =SUM($D56:I56) -> 0 | Z56: =SUM($D56:J56) -> 0 | AA56: =SUM($D56:K56) -> 0 | AB56: =SUM($D56:L56) -> 0 | AC56: =SUM($D56:M56) -> 0 | AD56: =SUM($D56:N56) -> 0 | AE56: =SUM($D56:O56) -> 0 | AG56: 998 | AH56: Private Lebensführung | AI56: =VLOOKUP(AH56,$C$49:$O$59,$AH$1-1,FALSE) -> 0 | AJ56: =VLOOKUP(AH56,$C$152:$O$162,$AH$1-1,FALSE) -> -1400 | AK56: =VLOOKUP(AH56,$C$255:$O$265,$AH$1-1,FALSE) -> -1200 | AL56: =VLOOKUP(AH56,$S$49:$AE$59,$AH$1-1,FALSE) -> 0 | AM56: =VLOOKUP(AH56,$S$152:$AE$162,$AH$1-1,FALSE) -> -4200 | AN56: =VLOOKUP(AH56,$S$255:$AE$265,$AH$1-1,FALSE) -> -3600 | AO56: =AI56-AJ56 -> 1400 | AP56: =AL56-AM56 -> 4200 | AQ56: =AI56-AK56 -> 1200 | AR56: =AL56-AN56 -> 3600
B57: 999 | C57: Private Durchläufer | D57: =SUMIF(Einzelposten!$AH$16:$AH$215,CONCATENATE(D$1,$B57),Einzelposten!$AD$16:$AD$215) -> 0 | E57: =SUMIF(Einzelposten!$AH$16:$AH$215,CONCATENATE(E$1,$B57),Einzelposten!$AD$16:$AD$215) -> 0 | F57: =SUMIF(Einzelposten!$AH$16:$AH$215,CONCATENATE(F$1,$B57),Einzelposten!$AD$16:$AD$215) -> 0 | G57: =SUMIF(Einzelposten!$AH$16:$AH$215,CONCATENATE(G$1,$B57),Einzelposten!$AD$16:$AD$215) -> 0 | H57: =SUMIF(Einzelposten!$AH$16:$AH$215,CONCATENATE(H$1,$B57),Einzelposten!$AD$16:$AD$215) -> 0 | I57: =SUMIF(Einzelposten!$AH$16:$AH$215,CONCATENATE(I$1,$B57),Einzelposten!$AD$16:$AD$215) -> 0 | J57: =SUMIF(Einzelposten!$AH$16:$AH$215,CONCATENATE(J$1,$B57),Einzelposten!$AD$16:$AD$215) -> 0 | K57: =SUMIF(Einzelposten!$AH$16:$AH$215,CONCATENATE(K$1,$B57),Einzelposten!$AD$16:$AD$215) -> 0 | L57: =SUMIF(Einzelposten!$AH$16:$AH$215,CONCATENATE(L$1,$B57),Einzelposten!$AD$16:$AD$215) -> 0 | M57: =SUMIF(Einzelposten!$AH$16:$AH$215,CONCATENATE(M$1,$B57),Einzelposten!$AD$16:$AD$215) -> 0 | N57: =SUMIF(Einzelposten!$AH$16:$AH$215,CONCATENATE(N$1,$B57),Einzelposten!$AD$16:$AD$215) -> 0 | O57: =SUMIF(Einzelposten!$AH$16:$AH$215,CONCATENATE(O$1,$B57),Einzelposten!$AD$16:$AD$215) -> 0 | P57: =SUM(D57:O57) -> 0 | R57: 999 | S57: Private Durchläufer | T57: 0 | U57: =SUM($D57:E57) -> 0 | V57: =SUM($D57:F57) -> 0 | W57: =SUM($D57:G57) -> 0 | X57: =SUM($D57:H57) -> 0 | Y57: =SUM($D57:I57) -> 0 | Z57: =SUM($D57:J57) -> 0 | AA57: =SUM($D57:K57) -> 0 | AB57: =SUM($D57:L57) -> 0 | AC57: =SUM($D57:M57) -> 0 | AD57: =SUM($D57:N57) -> 0 | AE57: =SUM($D57:O57) -> 0 | AG57: 999 | AH57: Private Durchläufer | AI57: =VLOOKUP(AH57,$C$49:$O$59,$AH$1-1,FALSE) -> 0 | AJ57: =VLOOKUP(AH57,$C$152:$O$162,$AH$1-1,FALSE) -> 0 | AK57: =VLOOKUP(AH57,$C$255:$O$265,$AH$1-1,FALSE) -> 0 | AL57: =VLOOKUP(AH57,$S$49:$AE$59,$AH$1-1,FALSE) -> 0 | AM57: =VLOOKUP(AH57,$S$152:$AE$162,$AH$1-1,FALSE) -> 0 | AN57: =VLOOKUP(AH57,$S$255:$AE$265,$AH$1-1,FALSE) -> 0 | AO57: =AI57-AJ57 -> 0 | AP57: =AL57-AM57 -> 0 | AQ57: =AI57-AK57 -> 0 | AR57: =AL57-AN57 -> 0
C58: C a s h f l o w "total" | D58: =SUM(D54:D57) -> 77 | E58: -570 | F58: 2650 | G58: 0 | H58: 0 | I58: 0 | J58: 0 | K58: 0 | L58: 0 | M58: -5.9 | N58: 0 | O58: 0 | P58: 2151.1 | S58: C a s h f l o w "total" | T58: =D58 -> 77 | U58: =SUM(D58:E58) -> -493 | V58: =SUM(V54:V57) -> 2157 | W58: 2157 | X58: 2157 | Y58: 2157 | Z58: 2157 | AA58: 2157 | AB58: 2157 | AC58: 2151.1 | AD58: 2151.1 | AE58: 2151.1 | AH58: C a s h f l o w "total" | AI58: =VLOOKUP(AH58,$C$49:$O$59,$AH$1-1,FALSE) -> 2650 | AJ58: =VLOOKUP(AH58,$C$152:$O$162,$AH$1-1,FALSE) -> 600 | AK58: =VLOOKUP(AH58,$C$255:$O$265,$AH$1-1,FALSE) -> 1000 | AL58: =VLOOKUP(AH58,$S$49:$AE$59,$AH$1-1,FALSE) -> 2157 | AM58: =VLOOKUP(AH58,$S$152:$AE$162,$AH$1-1,FALSE) -> 300 | AN58: =VLOOKUP(AH58,$S$255:$AE$265,$AH$1-1,FALSE) -> 1700 | AO58: =AI58-AJ58 -> 2050 | AP58: =AL58-AM58 -> 1857 | AQ58: =AI58-AK58 -> 1650 | AR58: =AL58-AN58 -> 457
C59: Cash at start of period | D59: =SUM(Einzelposten!H2:H4) -> 125 | E59: =D60 -> 202 | F59: -368 | G59: 2282 | H59: 2282 | I59: 2282 | J59: 2282 | K59: 2282 | L59: 2282 | M59: 2282 | N59: 2276.1 | O59: 2276.1 | P59: =D59 -> 125 | S59: Cash at start of period | T59: =$D59 -> 125 | U59: =$D59 -> 125 | V59: 125 | W59: 125 | X59: 125 | Y59: 125 | Z59: 125 | AA59: 125 | AB59: 125 | AC59: 125 | AD59: 125 | AE59: 125 | AH59: Cash at start of period | AI59: =VLOOKUP(AH59,$C$49:$O$59,$AH$1-1,FALSE) -> -368 | AJ59: =VLOOKUP(AH59,$C$152:$O$162,$AH$1-1,FALSE) -> -175 | AK59: =VLOOKUP(AH59,$C$255:$O$265,$AH$1-1,FALSE) -> 1300 | AL59: =VLOOKUP(AH59,$S$49:$AE$59,$AH$1-1,FALSE) -> 125 | AM59: =VLOOKUP(AH59,$S$152:$AE$162,$AH$1-1,FALSE) -> 125 | AN59: =VLOOKUP(AH59,$S$255:$AE$265,$AH$1-1,FALSE) -> 600 | AO59: =AI59-AJ59 -> -193 | AP59: =AL59-AM59 -> 0 | AQ59: =AI59-AK59 -> -1668 | AR59: =AL59-AN59 -> -475
C60: Cash at end of period | D60: =SUM(D58:D59) -> 202 | E60: -368 | F60: 2282 | G60: 2282 | H60: 2282 | I60: 2282 | J60: 2282 | K60: 2282 | L60: 2282 | M60: 2276.1 | N60: 2276.1 | O60: 2276.1 | P60: 2276.1 | S60: Cash at end of period | T60: =D60 -> 202 | U60: =E60 -> -368 | V60: =SUM(V58:V59) -> 2282 | W60: 2282 | X60: 2282 | Y60: 2282 | Z60: 2282 | AA60: 2282 | AB60: 2282 | AC60: 2276.1 | AD60: 2276.1 | AE60: 2276.1 | AH60: Cash at end of period | AI60: =SUM(AI58:AI59) -> 2282 | AJ60: 425 | AK60: 2300 | AL60: 2282 | AM60: 425 | AN60: 2300 | AO60: 1857 | AP60: 1857 | AQ60: -18 | AR60: -18
O62: Kassa/Banksaldo: | P62: =SUM(Einzelposten!AD2:AD4) -> 2276.1
D104: 01 | E104: 02 | F104: 03 | G104: 04 | H104: 05 | I104: 06 | J104: 07 | K104: 08 | L104: 09 | M104: 10 | N104: 11 | O104: 12 | T104: 01 | U104: 02 | V104: 03 | W104: 04 | X104: 05 | Y104: 06 | Z104: 07 | AA104: 08 | AB104: 09 | AC104: 10 | AD104: 11 | AE104: 12
A105: ein/aus | B105: rvo.at | C105: Einnahmen/Ausgaben (Budget) | D105: Januar | E105: Februar | F105: März | G105: April | H105: Mai | I105: Juni | J105: Juli | K105: August | L105: September | M105: Oktober | N105: November | O105: Dezember | P105: gesamt | R105: rvo.at | S105: Einnahmen/Ausgaben | T105: Januar | U105: Februar | V105: März | W105: April | X105: Mai | Y105: Juni | Z105: Juli | AA105: August | AB105: September | AC105: Oktober | AD105: November | AE105: Dezember
A106: ein | B106: 400 | C106: =C3 -> Erlöse nicht steuerbar | P106: =SUM(D106:O106) -> 0 | R106: 400 | S106: =C106 -> Erlöse nicht steuerbar | T106: =D106 -> 0 | U106: =SUM($D106:E106) -> 0 | V106: =SUM($D106:F106) -> 0 | W106: =SUM($D106:G106) -> 0 | X106: =SUM($D106:H106) -> 0 | Y106: =SUM($D106:I106) -> 0 | Z106: =SUM($D106:J106) -> 0 | AA106: =SUM($D106:K106) -> 0 | AB106: =SUM($D106:L106) -> 0 | AC106: =SUM($D106:M106) -> 0 | AD106: =SUM($D106:N106) -> 0 | AE106: =SUM($D106:O106) -> 0
A107: ein | B107: 405 | C107: Erlöse 5% steuerbar | P107: =SUM(D107:O107) -> 0 | R107: 405 | S107: =C107 -> Erlöse 5% steuerbar | T107: =D107 -> 0 | U107: =SUM($D107:E107) -> 0 | V107: =SUM($D107:F107) -> 0 | W107: =SUM($D107:G107) -> 0 | X107: =SUM($D107:H107) -> 0 | Y107: =SUM($D107:I107) -> 0 | Z107: =SUM($D107:J107) -> 0 | AA107: =SUM($D107:K107) -> 0 | AB107: =SUM($D107:L107) -> 0 | AC107: =SUM($D107:M107) -> 0 | AD107: =SUM($D107:N107) -> 0 | AE107: =SUM($D107:O107) -> 0
A108: ein | B108: 410 | C108: Erlöse 10% steuerbar | P108: 0 | R108: 410 | S108: =C108 -> Erlöse 10% steuerbar | T108: 0 | U108: =SUM($D108:E108) -> 0 | V108: =SUM($D108:F108) -> 0 | W108: =SUM($D108:G108) -> 0 | X108: =SUM($D108:H108) -> 0 | Y108: =SUM($D108:I108) -> 0 | Z108: =SUM($D108:J108) -> 0 | AA108: =SUM($D108:K108) -> 0 | AB108: =SUM($D108:L108) -> 0 | AC108: =SUM($D108:M108) -> 0 | AD108: =SUM($D108:N108) -> 0 | AE108: =SUM($D108:O108) -> 0
A109: ein | B109: 413 | C109: Erlöse 13% steuerbar | E109: 80 | P109: 80 | R109: 413 | S109: Erlöse 13% steuerbar | T109: 0 | U109: =SUM($D109:E109) -> 80 | V109: =SUM($D109:F109) -> 80 | W109: =SUM($D109:G109) -> 80 | X109: =SUM($D109:H109) -> 80 | Y109: =SUM($D109:I109) -> 80 | Z109: =SUM($D109:J109) -> 80 | AA109: =SUM($D109:K109) -> 80 | AB109: =SUM($D109:L109) -> 80 | AC109: =SUM($D109:M109) -> 80 | AD109: =SUM($D109:N109) -> 80 | AE109: =SUM($D109:O109) -> 80
A110: ein | B110: 420 | C110: Erlöse 20% steuerbar | D110: 2500 | E110: 2500 | F110: 2500 | G110: 2500 | H110: 2500 | I110: 2500 | J110: 2500 | K110: 2500 | L110: 2500 | M110: 2500 | N110: 2500 | O110: 2500 | P110: 30000 | R110: 420 | S110: Erlöse 20% steuerbar | T110: 2500 | U110: =SUM($D110:E110) -> 5000 | V110: =SUM($D110:F110) -> 7500 | W110: =SUM($D110:G110) -> 10000 | X110: =SUM($D110:H110) -> 12500 | Y110: =SUM($D110:I110) -> 15000 | Z110: =SUM($D110:J110) -> 17500 | AA110: =SUM($D110:K110) -> 20000 | AB110: =SUM($D110:L110) -> 22500 | AC110: =SUM($D110:M110) -> 25000 | AD110: =SUM($D110:N110) -> 27500 | AE110: =SUM($D110:O110) -> 30000
A111: ein | B111: 430 | C111: sonstige Erlöse | P111: 0 | R111: 430 | S111: sonstige Erlöse | T111: 0 | U111: =SUM($D111:E111) -> 0 | V111: =SUM($D111:F111) -> 0 | W111: =SUM($D111:G111) -> 0 | X111: =SUM($D111:H111) -> 0 | Y111: =SUM($D111:I111) -> 0 | Z111: =SUM($D111:J111) -> 0 | AA111: =SUM($D111:K111) -> 0 | AB111: =SUM($D111:L111) -> 0 | AC111: =SUM($D111:M111) -> 0 | AD111: =SUM($D111:N111) -> 0 | AE111: =SUM($D111:O111) -> 0
A112: ein | B112: 490 | C112: Privatanteil, Nutzungsentnahmen | P112: 0 | R112: 490 | S112: Privatanteil, Nutzungsentnahmen | T112: 0 | U112: =SUM($D112:E112) -> 0 | V112: =SUM($D112:F112) -> 0 | W112: =SUM($D112:G112) -> 0 | X112: =SUM($D112:H112) -> 0 | Y112: =SUM($D112:I112) -> 0 | Z112: =SUM($D112:J112) -> 0 | AA112: =SUM($D112:K112) -> 0 | AB112: =SUM($D112:L112) -> 0 | AC112: =SUM($D112:M112) -> 0 | AD112: =SUM($D112:N112) -> 0 | AE112: =SUM($D112:O112) -> 0
A113: aus | B113: 505 | C113: Wareneinkauf 5% VSt-Abzug | P113: 0 | R113: 505 | S113: Wareneinkauf 5% VSt-Abzug | T113: 0 | U113: =SUM($D113:E113) -> 0 | V113: =SUM($D113:F113) -> 0 | W113: =SUM($D113:G113) -> 0 | X113: =SUM($D113:H113) -> 0 | Y113: =SUM($D113:I113) -> 0 | Z113: =SUM($D113:J113) -> 0 | AA113: =SUM($D113:K113) -> 0 | AB113: =SUM($D113:L113) -> 0 | AC113: =SUM($D113:M113) -> 0 | AD113: =SUM($D113:N113) -> 0 | AE113: =SUM($D113:O113) -> 0
A114: aus | B114: 510 | C114: Wareneinkauf 10% VSt-Abzug | P114: =SUM(D114:O114) -> 0 | R114: 510 | S114: Wareneinkauf 10% VSt-Abzug | T114: 0 | U114: =SUM($D114:E114) -> 0 | V114: =SUM($D114:F114) -> 0 | W114: =SUM($D114:G114) -> 0 | X114: =SUM($D114:H114) -> 0 | Y114: =SUM($D114:I114) -> 0 | Z114: =SUM($D114:J114) -> 0 | AA114: =SUM($D114:K114) -> 0 | AB114: =SUM($D114:L114) -> 0 | AC114: =SUM($D114:M114) -> 0 | AD114: =SUM($D114:N114) -> 0 | AE114: =SUM($D114:O114) -> 0
A115: aus | B115: 513 | C115: Wareneinkauf 13% VSt-Abzug | P115: =SUM(D115:O115) -> 0 | R115: 513 | S115: =C115 -> Wareneinkauf 13% VSt-Abzug | T115: =D115 -> 0 | U115: =SUM($D115:E115) -> 0 | V115: =SUM($D115:F115) -> 0 | W115: =SUM($D115:G115) -> 0 | X115: =SUM($D115:H115) -> 0 | Y115: =SUM($D115:I115) -> 0 | Z115: =SUM($D115:J115) -> 0 | AA115: =SUM($D115:K115) -> 0 | AB115: =SUM($D115:L115) -> 0 | AC115: =SUM($D115:M115) -> 0 | AD115: =SUM($D115:N115) -> 0 | AE115: =SUM($D115:O115) -> 0
A116: aus | B116: 520 | C116: Wareneinkauf 20% VSt-Abzug | P116: 0 | R116: 520 | S116: Wareneinkauf 20% VSt-Abzug | T116: 0 | U116: =SUM($D116:E116) -> 0 | V116: =SUM($D116:F116) -> 0 | W116: =SUM($D116:G116) -> 0 | X116: =SUM($D116:H116) -> 0 | Y116: =SUM($D116:I116) -> 0 | Z116: =SUM($D116:J116) -> 0 | AA116: =SUM($D116:K116) -> 0 | AB116: =SUM($D116:L116) -> 0 | AC116: =SUM($D116:M116) -> 0 | AD116: =SUM($D116:N116) -> 0 | AE116: =SUM($D116:O116) -> 0
A117: aus | B117: 580 | C117: Fremdleistungen | G117: -300 | M117: -300 | P117: -600 | R117: 580 | S117: Fremdleistungen | T117: 0 | U117: =SUM($D117:E117) -> 0 | V117: =SUM($D117:F117) -> 0 | W117: =SUM($D117:G117) -> -300 | X117: =SUM($D117:H117) -> -300 | Y117: =SUM($D117:I117) -> -300 | Z117: =SUM($D117:J117) -> -300 | AA117: =SUM($D117:K117) -> -300 | AB117: =SUM($D117:L117) -> -300 | AC117: =SUM($D117:M117) -> -600 | AD117: =SUM($D117:N117) -> -600 | AE117: =SUM($D117:O117) -> -600
A118: aus | B118: 600 | C118: Personalaufwand | P118: 0 | R118: 600 | S118: Personalaufwand | T118: 0 | U118: =SUM($D118:E118) -> 0 | V118: =SUM($D118:F118) -> 0 | W118: =SUM($D118:G118) -> 0 | X118: =SUM($D118:H118) -> 0 | Y118: =SUM($D118:I118) -> 0 | Z118: =SUM($D118:J118) -> 0 | AA118: =SUM($D118:K118) -> 0 | AB118: =SUM($D118:L118) -> 0 | AC118: =SUM($D118:M118) -> 0 | AD118: =SUM($D118:N118) -> 0 | AE118: =SUM($D118:O118) -> 0
A119: aus | B119: 700 | C119: AFA, Absetzung f. Abnutzung | D119: -250 | E119: -250 | F119: -250 | G119: -250 | H119: -250 | I119: -250 | J119: -250 | K119: -250 | L119: -250 | M119: -250 | N119: -250 | O119: -250 | P119: -3000 | R119: 700 | S119: AFA, Absetzung f. Abnutzung | T119: -250 | U119: =SUM($D119:E119) -> -500 | V119: =SUM($D119:F119) -> -750 | W119: =SUM($D119:G119) -> -1000 | X119: =SUM($D119:H119) -> -1250 | Y119: =SUM($D119:I119) -> -1500 | Z119: =SUM($D119:J119) -> -1750 | AA119: =SUM($D119:K119) -> -2000 | AB119: =SUM($D119:L119) -> -2250 | AC119: =SUM($D119:M119) -> -2500 | AD119: =SUM($D119:N119) -> -2750 | AE119: =SUM($D119:O119) -> -3000
A120: aus | B120: 705 | C120: GWG, geringwertige Wirtschaftsgüter | P120: 0 | R120: 705 | S120: GWG, geringwertige Wirtschaftsgüter | T120: 0 | U120: =SUM($D120:E120) -> 0 | V120: =SUM($D120:F120) -> 0 | W120: =SUM($D120:G120) -> 0 | X120: =SUM($D120:H120) -> 0 | Y120: =SUM($D120:I120) -> 0 | Z120: =SUM($D120:J120) -> 0 | AA120: =SUM($D120:K120) -> 0 | AB120: =SUM($D120:L120) -> 0 | AC120: =SUM($D120:M120) -> 0 | AD120: =SUM($D120:N120) -> 0 | AE120: =SUM($D120:O120) -> 0
A121: aus | B121: 710 | C121: Abgaben und Beiträge | P121: 0 | R121: 710 | S121: Abgaben und Beiträge | T121: 0 | U121: =SUM($D121:E121) -> 0 | V121: =SUM($D121:F121) -> 0 | W121: =SUM($D121:G121) -> 0 | X121: =SUM($D121:H121) -> 0 | Y121: =SUM($D121:I121) -> 0 | Z121: =SUM($D121:J121) -> 0 | AA121: =SUM($D121:K121) -> 0 | AB121: =SUM($D121:L121) -> 0 | AC121: =SUM($D121:M121) -> 0 | AD121: =SUM($D121:N121) -> 0 | AE121: =SUM($D121:O121) -> 0
A122: aus | B122: 720 | C122: Instandhaltungen (nur Gebäude-Erhaltung) | P122: 0 | R122: 720 | S122: Instandhaltungen (nur Gebäude-Erhaltung) | T122: 0 | U122: =SUM($D122:E122) -> 0 | V122: =SUM($D122:F122) -> 0 | W122: =SUM($D122:G122) -> 0 | X122: =SUM($D122:H122) -> 0 | Y122: =SUM($D122:I122) -> 0 | Z122: =SUM($D122:J122) -> 0 | AA122: =SUM($D122:K122) -> 0 | AB122: =SUM($D122:L122) -> 0 | AC122: =SUM($D122:M122) -> 0 | AD122: =SUM($D122:N122) -> 0 | AE122: =SUM($D122:O122) -> 0
A123: aus | B123: 725 | C123: Energieaufwand, Betriebskosten, Kleinmat. | P123: 0 | R123: 725 | S123: Energieaufwand, Betriebskosten, Kleinmat. | T123: 0 | U123: =SUM($D123:E123) -> 0 | V123: =SUM($D123:F123) -> 0 | W123: =SUM($D123:G123) -> 0 | X123: =SUM($D123:H123) -> 0 | Y123: =SUM($D123:I123) -> 0 | Z123: =SUM($D123:J123) -> 0 | AA123: =SUM($D123:K123) -> 0 | AB123: =SUM($D123:L123) -> 0 | AC123: =SUM($D123:M123) -> 0 | AD123: =SUM($D123:N123) -> 0 | AE123: =SUM($D123:O123) -> 0
A124: aus | B124: 730 | C124: Porto-, Fracht-, Transportaufwand d. Dritte | P124: 0 | R124: 730 | S124: Porto-, Fracht-, Transportaufwand d. Dritte | T124: 0 | U124: =SUM($D124:E124) -> 0 | V124: =SUM($D124:F124) -> 0 | W124: =SUM($D124:G124) -> 0 | X124: =SUM($D124:H124) -> 0 | Y124: =SUM($D124:I124) -> 0 | Z124: =SUM($D124:J124) -> 0 | AA124: =SUM($D124:K124) -> 0 | AB124: =SUM($D124:L124) -> 0 | AC124: =SUM($D124:M124) -> 0 | AD124: =SUM($D124:N124) -> 0 | AE124: =SUM($D124:O124) -> 0
A125: aus | B125: 732 | C125: KFZ-Aufwand (ohne AfA, Leasing u. Kilometergeld | P125: 0 | R125: 732 | S125: KFZ-Aufwand (ohne AfA, Leasing u. Kilometergeld | T125: 0 | U125: =SUM($D125:E125) -> 0 | V125: =SUM($D125:F125) -> 0 | W125: =SUM($D125:G125) -> 0 | X125: =SUM($D125:H125) -> 0 | Y125: =SUM($D125:I125) -> 0 | Z125: =SUM($D125:J125) -> 0 | AA125: =SUM($D125:K125) -> 0 | AB125: =SUM($D125:L125) -> 0 | AC125: =SUM($D125:M125) -> 0 | AD125: =SUM($D125:N125) -> 0 | AE125: =SUM($D125:O125) -> 0
A126: aus | B126: 735 | C126: Reise-, Fahrtspesen, Taggelder (inkl. Kilometergelder) | P126: 0 | R126: 735 | S126: Reise-, Fahrtspesen, Taggelder (inkl. Kilometergelder) | T126: 0 | U126: =SUM($D126:E126) -> 0 | V126: =SUM($D126:F126) -> 0 | W126: =SUM($D126:G126) -> 0 | X126: =SUM($D126:H126) -> 0 | Y126: =SUM($D126:I126) -> 0 | Z126: =SUM($D126:J126) -> 0 | AA126: =SUM($D126:K126) -> 0 | AB126: =SUM($D126:L126) -> 0 | AC126: =SUM($D126:M126) -> 0 | AD126: =SUM($D126:N126) -> 0 | AE126: =SUM($D126:O126) -> 0
A127: aus | B127: 739 | C127: Telekommunikation | P127: 0 | R127: 739 | S127: Telekommunikation | T127: 0 | U127: =SUM($D127:E127) -> 0 | V127: =SUM($D127:F127) -> 0 | W127: =SUM($D127:G127) -> 0 | X127: =SUM($D127:H127) -> 0 | Y127: =SUM($D127:I127) -> 0 | Z127: =SUM($D127:J127) -> 0 | AA127: =SUM($D127:K127) -> 0 | AB127: =SUM($D127:L127) -> 0 | AC127: =SUM($D127:M127) -> 0 | AD127: =SUM($D127:N127) -> 0 | AE127: =SUM($D127:O127) -> 0
A128: aus | B128: 740 | C128: Geschäftsmieten, Leasing, Raumkosten | P128: 0 | R128: 740 | S128: Geschäftsmieten, Leasing, Raumkosten | T128: 0 | U128: =SUM($D128:E128) -> 0 | V128: =SUM($D128:F128) -> 0 | W128: =SUM($D128:G128) -> 0 | X128: =SUM($D128:H128) -> 0 | Y128: =SUM($D128:I128) -> 0 | Z128: =SUM($D128:J128) -> 0 | AA128: =SUM($D128:K128) -> 0 | AB128: =SUM($D128:L128) -> 0 | AC128: =SUM($D128:M128) -> 0 | AD128: =SUM($D128:N128) -> 0 | AE128: =SUM($D128:O128) -> 0
A129: aus | B129: 741 | C129: KFZ-Mieten/-Leasing (PkW und LKW) | P129: 0 | R129: 741 | S129: KFZ-Mieten/-Leasing (PkW und LKW) | T129: 0 | U129: =SUM($D129:E129) -> 0 | V129: =SUM($D129:F129) -> 0 | W129: =SUM($D129:G129) -> 0 | X129: =SUM($D129:H129) -> 0 | Y129: =SUM($D129:I129) -> 0 | Z129: =SUM($D129:J129) -> 0 | AA129: =SUM($D129:K129) -> 0 | AB129: =SUM($D129:L129) -> 0 | AC129: =SUM($D129:M129) -> 0 | AD129: =SUM($D129:N129) -> 0 | AE129: =SUM($D129:O129) -> 0
A130: aus | B130: 748 | C130: Lizenz- u. Wartungsgebühren, Provisionen | P130: 0 | R130: 748 | S130: Lizenz- u. Wartungsgebühren, Provisionen | T130: 0 | U130: =SUM($D130:E130) -> 0 | V130: =SUM($D130:F130) -> 0 | W130: =SUM($D130:G130) -> 0 | X130: =SUM($D130:H130) -> 0 | Y130: =SUM($D130:I130) -> 0 | Z130: =SUM($D130:J130) -> 0 | AA130: =SUM($D130:K130) -> 0 | AB130: =SUM($D130:L130) -> 0 | AC130: =SUM($D130:M130) -> 0 | AD130: =SUM($D130:N130) -> 0 | AE130: =SUM($D130:O130) -> 0
A131: aus | B131: 760 | C131: Büromaterial, Fachliteratur | P131: 0 | R131: 760 | S131: Büromaterial, Fachliteratur | T131: 0 | U131: =SUM($D131:E131) -> 0 | V131: =SUM($D131:F131) -> 0 | W131: =SUM($D131:G131) -> 0 | X131: =SUM($D131:H131) -> 0 | Y131: =SUM($D131:I131) -> 0 | Z131: =SUM($D131:J131) -> 0 | AA131: =SUM($D131:K131) -> 0 | AB131: =SUM($D131:L131) -> 0 | AC131: =SUM($D131:M131) -> 0 | AD131: =SUM($D131:N131) -> 0 | AE131: =SUM($D131:O131) -> 0
A132: aus | B132: 765 | C132: Werbung, Repräsentationen | P132: 0 | R132: 765 | S132: Werbung, Repräsentationen | T132: 0 | U132: =SUM($D132:E132) -> 0 | V132: =SUM($D132:F132) -> 0 | W132: =SUM($D132:G132) -> 0 | X132: =SUM($D132:H132) -> 0 | Y132: =SUM($D132:I132) -> 0 | Z132: =SUM($D132:J132) -> 0 | AA132: =SUM($D132:K132) -> 0 | AB132: =SUM($D132:L132) -> 0 | AC132: =SUM($D132:M132) -> 0 | AD132: =SUM($D132:N132) -> 0 | AE132: =SUM($D132:O132) -> 0
A133: aus | B133: 770 | C133: Versicherung, Beratung, Fortbildung | P133: 0 | R133: 770 | S133: Versicherung, Beratung, Fortbildung | T133: 0 | U133: =SUM($D133:E133) -> 0 | V133: =SUM($D133:F133) -> 0 | W133: =SUM($D133:G133) -> 0 | X133: =SUM($D133:H133) -> 0 | Y133: =SUM($D133:I133) -> 0 | Z133: =SUM($D133:J133) -> 0 | AA133: =SUM($D133:K133) -> 0 | AB133: =SUM($D133:L133) -> 0 | AC133: =SUM($D133:M133) -> 0 | AD133: =SUM($D133:N133) -> 0 | AE133: =SUM($D133:O133) -> 0
A134: aus | B134: 771 | C134: Pflichtversicherung Unternehmer (SVA) | E134: -1200 | H134: -1200 | K134: -1200 | N134: -2000 | P134: -5600 | R134: 771 | S134: Pflichtversicherung Unternehmer (SVA) | T134: 0 | U134: =SUM($D134:E134) -> -1200 | V134: =SUM($D134:F134) -> -1200 | W134: =SUM($D134:G134) -> -1200 | X134: =SUM($D134:H134) -> -2400 | Y134: =SUM($D134:I134) -> -2400 | Z134: =SUM($D134:J134) -> -2400 | AA134: =SUM($D134:K134) -> -3600 | AB134: =SUM($D134:L134) -> -3600 | AC134: =SUM($D134:M134) -> -3600 | AD134: =SUM($D134:N134) -> -5600 | AE134: =SUM($D134:O134) -> -5600
A135: aus | B135: 780 | C135: Spesen des Geldverkehrs | P135: 0 | R135: 780 | S135: Spesen des Geldverkehrs | T135: 0 | U135: =SUM($D135:E135) -> 0 | V135: =SUM($D135:F135) -> 0 | W135: =SUM($D135:G135) -> 0 | X135: =SUM($D135:H135) -> 0 | Y135: =SUM($D135:I135) -> 0 | Z135: =SUM($D135:J135) -> 0 | AA135: =SUM($D135:K135) -> 0 | AB135: =SUM($D135:L135) -> 0 | AC135: =SUM($D135:M135) -> 0 | AD135: =SUM($D135:N135) -> 0 | AE135: =SUM($D135:O135) -> 0
A136: aus | B136: 790 | C136: sonstige Aufwendungen | D136: -500 | E136: -500 | F136: -500 | G136: -500 | H136: -500 | I136: -500 | J136: -500 | K136: -500 | L136: -500 | M136: -500 | N136: -500 | O136: -500 | P136: -6000 | R136: 790 | S136: sonstige Aufwendungen | T136: -500 | U136: =SUM($D136:E136) -> -1000 | V136: =SUM($D136:F136) -> -1500 | W136: =SUM($D136:G136) -> -2000 | X136: =SUM($D136:H136) -> -2500 | Y136: =SUM($D136:I136) -> -3000 | Z136: =SUM($D136:J136) -> -3500 | AA136: =SUM($D136:K136) -> -4000 | AB136: =SUM($D136:L136) -> -4500 | AC136: =SUM($D136:M136) -> -5000 | AD136: =SUM($D136:N136) -> -5500 | AE136: =SUM($D136:O136) -> -6000
A137: aus | B137: 830 | C137: Zinsen und ähnliche Aufwendungen | P137: 0 | R137: 830 | S137: Zinsen und ähnliche Aufwendungen | T137: 0 | U137: =SUM($D137:E137) -> 0 | V137: =SUM($D137:F137) -> 0 | W137: =SUM($D137:G137) -> 0 | X137: =SUM($D137:H137) -> 0 | Y137: =SUM($D137:I137) -> 0 | Z137: =SUM($D137:J137) -> 0 | AA137: =SUM($D137:K137) -> 0 | AB137: =SUM($D137:L137) -> 0 | AC137: =SUM($D137:M137) -> 0 | AD137: =SUM($D137:N137) -> 0 | AE137: =SUM($D137:O137) -> 0
C138: G e w i n n (+) / V e r l u s t (-) | D138: =SUM(D106:D137) -> 1750 | E138: 630 | F138: 1750 | G138: 1450 | H138: 550 | I138: 1750 | J138: 1750 | K138: 550 | L138: 1750 | M138: 1450 | N138: -250 | O138: 1750 | P138: 14880 | S138: =C138 -> G e w i n n (+) / V e r l u s t (-) | T138: =D138 -> 1750 | U138: =SUM($D138:E138) -> 2380 | V138: =SUM($D138:F138) -> 4130 | W138: =SUM($D138:G138) -> 5580 | X138: =SUM($D138:H138) -> 6130 | Y138: =SUM($D138:I138) -> 7880 | Z138: =SUM($D138:J138) -> 9630 | AA138: =SUM($D138:K138) -> 10180 | AB138: =SUM($D138:L138) -> 11930 | AC138: =SUM($D138:M138) -> 13380 | AD138: =SUM($D138:N138) -> 13130 | AE138: =SUM($D138:O138) -> 14880
B140: rvo.at | C140: EBITDA (Budget) | D140: Januar | E140: Februar | F140: März | G140: April | H140: Mai | I140: Juni | J140: Juli | K140: August | L140: September | M140: Oktober | N140: November | O140: Dezember | P140: gesamt | R140: rvo.at | S140: EBITDA | T140: Januar | U140: Februar | V140: März | W140: April | X140: Mai | Y140: Juni | Z140: Juli | AA140: August | AB140: September | AC140: Oktober | AD140: November | AE140: Dezember
C141: Umsatz | D141: =SUM(D106:D112) -> 2500 | E141: 2580 | F141: 2500 | G141: 2500 | H141: 2500 | I141: 2500 | J141: 2500 | K141: 2500 | L141: 2500 | M141: 2500 | N141: 2500 | O141: 2500 | P141: =SUM(D141:O141) -> 30080 | S141: =C141 -> Umsatz | T141: 2500 | U141: =SUM($D141:E141) -> 5080 | V141: =SUM($D141:F141) -> 7580 | W141: =SUM($D141:G141) -> 10080 | X141: =SUM($D141:H141) -> 12580 | Y141: =SUM($D141:I141) -> 15080 | Z141: =SUM($D141:J141) -> 17580 | AA141: =SUM($D141:K141) -> 20080 | AB141: =SUM($D141:L141) -> 22580 | AC141: =SUM($D141:M141) -> 25080 | AD141: =SUM($D141:N141) -> 27580 | AE141: =SUM($D141:O141) -> 30080
C142: Direkter Aufwand (WES, Fremdl.) | D142: =SUM(D113:D117) -> 0 | E142: 0 | F142: 0 | G142: -300 | H142: 0 | I142: 0 | J142: 0 | K142: 0 | L142: 0 | M142: -300 | N142: 0 | O142: 0 | P142: =SUM(D142:O142) -> -600 | S142: Direkter Aufwand (WES, Fremdl.) | T142: 0 | U142: =SUM($D142:E142) -> 0 | V142: =SUM($D142:F142) -> 0 | W142: =SUM($D142:G142) -> -300 | X142: =SUM($D142:H142) -> -300 | Y142: =SUM($D142:I142) -> -300 | Z142: =SUM($D142:J142) -> -300 | AA142: =SUM($D142:K142) -> -300 | AB142: =SUM($D142:L142) -> -300 | AC142: =SUM($D142:M142) -> -600 | AD142: =SUM($D142:N142) -> -600 | AE142: =SUM($D142:O142) -> -600
C143: Rohertrag | D143: =SUM(D141:D142) -> 2500 | E143: 2580 | F143: 2500 | G143: 2200 | H143: 2500 | I143: 2500 | J143: 2500 | K143: 2500 | L143: 2500 | M143: 2200 | N143: 2500 | O143: 2500 | P143: 29480 | S143: Rohertrag | T143: 2500 | U143: =SUM($D143:E143) -> 5080 | V143: =SUM($D143:F143) -> 7580 | W143: =SUM($D143:G143) -> 9780 | X143: =SUM($D143:H143) -> 12280 | Y143: =SUM($D143:I143) -> 14780 | Z143: =SUM($D143:J143) -> 17280 | AA143: =SUM($D143:K143) -> 19780 | AB143: =SUM($D143:L143) -> 22280 | AC143: =SUM($D143:M143) -> 24480 | AD143: =SUM($D143:N143) -> 26980 | AE143: =SUM($D143:O143) -> 29480
C144: Personalkosten u. Overheads | D144: =SUM(D118,D121:D136) -> -500 | E144: -1700 | F144: -500 | G144: -500 | H144: -1700 | I144: -500 | J144: -500 | K144: -1700 | L144: -500 | M144: -500 | N144: -2500 | O144: -500 | P144: =SUM(D144:O144) -> -11600 | S144: Personalkosten u. Overheads | T144: -500 | U144: =SUM($D144:E144) -> -2200 | V144: =SUM($D144:F144) -> -2700 | W144: =SUM($D144:G144) -> -3200 | X144: =SUM($D144:H144) -> -4900 | Y144: =SUM($D144:I144) -> -5400 | Z144: =SUM($D144:J144) -> -5900 | AA144: =SUM($D144:K144) -> -7600 | AB144: =SUM($D144:L144) -> -8100 | AC144: =SUM($D144:M144) -> -8600 | AD144: =SUM($D144:N144) -> -11100 | AE144: =SUM($D144:O144) -> -11600
C145: EBITDA (Ergebnis vor Zinsen u. Afa) | D145: =SUM(D143:D144) -> 2000 | E145: 880 | F145: 2000 | G145: 1700 | H145: 800 | I145: 2000 | J145: 2000 | K145: 800 | L145: 2000 | M145: 1700 | N145: 0 | O145: 2000 | P145: 17880 | S145: EBITDA (Ergebnis vor Zinsen u. Afa) | T145: 2000 | U145: =SUM($D145:E145) -> 2880 | V145: =SUM($D145:F145) -> 4880 | W145: =SUM($D145:G145) -> 6580 | X145: =SUM($D145:H145) -> 7380 | Y145: =SUM($D145:I145) -> 9380 | Z145: =SUM($D145:J145) -> 11380 | AA145: =SUM($D145:K145) -> 12180 | AB145: =SUM($D145:L145) -> 14180 | AC145: =SUM($D145:M145) -> 15880 | AD145: =SUM($D145:N145) -> 15880 | AE145: =SUM($D145:O145) -> 17880
C146: Finanzergebnis (Zinsen) | D146: =D137 -> 0 | E146: 0 | F146: 0 | G146: 0 | H146: 0 | I146: 0 | J146: 0 | K146: 0 | L146: 0 | M146: 0 | N146: 0 | O146: 0 | P146: =SUM(D146:O146) -> 0 | S146: Finanzergebnis (Zinsen) | T146: 0 | U146: =SUM($D146:E146) -> 0 | V146: =SUM($D146:F146) -> 0 | W146: =SUM($D146:G146) -> 0 | X146: =SUM($D146:H146) -> 0 | Y146: =SUM($D146:I146) -> 0 | Z146: =SUM($D146:J146) -> 0 | AA146: =SUM($D146:K146) -> 0 | AB146: =SUM($D146:L146) -> 0 | AC146: =SUM($D146:M146) -> 0 | AD146: =SUM($D146:N146) -> 0 | AE146: =SUM($D146:O146) -> 0
C147: Ergebnis nach Zinsen, vor Afa | D147: =SUM(D145:D146) -> 2000 | E147: 880 | F147: 2000 | G147: 1700 | H147: 800 | I147: 2000 | J147: 2000 | K147: 800 | L147: 2000 | M147: 1700 | N147: 0 | O147: 2000 | P147: 17880 | S147: Ergebnis nach Zinsen, vor Afa | T147: 2000 | U147: =SUM($D147:E147) -> 2880 | V147: =SUM($D147:F147) -> 4880 | W147: =SUM($D147:G147) -> 6580 | X147: =SUM($D147:H147) -> 7380 | Y147: =SUM($D147:I147) -> 9380 | Z147: =SUM($D147:J147) -> 11380 | AA147: =SUM($D147:K147) -> 12180 | AB147: =SUM($D147:L147) -> 14180 | AC147: =SUM($D147:M147) -> 15880 | AD147: =SUM($D147:N147) -> 15880 | AE147: =SUM($D147:O147) -> 17880
C148: Afa | D148: =SUM(D119:D120) -> -250 | E148: -250 | F148: -250 | G148: -250 | H148: -250 | I148: -250 | J148: -250 | K148: -250 | L148: -250 | M148: -250 | N148: -250 | O148: -250 | P148: =SUM(D148:O148) -> -3000 | S148: Afa | T148: -250 | U148: =SUM($D148:E148) -> -500 | V148: =SUM($D148:F148) -> -750 | W148: =SUM($D148:G148) -> -1000 | X148: =SUM($D148:H148) -> -1250 | Y148: =SUM($D148:I148) -> -1500 | Z148: =SUM($D148:J148) -> -1750 | AA148: =SUM($D148:K148) -> -2000 | AB148: =SUM($D148:L148) -> -2250 | AC148: =SUM($D148:M148) -> -2500 | AD148: =SUM($D148:N148) -> -2750 | AE148: =SUM($D148:O148) -> -3000
C149: =C138 -> G e w i n n (+) / V e r l u s t (-) | D149: =SUM(D147:D148) -> 1750 | E149: 630 | F149: 1750 | G149: 1450 | H149: 550 | I149: 1750 | J149: 1750 | K149: 550 | L149: 1750 | M149: 1450 | N149: -250 | O149: 1750 | P149: 14880 | S149: G e w i n n (+) / V e r l u s t (-) | T149: 1750 | U149: =SUM($D149:E149) -> 2380 | V149: =SUM($D149:F149) -> 4130 | W149: =SUM($D149:G149) -> 5580 | X149: =SUM($D149:H149) -> 6130 | Y149: =SUM($D149:I149) -> 7880 | Z149: =SUM($D149:J149) -> 9630 | AA149: =SUM($D149:K149) -> 10180 | AB149: =SUM($D149:L149) -> 11930 | AC149: =SUM($D149:M149) -> 13380 | AD149: =SUM($D149:N149) -> 13130 | AE149: =SUM($D149:O149) -> 14880
B151: rvo.at | C151: Cashflow (Budget) | D151: Januar | E151: Februar | F151: März | G151: April | H151: Mai | I151: Juni | J151: Juli | K151: August | L151: September | M151: Oktober | N151: November | O151: Dezember | P151: gesamt | R151: rvo.at | S151: Cashflow | T151: Januar | U151: Februar | V151: März | W151: April | X151: Mai | Y151: Juni | Z151: Juli | AA151: August | AB151: September | AC151: Oktober | AD151: November | AE151: Dezember
B152: o | C152: Zuflüsse operativer Bereich | D152: 3000 | E152: 3000 | F152: 3000 | G152: 3000 | H152: 3000 | I152: 3000 | J152: 3000 | K152: 3000 | L152: 3000 | M152: 3000 | N152: 3000 | O152: 3000 | P152: =SUM(D152:O152) -> 36000 | R152: o | S152: =C152 -> Zuflüsse operativer Bereich | T152: 3000 | U152: =SUM($D152:E152) -> 6000 | V152: =SUM($D152:F152) -> 9000 | W152: =SUM($D152:G152) -> 12000 | X152: =SUM($D152:H152) -> 15000 | Y152: =SUM($D152:I152) -> 18000 | Z152: =SUM($D152:J152) -> 21000 | AA152: =SUM($D152:K152) -> 24000 | AB152: =SUM($D152:L152) -> 27000 | AC152: =SUM($D152:M152) -> 30000 | AD152: =SUM($D152:N152) -> 33000 | AE152: =SUM($D152:O152) -> 36000
B153: o | C153: Abflüsse operativer Bereich | D153: -1000 | E153: -2200 | F153: -1000 | G153: -1000 | H153: -2200 | I153: -1000 | J153: -1000 | K153: -2200 | L153: -1000 | M153: -1000 | N153: -3000 | O153: -1000 | P153: =SUM(D153:O153) -> -17600 | R153: o | S153: Abflüsse operativer Bereich | T153: -1000 | U153: =SUM($D153:E153) -> -3200 | V153: =SUM($D153:F153) -> -4200 | W153: =SUM($D153:G153) -> -5200 | X153: =SUM($D153:H153) -> -7400 | Y153: =SUM($D153:I153) -> -8400 | Z153: =SUM($D153:J153) -> -9400 | AA153: =SUM($D153:K153) -> -11600 | AB153: =SUM($D153:L153) -> -12600 | AC153: =SUM($D153:M153) -> -13600 | AD153: =SUM($D153:N153) -> -16600 | AE153: =SUM($D153:O153) -> -17600
B154: o | C154: Saldo operativer Bereich | D154: =SUM(D152:D153) -> 2000 | E154: 800 | F154: 2000 | G154: 2000 | H154: 800 | I154: 2000 | J154: 2000 | K154: 800 | L154: 2000 | M154: 2000 | N154: 0 | O154: 2000 | P154: 18400 | R154: o | S154: Saldo operativer Bereich | T154: 2000 | U154: =SUM($D154:E154) -> 2800 | V154: =SUM($D154:F154) -> 4800 | W154: =SUM($D154:G154) -> 6800 | X154: =SUM($D154:H154) -> 7600 | Y154: =SUM($D154:I154) -> 9600 | Z154: =SUM($D154:J154) -> 11600 | AA154: =SUM($D154:K154) -> 12400 | AB154: =SUM($D154:L154) -> 14400 | AC154: =SUM($D154:M154) -> 16400 | AD154: =SUM($D154:N154) -> 16400 | AE154: =SUM($D154:O154) -> 18400
B155: i | C155: Saldo Investitionsbereich (netto) | G155: -3000 | P155: =SUM(D155:O155) -> -3000 | R155: i | S155: Saldo Investitionsbereich (netto) | T155: 0 | U155: =SUM($D155:E155) -> 0 | V155: =SUM($D155:F155) -> 0 | W155: =SUM($D155:G155) -> -3000 | X155: =SUM($D155:H155) -> -3000 | Y155: =SUM($D155:I155) -> -3000 | Z155: =SUM($D155:J155) -> -3000 | AA155: =SUM($D155:K155) -> -3000 | AB155: =SUM($D155:L155) -> -3000 | AC155: =SUM($D155:M155) -> -3000 | AD155: =SUM($D155:N155) -> -3000 | AE155: =SUM($D155:O155) -> -3000
B156: f | C156: Saldo Finanzierungsbereich | G156: 3000 | H156: -200 | I156: -200 | J156: -200 | K156: -200 | L156: -200 | M156: -200 | N156: -200 | O156: -200 | P156: =SUM(D156:O156) -> 1400 | R156: f | S156: Saldo Finanzierungsbereich | T156: 0 | U156: =SUM($D156:E156) -> 0 | V156: =SUM($D156:F156) -> 0 | W156: =SUM($D156:G156) -> 3000 | X156: =SUM($D156:H156) -> 2800 | Y156: =SUM($D156:I156) -> 2600 | Z156: =SUM($D156:J156) -> 2400 | AA156: =SUM($D156:K156) -> 2200 | AB156: =SUM($D156:L156) -> 2000 | AC156: =SUM($D156:M156) -> 1800 | AD156: =SUM($D156:N156) -> 1600 | AE156: =SUM($D156:O156) -> 1400
C157: C a s h f l o w "betrieblich" | D157: =SUM(D154:D156) -> 2000 | E157: 800 | F157: 2000 | G157: 2000 | H157: 600 | I157: 1800 | J157: 1800 | K157: 600 | L157: 1800 | M157: 1800 | N157: -200 | O157: 1800 | P157: 16800 | S157: C a s h f l o w "betrieblich" | T157: 2000 | U157: =SUM($D157:E157) -> 2800 | V157: =SUM($D157:F157) -> 4800 | W157: =SUM($D157:G157) -> 6800 | X157: =SUM($D157:H157) -> 7400 | Y157: =SUM($D157:I157) -> 9200 | Z157: =SUM($D157:J157) -> 11000 | AA157: =SUM($D157:K157) -> 11600 | AB157: =SUM($D157:L157) -> 13400 | AC157: =SUM($D157:M157) -> 15200 | AD157: =SUM($D157:N157) -> 15000 | AE157: =SUM($D157:O157) -> 16800
B158: 992 | C158: Einkommensteuer bezahlt | E158: -300 | H158: -300 | K158: -300 | N158: -300 | P158: =SUM(D158:O158) -> -1200 | R158: 992 | S158: Einkommensteuer bezahlt | T158: 0 | U158: =SUM($D158:E158) -> -300 | V158: =SUM($D158:F158) -> -300 | W158: =SUM($D158:G158) -> -300 | X158: =SUM($D158:H158) -> -600 | Y158: =SUM($D158:I158) -> -600 | Z158: =SUM($D158:J158) -> -600 | AA158: =SUM($D158:K158) -> -900 | AB158: =SUM($D158:L158) -> -900 | AC158: =SUM($D158:M158) -> -900 | AD158: =SUM($D158:N158) -> -1200 | AE158: =SUM($D158:O158) -> -1200
B159: 998 | C159: Private Lebensführung | D159: -1400 | E159: -1400 | F159: -1400 | G159: -1400 | H159: -1400 | I159: -1400 | J159: -1400 | K159: -1400 | L159: -1400 | M159: -1400 | N159: -1400 | O159: -1400 | P159: =SUM(D159:O159) -> -16800 | R159: 998 | S159: Private Lebensführung | T159: -1400 | U159: =SUM($D159:E159) -> -2800 | V159: =SUM($D159:F159) -> -4200 | W159: =SUM($D159:G159) -> -5600 | X159: =SUM($D159:H159) -> -7000 | Y159: =SUM($D159:I159) -> -8400 | Z159: =SUM($D159:J159) -> -9800 | AA159: =SUM($D159:K159) -> -11200 | AB159: =SUM($D159:L159) -> -12600 | AC159: =SUM($D159:M159) -> -14000 | AD159: =SUM($D159:N159) -> -15400 | AE159: =SUM($D159:O159) -> -16800
B160: 999 | C160: Private Durchläufer | P160: =SUM(D160:O160) -> 0 | R160: 999 | S160: Private Durchläufer | T160: 0 | U160: =SUM($D160:E160) -> 0 | V160: =SUM($D160:F160) -> 0 | W160: =SUM($D160:G160) -> 0 | X160: =SUM($D160:H160) -> 0 | Y160: =SUM($D160:I160) -> 0 | Z160: =SUM($D160:J160) -> 0 | AA160: =SUM($D160:K160) -> 0 | AB160: =SUM($D160:L160) -> 0 | AC160: =SUM($D160:M160) -> 0 | AD160: =SUM($D160:N160) -> 0 | AE160: =SUM($D160:O160) -> 0
C161: C a s h f l o w "total" | D161: =SUM(D157:D160) -> 600 | E161: -900 | F161: 600 | G161: 600 | H161: -1100 | I161: 400 | J161: 400 | K161: -1100 | L161: 400 | M161: 400 | N161: -1900 | O161: 400 | P161: -1200 | S161: C a s h f l o w "total" | T161: 600 | U161: =SUM(D161:E161) -> -300 | V161: =SUM(V157:V160) -> 300 | W161: 900 | X161: -200 | Y161: 200 | Z161: 600 | AA161: -500 | AB161: -100 | AC161: 300 | AD161: -1600 | AE161: -1200
C162: Cash at start of period | D162: =D59 -> 125 | E162: =D163 -> 725 | F162: -175 | G162: 425 | H162: 1025 | I162: -75 | J162: 325 | K162: 725 | L162: -375 | M162: 25 | N162: 425 | O162: -1475 | P162: =D162 -> 125 | S162: Cash at start of period | T162: =$D162 -> 125 | U162: =$D162 -> 125 | V162: 125 | W162: 125 | X162: 125 | Y162: 125 | Z162: 125 | AA162: 125 | AB162: 125 | AC162: 125 | AD162: 125 | AE162: 125
C163: Cash at end of period | D163: =SUM(D161:D162) -> 725 | E163: -175 | F163: 425 | G163: 1025 | H163: -75 | I163: 325 | J163: 725 | K163: -375 | L163: 25 | M163: 425 | N163: -1475 | O163: -1075 | P163: -1075 | S163: Cash at end of period | T163: =D163 -> 725 | U163: =E163 -> -175 | V163: =SUM(V161:V162) -> 425 | W163: 1025 | X163: -75 | Y163: 325 | Z163: 725 | AA163: -375 | AB163: 25 | AC163: 425 | AD163: -1475 | AE163: -1075
D207: 01 | E207: 02 | F207: 03 | G207: 04 | H207: 05 | I207: 06 | J207: 07 | K207: 08 | L207: 09 | M207: 10 | N207: 11 | O207: 12 | T207: 01 | U207: 02 | V207: 03 | W207: 04 | X207: 05 | Y207: 06 | Z207: 07 | AA207: 08 | AB207: 09 | AC207: 10 | AD207: 11 | AE207: 12
A208: ein/aus | B208: rvo.at | C208: Einnahmen/Ausgaben (prior year) | D208: Januar | E208: Februar | F208: März | G208: April | H208: Mai | I208: Juni | J208: Juli | K208: August | L208: September | M208: Oktober | N208: November | O208: Dezember | P208: gesamt | R208: rvo.at | S208: Einnahmen/Ausgaben | T208: Januar | U208: Februar | V208: März | W208: April | X208: Mai | Y208: Juni | Z208: Juli | AA208: August | AB208: September | AC208: Oktober | AD208: November | AE208: Dezember
A209: ein | B209: 400 | C209: =C106 -> Erlöse nicht steuerbar | P209: =SUM(D209:O209) -> 0 | R209: 400 | S209: =C209 -> Erlöse nicht steuerbar | T209: =D209 -> 0 | U209: =SUM($D209:E209) -> 0 | V209: =SUM($D209:F209) -> 0 | W209: =SUM($D209:G209) -> 0 | X209: =SUM($D209:H209) -> 0 | Y209: =SUM($D209:I209) -> 0 | Z209: =SUM($D209:J209) -> 0 | AA209: =SUM($D209:K209) -> 0 | AB209: =SUM($D209:L209) -> 0 | AC209: =SUM($D209:M209) -> 0 | AD209: =SUM($D209:N209) -> 0 | AE209: =SUM($D209:O209) -> 0
A210: ein | B210: 405 | C210: Erlöse 5% steuerbar | P210: =SUM(D210:O210) -> 0 | R210: 405 | S210: =C210 -> Erlöse 5% steuerbar | T210: =D210 -> 0 | U210: =SUM($D210:E210) -> 0 | V210: =SUM($D210:F210) -> 0 | W210: =SUM($D210:G210) -> 0 | X210: =SUM($D210:H210) -> 0 | Y210: =SUM($D210:I210) -> 0 | Z210: =SUM($D210:J210) -> 0 | AA210: =SUM($D210:K210) -> 0 | AB210: =SUM($D210:L210) -> 0 | AC210: =SUM($D210:M210) -> 0 | AD210: =SUM($D210:N210) -> 0 | AE210: =SUM($D210:O210) -> 0
A211: ein | B211: 410 | C211: Erlöse 10% steuerbar | P211: 0 | R211: 410 | S211: =C211 -> Erlöse 10% steuerbar | T211: 0 | U211: =SUM($D211:E211) -> 0 | V211: =SUM($D211:F211) -> 0 | W211: =SUM($D211:G211) -> 0 | X211: =SUM($D211:H211) -> 0 | Y211: =SUM($D211:I211) -> 0 | Z211: =SUM($D211:J211) -> 0 | AA211: =SUM($D211:K211) -> 0 | AB211: =SUM($D211:L211) -> 0 | AC211: =SUM($D211:M211) -> 0 | AD211: =SUM($D211:N211) -> 0 | AE211: =SUM($D211:O211) -> 0
A212: ein | B212: 413 | C212: Erlöse 13% steuerbar | E212: 50 | P212: 50 | R212: 413 | S212: Erlöse 13% steuerbar | T212: 0 | U212: =SUM($D212:E212) -> 50 | V212: =SUM($D212:F212) -> 50 | W212: =SUM($D212:G212) -> 50 | X212: =SUM($D212:H212) -> 50 | Y212: =SUM($D212:I212) -> 50 | Z212: =SUM($D212:J212) -> 50 | AA212: =SUM($D212:K212) -> 50 | AB212: =SUM($D212:L212) -> 50 | AC212: =SUM($D212:M212) -> 50 | AD212: =SUM($D212:N212) -> 50 | AE212: =SUM($D212:O212) -> 50
A213: ein | B213: 420 | C213: Erlöse 20% steuerbar | D213: 2400 | E213: 2400 | F213: 2400 | G213: 2400 | H213: 2400 | I213: 2400 | J213: 2400 | K213: 2400 | L213: 2400 | M213: 2400 | N213: 2400 | O213: 2400 | P213: 28800 | R213: 420 | S213: Erlöse 20% steuerbar | T213: 2400 | U213: =SUM($D213:E213) -> 4800 | V213: =SUM($D213:F213) -> 7200 | W213: =SUM($D213:G213) -> 9600 | X213: =SUM($D213:H213) -> 12000 | Y213: =SUM($D213:I213) -> 14400 | Z213: =SUM($D213:J213) -> 16800 | AA213: =SUM($D213:K213) -> 19200 | AB213: =SUM($D213:L213) -> 21600 | AC213: =SUM($D213:M213) -> 24000 | AD213: =SUM($D213:N213) -> 26400 | AE213: =SUM($D213:O213) -> 28800
A214: ein | B214: 430 | C214: sonstige Erlöse | P214: 0 | R214: 430 | S214: sonstige Erlöse | T214: 0 | U214: =SUM($D214:E214) -> 0 | V214: =SUM($D214:F214) -> 0 | W214: =SUM($D214:G214) -> 0 | X214: =SUM($D214:H214) -> 0 | Y214: =SUM($D214:I214) -> 0 | Z214: =SUM($D214:J214) -> 0 | AA214: =SUM($D214:K214) -> 0 | AB214: =SUM($D214:L214) -> 0 | AC214: =SUM($D214:M214) -> 0 | AD214: =SUM($D214:N214) -> 0 | AE214: =SUM($D214:O214) -> 0
A215: ein | B215: 490 | C215: Privatanteil, Nutzungsentnahmen | P215: 0 | R215: 490 | S215: Privatanteil, Nutzungsentnahmen | T215: 0 | U215: =SUM($D215:E215) -> 0 | V215: =SUM($D215:F215) -> 0 | W215: =SUM($D215:G215) -> 0 | X215: =SUM($D215:H215) -> 0 | Y215: =SUM($D215:I215) -> 0 | Z215: =SUM($D215:J215) -> 0 | AA215: =SUM($D215:K215) -> 0 | AB215: =SUM($D215:L215) -> 0 | AC215: =SUM($D215:M215) -> 0 | AD215: =SUM($D215:N215) -> 0 | AE215: =SUM($D215:O215) -> 0
A216: aus | B216: 505 | C216: Wareneinkauf 5% VSt-Abzug | P216: 0 | R216: 505 | S216: Wareneinkauf 5% VSt-Abzug | T216: 0 | U216: =SUM($D216:E216) -> 0 | V216: =SUM($D216:F216) -> 0 | W216: =SUM($D216:G216) -> 0 | X216: =SUM($D216:H216) -> 0 | Y216: =SUM($D216:I216) -> 0 | Z216: =SUM($D216:J216) -> 0 | AA216: =SUM($D216:K216) -> 0 | AB216: =SUM($D216:L216) -> 0 | AC216: =SUM($D216:M216) -> 0 | AD216: =SUM($D216:N216) -> 0 | AE216: =SUM($D216:O216) -> 0
A217: aus | B217: 510 | C217: Wareneinkauf 10% VSt-Abzug | P217: 0 | R217: 510 | S217: Wareneinkauf 10% VSt-Abzug | T217: 0 | U217: =SUM($D217:E217) -> 0 | V217: =SUM($D217:F217) -> 0 | W217: =SUM($D217:G217) -> 0 | X217: =SUM($D217:H217) -> 0 | Y217: =SUM($D217:I217) -> 0 | Z217: =SUM($D217:J217) -> 0 | AA217: =SUM($D217:K217) -> 0 | AB217: =SUM($D217:L217) -> 0 | AC217: =SUM($D217:M217) -> 0 | AD217: =SUM($D217:N217) -> 0 | AE217: =SUM($D217:O217) -> 0
A218: aus | B218: 513 | C218: Wareneinkauf 13% VSt-Abzug | P218: =SUM(D218:O218) -> 0 | R218: 513 | S218: =C218 -> Wareneinkauf 13% VSt-Abzug | T218: =D218 -> 0 | U218: =SUM($D218:E218) -> 0 | V218: =SUM($D218:F218) -> 0 | W218: =SUM($D218:G218) -> 0 | X218: =SUM($D218:H218) -> 0 | Y218: =SUM($D218:I218) -> 0 | Z218: =SUM($D218:J218) -> 0 | AA218: =SUM($D218:K218) -> 0 | AB218: =SUM($D218:L218) -> 0 | AC218: =SUM($D218:M218) -> 0 | AD218: =SUM($D218:N218) -> 0 | AE218: =SUM($D218:O218) -> 0
A219: aus | B219: 520 | C219: Wareneinkauf 20% VSt-Abzug | P219: 0 | R219: 520 | S219: Wareneinkauf 20% VSt-Abzug | T219: 0 | U219: =SUM($D219:E219) -> 0 | V219: =SUM($D219:F219) -> 0 | W219: =SUM($D219:G219) -> 0 | X219: =SUM($D219:H219) -> 0 | Y219: =SUM($D219:I219) -> 0 | Z219: =SUM($D219:J219) -> 0 | AA219: =SUM($D219:K219) -> 0 | AB219: =SUM($D219:L219) -> 0 | AC219: =SUM($D219:M219) -> 0 | AD219: =SUM($D219:N219) -> 0 | AE219: =SUM($D219:O219) -> 0
A220: aus | B220: 580 | C220: Fremdleistungen | P220: 0 | R220: 580 | S220: Fremdleistungen | T220: 0 | U220: =SUM($D220:E220) -> 0 | V220: =SUM($D220:F220) -> 0 | W220: =SUM($D220:G220) -> 0 | X220: =SUM($D220:H220) -> 0 | Y220: =SUM($D220:I220) -> 0 | Z220: =SUM($D220:J220) -> 0 | AA220: =SUM($D220:K220) -> 0 | AB220: =SUM($D220:L220) -> 0 | AC220: =SUM($D220:M220) -> 0 | AD220: =SUM($D220:N220) -> 0 | AE220: =SUM($D220:O220) -> 0
A221: aus | B221: 600 | C221: Personalaufwand | P221: 0 | R221: 600 | S221: Personalaufwand | T221: 0 | U221: =SUM($D221:E221) -> 0 | V221: =SUM($D221:F221) -> 0 | W221: =SUM($D221:G221) -> 0 | X221: =SUM($D221:H221) -> 0 | Y221: =SUM($D221:I221) -> 0 | Z221: =SUM($D221:J221) -> 0 | AA221: =SUM($D221:K221) -> 0 | AB221: =SUM($D221:L221) -> 0 | AC221: =SUM($D221:M221) -> 0 | AD221: =SUM($D221:N221) -> 0 | AE221: =SUM($D221:O221) -> 0
A222: aus | B222: 700 | C222: AFA, Absetzung f. Abnutzung | D222: -150 | E222: -150 | F222: -150 | G222: -150 | H222: -150 | I222: -150 | J222: -150 | K222: -150 | L222: -150 | M222: -150 | N222: -150 | O222: -150 | P222: -1800 | R222: 700 | S222: AFA, Absetzung f. Abnutzung | T222: -150 | U222: =SUM($D222:E222) -> -300 | V222: =SUM($D222:F222) -> -450 | W222: =SUM($D222:G222) -> -600 | X222: =SUM($D222:H222) -> -750 | Y222: =SUM($D222:I222) -> -900 | Z222: =SUM($D222:J222) -> -1050 | AA222: =SUM($D222:K222) -> -1200 | AB222: =SUM($D222:L222) -> -1350 | AC222: =SUM($D222:M222) -> -1500 | AD222: =SUM($D222:N222) -> -1650 | AE222: =SUM($D222:O222) -> -1800
A223: aus | B223: 705 | C223: GWG, geringwertige Wirtschaftsgüter | P223: 0 | R223: 705 | S223: GWG, geringwertige Wirtschaftsgüter | T223: 0 | U223: =SUM($D223:E223) -> 0 | V223: =SUM($D223:F223) -> 0 | W223: =SUM($D223:G223) -> 0 | X223: =SUM($D223:H223) -> 0 | Y223: =SUM($D223:I223) -> 0 | Z223: =SUM($D223:J223) -> 0 | AA223: =SUM($D223:K223) -> 0 | AB223: =SUM($D223:L223) -> 0 | AC223: =SUM($D223:M223) -> 0 | AD223: =SUM($D223:N223) -> 0 | AE223: =SUM($D223:O223) -> 0
A224: aus | B224: 710 | C224: Abgaben und Beiträge | P224: 0 | R224: 710 | S224: Abgaben und Beiträge | T224: 0 | U224: =SUM($D224:E224) -> 0 | V224: =SUM($D224:F224) -> 0 | W224: =SUM($D224:G224) -> 0 | X224: =SUM($D224:H224) -> 0 | Y224: =SUM($D224:I224) -> 0 | Z224: =SUM($D224:J224) -> 0 | AA224: =SUM($D224:K224) -> 0 | AB224: =SUM($D224:L224) -> 0 | AC224: =SUM($D224:M224) -> 0 | AD224: =SUM($D224:N224) -> 0 | AE224: =SUM($D224:O224) -> 0
A225: aus | B225: 720 | C225: Instandhaltungen (nur Gebäude-Erhaltung) | P225: 0 | R225: 720 | S225: Instandhaltungen (nur Gebäude-Erhaltung) | T225: 0 | U225: =SUM($D225:E225) -> 0 | V225: =SUM($D225:F225) -> 0 | W225: =SUM($D225:G225) -> 0 | X225: =SUM($D225:H225) -> 0 | Y225: =SUM($D225:I225) -> 0 | Z225: =SUM($D225:J225) -> 0 | AA225: =SUM($D225:K225) -> 0 | AB225: =SUM($D225:L225) -> 0 | AC225: =SUM($D225:M225) -> 0 | AD225: =SUM($D225:N225) -> 0 | AE225: =SUM($D225:O225) -> 0
A226: aus | B226: 725 | C226: Energieaufwand, Betriebskosten, Kleinmat. | P226: 0 | R226: 725 | S226: Energieaufwand, Betriebskosten, Kleinmat. | T226: 0 | U226: =SUM($D226:E226) -> 0 | V226: =SUM($D226:F226) -> 0 | W226: =SUM($D226:G226) -> 0 | X226: =SUM($D226:H226) -> 0 | Y226: =SUM($D226:I226) -> 0 | Z226: =SUM($D226:J226) -> 0 | AA226: =SUM($D226:K226) -> 0 | AB226: =SUM($D226:L226) -> 0 | AC226: =SUM($D226:M226) -> 0 | AD226: =SUM($D226:N226) -> 0 | AE226: =SUM($D226:O226) -> 0
A227: aus | B227: 730 | C227: Porto-, Fracht-, Transportaufwand d. Dritte | P227: 0 | R227: 730 | S227: Porto-, Fracht-, Transportaufwand d. Dritte | T227: 0 | U227: =SUM($D227:E227) -> 0 | V227: =SUM($D227:F227) -> 0 | W227: =SUM($D227:G227) -> 0 | X227: =SUM($D227:H227) -> 0 | Y227: =SUM($D227:I227) -> 0 | Z227: =SUM($D227:J227) -> 0 | AA227: =SUM($D227:K227) -> 0 | AB227: =SUM($D227:L227) -> 0 | AC227: =SUM($D227:M227) -> 0 | AD227: =SUM($D227:N227) -> 0 | AE227: =SUM($D227:O227) -> 0
A228: aus | B228: 732 | C228: KFZ-Aufwand (ohne AfA, Leasing u. Kilometergeld | P228: 0 | R228: 732 | S228: KFZ-Aufwand (ohne AfA, Leasing u. Kilometergeld | T228: 0 | U228: =SUM($D228:E228) -> 0 | V228: =SUM($D228:F228) -> 0 | W228: =SUM($D228:G228) -> 0 | X228: =SUM($D228:H228) -> 0 | Y228: =SUM($D228:I228) -> 0 | Z228: =SUM($D228:J228) -> 0 | AA228: =SUM($D228:K228) -> 0 | AB228: =SUM($D228:L228) -> 0 | AC228: =SUM($D228:M228) -> 0 | AD228: =SUM($D228:N228) -> 0 | AE228: =SUM($D228:O228) -> 0
A229: aus | B229: 735 | C229: Reise-, Fahrtspesen, Taggelder (inkl. Kilometergelder) | P229: 0 | R229: 735 | S229: Reise-, Fahrtspesen, Taggelder (inkl. Kilometergelder) | T229: 0 | U229: =SUM($D229:E229) -> 0 | V229: =SUM($D229:F229) -> 0 | W229: =SUM($D229:G229) -> 0 | X229: =SUM($D229:H229) -> 0 | Y229: =SUM($D229:I229) -> 0 | Z229: =SUM($D229:J229) -> 0 | AA229: =SUM($D229:K229) -> 0 | AB229: =SUM($D229:L229) -> 0 | AC229: =SUM($D229:M229) -> 0 | AD229: =SUM($D229:N229) -> 0 | AE229: =SUM($D229:O229) -> 0
A230: aus | B230: 739 | C230: Telekommunikation | P230: 0 | R230: 739 | S230: Telekommunikation | T230: 0 | U230: =SUM($D230:E230) -> 0 | V230: =SUM($D230:F230) -> 0 | W230: =SUM($D230:G230) -> 0 | X230: =SUM($D230:H230) -> 0 | Y230: =SUM($D230:I230) -> 0 | Z230: =SUM($D230:J230) -> 0 | AA230: =SUM($D230:K230) -> 0 | AB230: =SUM($D230:L230) -> 0 | AC230: =SUM($D230:M230) -> 0 | AD230: =SUM($D230:N230) -> 0 | AE230: =SUM($D230:O230) -> 0
A231: aus | B231: 740 | C231: Geschäftsmieten, Leasing, Raumkosten | P231: 0 | R231: 740 | S231: Geschäftsmieten, Leasing, Raumkosten | T231: 0 | U231: =SUM($D231:E231) -> 0 | V231: =SUM($D231:F231) -> 0 | W231: =SUM($D231:G231) -> 0 | X231: =SUM($D231:H231) -> 0 | Y231: =SUM($D231:I231) -> 0 | Z231: =SUM($D231:J231) -> 0 | AA231: =SUM($D231:K231) -> 0 | AB231: =SUM($D231:L231) -> 0 | AC231: =SUM($D231:M231) -> 0 | AD231: =SUM($D231:N231) -> 0 | AE231: =SUM($D231:O231) -> 0
A232: aus | B232: 741 | C232: KFZ-Mieten/-Leasing (PkW und LKW) | P232: 0 | R232: 741 | S232: KFZ-Mieten/-Leasing (PkW und LKW) | T232: 0 | U232: =SUM($D232:E232) -> 0 | V232: =SUM($D232:F232) -> 0 | W232: =SUM($D232:G232) -> 0 | X232: =SUM($D232:H232) -> 0 | Y232: =SUM($D232:I232) -> 0 | Z232: =SUM($D232:J232) -> 0 | AA232: =SUM($D232:K232) -> 0 | AB232: =SUM($D232:L232) -> 0 | AC232: =SUM($D232:M232) -> 0 | AD232: =SUM($D232:N232) -> 0 | AE232: =SUM($D232:O232) -> 0
A233: aus | B233: 748 | C233: Lizenz- u. Wartungsgebühren, Provisionen | P233: 0 | R233: 748 | S233: Lizenz- u. Wartungsgebühren, Provisionen | T233: 0 | U233: =SUM($D233:E233) -> 0 | V233: =SUM($D233:F233) -> 0 | W233: =SUM($D233:G233) -> 0 | X233: =SUM($D233:H233) -> 0 | Y233: =SUM($D233:I233) -> 0 | Z233: =SUM($D233:J233) -> 0 | AA233: =SUM($D233:K233) -> 0 | AB233: =SUM($D233:L233) -> 0 | AC233: =SUM($D233:M233) -> 0 | AD233: =SUM($D233:N233) -> 0 | AE233: =SUM($D233:O233) -> 0
A234: aus | B234: 760 | C234: Büromaterial, Fachliteratur | P234: 0 | R234: 760 | S234: Büromaterial, Fachliteratur | T234: 0 | U234: =SUM($D234:E234) -> 0 | V234: =SUM($D234:F234) -> 0 | W234: =SUM($D234:G234) -> 0 | X234: =SUM($D234:H234) -> 0 | Y234: =SUM($D234:I234) -> 0 | Z234: =SUM($D234:J234) -> 0 | AA234: =SUM($D234:K234) -> 0 | AB234: =SUM($D234:L234) -> 0 | AC234: =SUM($D234:M234) -> 0 | AD234: =SUM($D234:N234) -> 0 | AE234: =SUM($D234:O234) -> 0
A235: aus | B235: 765 | C235: Werbung, Repräsentationen | P235: 0 | R235: 765 | S235: Werbung, Repräsentationen | T235: 0 | U235: =SUM($D235:E235) -> 0 | V235: =SUM($D235:F235) -> 0 | W235: =SUM($D235:G235) -> 0 | X235: =SUM($D235:H235) -> 0 | Y235: =SUM($D235:I235) -> 0 | Z235: =SUM($D235:J235) -> 0 | AA235: =SUM($D235:K235) -> 0 | AB235: =SUM($D235:L235) -> 0 | AC235: =SUM($D235:M235) -> 0 | AD235: =SUM($D235:N235) -> 0 | AE235: =SUM($D235:O235) -> 0
A236: aus | B236: 770 | C236: Versicherung, Beratung, Fortbildung | P236: 0 | R236: 770 | S236: Versicherung, Beratung, Fortbildung | T236: 0 | U236: =SUM($D236:E236) -> 0 | V236: =SUM($D236:F236) -> 0 | W236: =SUM($D236:G236) -> 0 | X236: =SUM($D236:H236) -> 0 | Y236: =SUM($D236:I236) -> 0 | Z236: =SUM($D236:J236) -> 0 | AA236: =SUM($D236:K236) -> 0 | AB236: =SUM($D236:L236) -> 0 | AC236: =SUM($D236:M236) -> 0 | AD236: =SUM($D236:N236) -> 0 | AE236: =SUM($D236:O236) -> 0
A237: aus | B237: 771 | C237: Pflichtversicherung Unternehmer (SVA) | E237: -1000 | H237: -1100 | K237: -1000 | N237: -1400 | P237: -4500 | R237: 771 | S237: Pflichtversicherung Unternehmer (SVA) | T237: 0 | U237: =SUM($D237:E237) -> -1000 | V237: =SUM($D237:F237) -> -1000 | W237: =SUM($D237:G237) -> -1000 | X237: =SUM($D237:H237) -> -2100 | Y237: =SUM($D237:I237) -> -2100 | Z237: =SUM($D237:J237) -> -2100 | AA237: =SUM($D237:K237) -> -3100 | AB237: =SUM($D237:L237) -> -3100 | AC237: =SUM($D237:M237) -> -3100 | AD237: =SUM($D237:N237) -> -4500 | AE237: =SUM($D237:O237) -> -4500
A238: aus | B238: 780 | C238: Spesen des Geldverkehrs | P238: 0 | R238: 780 | S238: Spesen des Geldverkehrs | T238: 0 | U238: =SUM($D238:E238) -> 0 | V238: =SUM($D238:F238) -> 0 | W238: =SUM($D238:G238) -> 0 | X238: =SUM($D238:H238) -> 0 | Y238: =SUM($D238:I238) -> 0 | Z238: =SUM($D238:J238) -> 0 | AA238: =SUM($D238:K238) -> 0 | AB238: =SUM($D238:L238) -> 0 | AC238: =SUM($D238:M238) -> 0 | AD238: =SUM($D238:N238) -> 0 | AE238: =SUM($D238:O238) -> 0
A239: aus | B239: 790 | C239: sonstige Aufwendungen | D239: -400 | E239: -400 | F239: -400 | G239: -400 | H239: -400 | I239: -400 | J239: -400 | K239: -400 | L239: -400 | M239: -400 | N239: -400 | O239: -400 | P239: -4800 | R239: 790 | S239: sonstige Aufwendungen | T239: -400 | U239: =SUM($D239:E239) -> -800 | V239: =SUM($D239:F239) -> -1200 | W239: =SUM($D239:G239) -> -1600 | X239: =SUM($D239:H239) -> -2000 | Y239: =SUM($D239:I239) -> -2400 | Z239: =SUM($D239:J239) -> -2800 | AA239: =SUM($D239:K239) -> -3200 | AB239: =SUM($D239:L239) -> -3600 | AC239: =SUM($D239:M239) -> -4000 | AD239: =SUM($D239:N239) -> -4400 | AE239: =SUM($D239:O239) -> -4800
A240: aus | B240: 830 | C240: Zinsen und ähnliche Aufwendungen | P240: 0 | R240: 830 | S240: Zinsen und ähnliche Aufwendungen | T240: 0 | U240: =SUM($D240:E240) -> 0 | V240: =SUM($D240:F240) -> 0 | W240: =SUM($D240:G240) -> 0 | X240: =SUM($D240:H240) -> 0 | Y240: =SUM($D240:I240) -> 0 | Z240: =SUM($D240:J240) -> 0 | AA240: =SUM($D240:K240) -> 0 | AB240: =SUM($D240:L240) -> 0 | AC240: =SUM($D240:M240) -> 0 | AD240: =SUM($D240:N240) -> 0 | AE240: =SUM($D240:O240) -> 0
C241: G e w i n n (+) / V e r l u s t (-) | D241: =SUM(D209:D240) -> 1850 | E241: 900 | F241: 1850 | G241: 1850 | H241: 750 | I241: 1850 | J241: 1850 | K241: 850 | L241: 1850 | M241: 1850 | N241: 450 | O241: 1850 | P241: 17750 | S241: =C241 -> G e w i n n (+) / V e r l u s t (-) | T241: =D241 -> 1850 | U241: =SUM($D241:E241) -> 2750 | V241: =SUM($D241:F241) -> 4600 | W241: =SUM($D241:G241) -> 6450 | X241: =SUM($D241:H241) -> 7200 | Y241: =SUM($D241:I241) -> 9050 | Z241: =SUM($D241:J241) -> 10900 | AA241: =SUM($D241:K241) -> 11750 | AB241: =SUM($D241:L241) -> 13600 | AC241: =SUM($D241:M241) -> 15450 | AD241: =SUM($D241:N241) -> 15900 | AE241: =SUM($D241:O241) -> 17750
B243: rvo.at | C243: EBITDA (prior year) | D243: Januar | E243: Februar | F243: März | G243: April | H243: Mai | I243: Juni | J243: Juli | K243: August | L243: September | M243: Oktober | N243: November | O243: Dezember | P243: gesamt | R243: rvo.at | S243: EBITDA | T243: Januar | U243: Februar | V243: März | W243: April | X243: Mai | Y243: Juni | Z243: Juli | AA243: August | AB243: September | AC243: Oktober | AD243: November | AE243: Dezember
C244: Umsatz | D244: =SUM(D209:D215) -> 2400 | E244: 2450 | F244: 2400 | G244: 2400 | H244: 2400 | I244: 2400 | J244: 2400 | K244: 2400 | L244: 2400 | M244: 2400 | N244: 2400 | O244: 2400 | P244: =SUM(D244:O244) -> 28850 | S244: =C244 -> Umsatz | T244: 2400 | U244: =SUM($D244:E244) -> 4850 | V244: =SUM($D244:F244) -> 7250 | W244: =SUM($D244:G244) -> 9650 | X244: =SUM($D244:H244) -> 12050 | Y244: =SUM($D244:I244) -> 14450 | Z244: =SUM($D244:J244) -> 16850 | AA244: =SUM($D244:K244) -> 19250 | AB244: =SUM($D244:L244) -> 21650 | AC244: =SUM($D244:M244) -> 24050 | AD244: =SUM($D244:N244) -> 26450 | AE244: =SUM($D244:O244) -> 28850
C245: Direkter Aufwand (WES, Fremdl.) | D245: =SUM(D216:D220) -> 0 | E245: 0 | F245: 0 | G245: 0 | H245: 0 | I245: 0 | J245: 0 | K245: 0 | L245: 0 | M245: 0 | N245: 0 | O245: 0 | P245: =SUM(D245:O245) -> 0 | S245: Direkter Aufwand (WES, Fremdl.) | T245: 0 | U245: =SUM($D245:E245) -> 0 | V245: =SUM($D245:F245) -> 0 | W245: =SUM($D245:G245) -> 0 | X245: =SUM($D245:H245) -> 0 | Y245: =SUM($D245:I245) -> 0 | Z245: =SUM($D245:J245) -> 0 | AA245: =SUM($D245:K245) -> 0 | AB245: =SUM($D245:L245) -> 0 | AC245: =SUM($D245:M245) -> 0 | AD245: =SUM($D245:N245) -> 0 | AE245: =SUM($D245:O245) -> 0
C246: Rohertrag | D246: =SUM(D244:D245) -> 2400 | E246: 2450 | F246: 2400 | G246: 2400 | H246: 2400 | I246: 2400 | J246: 2400 | K246: 2400 | L246: 2400 | M246: 2400 | N246: 2400 | O246: 2400 | P246: 28850 | S246: Rohertrag | T246: 2400 | U246: =SUM($D246:E246) -> 4850 | V246: =SUM($D246:F246) -> 7250 | W246: =SUM($D246:G246) -> 9650 | X246: =SUM($D246:H246) -> 12050 | Y246: =SUM($D246:I246) -> 14450 | Z246: =SUM($D246:J246) -> 16850 | AA246: =SUM($D246:K246) -> 19250 | AB246: =SUM($D246:L246) -> 21650 | AC246: =SUM($D246:M246) -> 24050 | AD246: =SUM($D246:N246) -> 26450 | AE246: =SUM($D246:O246) -> 28850
C247: Personalkosten u. Overheads | D247: =SUM(D221,D224:D239) -> -400 | E247: -1400 | F247: -400 | G247: -400 | H247: -1500 | I247: -400 | J247: -400 | K247: -1400 | L247: -400 | M247: -400 | N247: -1800 | O247: -400 | P247: =SUM(D247:O247) -> -9300 | S247: Personalkosten u. Overheads | T247: -400 | U247: =SUM($D247:E247) -> -1800 | V247: =SUM($D247:F247) -> -2200 | W247: =SUM($D247:G247) -> -2600 | X247: =SUM($D247:H247) -> -4100 | Y247: =SUM($D247:I247) -> -4500 | Z247: =SUM($D247:J247) -> -4900 | AA247: =SUM($D247:K247) -> -6300 | AB247: =SUM($D247:L247) -> -6700 | AC247: =SUM($D247:M247) -> -7100 | AD247: =SUM($D247:N247) -> -8900 | AE247: =SUM($D247:O247) -> -9300
C248: EBITDA (Ergebnis vor Zinsen u. Afa) | D248: =SUM(D246:D247) -> 2000 | E248: 1050 | F248: 2000 | G248: 2000 | H248: 900 | I248: 2000 | J248: 2000 | K248: 1000 | L248: 2000 | M248: 2000 | N248: 600 | O248: 2000 | P248: 19550 | S248: EBITDA (Ergebnis vor Zinsen u. Afa) | T248: 2000 | U248: =SUM($D248:E248) -> 3050 | V248: =SUM($D248:F248) -> 5050 | W248: =SUM($D248:G248) -> 7050 | X248: =SUM($D248:H248) -> 7950 | Y248: =SUM($D248:I248) -> 9950 | Z248: =SUM($D248:J248) -> 11950 | AA248: =SUM($D248:K248) -> 12950 | AB248: =SUM($D248:L248) -> 14950 | AC248: =SUM($D248:M248) -> 16950 | AD248: =SUM($D248:N248) -> 17550 | AE248: =SUM($D248:O248) -> 19550
C249: Finanzergebnis (Zinsen) | D249: =D240 -> 0 | E249: 0 | F249: 0 | G249: 0 | H249: 0 | I249: 0 | J249: 0 | K249: 0 | L249: 0 | M249: 0 | N249: 0 | O249: 0 | P249: =SUM(D249:O249) -> 0 | S249: Finanzergebnis (Zinsen) | T249: 0 | U249: =SUM($D249:E249) -> 0 | V249: =SUM($D249:F249) -> 0 | W249: =SUM($D249:G249) -> 0 | X249: =SUM($D249:H249) -> 0 | Y249: =SUM($D249:I249) -> 0 | Z249: =SUM($D249:J249) -> 0 | AA249: =SUM($D249:K249) -> 0 | AB249: =SUM($D249:L249) -> 0 | AC249: =SUM($D249:M249) -> 0 | AD249: =SUM($D249:N249) -> 0 | AE249: =SUM($D249:O249) -> 0
C250: Ergebnis nach Zinsen, vor Afa | D250: =SUM(D248:D249) -> 2000 | E250: 1050 | F250: 2000 | G250: 2000 | H250: 900 | I250: 2000 | J250: 2000 | K250: 1000 | L250: 2000 | M250: 2000 | N250: 600 | O250: 2000 | P250: 19550 | S250: Ergebnis nach Zinsen, vor Afa | T250: 2000 | U250: =SUM($D250:E250) -> 3050 | V250: =SUM($D250:F250) -> 5050 | W250: =SUM($D250:G250) -> 7050 | X250: =SUM($D250:H250) -> 7950 | Y250: =SUM($D250:I250) -> 9950 | Z250: =SUM($D250:J250) -> 11950 | AA250: =SUM($D250:K250) -> 12950 | AB250: =SUM($D250:L250) -> 14950 | AC250: =SUM($D250:M250) -> 16950 | AD250: =SUM($D250:N250) -> 17550 | AE250: =SUM($D250:O250) -> 19550
C251: Afa | D251: =SUM(D222:D223) -> -150 | E251: -150 | F251: -150 | G251: -150 | H251: -150 | I251: -150 | J251: -150 | K251: -150 | L251: -150 | M251: -150 | N251: -150 | O251: -150 | P251: =SUM(D251:O251) -> -1800 | S251: Afa | T251: -150 | U251: =SUM($D251:E251) -> -300 | V251: =SUM($D251:F251) -> -450 | W251: =SUM($D251:G251) -> -600 | X251: =SUM($D251:H251) -> -750 | Y251: =SUM($D251:I251) -> -900 | Z251: =SUM($D251:J251) -> -1050 | AA251: =SUM($D251:K251) -> -1200 | AB251: =SUM($D251:L251) -> -1350 | AC251: =SUM($D251:M251) -> -1500 | AD251: =SUM($D251:N251) -> -1650 | AE251: =SUM($D251:O251) -> -1800
C252: =C241 -> G e w i n n (+) / V e r l u s t (-) | D252: =SUM(D250:D251) -> 1850 | E252: 900 | F252: 1850 | G252: 1850 | H252: 750 | I252: 1850 | J252: 1850 | K252: 850 | L252: 1850 | M252: 1850 | N252: 450 | O252: 1850 | P252: 17750 | S252: G e w i n n (+) / V e r l u s t (-) | T252: 1850 | U252: =SUM($D252:E252) -> 2750 | V252: =SUM($D252:F252) -> 4600 | W252: =SUM($D252:G252) -> 6450 | X252: =SUM($D252:H252) -> 7200 | Y252: =SUM($D252:I252) -> 9050 | Z252: =SUM($D252:J252) -> 10900 | AA252: =SUM($D252:K252) -> 11750 | AB252: =SUM($D252:L252) -> 13600 | AC252: =SUM($D252:M252) -> 15450 | AD252: =SUM($D252:N252) -> 15900 | AE252: =SUM($D252:O252) -> 17750
B254: rvo.at | C254: Cashflow (prior year) | D254: Januar | E254: Februar | F254: März | G254: April | H254: Mai | I254: Juni | J254: Juli | K254: August | L254: September | M254: Oktober | N254: November | O254: Dezember | P254: gesamt | R254: rvo.at | S254: Cashflow | T254: Januar | U254: Februar | V254: März | W254: April | X254: Mai | Y254: Juni | Z254: Juli | AA254: August | AB254: September | AC254: Oktober | AD254: November | AE254: Dezember
B255: o | C255: Zuflüsse operativer Bereich | D255: 2900 | E255: 2900 | F255: 2900 | G255: 2900 | H255: 2900 | I255: 2900 | J255: 2900 | K255: 2900 | L255: 2900 | M255: 2900 | N255: 2900 | O255: 2900 | P255: =SUM(D255:O255) -> 34800 | R255: o | S255: =C255 -> Zuflüsse operativer Bereich | T255: 2900 | U255: =SUM($D255:E255) -> 5800 | V255: =SUM($D255:F255) -> 8700 | W255: =SUM($D255:G255) -> 11600 | X255: =SUM($D255:H255) -> 14500 | Y255: =SUM($D255:I255) -> 17400 | Z255: =SUM($D255:J255) -> 20300 | AA255: =SUM($D255:K255) -> 23200 | AB255: =SUM($D255:L255) -> 26100 | AC255: =SUM($D255:M255) -> 29000 | AD255: =SUM($D255:N255) -> 31900 | AE255: =SUM($D255:O255) -> 34800
B256: o | C256: Abflüsse operativer Bereich | D256: -700 | E256: -1800 | F256: -700 | G256: -700 | H256: -1900 | I256: -700 | J256: -700 | K256: -1900 | L256: -700 | M256: -700 | N256: -2200 | O256: -700 | P256: =SUM(D256:O256) -> -13400 | R256: o | S256: Abflüsse operativer Bereich | T256: -700 | U256: =SUM($D256:E256) -> -2500 | V256: =SUM($D256:F256) -> -3200 | W256: =SUM($D256:G256) -> -3900 | X256: =SUM($D256:H256) -> -5800 | Y256: =SUM($D256:I256) -> -6500 | Z256: =SUM($D256:J256) -> -7200 | AA256: =SUM($D256:K256) -> -9100 | AB256: =SUM($D256:L256) -> -9800 | AC256: =SUM($D256:M256) -> -10500 | AD256: =SUM($D256:N256) -> -12700 | AE256: =SUM($D256:O256) -> -13400
B257: o | C257: Saldo operativer Bereich | D257: =SUM(D255:D256) -> 2200 | E257: 1100 | F257: 2200 | G257: 2200 | H257: 1000 | I257: 2200 | J257: 2200 | K257: 1000 | L257: 2200 | M257: 2200 | N257: 700 | O257: 2200 | P257: 21400 | R257: o | S257: Saldo operativer Bereich | T257: 2200 | U257: =SUM($D257:E257) -> 3300 | V257: =SUM($D257:F257) -> 5500 | W257: =SUM($D257:G257) -> 7700 | X257: =SUM($D257:H257) -> 8700 | Y257: =SUM($D257:I257) -> 10900 | Z257: =SUM($D257:J257) -> 13100 | AA257: =SUM($D257:K257) -> 14100 | AB257: =SUM($D257:L257) -> 16300 | AC257: =SUM($D257:M257) -> 18500 | AD257: =SUM($D257:N257) -> 19200 | AE257: =SUM($D257:O257) -> 21400
B258: i | C258: Saldo Investitionsbereich (netto) | K258: -700 | P258: =SUM(D258:O258) -> -700 | R258: i | S258: Saldo Investitionsbereich (netto) | T258: 0 | U258: =SUM($D258:E258) -> 0 | V258: =SUM($D258:F258) -> 0 | W258: =SUM($D258:G258) -> 0 | X258: =SUM($D258:H258) -> 0 | Y258: =SUM($D258:I258) -> 0 | Z258: =SUM($D258:J258) -> 0 | AA258: =SUM($D258:K258) -> -700 | AB258: =SUM($D258:L258) -> -700 | AC258: =SUM($D258:M258) -> -700 | AD258: =SUM($D258:N258) -> -700 | AE258: =SUM($D258:O258) -> -700
B259: f | C259: Saldo Finanzierungsbereich | P259: =SUM(D259:O259) -> 0 | R259: f | S259: Saldo Finanzierungsbereich | T259: 0 | U259: =SUM($D259:E259) -> 0 | V259: =SUM($D259:F259) -> 0 | W259: =SUM($D259:G259) -> 0 | X259: =SUM($D259:H259) -> 0 | Y259: =SUM($D259:I259) -> 0 | Z259: =SUM($D259:J259) -> 0 | AA259: =SUM($D259:K259) -> 0 | AB259: =SUM($D259:L259) -> 0 | AC259: =SUM($D259:M259) -> 0 | AD259: =SUM($D259:N259) -> 0 | AE259: =SUM($D259:O259) -> 0
C260: C a s h f l o w "betrieblich" | D260: =SUM(D257:D259) -> 2200 | E260: 1100 | F260: 2200 | G260: 2200 | H260: 1000 | I260: 2200 | J260: 2200 | K260: 300 | L260: 2200 | M260: 2200 | N260: 700 | O260: 2200 | P260: 20700 | S260: C a s h f l o w "betrieblich" | T260: 2200 | U260: =SUM($D260:E260) -> 3300 | V260: =SUM($D260:F260) -> 5500 | W260: =SUM($D260:G260) -> 7700 | X260: =SUM($D260:H260) -> 8700 | Y260: =SUM($D260:I260) -> 10900 | Z260: =SUM($D260:J260) -> 13100 | AA260: =SUM($D260:K260) -> 13400 | AB260: =SUM($D260:L260) -> 15600 | AC260: =SUM($D260:M260) -> 17800 | AD260: =SUM($D260:N260) -> 18500 | AE260: =SUM($D260:O260) -> 20700
B261: 992 | C261: Einkommensteuer bezahlt | E261: -200 | H261: -200 | K261: -200 | N261: -200 | P261: =SUM(D261:O261) -> -800 | R261: 992 | S261: Einkommensteuer bezahlt | T261: 0 | U261: =SUM($D261:E261) -> -200 | V261: =SUM($D261:F261) -> -200 | W261: =SUM($D261:G261) -> -200 | X261: =SUM($D261:H261) -> -400 | Y261: =SUM($D261:I261) -> -400 | Z261: =SUM($D261:J261) -> -400 | AA261: =SUM($D261:K261) -> -600 | AB261: =SUM($D261:L261) -> -600 | AC261: =SUM($D261:M261) -> -600 | AD261: =SUM($D261:N261) -> -800 | AE261: =SUM($D261:O261) -> -800
B262: 998 | C262: Private Lebensführung | D262: -1200 | E262: -1200 | F262: -1200 | G262: -1200 | H262: -1200 | I262: -1200 | J262: -1200 | K262: -1200 | L262: -1200 | M262: -1200 | N262: -1200 | O262: -1200 | P262: =SUM(D262:O262) -> -14400 | R262: 998 | S262: Private Lebensführung | T262: -1200 | U262: =SUM($D262:E262) -> -2400 | V262: =SUM($D262:F262) -> -3600 | W262: =SUM($D262:G262) -> -4800 | X262: =SUM($D262:H262) -> -6000 | Y262: =SUM($D262:I262) -> -7200 | Z262: =SUM($D262:J262) -> -8400 | AA262: =SUM($D262:K262) -> -9600 | AB262: =SUM($D262:L262) -> -10800 | AC262: =SUM($D262:M262) -> -12000 | AD262: =SUM($D262:N262) -> -13200 | AE262: =SUM($D262:O262) -> -14400
B263: 999 | C263: Private Durchläufer | P263: =SUM(D263:O263) -> 0 | R263: 999 | S263: Private Durchläufer | T263: 0 | U263: =SUM($D263:E263) -> 0 | V263: =SUM($D263:F263) -> 0 | W263: =SUM($D263:G263) -> 0 | X263: =SUM($D263:H263) -> 0 | Y263: =SUM($D263:I263) -> 0 | Z263: =SUM($D263:J263) -> 0 | AA263: =SUM($D263:K263) -> 0 | AB263: =SUM($D263:L263) -> 0 | AC263: =SUM($D263:M263) -> 0 | AD263: =SUM($D263:N263) -> 0 | AE263: =SUM($D263:O263) -> 0
C264: C a s h f l o w "total" | D264: =SUM(D260:D263) -> 1000 | E264: -300 | F264: 1000 | G264: 1000 | H264: -400 | I264: 1000 | J264: 1000 | K264: -1100 | L264: 1000 | M264: 1000 | N264: -700 | O264: 1000 | P264: 5500 | S264: C a s h f l o w "total" | T264: 1000 | U264: =SUM(D264:E264) -> 700 | V264: =SUM(V260:V263) -> 1700 | W264: 2700 | X264: 2300 | Y264: 3300 | Z264: 4300 | AA264: 3200 | AB264: 4200 | AC264: 5200 | AD264: 4500 | AE264: 5500
C265: Cash at start of period | D265: 600 | E265: =D266 -> 1600 | F265: 1300 | G265: 2300 | H265: 3300 | I265: 2900 | J265: 3900 | K265: 4900 | L265: 3800 | M265: 4800 | N265: 5800 | O265: 5100 | P265: =D265 -> 600 | S265: Cash at start of period | T265: =$D265 -> 600 | U265: =$D265 -> 600 | V265: 600 | W265: 600 | X265: 600 | Y265: 600 | Z265: 600 | AA265: 600 | AB265: 600 | AC265: 600 | AD265: 600 | AE265: 600
C266: Cash at end of period | D266: =SUM(D264:D265) -> 1600 | E266: 1300 | F266: 2300 | G266: 3300 | H266: 2900 | I266: 3900 | J266: 4900 | K266: 3800 | L266: 4800 | M266: 5800 | N266: 5100 | O266: 6100 | P266: 6100 | S266: Cash at end of period | T266: =D266 -> 1600 | U266: =E266 -> 1300 | V266: =SUM(V264:V265) -> 2300 | W266: 3300 | X266: 2900 | Y266: 3900 | Z266: 4900 | AA266: 3800 | AB266: 4800 | AC266: 5800 | AD266: 5100 | AE266: 6100

Sheet Cash
C1: 1 | D1: 2 | E1: 3 | F1: 4 | G1: 5 | H1: 6 | I1: 7 | J1: 8 | K1: 9 | L1: 10 | M1: 11 | N1: 12
C2: balance / saldo | G2: start | H2: + | I2: - | J2: end | K2: s + - e | L2: diff | N2: Year | O2: =O10 -> 2024
B3: =Einzelposten!E2 -> K | C3: =Einzelposten!G2 -> Kassa | F3: =B3 -> K | G3: =Einzelposten!H2 -> 20 | H3: =Einzelposten!I2 -> 100 | I3: =Einzelposten!J2 -> 48.9 | J3: =Einzelposten!AD2 -> 71.1 | L3: =J3-G3 -> 51.1 | M3: =L3 -> 51.1
B4: =Einzelposten!E3 -> B | C4: =Einzelposten!G3 -> Bank I | F4: =B4 -> B | G4: =Einzelposten!H3 -> 100 | H4: =Einzelposten!I3 -> 2700 | I4: =Einzelposten!J3 -> 1600 | J4: =Einzelposten!AD3 -> 1200 | L4: =J4-G4 -> 1100 | M4: =L4 -> 1100
B5: =Einzelposten!E4 -> C | C5: =Einzelposten!G4 -> Bank II | F5: =B5 -> C | G5: =Einzelposten!H4 -> 5 | H5: =Einzelposten!I4 -> 1000 | I5: =Einzelposten!J4 -> 0 | J5: =Einzelposten!AD4 -> 1005 | L5: =J5-G5 -> 1000 | M5: =L5 -> 1000
B6: <> | C6: total cash funds | F6: =B6 -> <> | G6: =ROUND(SUM(G3:G5),2) -> 125 | H6: =ROUND(SUM(H3:H5),2) -> 3800 | I6: =ROUND(SUM(I3:I5),2) -> 1648.9 | J6: =ROUND(SUM(J3:J5),2) -> 2276.1 | L6: =J6-G6 -> 2151.1 | M6: =L6 -> 2151.1 | O6: =A12 -> TRUE
B7: ="" ->  | C7: non-cash transactions | F7: =B7 ->  | H7: =Einzelposten!I5 -> 0 | I7: =Einzelposten!J5 -> 83.33 | J7: =Einzelposten!AD5 -> -83.33 | L7: =J7-G7 -> -83.33 | M7: =L7 -> -83.33
G9: start | H9: + | I9: - | J9: end | K9: s + - e | L9: diff
B10: =VLOOKUP(C10,C3:F7,4,FALSE) -> <> | C10: total cash funds | G10: =VLOOKUP($B$10,$B$3:$L$7,6,FALSE) -> 125 | H10: =VLOOKUP($B$10,$B$3:$L$7,7,FALSE) -> 3800 | I10: =VLOOKUP($B$10,$B$3:$L$7,8,FALSE) -> 1648.9 | J10: =VLOOKUP($B$10,$B$3:$L$7,9,FALSE) -> 2276.1 | L10: =VLOOKUP($B$10,$B$3:$L$7,11,FALSE) -> 2151.1 | M10: =L10 -> 2151.1 | N10: Year | O10: =YEAR(Einzelposten!D16) -> 2024
A12: =AND(ROUND(J10-N46,2)=0) -> TRUE
A14: Day | B14: Rec | C14: January | D14: February | E14: March | F14: April | G14: May | H14: June | I14: July | J14: August | K14: September | L14: October | M14: November | N14: December | O14: Balance
A15: 0 | B15: =$B$10 -> <> | C15: =ROUND(SUMIFS(Einzelposten!H2:H5,Einzelposten!E2:E5,B15),2) -> 125 | D15: =C46 -> 202 | E15: =D46 -> -368 | F15: 2282 | G15: 2282 | H15: 2282 | I15: 2282 | J15: 2282 | K15: 2282 | L15: 2282 | M15: 2276.1 | N15: 2276.1
A16: 1 | B16: =$B$10 -> <> | C16: =ROUND(SUM(SUMIFS(Einzelposten!H2:H5,Einzelposten!E2:E5,B16),SUMIFS(Einzelposten!$I$16:$I$215,Einzelposten!$C$16:$C$215,$C$1,Einzelposten!$B$16:$B$215,$A16,Einzelposten!$E$16:$E$215,$B$10),SUMIFS(Einzelposten!$J$16:$J$215,Einzelposten!$C$16:$C$215,$C$1,Einzelposten!$B$16:$B$215,$A16,Einzelposten!$E$16:$E$215,$B$10)*-1),2) -> 225 | D16: =ROUND(SUM(C46,SUMIFS(Einzelposten!$I$16:$I$215,Einzelposten!$C$16:$C$215,D1,Einzelposten!$B$16:$B$215,$A16,Einzelposten!$E$16:$E$215,$B$10),SUMIFS(Einzelposten!$J$16:$J$215,Einzelposten!$C$16:$C$215,D1,Einzelposten!$B$16:$B$215,$A16,Einzelposten!$E$16:$E$215,$B$10)*-1),2) -> 202 | E16: =ROUND(SUM(D46,SUMIFS(Einzelposten!$I$16:$I$215,Einzelposten!$C$16:$C$215,E1,Einzelposten!$B$16:$B$215,$A16,Einzelposten!$E$16:$E$215,$B$10),SUMIFS(Einzelposten!$J$16:$J$215,Einzelposten!$C$16:$C$215,E1,Einzelposten!$B$16:$B$215,$A16,Einzelposten!$E$16:$E$215,$B$10)*-1),2) -> -368 | F16: =ROUND(SUM(E46,SUMIFS(Einzelposten!$I$16:$I$215,Einzelposten!$C$16:$C$215,F1,Einzelposten!$B$16:$B$215,$A16,Einzelposten!$E$16:$E$215,$B$10),SUMIFS(Einzelposten!$J$16:$J$215,Einzelposten!$C$16:$C$215,F1,Einzelposten!$B$16:$B$215,$A16,Einzelposten!$E$16:$E$215,$B$10)*-1),2) -> 2282 | G16: =ROUND(SUM(F46,SUMIFS(Einzelposten!$I$16:$I$215,Einzelposten!$C$16:$C$215,G1,Einzelposten!$B$16:$B$215,$A16,Einzelposten!$E$16:$E$215,$B$10),SUMIFS(Einzelposten!$J$16:$J$215,Einzelposten!$C$16:$C$215,G1,Einzelposten!$B$16:$B$215,$A16,Einzelposten!$E$16:$E$215,$B$10)*-1),2) -> 2282 | H16: =ROUND(SUM(G46,SUMIFS(Einzelposten!$I$16:$I$215,Einzelposten!$C$16:$C$215,H1,Einzelposten!$B$16:$B$215,$A16,Einzelposten!$E$16:$E$215,$B$10),SUMIFS(Einzelposten!$J$16:$J$215,Einzelposten!$C$16:$C$215,H1,Einzelposten!$B$16:$B$215,$A16,Einzelposten!$E$16:$E$215,$B$10)*-1),2) -> 2282 | I16: =ROUND(SUM(H46,SUMIFS(Einzelposten!$I$16:$I$215,Einzelposten!$C$16:$C$215,I1,Einzelposten!$B$16:$B$215,$A16,Einzelposten!$E$16:$E$215,$B$10),SUMIFS(Einzelposten!$J$16:$J$215,Einzelposten!$C$16:$C$215,I1,Einzelposten!$B$16:$B$215,$A16,Einzelposten!$E$16:$E$215,$B$10)*-1),2) -> 2282 | J16: =ROUND(SUM(I46,SUMIFS(Einzelposten!$I$16:$I$215,Einzelposten!$C$16:$C$215,J1,Einzelposten!$B$16:$B$215,$A16,Einzelposten!$E$16:$E$215,$B$10),SUMIFS(Einzelposten!$J$16:$J$215,Einzelposten!$C$16:$C$215,J1,Einzelposten!$B$16:$B$215,$A16,Einzelposten!$E$16:$E$215,$B$10)*-1),2) -> 2282 | K16: =ROUND(SUM(J46,SUMIFS(Einzelposten!$I$16:$I$215,Einzelposten!$C$16:$C$215,K1,Einzelposten!$B$16:$B$215,$A16,Einzelposten!$E$16:$E$215,$B$10),SUMIFS(Einzelposten!$J$16:$J$215,Einzelposten!$C$16:$C$215,K1,Einzelposten!$B$16:$B$215,$A16,Einzelposten!$E$16:$E$215,$B$10)*-1),2) -> 2282 | L16: =ROUND(SUM(K46,SUMIFS(Einzelposten!$I$16:$I$215,Einzelposten!$C$16:$C$215,L1,Einzelposten!$B$16:$B$215,$A16,Einzelposten!$E$16:$E$215,$B$10),SUMIFS(Einzelposten!$J$16:$J$215,Einzelposten!$C$16:$C$215,L1,Einzelposten!$B$16:$B$215,$A16,Einzelposten!$E$16:$E$215,$B$10)*-1),2) -> 2282 | M16: =ROUND(SUM(L46,SUMIFS(Einzelposten!$I$16:$I$215,Einzelposten!$C$16:$C$215,M1,Einzelposten!$B$16:$B$215,$A16,Einzelposten!$E$16:$E$215,$B$10),SUMIFS(Einzelposten!$J$16:$J$215,Einzelposten!$C$16:$C$215,M1,Einzelposten!$B$16:$B$215,$A16,Einzelposten!$E$16:$E$215,$B$10)*-1),2) -> 2276.1 | N16: =ROUND(SUM(M46,SUMIFS(Einzelposten!$I$16:$I$215,Einzelposten!$C$16:$C$215,N1,Einzelposten!$B$16:$B$215,$A16,Einzelposten!$E$16:$E$215,$B$10),SUMIFS(Einzelposten!$J$16:$J$215,Einzelposten!$C$16:$C$215,N1,Einzelposten!$B$16:$B$215,$A16,Einzelposten!$E$16:$E$215,$B$10)*-1),2) -> 2276.1
A17: 2 | B17: <> | C17: =ROUND(SUM(C16,SUMIFS(Einzelposten!$I$16:$I$215,Einzelposten!$C$16:$C$215,C$1,Einzelposten!$B$16:$B$215,$A17,Einzelposten!$E$16:$E$215,$B$10),SUMIFS(Einzelposten!$J$16:$J$215,Einzelposten!$C$16:$C$215,C$1,Einzelposten!$B$16:$B$215,$A17,Einzelposten!$E$16:$E$215,$B$10)*-1),2) -> 225 | D17: =ROUND(SUM(D16,SUMIFS(Einzelposten!$I$16:$I$215,Einzelposten!$C$16:$C$215,D$1,Einzelposten!$B$16:$B$215,$A17,Einzelposten!$E$16:$E$215,$B$10),SUMIFS(Einzelposten!$J$16:$J$215,Einzelposten!$C$16:$C$215,D$1,Einzelposten!$B$16:$B$215,$A17,Einzelposten!$E$16:$E$215,$B$10)*-1),2) -> 202 | E17: =ROUND(SUM(E16,SUMIFS(Einzelposten!$I$16:$I$215,Einzelposten!$C$16:$C$215,E$1,Einzelposten!$B$16:$B$215,$A17,Einzelposten!$E$16:$E$215,$B$10),SUMIFS(Einzelposten!$J$16:$J$215,Einzelposten!$C$16:$C$215,E$1,Einzelposten!$B$16:$B$215,$A17,Einzelposten!$E$16:$E$215,$B$10)*-1),2) -> -368 | F17: =ROUND(SUM(F16,SUMIFS(Einzelposten!$I$16:$I$215,Einzelposten!$C$16:$C$215,F$1,Einzelposten!$B$16:$B$215,$A17,Einzelposten!$E$16:$E$215,$B$10),SUMIFS(Einzelposten!$J$16:$J$215,Einzelposten!$C$16:$C$215,F$1,Einzelposten!$B$16:$B$215,$A17,Einzelposten!$E$16:$E$215,$B$10)*-1),2) -> 2282 | G17: =ROUND(SUM(G16,SUMIFS(Einzelposten!$I$16:$I$215,Einzelposten!$C$16:$C$215,G$1,Einzelposten!$B$16:$B$215,$A17,Einzelposten!$E$16:$E$215,$B$10),SUMIFS(Einzelposten!$J$16:$J$215,Einzelposten!$C$16:$C$215,G$1,Einzelposten!$B$16:$B$215,$A17,Einzelposten!$E$16:$E$215,$B$10)*-1),2) -> 2282 | H17: =ROUND(SUM(H16,SUMIFS(Einzelposten!$I$16:$I$215,Einzelposten!$C$16:$C$215,H$1,Einzelposten!$B$16:$B$215,$A17,Einzelposten!$E$16:$E$215,$B$10),SUMIFS(Einzelposten!$J$16:$J$215,Einzelposten!$C$16:$C$215,H$1,Einzelposten!$B$16:$B$215,$A17,Einzelposten!$E$16:$E$215,$B$10)*-1),2) -> 2282 | I17: =ROUND(SUM(I16,SUMIFS(Einzelposten!$I$16:$I$215,Einzelposten!$C$16:$C$215,I$1,Einzelposten!$B$16:$B$215,$A17,Einzelposten!$E$16:$E$215,$B$10),SUMIFS(Einzelposten!$J$16:$J$215,Einzelposten!$C$16:$C$215,I$1,Einzelposten!$B$16:$B$215,$A17,Einzelposten!$E$16:$E$215,$B$10)*-1),2) -> 2282 | J17: =ROUND(SUM(J16,SUMIFS(Einzelposten!$I$16:$I$215,Einzelposten!$C$16:$C$215,J$1,Einzelposten!$B$16:$B$215,$A17,Einzelposten!$E$16:$E$215,$B$10),SUMIFS(Einzelposten!$J$16:$J$215,Einzelposten!$C$16:$C$215,J$1,Einzelposten!$B$16:$B$215,$A17,Einzelposten!$E$16:$E$215,$B$10)*-1),2) -> 2282 | K17: =ROUND(SUM(K16,SUMIFS(Einzelposten!$I$16:$I$215,Einzelposten!$C$16:$C$215,K$1,Einzelposten!$B$16:$B$215,$A17,Einzelposten!$E$16:$E$215,$B$10),SUMIFS(Einzelposten!$J$16:$J$215,Einzelposten!$C$16:$C$215,K$1,Einzelposten!$B$16:$B$215,$A17,Einzelposten!$E$16:$E$215,$B$10)*-1),2) -> 2282 | L17: =ROUND(SUM(L16,SUMIFS(Einzelposten!$I$16:$I$215,Einzelposten!$C$16:$C$215,L$1,Einzelposten!$B$16:$B$215,$A17,Einzelposten!$E$16:$E$215,$B$10),SUMIFS(Einzelposten!$J$16:$J$215,Einzelposten!$C$16:$C$215,L$1,Einzelposten!$B$16:$B$215,$A17,Einzelposten!$E$16:$E$215,$B$10)*-1),2) -> 2282 | M17: =ROUND(SUM(M16,SUMIFS(Einzelposten!$I$16:$I$215,Einzelposten!$C$16:$C$215,M$1,Einzelposten!$B$16:$B$215,$A17,Einzelposten!$E$16:$E$215,$B$10),SUMIFS(Einzelposten!$J$16:$J$215,Einzelposten!$C$16:$C$215,M$1,Einzelposten!$B$16:$B$215,$A17,Einzelposten!$E$16:$E$215,$B$10)*-1),2) -> 2276.1 | N17: =ROUND(SUM(N16,SUMIFS(Einzelposten!$I$16:$I$215,Einzelposten!$C$16:$C$215,N$1,Einzelposten!$B$16:$B$215,$A17,Einzelposten!$E$16:$E$215,$B$10),SUMIFS(Einzelposten!$J$16:$J$215,Einzelposten!$C$16:$C$215,N$1,Einzelposten!$B$16:$B$215,$A17,Einzelposten!$E$16:$E$215,$B$10)*-1),2) -> 2276.1
A18: 3 | B18: <> | C18: =ROUND(SUM(C17,SUMIFS(Einzelposten!$I$16:$I$215,Einzelposten!$C$16:$C$215,C$1,Einzelposten!$B$16:$B$215,$A18,Einzelposten!$E$16:$E$215,$B$10),SUMIFS(Einzelposten!$J$16:$J$215,Einzelposten!$C$16:$C$215,C$1,Einzelposten!$B$16:$B$215,$A18,Einzelposten!$E$16:$E$215,$B$10)*-1),2) -> 202 | D18: =ROUND(SUM(D17,SUMIFS(Einzelposten!$I$16:$I$215,Einzelposten!$C$16:$C$215,D$1,Einzelposten!$B$16:$B$215,$A18,Einzelposten!$E$16:$E$215,$B$10),SUMIFS(Einzelposten!$J$16:$J$215,Einzelposten!$C$16:$C$215,D$1,Einzelposten!$B$16:$B$215,$A18,Einzelposten!$E$16:$E$215,$B$10)*-1),2) -> 202 | E18: =ROUND(SUM(E17,SUMIFS(Einzelposten!$I$16:$I$215,Einzelposten!$C$16:$C$215,E$1,Einzelposten!$B$16:$B$215,$A18,Einzelposten!$E$16:$E$215,$B$10),SUMIFS(Einzelposten!$J$16:$J$215,Einzelposten!$C$16:$C$215,E$1,Einzelposten!$B$16:$B$215,$A18,Einzelposten!$E$16:$E$215,$B$10)*-1),2) -> -368 | F18: =ROUND(SUM(F17,SUMIFS(Einzelposten!$I$16:$I$215,Einzelposten!$C$16:$C$215,F$1,Einzelposten!$B$16:$B$215,$A18,Einzelposten!$E$16:$E$215,$B$10),SUMIFS(Einzelposten!$J$16:$J$215,Einzelposten!$C$16:$C$215,F$1,Einzelposten!$B$16:$B$215,$A18,Einzelposten!$E$16:$E$215,$B$10)*-1),2) -> 2282 | G18: =ROUND(SUM(G17,SUMIFS(Einzelposten!$I$16:$I$215,Einzelposten!$C$16:$C$215,G$1,Einzelposten!$B$16:$B$215,$A18,Einzelposten!$E$16:$E$215,$B$10),SUMIFS(Einzelposten!$J$16:$J$215,Einzelposten!$C$16:$C$215,G$1,Einzelposten!$B$16:$B$215,$A18,Einzelposten!$E$16:$E$215,$B$10)*-1),2) -> 2282 | H18: =ROUND(SUM(H17,SUMIFS(Einzelposten!$I$16:$I$215,Einzelposten!$C$16:$C$215,H$1,Einzelposten!$B$16:$B$215,$A18,Einzelposten!$E$16:$E$215,$B$10),SUMIFS(Einzelposten!$J$16:$J$215,Einzelposten!$C$16:$C$215,H$1,Einzelposten!$B$16:$B$215,$A18,Einzelposten!$E$16:$E$215,$B$10)*-1),2) -> 2282 | I18: =ROUND(SUM(I17,SUMIFS(Einzelposten!$I$16:$I$215,Einzelposten!$C$16:$C$215,I$1,Einzelposten!$B$16:$B$215,$A18,Einzelposten!$E$16:$E$215,$B$10),SUMIFS(Einzelposten!$J$16:$J$215,Einzelposten!$C$16:$C$215,I$1,Einzelposten!$B$16:$B$215,$A18,Einzelposten!$E$16:$E$215,$B$10)*-1),2) -> 2282 | J18: =ROUND(SUM(J17,SUMIFS(Einzelposten!$I$16:$I$215,Einzelposten!$C$16:$C$215,J$1,Einzelposten!$B$16:$B$215,$A18,Einzelposten!$E$16:$E$215,$B$10),SUMIFS(Einzelposten!$J$16:$J$215,Einzelposten!$C$16:$C$215,J$1,Einzelposten!$B$16:$B$215,$A18,Einzelposten!$E$16:$E$215,$B$10)*-1),2) -> 2282 | K18: =ROUND(SUM(K17,SUMIFS(Einzelposten!$I$16:$I$215,Einzelposten!$C$16:$C$215,K$1,Einzelposten!$B$16:$B$215,$A18,Einzelposten!$E$16:$E$215,$B$10),SUMIFS(Einzelposten!$J$16:$J$215,Einzelposten!$C$16:$C$215,K$1,Einzelposten!$B$16:$B$215,$A18,Einzelposten!$E$16:$E$215,$B$10)*-1),2) -> 2282 | L18: =ROUND(SUM(L17,SUMIFS(Einzelposten!$I$16:$I$215,Einzelposten!$C$16:$C$215,L$1,Einzelposten!$B$16:$B$215,$A18,Einzelposten!$E$16:$E$215,$B$10),SUMIFS(Einzelposten!$J$16:$J$215,Einzelposten!$C$16:$C$215,L$1,Einzelposten!$B$16:$B$215,$A18,Einzelposten!$E$16:$E$215,$B$10)*-1),2) -> 2282 | M18: =ROUND(SUM(M17,SUMIFS(Einzelposten!$I$16:$I$215,Einzelposten!$C$16:$C$215,M$1,Einzelposten!$B$16:$B$215,$A18,Einzelposten!$E$16:$E$215,$B$10),SUMIFS(Einzelposten!$J$16:$J$215,Einzelposten!$C$16:$C$215,M$1,Einzelposten!$B$16:$B$215,$A18,Einzelposten!$E$16:$E$215,$B$10)*-1),2) -> 2276.1 | N18: =ROUND(SUM(N17,SUMIFS(Einzelposten!$I$16:$I$215,Einzelposten!$C$16:$C$215,N$1,Einzelposten!$B$16:$B$215,$A18,Einzelposten!$E$16:$E$215,$B$10),SUMIFS(Einzelposten!$J$16:$J$215,Einzelposten!$C$16:$C$215,N$1,Einzelposten!$B$16:$B$215,$A18,Einzelposten!$E$16:$E$215,$B$10)*-1),2) -> 2276.1
A19: 4 | B19: <> | C19: =ROUND(SUM(C18,SUMIFS(Einzelposten!$I$16:$I$215,Einzelposten!$C$16:$C$215,C$1,Einzelposten!$B$16:$B$215,$A19,Einzelposten!$E$16:$E$215,$B$10),SUMIFS(Einzelposten!$J$16:$J$215,Einzelposten!$C$16:$C$215,C$1,Einzelposten!$B$16:$B$215,$A19,Einzelposten!$E$16:$E$215,$B$10)*-1),2) -> 202 | D19: =ROUND(SUM(D18,SUMIFS(Einzelposten!$I$16:$I$215,Einzelposten!$C$16:$C$215,D$1,Einzelposten!$B$16:$B$215,$A19,Einzelposten!$E$16:$E$215,$B$10),SUMIFS(Einzelposten!$J$16:$J$215,Einzelposten!$C$16:$C$215,D$1,Einzelposten!$B$16:$B$215,$A19,Einzelposten!$E$16:$E$215,$B$10)*-1),2) -> 202 | E19: =ROUND(SUM(E18,SUMIFS(Einzelposten!$I$16:$I$215,Einzelposten!$C$16:$C$215,E$1,Einzelposten!$B$16:$B$215,$A19,Einzelposten!$E$16:$E$215,$B$10),SUMIFS(Einzelposten!$J$16:$J$215,Einzelposten!$C$16:$C$215,E$1,Einzelposten!$B$16:$B$215,$A19,Einzelposten!$E$16:$E$215,$B$10)*-1),2) -> -368 | F19: =ROUND(SUM(F18,SUMIFS(Einzelposten!$I$16:$I$215,Einzelposten!$C$16:$C$215,F$1,Einzelposten!$B$16:$B$215,$A19,Einzelposten!$E$16:$E$215,$B$10),SUMIFS(Einzelposten!$J$16:$J$215,Einzelposten!$C$16:$C$215,F$1,Einzelposten!$B$16:$B$215,$A19,Einzelposten!$E$16:$E$215,$B$10)*-1),2) -> 2282 | G19: =ROUND(SUM(G18,SUMIFS(Einzelposten!$I$16:$I$215,Einzelposten!$C$16:$C$215,G$1,Einzelposten!$B$16:$B$215,$A19,Einzelposten!$E$16:$E$215,$B$10),SUMIFS(Einzelposten!$J$16:$J$215,Einzelposten!$C$16:$C$215,G$1,Einzelposten!$B$16:$B$215,$A19,Einzelposten!$E$16:$E$215,$B$10)*-1),2) -> 2282 | H19: =ROUND(SUM(H18,SUMIFS(Einzelposten!$I$16:$I$215,Einzelposten!$C$16:$C$215,H$1,Einzelposten!$B$16:$B$215,$A19,Einzelposten!$E$16:$E$215,$B$10),SUMIFS(Einzelposten!$J$16:$J$215,Einzelposten!$C$16:$C$215,H$1,Einzelposten!$B$16:$B$215,$A19,Einzelposten!$E$16:$E$215,$B$10)*-1),2) -> 2282 | I19: =ROUND(SUM(I18,SUMIFS(Einzelposten!$I$16:$I$215,Einzelposten!$C$16:$C$215,I$1,Einzelposten!$B$16:$B$215,$A19,Einzelposten!$E$16:$E$215,$B$10),SUMIFS(Einzelposten!$J$16:$J$215,Einzelposten!$C$16:$C$215,I$1,Einzelposten!$B$16:$B$215,$A19,Einzelposten!$E$16:$E$215,$B$10)*-1),2) -> 2282 | J19: =ROUND(SUM(J18,SUMIFS(Einzelposten!$I$16:$I$215,Einzelposten!$C$16:$C$215,J$1,Einzelposten!$B$16:$B$215,$A19,Einzelposten!$E$16:$E$215,$B$10),SUMIFS(Einzelposten!$J$16:$J$215,Einzelposten!$C$16:$C$215,J$1,Einzelposten!$B$16:$B$215,$A19,Einzelposten!$E$16:$E$215,$B$10)*-1),2) -> 2282 | K19: =ROUND(SUM(K18,SUMIFS(Einzelposten!$I$16:$I$215,Einzelposten!$C$16:$C$215,K$1,Einzelposten!$B$16:$B$215,$A19,Einzelposten!$E$16:$E$215,$B$10),SUMIFS(Einzelposten!$J$16:$J$215,Einzelposten!$C$16:$C$215,K$1,Einzelposten!$B$16:$B$215,$A19,Einzelposten!$E$16:$E$215,$B$10)*-1),2) -> 2282 | L19: =ROUND(SUM(L18,SUMIFS(Einzelposten!$I$16:$I$215,Einzelposten!$C$16:$C$215,L$1,Einzelposten!$B$16:$B$215,$A19,Einzelposten!$E$16:$E$215,$B$10),SUMIFS(Einzelposten!$J$16:$J$215,Einzelposten!$C$16:$C$215,L$1,Einzelposten!$B$16:$B$215,$A19,Einzelposten!$E$16:$E$215,$B$10)*-1),2) -> 2282 | M19: =ROUND(SUM(M18,SUMIFS(Einzelposten!$I$16:$I$215,Einzelposten!$C$16:$C$215,M$1,Einzelposten!$B$16:$B$215,$A19,Einzelposten!$E$16:$E$215,$B$10),SUMIFS(Einzelposten!$J$16:$J$215,Einzelposten!$C$16:$C$215,M$1,Einzelposten!$B$16:$B$215,$A19,Einzelposten!$E$16:$E$215,$B$10)*-1),2) -> 2276.1 | N19: =ROUND(SUM(N18,SUMIFS(Einzelposten!$I$16:$I$215,Einzelposten!$C$16:$C$215,N$1,Einzelposten!$B$16:$B$215,$A19,Einzelposten!$E$16:$E$215,$B$10),SUMIFS(Einzelposten!$J$16:$J$215,Einzelposten!$C$16:$C$215,N$1,Einzelposten!$B$16:$B$215,$A19,Einzelposten!$E$16:$E$215,$B$10)*-1),2) -> 2276.1
A20: 5 | B20: <> | C20: =ROUND(SUM(C19,SUMIFS(Einzelposten!$I$16:$I$215,Einzelposten!$C$16:$C$215,C$1,Einzelposten!$B$16:$B$215,$A20,Einzelposten!$E$16:$E$215,$B$10),SUMIFS(Einzelposten!$J$16:$J$215,Einzelposten!$C$16:$C$215,C$1,Einzelposten!$B$16:$B$215,$A20,Einzelposten!$E$16:$E$215,$B$10)*-1),2) -> 202 | D20: =ROUND(SUM(D19,SUMIFS(Einzelposten!$I$16:$I$215,Einzelposten!$C$16:$C$215,D$1,Einzelposten!$B$16:$B$215,$A20,Einzelposten!$E$16:$E$215,$B$10),SUMIFS(Einzelposten!$J$16:$J$215,Einzelposten!$C$16:$C$215,D$1,Einzelposten!$B$16:$B$215,$A20,Einzelposten!$E$16:$E$215,$B$10)*-1),2) -> 202 | E20: =ROUND(SUM(E19,SUMIFS(Einzelposten!$I$16:$I$215,Einzelposten!$C$16:$C$215,E$1,Einzelposten!$B$16:$B$215,$A20,Einzelposten!$E$16:$E$215,$B$10),SUMIFS(Einzelposten!$J$16:$J$215,Einzelposten!$C$16:$C$215,E$1,Einzelposten!$B$16:$B$215,$A20,Einzelposten!$E$16:$E$215,$B$10)*-1),2) -> -368 | F20: =ROUND(SUM(F19,SUMIFS(Einzelposten!$I$16:$I$215,Einzelposten!$C$16:$C$215,F$1,Einzelposten!$B$16:$B$215,$A20,Einzelposten!$E$16:$E$215,$B$10),SUMIFS(Einzelposten!$J$16:$J$215,Einzelposten!$C$16:$C$215,F$1,Einzelposten!$B$16:$B$215,$A20,Einzelposten!$E$16:$E$215,$B$10)*-1),2) -> 2282 | G20: =ROUND(SUM(G19,SUMIFS(Einzelposten!$I$16:$I$215,Einzelposten!$C$16:$C$215,G$1,Einzelposten!$B$16:$B$215,$A20,Einzelposten!$E$16:$E$215,$B$10),SUMIFS(Einzelposten!$J$16:$J$215,Einzelposten!$C$16:$C$215,G$1,Einzelposten!$B$16:$B$215,$A20,Einzelposten!$E$16:$E$215,$B$10)*-1),2) -> 2282 | H20: =ROUND(SUM(H19,SUMIFS(Einzelposten!$I$16:$I$215,Einzelposten!$C$16:$C$215,H$1,Einzelposten!$B$16:$B$215,$A20,Einzelposten!$E$16:$E$215,$B$10),SUMIFS(Einzelposten!$J$16:$J$215,Einzelposten!$C$16:$C$215,H$1,Einzelposten!$B$16:$B$215,$A20,Einzelposten!$E$16:$E$215,$B$10)*-1),2) -> 2282 | I20: =ROUND(SUM(I19,SUMIFS(Einzelposten!$I$16:$I$215,Einzelposten!$C$16:$C$215,I$1,Einzelposten!$B$16:$B$215,$A20,Einzelposten!$E$16:$E$215,$B$10),SUMIFS(Einzelposten!$J$16:$J$215,Einzelposten!$C$16:$C$215,I$1,Einzelposten!$B$16:$B$215,$A20,Einzelposten!$E$16:$E$215,$B$10)*-1),2) -> 2282 | J20: =ROUND(SUM(J19,SUMIFS(Einzelposten!$I$16:$I$215,Einzelposten!$C$16:$C$215,J$1,Einzelposten!$B$16:$B$215,$A20,Einzelposten!$E$16:$E$215,$B$10),SUMIFS(Einzelposten!$J$16:$J$215,Einzelposten!$C$16:$C$215,J$1,Einzelposten!$B$16:$B$215,$A20,Einzelposten!$E$16:$E$215,$B$10)*-1),2) -> 2282 | K20: =ROUND(SUM(K19,SUMIFS(Einzelposten!$I$16:$I$215,Einzelposten!$C$16:$C$215,K$1,Einzelposten!$B$16:$B$215,$A20,Einzelposten!$E$16:$E$215,$B$10),SUMIFS(Einzelposten!$J$16:$J$215,Einzelposten!$C$16:$C$215,K$1,Einzelposten!$B$16:$B$215,$A20,Einzelposten!$E$16:$E$215,$B$10)*-1),2) -> 2282 | L20: =ROUND(SUM(L19,SUMIFS(Einzelposten!$I$16:$I$215,Einzelposten!$C$16:$C$215,L$1,Einzelposten!$B$16:$B$215,$A20,Einzelposten!$E$16:$E$215,$B$10),SUMIFS(Einzelposten!$J$16:$J$215,Einzelposten!$C$16:$C$215,L$1,Einzelposten!$B$16:$B$215,$A20,Einzelposten!$E$16:$E$215,$B$10)*-1),2) -> 2282 | M20: =ROUND(SUM(M19,SUMIFS(Einzelposten!$I$16:$I$215,Einzelposten!$C$16:$C$215,M$1,Einzelposten!$B$16:$B$215,$A20,Einzelposten!$E$16:$E$215,$B$10),SUMIFS(Einzelposten!$J$16:$J$215,Einzelposten!$C$16:$C$215,M$1,Einzelposten!$B$16:$B$215,$A20,Einzelposten!$E$16:$E$215,$B$10)*-1),2) -> 2276.1 | N20: =ROUND(SUM(N19,SUMIFS(Einzelposten!$I$16:$I$215,Einzelposten!$C$16:$C$215,N$1,Einzelposten!$B$16:$B$215,$A20,Einzelposten!$E$16:$E$215,$B$10),SUMIFS(Einzelposten!$J$16:$J$215,Einzelposten!$C$16:$C$215,N$1,Einzelposten!$B$16:$B$215,$A20,Einzelposten!$E$16:$E$215,$B$10)*-1),2) -> 2276.1
A21: 6 | B21: <> | C21: =ROUND(SUM(C20,SUMIFS(Einzelposten!$I$16:$I$215,Einzelposten!$C$16:$C$215,C$1,Einzelposten!$B$16:$B$215,$A21,Einzelposten!$E$16:$E$215,$B$10),SUMIFS(Einzelposten!$J$16:$J$215,Einzelposten!$C$16:$C$215,C$1,Einzelposten!$B$16:$B$215,$A21,Einzelposten!$E$16:$E$215,$B$10)*-1),2) -> 202 | D21: =ROUND(SUM(D20,SUMIFS(Einzelposten!$I$16:$I$215,Einzelposten!$C$16:$C$215,D$1,Einzelposten!$B$16:$B$215,$A21,Einzelposten!$E$16:$E$215,$B$10),SUMIFS(Einzelposten!$J$16:$J$215,Einzelposten!$C$16:$C$215,D$1,Einzelposten!$B$16:$B$215,$A21,Einzelposten!$E$16:$E$215,$B$10)*-1),2) -> 202 | E21: =ROUND(SUM(E20,SUMIFS(Einzelposten!$I$16:$I$215,Einzelposten!$C$16:$C$215,E$1,Einzelposten!$B$16:$B$215,$A21,Einzelposten!$E$16:$E$215,$B$10),SUMIFS(Einzelposten!$J$16:$J$215,Einzelposten!$C$16:$C$215,E$1,Einzelposten!$B$16:$B$215,$A21,Einzelposten!$E$16:$E$215,$B$10)*-1),2) -> -368 | F21: =ROUND(SUM(F20,SUMIFS(Einzelposten!$I$16:$I$215,Einzelposten!$C$16:$C$215,F$1,Einzelposten!$B$16:$B$215,$A21,Einzelposten!$E$16:$E$215,$B$10),SUMIFS(Einzelposten!$J$16:$J$215,Einzelposten!$C$16:$C$215,F$1,Einzelposten!$B$16:$B$215,$A21,Einzelposten!$E$16:$E$215,$B$10)*-1),2) -> 2282 | G21: =ROUND(SUM(G20,SUMIFS(Einzelposten!$I$16:$I$215,Einzelposten!$C$16:$C$215,G$1,Einzelposten!$B$16:$B$215,$A21,Einzelposten!$E$16:$E$215,$B$10),SUMIFS(Einzelposten!$J$16:$J$215,Einzelposten!$C$16:$C$215,G$1,Einzelposten!$B$16:$B$215,$A21,Einzelposten!$E$16:$E$215,$B$10)*-1),2) -> 2282 | H21: =ROUND(SUM(H20,SUMIFS(Einzelposten!$I$16:$I$215,Einzelposten!$C$16:$C$215,H$1,Einzelposten!$B$16:$B$215,$A21,Einzelposten!$E$16:$E$215,$B$10),SUMIFS(Einzelposten!$J$16:$J$215,Einzelposten!$C$16:$C$215,H$1,Einzelposten!$B$16:$B$215,$A21,Einzelposten!$E$16:$E$215,$B$10)*-1),2) -> 2282 | I21: =ROUND(SUM(I20,SUMIFS(Einzelposten!$I$16:$I$215,Einzelposten!$C$16:$C$215,I$1,Einzelposten!$B$16:$B$215,$A21,Einzelposten!$E$16:$E$215,$B$10),SUMIFS(Einzelposten!$J$16:$J$215,Einzelposten!$C$16:$C$215,I$1,Einzelposten!$B$16:$B$215,$A21,Einzelposten!$E$16:$E$215,$B$10)*-1),2) -> 2282 | J21: =ROUND(SUM(J20,SUMIFS(Einzelposten!$I$16:$I$215,Einzelposten!$C$16:$C$215,J$1,Einzelposten!$B$16:$B$215,$A21,Einzelposten!$E$16:$E$215,$B$10),SUMIFS(Einzelposten!$J$16:$J$215,Einzelposten!$C$16:$C$215,J$1,Einzelposten!$B$16:$B$215,$A21,Einzelposten!$E$16:$E$215,$B$10)*-1),2) -> 2282 | K21: =ROUND(SUM(K20,SUMIFS(Einzelposten!$I$16:$I$215,Einzelposten!$C$16:$C$215,K$1,Einzelposten!$B$16:$B$215,$A21,Einzelposten!$E$16:$E$215,$B$10),SUMIFS(Einzelposten!$J$16:$J$215,Einzelposten!$C$16:$C$215,K$1,Einzelposten!$B$16:$B$215,$A21,Einzelposten!$E$16:$E$215,$B$10)*-1),2) -> 2282 | L21: =ROUND(SUM(L20,SUMIFS(Einzelposten!$I$16:$I$215,Einzelposten!$C$16:$C$215,L$1,Einzelposten!$B$16:$B$215,$A21,Einzelposten!$E$16:$E$215,$B$10),SUMIFS(Einzelposten!$J$16:$J$215,Einzelposten!$C$16:$C$215,L$1,Einzelposten!$B$16:$B$215,$A21,Einzelposten!$E$16:$E$215,$B$10)*-1),2) -> 2282 | M21: =ROUND(SUM(M20,SUMIFS(Einzelposten!$I$16:$I$215,Einzelposten!$C$16:$C$215,M$1,Einzelposten!$B$16:$B$215,$A21,Einzelposten!$E$16:$E$215,$B$10),SUMIFS(Einzelposten!$J$16:$J$215,Einzelposten!$C$16:$C$215,M$1,Einzelposten!$B$16:$B$215,$A21,Einzelposten!$E$16:$E$215,$B$10)*-1),2) -> 2276.1 | N21: =ROUND(SUM(N20,SUMIFS(Einzelposten!$I$16:$I$215,Einzelposten!$C$16:$C$215,N$1,Einzelposten!$B$16:$B$215,$A21,Einzelposten!$E$16:$E$215,$B$10),SUMIFS(Einzelposten!$J$16:$J$215,Einzelposten!$C$16:$C$215,N$1,Einzelposten!$B$16:$B$215,$A21,Einzelposten!$E$16:$E$215,$B$10)*-1),2) -> 2276.1
A22: 7 | B22: <> | C22: =ROUND(SUM(C21,SUMIFS(Einzelposten!$I$16:$I$215,Einzelposten!$C$16:$C$215,C$1,Einzelposten!$B$16:$B$215,$A22,Einzelposten!$E$16:$E$215,$B$10),SUMIFS(Einzelposten!$J$16:$J$215,Einzelposten!$C$16:$C$215,C$1,Einzelposten!$B$16:$B$215,$A22,Einzelposten!$E$16:$E$215,$B$10)*-1),2) -> 202 | D22: =ROUND(SUM(D21,SUMIFS(Einzelposten!$I$16:$I$215,Einzelposten!$C$16:$C$215,D$1,Einzelposten!$B$16:$B$215,$A22,Einzelposten!$E$16:$E$215,$B$10),SUMIFS(Einzelposten!$J$16:$J$215,Einzelposten!$C$16:$C$215,D$1,Einzelposten!$B$16:$B$215,$A22,Einzelposten!$E$16:$E$215,$B$10)*-1),2) -> 202 | E22: =ROUND(SUM(E21,SUMIFS(Einzelposten!$I$16:$I$215,Einzelposten!$C$16:$C$215,E$1,Einzelposten!$B$16:$B$215,$A22,Einzelposten!$E$16:$E$215,$B$10),SUMIFS(Einzelposten!$J$16:$J$215,Einzelposten!$C$16:$C$215,E$1,Einzelposten!$B$16:$B$215,$A22,Einzelposten!$E$16:$E$215,$B$10)*-1),2) -> -368 | F22: =ROUND(SUM(F21,SUMIFS(Einzelposten!$I$16:$I$215,Einzelposten!$C$16:$C$215,F$1,Einzelposten!$B$16:$B$215,$A22,Einzelposten!$E$16:$E$215,$B$10),SUMIFS(Einzelposten!$J$16:$J$215,Einzelposten!$C$16:$C$215,F$1,Einzelposten!$B$16:$B$215,$A22,Einzelposten!$E$16:$E$215,$B$10)*-1),2) -> 2282 | G22: =ROUND(SUM(G21,SUMIFS(Einzelposten!$I$16:$I$215,Einzelposten!$C$16:$C$215,G$1,Einzelposten!$B$16:$B$215,$A22,Einzelposten!$E$16:$E$215,$B$10),SUMIFS(Einzelposten!$J$16:$J$215,Einzelposten!$C$16:$C$215,G$1,Einzelposten!$B$16:$B$215,$A22,Einzelposten!$E$16:$E$215,$B$10)*-1),2) -> 2282 | H22: =ROUND(SUM(H21,SUMIFS(Einzelposten!$I$16:$I$215,Einzelposten!$C$16:$C$215,H$1,Einzelposten!$B$16:$B$215,$A22,Einzelposten!$E$16:$E$215,$B$10),SUMIFS(Einzelposten!$J$16:$J$215,Einzelposten!$C$16:$C$215,H$1,Einzelposten!$B$16:$B$215,$A22,Einzelposten!$E$16:$E$215,$B$10)*-1),2) -> 2282 | I22: =ROUND(SUM(I21,SUMIFS(Einzelposten!$I$16:$I$215,Einzelposten!$C$16:$C$215,I$1,Einzelposten!$B$16:$B$215,$A22,Einzelposten!$E$16:$E$215,$B$10),SUMIFS(Einzelposten!$J$16:$J$215,Einzelposten!$C$16:$C$215,I$1,Einzelposten!$B$16:$B$215,$A22,Einzelposten!$E$16:$E$215,$B$10)*-1),2) -> 2282 | J22: =ROUND(SUM(J21,SUMIFS(Einzelposten!$I$16:$I$215,Einzelposten!$C$16:$C$215,J$1,Einzelposten!$B$16:$B$215,$A22,Einzelposten!$E$16:$E$215,$B$10),SUMIFS(Einzelposten!$J$16:$J$215,Einzelposten!$C$16:$C$215,J$1,Einzelposten!$B$16:$B$215,$A22,Einzelposten!$E$16:$E$215,$B$10)*-1),2) -> 2282 | K22: =ROUND(SUM(K21,SUMIFS(Einzelposten!$I$16:$I$215,Einzelposten!$C$16:$C$215,K$1,Einzelposten!$B$16:$B$215,$A22,Einzelposten!$E$16:$E$215,$B$10),SUMIFS(Einzelposten!$J$16:$J$215,Einzelposten!$C$16:$C$215,K$1,Einzelposten!$B$16:$B$215,$A22,Einzelposten!$E$16:$E$215,$B$10)*-1),2) -> 2282 | L22: =ROUND(SUM(L21,SUMIFS(Einzelposten!$I$16:$I$215,Einzelposten!$C$16:$C$215,L$1,Einzelposten!$B$16:$B$215,$A22,Einzelposten!$E$16:$E$215,$B$10),SUMIFS(Einzelposten!$J$16:$J$215,Einzelposten!$C$16:$C$215,L$1,Einzelposten!$B$16:$B$215,$A22,Einzelposten!$E$16:$E$215,$B$10)*-1),2) -> 2282 | M22: =ROUND(SUM(M21,SUMIFS(Einzelposten!$I$16:$I$215,Einzelposten!$C$16:$C$215,M$1,Einzelposten!$B$16:$B$215,$A22,Einzelposten!$E$16:$E$215,$B$10),SUMIFS(Einzelposten!$J$16:$J$215,Einzelposten!$C$16:$C$215,M$1,Einzelposten!$B$16:$B$215,$A22,Einzelposten!$E$16:$E$215,$B$10)*-1),2) -> 2276.1 | N22: =ROUND(SUM(N21,SUMIFS(Einzelposten!$I$16:$I$215,Einzelposten!$C$16:$C$215,N$1,Einzelposten!$B$16:$B$215,$A22,Einzelposten!$E$16:$E$215,$B$10),SUMIFS(Einzelposten!$J$16:$J$215,Einzelposten!$C$16:$C$215,N$1,Einzelposten!$B$16:$B$215,$A22,Einzelposten!$E$16:$E$215,$B$10)*-1),2) -> 2276.1
A23: 8 | B23: <> | C23: =ROUND(SUM(C22,SUMIFS(Einzelposten!$I$16:$I$215,Einzelposten!$C$16:$C$215,C$1,Einzelposten!$B$16:$B$215,$A23,Einzelposten!$E$16:$E$215,$B$10),SUMIFS(Einzelposten!$J$16:$J$215,Einzelposten!$C$16:$C$215,C$1,Einzelposten!$B$16:$B$215,$A23,Einzelposten!$E$16:$E$215,$B$10)*-1),2) -> 202 | D23: =ROUND(SUM(D22,SUMIFS(Einzelposten!$I$16:$I$215,Einzelposten!$C$16:$C$215,D$1,Einzelposten!$B$16:$B$215,$A23,Einzelposten!$E$16:$E$215,$B$10),SUMIFS(Einzelposten!$J$16:$J$215,Einzelposten!$C$16:$C$215,D$1,Einzelposten!$B$16:$B$215,$A23,Einzelposten!$E$16:$E$215,$B$10)*-1),2) -> 202 | E23: =ROUND(SUM(E22,SUMIFS(Einzelposten!$I$16:$I$215,Einzelposten!$C$16:$C$215,E$1,Einzelposten!$B$16:$B$215,$A23,Einzelposten!$E$16:$E$215,$B$10),SUMIFS(Einzelposten!$J$16:$J$215,Einzelposten!$C$16:$C$215,E$1,Einzelposten!$B$16:$B$215,$A23,Einzelposten!$E$16:$E$215,$B$10)*-1),2) -> -368 | F23: =ROUND(SUM(F22,SUMIFS(Einzelposten!$I$16:$I$215,Einzelposten!$C$16:$C$215,F$1,Einzelposten!$B$16:$B$215,$A23,Einzelposten!$E$16:$E$215,$B$10),SUMIFS(Einzelposten!$J$16:$J$215,Einzelposten!$C$16:$C$215,F$1,Einzelposten!$B$16:$B$215,$A23,Einzelposten!$E$16:$E$215,$B$10)*-1),2) -> 2282 | G23: =ROUND(SUM(G22,SUMIFS(Einzelposten!$I$16:$I$215,Einzelposten!$C$16:$C$215,G$1,Einzelposten!$B$16:$B$215,$A23,Einzelposten!$E$16:$E$215,$B$10),SUMIFS(Einzelposten!$J$16:$J$215,Einzelposten!$C$16:$C$215,G$1,Einzelposten!$B$16:$B$215,$A23,Einzelposten!$E$16:$E$215,$B$10)*-1),2) -> 2282 | H23: =ROUND(SUM(H22,SUMIFS(Einzelposten!$I$16:$I$215,Einzelposten!$C$16:$C$215,H$1,Einzelposten!$B$16:$B$215,$A23,Einzelposten!$E$16:$E$215,$B$10),SUMIFS(Einzelposten!$J$16:$J$215,Einzelposten!$C$16:$C$215,H$1,Einzelposten!$B$16:$B$215,$A23,Einzelposten!$E$16:$E$215,$B$10)*-1),2) -> 2282 | I23: =ROUND(SUM(I22,SUMIFS(Einzelposten!$I$16:$I$215,Einzelposten!$C$16:$C$215,I$1,Einzelposten!$B$16:$B$215,$A23,Einzelposten!$E$16:$E$215,$B$10),SUMIFS(Einzelposten!$J$16:$J$215,Einzelposten!$C$16:$C$215,I$1,Einzelposten!$B$16:$B$215,$A23,Einzelposten!$E$16:$E$215,$B$10)*-1),2) -> 2282 | J23: =ROUND(SUM(J22,SUMIFS(Einzelposten!$I$16:$I$215,Einzelposten!$C$16:$C$215,J$1,Einzelposten!$B$16:$B$215,$A23,Einzelposten!$E$16:$E$215,$B$10),SUMIFS(Einzelposten!$J$16:$J$215,Einzelposten!$C$16:$C$215,J$1,Einzelposten!$B$16:$B$215,$A23,Einzelposten!$E$16:$E$215,$B$10)*-1),2) -> 2282 | K23: =ROUND(SUM(K22,SUMIFS(Einzelposten!$I$16:$I$215,Einzelposten!$C$16:$C$215,K$1,Einzelposten!$B$16:$B$215,$A23,Einzelposten!$E$16:$E$215,$B$10),SUMIFS(Einzelposten!$J$16:$J$215,Einzelposten!$C$16:$C$215,K$1,Einzelposten!$B$16:$B$215,$A23,Einzelposten!$E$16:$E$215,$B$10)*-1),2) -> 2282 | L23: =ROUND(SUM(L22,SUMIFS(Einzelposten!$I$16:$I$215,Einzelposten!$C$16:$C$215,L$1,Einzelposten!$B$16:$B$215,$A23,Einzelposten!$E$16:$E$215,$B$10),SUMIFS(Einzelposten!$J$16:$J$215,Einzelposten!$C$16:$C$215,L$1,Einzelposten!$B$16:$B$215,$A23,Einzelposten!$E$16:$E$215,$B$10)*-1),2) -> 2282 | M23: =ROUND(SUM(M22,SUMIFS(Einzelposten!$I$16:$I$215,Einzelposten!$C$16:$C$215,M$1,Einzelposten!$B$16:$B$215,$A23,Einzelposten!$E$16:$E$215,$B$10),SUMIFS(Einzelposten!$J$16:$J$215,Einzelposten!$C$16:$C$215,M$1,Einzelposten!$B$16:$B$215,$A23,Einzelposten!$E$16:$E$215,$B$10)*-1),2) -> 2276.1 | N23: =ROUND(SUM(N22,SUMIFS(Einzelposten!$I$16:$I$215,Einzelposten!$C$16:$C$215,N$1,Einzelposten!$B$16:$B$215,$A23,Einzelposten!$E$16:$E$215,$B$10),SUMIFS(Einzelposten!$J$16:$J$215,Einzelposten!$C$16:$C$215,N$1,Einzelposten!$B$16:$B$215,$A23,Einzelposten!$E$16:$E$215,$B$10)*-1),2) -> 2276.1
A24: 9 | B24: <> | C24: =ROUND(SUM(C23,SUMIFS(Einzelposten!$I$16:$I$215,Einzelposten!$C$16:$C$215,C$1,Einzelposten!$B$16:$B$215,$A24,Einzelposten!$E$16:$E$215,$B$10),SUMIFS(Einzelposten!$J$16:$J$215,Einzelposten!$C$16:$C$215,C$1,Einzelposten!$B$16:$B$215,$A24,Einzelposten!$E$16:$E$215,$B$10)*-1),2) -> 202 | D24: =ROUND(SUM(D23,SUMIFS(Einzelposten!$I$16:$I$215,Einzelposten!$C$16:$C$215,D$1,Einzelposten!$B$16:$B$215,$A24,Einzelposten!$E$16:$E$215,$B$10),SUMIFS(Einzelposten!$J$16:$J$215,Einzelposten!$C$16:$C$215,D$1,Einzelposten!$B$16:$B$215,$A24,Einzelposten!$E$16:$E$215,$B$10)*-1),2) -> 202 | E24: =ROUND(SUM(E23,SUMIFS(Einzelposten!$I$16:$I$215,Einzelposten!$C$16:$C$215,E$1,Einzelposten!$B$16:$B$215,$A24,Einzelposten!$E$16:$E$215,$B$10),SUMIFS(Einzelposten!$J$16:$J$215,Einzelposten!$C$16:$C$215,E$1,Einzelposten!$B$16:$B$215,$A24,Einzelposten!$E$16:$E$215,$B$10)*-1),2) -> -368 | F24: =ROUND(SUM(F23,SUMIFS(Einzelposten!$I$16:$I$215,Einzelposten!$C$16:$C$215,F$1,Einzelposten!$B$16:$B$215,$A24,Einzelposten!$E$16:$E$215,$B$10),SUMIFS(Einzelposten!$J$16:$J$215,Einzelposten!$C$16:$C$215,F$1,Einzelposten!$B$16:$B$215,$A24,Einzelposten!$E$16:$E$215,$B$10)*-1),2) -> 2282 | G24: =ROUND(SUM(G23,SUMIFS(Einzelposten!$I$16:$I$215,Einzelposten!$C$16:$C$215,G$1,Einzelposten!$B$16:$B$215,$A24,Einzelposten!$E$16:$E$215,$B$10),SUMIFS(Einzelposten!$J$16:$J$215,Einzelposten!$C$16:$C$215,G$1,Einzelposten!$B$16:$B$215,$A24,Einzelposten!$E$16:$E$215,$B$10)*-1),2) -> 2282 | H24: =ROUND(SUM(H23,SUMIFS(Einzelposten!$I$16:$I$215,Einzelposten!$C$16:$C$215,H$1,Einzelposten!$B$16:$B$215,$A24,Einzelposten!$E$16:$E$215,$B$10),SUMIFS(Einzelposten!$J$16:$J$215,Einzelposten!$C$16:$C$215,H$1,Einzelposten!$B$16:$B$215,$A24,Einzelposten!$E$16:$E$215,$B$10)*-1),2) -> 2282 | I24: =ROUND(SUM(I23,SUMIFS(Einzelposten!$I$16:$I$215,Einzelposten!$C$16:$C$215,I$1,Einzelposten!$B$16:$B$215,$A24,Einzelposten!$E$16:$E$215,$B$10),SUMIFS(Einzelposten!$J$16:$J$215,Einzelposten!$C$16:$C$215,I$1,Einzelposten!$B$16:$B$215,$A24,Einzelposten!$E$16:$E$215,$B$10)*-1),2) -> 2282 | J24: =ROUND(SUM(J23,SUMIFS(Einzelposten!$I$16:$I$215,Einzelposten!$C$16:$C$215,J$1,Einzelposten!$B$16:$B$215,$A24,Einzelposten!$E$16:$E$215,$B$10),SUMIFS(Einzelposten!$J$16:$J$215,Einzelposten!$C$16:$C$215,J$1,Einzelposten!$B$16:$B$215,$A24,Einzelposten!$E$16:$E$215,$B$10)*-1),2) -> 2282 | K24: =ROUND(SUM(K23,SUMIFS(Einzelposten!$I$16:$I$215,Einzelposten!$C$16:$C$215,K$1,Einzelposten!$B$16:$B$215,$A24,Einzelposten!$E$16:$E$215,$B$10),SUMIFS(Einzelposten!$J$16:$J$215,Einzelposten!$C$16:$C$215,K$1,Einzelposten!$B$16:$B$215,$A24,Einzelposten!$E$16:$E$215,$B$10)*-1),2) -> 2282 | L24: =ROUND(SUM(L23,SUMIFS(Einzelposten!$I$16:$I$215,Einzelposten!$C$16:$C$215,L$1,Einzelposten!$B$16:$B$215,$A24,Einzelposten!$E$16:$E$215,$B$10),SUMIFS(Einzelposten!$J$16:$J$215,Einzelposten!$C$16:$C$215,L$1,Einzelposten!$B$16:$B$215,$A24,Einzelposten!$E$16:$E$215,$B$10)*-1),2) -> 2282 | M24: =ROUND(SUM(M23,SUMIFS(Einzelposten!$I$16:$I$215,Einzelposten!$C$16:$C$215,M$1,Einzelposten!$B$16:$B$215,$A24,Einzelposten!$E$16:$E$215,$B$10),SUMIFS(Einzelposten!$J$16:$J$215,Einzelposten!$C$16:$C$215,M$1,Einzelposten!$B$16:$B$215,$A24,Einzelposten!$E$16:$E$215,$B$10)*-1),2) -> 2276.1 | N24: =ROUND(SUM(N23,SUMIFS(Einzelposten!$I$16:$I$215,Einzelposten!$C$16:$C$215,N$1,Einzelposten!$B$16:$B$215,$A24,Einzelposten!$E$16:$E$215,$B$10),SUMIFS(Einzelposten!$J$16:$J$215,Einzelposten!$C$16:$C$215,N$1,Einzelposten!$B$16:$B$215,$A24,Einzelposten!$E$16:$E$215,$B$10)*-1),2) -> 2276.1
